Workbook

Sheet Contents
C3: Sheet Tab | D3: Description | E3: Author
B4: 1 | C4: contents
B5: 2 | C5: annual pf model
B6: 3 | C6: exel
B7: 4 | C7: Debt Ser chart
B8: 5 | C8: PF Module
B9: 6 | C9: PF Risk
B10: 7 | C10: CORP Module
B11: 8 | C11: Chart2
B12: 9 | C12: Chart3
B13: 10 | C13: Valuation
B14: 11 | C14: Sheet5
B15: 12 | C15: Sheet6
B16: 13 | C16: Sheet7
B18: File Name: | D18: =File_name() -> C:\Users\Monika Lewenski\Courses\Chapter 1. Models and Analysis\A. Corporate Models Templates and Exercises\A. Featured Corporate Finance Models\Construction Company Corporate Model.xlsm
B20: Last Save Date | D20: =lastsaved1() -> 21/04/2015 10:30:23
B21: Last Save By | D21: =lastsaveby1() -> Elvis Presley
B23: Colour Codes

Sheet Master scenario
C1: Code number | D1: 1
C2: P/E ratio | D2: 10
C3: Valuation year | D3: 2018
C4: Column | D4: =MATCH(D3,'Corp Module'!6:6) -> 13
C5: Sells growth | D5: COGS margin | E5: Other expense growth | F5: CAPEX | G5: AR/ Revenue | H5: Inventory/ COGS | I5: AP/ COGS | K5: Value of the company | L5: ROE | M5: Debt/Equity | N5: Debt/EBITDA
C6: 1 | D6: 2 | E6: 3 | F6: 4 | G6: 5 | H6: 6 | I6: 7 | K6: =INDEX('Corp Module'!295:295,'Master scenario'!D4) -> 34.13340467 | L6: =INDEX('Corp Module'!300:300,'Master scenario'!D4) -> 0.1891428074 | M6: =INDEX('Corp Module'!308:308,'Master scenario'!D4) -> 1.064839037 | N6: =INDEX('Corp Module'!309:309,'Master scenario'!D4) -> 0.2827835655
B7: Base case | C7: 1 | D7: 1 | E7: 0.1 | F7: 1 | G7: 0.3 | H7: 0.14 | I7: 0.14 | J7: 1 | K7: 34.13340467 | L7: 0.1891428074 | M7: 1.064839037 | N7: 0.2827835655
B8: Low case | C8: 2 | D8: 1.05 | E8: 0.15 | F8: 1.2 | G8: 0.45 | H8: 0.16 | I8: 0.07 | J8: 2 | K8: -0.4840897548 | L8: -0.00296442941 | M8: 4.528469321 | N8: 0.6195359589
B9: High case | C9: 3 | D9: 0.97 | E9: 0.07 | F9: 0.9 | G9: 0.2 | H9: 0.1 | I9: 0.2 | J9: 3 | K9: 66.34248509 | L9: 0.3420840916 | M9: 0 | N9: 0
A10: 1 | B10: ="base case except"&TRANSPOSE(C5:I5) -> base case exceptSells growth | C10: =IF(C$6=$A10,C$8,C$7) -> 2 | D10: =IF(D$6=$A10,D$8,D$7) -> 1 | E10: 0.1 | F10: 1 | G10: 0.3 | H10: 0.14 | I10: 0.14 | J10: 4 | K10: 22.51875672 | L10: 0.1282963126 | M10: 0.9010738282 | N10: 0.1613743428
A11: 2 | B11: base case exceptCOGS margin | C11: =IF(C$6=$A11,C$8,C$7) -> 1 | D11: 1.05 | E11: 0.1 | F11: 1 | G11: 0.3 | H11: 0.14 | I11: 0.14 | J11: 5 | K11: 21.20279753 | L11: 0.1224830697 | M11: 1.653504113 | N11: 0.3354892556
A12: 3 | B12: base case exceptOther expense growth | C12: 1 | D12: 1 | E12: 0.15 | F12: 1 | G12: 0.3 | H12: 0.14 | I12: 0.14 | J12: 6 | K12: 34.13340467 | L12: 0.1891428074 | M12: 1.064839037 | N12: 0.2827835655
A13: 4 | B13: base case exceptCAPEX | C13: 1 | D13: 1 | E13: 0.1 | F13: 1.2 | G13: 0.3 | H13: 0.14 | I13: 0.14 | J13: 7 | K13: 31.94447848 | L13: 0.1776248219 | M13: 1.334643574 | N13: 0.3560609494
A14: 5 | B14: base case exceptAR/ Revenue | C14: 1 | D14: 1 | E14: 0.1 | F14: 1 | G14: 0.45 | H14: 0.14 | I14: 0.14 | J14: 8 | K14: 23.38305077 | L14: 0.1329654937 | M14: 2.181849748 | N14: 0.5978932958
A15: 6 | B15: base case exceptInventory/ COGS | C15: 1 | D15: 1 | E15: 0.1 | F15: 1 | G15: 0.3 | H15: 0.16 | I15: 0.14 | J15: 9 | K15: 34.13340467 | L15: 0.1891428074 | M15: 1.064839037 | N15: 0.2827835655
A16: 7 | B16: base case exceptAP/ COGS | C16: 1 | D16: 1 | E16: 0.1 | F16: 1 | G16: 0.3 | H16: 0.14 | I16: 0.07 | J16: 10 | K16: 30.04366648 | L16: 0.1681126123 | M16: 1.489781453 | N16: 0.4003383645
B19: =INDEX(B7:B17,$D$1) -> Base case | C19: =INDEX(C7:C17,$D$1) -> 1 | D19: =INDEX(D7:D17,$D$1) -> 1 | E19: =INDEX(E7:E17,$D$1) -> 0.1 | F19: =INDEX(F7:F17,$D$1) -> 1 | G19: =INDEX(G7:G17,$D$1) -> 0.3 | H19: =INDEX(H7:H17,$D$1) -> 0.14 | I19: =INDEX(I7:I17,$D$1) -> 0.14 | J19: =INDEX(J7:J17,$D$1) -> 1
B28: =TRANSPOSE(C5:I5)&" low case " -> Sells growth low case | C28: =K10-$K$7 -> -11.61464795
B29: COGS margin low case | C29: =K11-$K$7 -> -12.93060714
B30: Other expense growth low case | C30: 0
B31: CAPEX low case | C31: -2.188926193
B32: AR/ Revenue low case | C32: -10.7503539
B33: Inventory/ COGS low case | C33: 0

Sheet Corp Module
D2: APPENDIX 1: FINANCIAL STATEMENT, RATIO ANALYSIS
D3: Company name: ABC company | E3: /MNT million/
A5: INCOME STATEMENT
E6: Last history year | F6: 2011 | G6: =F6+1 -> 2012 | H6: =G6+1 -> 2013 | I6: 2014 | J6: =I6+1 -> 2015 | K6: =J6+1 -> 2016 | L6: 2017 | M6: 2018 | N6: 2019 | O6: 2020 | P6: 2021
D7: Historic switch | E7: 2014 | F7: =F6<=$E$7 -> TRUE | G7: =G6<=$E$7 -> TRUE | H7: TRUE | I7: TRUE | J7: FALSE | K7: FALSE | L7: FALSE | M7: FALSE | N7: FALSE | O7: FALSE | P7: FALSE
C8: Income Statement
D9: Sales | F9: =+SUM(F10:F17) -> 24308.30297 | G9: =+SUM(G10:G17) -> 44489.32238 | H9: =+SUM(H10:H17) -> 51419.89591 | I9: =+SUM(I10:I17) -> 44500
D10: Sugar sales | F10: 8516.920556 | G10: 7429.7232 | H10: 6200.313182 | I10: 5000
D11: Rent income | F11: 1805.226837 | G11: 396.4848588 | H11: =292.991852+144.301908+27.749302 -> 465.043062 | I11: 500
D12: Freight forwarding | F12: 7738.353481 | G12: 9318.284335 | H12: =4024.32542483+3029.10706118+542.19357755 -> 7595.626064 | I12: 7000
D13: Rebar sales | F13: 3879.6738 | G13: 23445.87749 | H13: 32809.36481 | I13: 25000
D14: Rice sales | F14: 2368.1283 | G14: 3898.9525 | H14: 0 | I14: 0
D15: Liquid concrete and cement sales | F15: 0 | G15: 0 | H15: 3227.745932 | I15: 4000
D16: Sales of apartment | F16: 0 | G16: 0 | H16: 0 | I16: 2500
D17: Other businesses | F17: 0 | G17: 0 | H17: =1.14076221+61.3429834+131.873636+732.52895983+1.525261+82.768173+108.77636352+0.828544+1.018181 -> 1121.802864 | I17: 500
D18: COGS | F18: =+SUM(F19:F24) -> 19081 | G18: =+SUM(G19:G24) -> 38260 | H18: 41547.71515 | I18: 35950
D19: COGS (Sugar) | F19: 7944 | G19: 8112 | H19: 6189.455601 | I19: =+I10*0.99 -> 4950
D20: COGS (Rebar) | F20: 3339 | G20: 21341 | H20: 30127.16954 | I20: =+I13*0.9 -> 22500
D21: COGS (Freight forwarding) | F21: 5694 | G21: 5113 | H21: 3209.199366 | I21: 5000
D22: COGS (Rice) | F22: 2104 | G22: 3694 | H22: 0 | I22: 0
D23: COGS (Liquid concrete and cement) | F23: 0 | G23: 0 | H23: 2019.405552 | I23: 3500
D24: COGS (Other businesses) | F24: 0 | G24: 0 | H24: 2.485092 | I24: 0
D25: Gross profit | F25: =+F9-F18 -> 5227.302974 | G25: =+G9-G18 -> 6229.322381 | H25: =+H9-H18 -> 9872.180763 | I25: =+I9-I18 -> 8550
D26: Sugar sales | F26: =+F10-F19 -> 572.9205565 | G26: =+G10-G19 -> -682.2768 | H26: 10.8575805 | I26: 50
D27: Rent income | F27: =+F11 -> 1805.226837 | G27: =+G11 -> 396.4848588 | H27: 465.043062 | I27: 500
D28: Freight forwarding | F28: =+F12-F21 -> 2044.353481 | G28: =+G12-G21 -> 4205.284335 | H28: =+H12-H21 -> 4386.426698 | I28: =+I12-I21 -> 2000
D29: Rebar sales | F29: =+F13-F20 -> 540.6738 | G29: =+G13-G20 -> 2104.877487 | H29: 2682.195271 | I29: 2500
D30: Rice sales | F30: =+F14-F22 -> 264.1283 | G30: =+G14-G22 -> 204.9525 | H30: 0 | I30: 0
D31: Liquid concrete and cement sales | F31: 0 | G31: 0 | H31: =+H15-H23 -> 1208.34038 | I31: =+I15-I23 -> 500
D32: Other businesses | F32: =+F17-F24 -> 0 | G32: =+G17-G24 -> 0 | H32: =+H17-H24 -> 1119.317772 | I32: =+I17-I24 -> 500
D34: Operating expense | F34: 1046 | G34: 745 | H34: =2378.49222739-H35-H41-H43 -> 1010.311243 | I34: 1300
D35: Depreciation | F35: 16 | G35: 147 | H35: 163.6933406 | I35: 180
D36: Operating profit | F36: =F25-F34-F35 -> 4165.302974 | G36: =G25-G34-G35 -> 5337.322381 | H36: =H25-H34-H35 -> 8698.17618 | I36: =I25-I34-I35 -> 7070
D37: Other income | F37: 0 | G37: 0 | H37: 2.17531065 | I37: 0
D38: Other expense | F38: 400 | G38: 0 | H38: =3.21+0.87358188+3.95+43.01037237 -> 51.04395425 | I38: 50
D39: Realized FX gain (loss) | F39: -344.8425133 | G39: -355 | H39: =61.57641367-415.3422465 -> -353.7658328 | I39: 0
D40: EBIT | F40: =F36+F37-F38+F39 -> 3420.460461 | G40: =G36+G37-G38+G39 -> 4982.322381 | H40: =H36+H37-H38+H39 -> 8295.541704 | I40: 7020
D41: Interest expense | F41: 0 | G41: 687.6576592 | H41: 788.8748387 | I41: 850
D42: Profit before taxes | F42: =F40-F41 -> 3420.460461 | G42: 4294.664722 | H42: 7506.666865 | I42: 6170
D43: Taxes | F43: 259.5605 | G43: 289.5143 | H43: 415.6128056 | I43: 600
D44: Net profit | F44: =F42-F43 -> 3160.899961 | G44: 4005.150422 | H44: 7091.05406 | I44: 5570
D45: Unrecognized FX loss/gain | I45: =#REF! -> 
D46: Dividend
D47: Retained earnings | F47: =F44+F45-F46 -> 3160.899961 | G47: 4005.150422 | H47: =H44-H46 -> 7091.05406 | I47: =I44-I46 -> 5570
A49: BALANCE SHEET
C50: Assets
D51: Cash | E51: -1 | F51: 543.1575818 | G51: 59.49078854 | H51: 317.6801619 | I51: 1306.071709
D52: Receivables | F52: 11281.55722 | G52: 11880.09828 | H52: 10909.59163 | I52: 13438
D53: Prepaid expenses | F53: 0 | G53: 176.8374651 | H53: 109.9736821 | I53: 150
D54: Inventory | F54: 4812.197064 | G54: 2532.57647 | H54: =7155.74034231-H55 -> 1836.674523 | I54: 3000
D55: Inventory (rebar) | F55: 1765.9257 | G55: 5835.697785 | H55: 5319.065819 | I55: 5000
D56: Short term assets for sale /apartments/ | F56: 0 | G56: 0 | H56: 954.6132597 | I56: 2500
D57: Total current assets | F57: =SUM(F51,F52,F54,F55,F56) -> 18402.83757 | G57: =SUM(G51,G52,G53,G54,G55,G56) -> 20484.70078 | H57: =SUM(H51,H52,H53,H54,H55,H56) -> 19447.59908 | I57: =SUM(I51,I52,I53,I54,I55,I56) -> 25394.07171
D58: Land | F58: 6186.5 | G58: 6186.5 | H58: =+G58 -> 6186.5 | I58: =+H58 -> 6186.5
D59: Building | F59: 3288.678135 | G59: 3288.678135 | H59: =+G59+101.7819528 -> 3390.460088 | I59: 4000
D60: Equipment and facilities | F60: 1079.7475 | G60: 2090.3251 | H60: =+G60+(530.96075049-101.7819528) -> 2519.503898 | I60: 3000
D61: Vehicle | F61: 137.815907 | G61: 137.815907 | H61: =+G61 -> 137.815907 | I61: 500
D62: Total fixed assets | F62: =+SUM(F58:F61) -> 10692.74154 | G62: 11703.31914 | H62: 12234.27989 | I62: 13686.5
D63: Depreciation | F63: 609.4 | G63: 756.1210882 | H63: =+G63+H35 -> 919.8144288 | I63: =+H63+I35 -> 1099.814429
D64: Net fixed assets | F64: =+F62-F63 -> 10083.34154 | G64: =+G62-G63 -> 10947.19805 | H64: 11314.46546 | I64: 12586.68557
D65: Construction in progress | F65: 323.04747 | G65: 2006.055328 | H65: 2504.229659 | I65: 0
D66: Long term investments | F66: 0 | G66: 197.6645221 | H66: =+G66 -> 197.6645221 | I66: =+H66 -> 197.6645221
D67: Total non current assets | F67: =F64+F65+F66 -> 10406.38901 | G67: =G64+G65+G66 -> 13150.9179 | H67: 14016.35964 | I67: 12784.35009
D68: TOTAL ASSETS | F68: =F57+F67 -> 28809.22658 | G68: =G57+G67 -> 33635.61869 | H68: =H57+H67 -> 33463.95872 | I68: =I57+I67 -> 38178.4218
C70: Liabilities and Capital
D71: KB short term debt | E71: 1 | F71: 3500 | G71: 3900.984068 | H71: 2734.673996 | I71: 4090
D72: Payables | F72: 10386.08079 | G72: 10806.77007 | H72: 4710.366115 | I72: 2500
D73: Unearned income
D74: Advances from customer
D75: Other current liabilities
D76: Total current liabilities | F76: =SUM(F71,F72) -> 13886.08079 | G76: =SUM(G71,G72) -> 14707.75414 | H76: =SUM(H71,H72) -> 7445.040112 | I76: =SUM(I71,I72) -> 6590
D77: Debt refer to non current assets to be sold
D78: Long term debt | E78: 1 | F78: 0 | G78: 0 | H78: 0 | I78: 0
D79: Long term debt intercompany
D80: Other non current liabilities
D81: Total L.T.Liabilities | F81: =SUM(F77:F80) -> 0 | G81: 0 | H81: 0 | I81: 0
D82: TOTAL LIABILITIES | F82: =F76+F81 -> 13886.08079 | G82: 14707.75414 | H82: 7445.040112 | I82: 6590
D83: Paid in capital | F83: 500 | G83: 500 | H83: 500 | I83: 500
D84: KB Re-evaluation | F84: 4128.355509 | G84: 4128.355509 | H84: =+G84 -> 4128.355509 | I84: =+H84 -> 4128.355509
D85: Retained earnings | F85: 10294.79028 | G85: 14299.50904 | H85: =G85+H44 -> 21390.5631 | I85: =H85+I44 -> 26960.5631
D86: Total equity | E86: 1 | F86: =SUM(F83:F85) -> 14923.14579 | G86: 18927.86455 | H86: 26018.91861 | I86: 31588.91861
D87: TOTAL LIABILITIES & EQUITY | F87: =F82+F86 -> 28809.22658 | G87: =G82+G86 -> 33635.61869 | H87: 33463.95872 | I87: 38178.91861
D88: check | F88: =F68-F87 -> 0 | G88: =G68-G87 -> 0 | H88: =H68-H87 -> 0 | I88: =I68-I87 -> -0.49680981
D89: test | F89: =F88=0 -> TRUE | G89: =G88=0 -> TRUE | H89: TRUE | I89: FALSE
A90: CASH FLOW STATEMENT
F91: =F6 -> 2011 | G91: =G6 -> 2012 | H91: =H6 -> 2013 | I91: =I6 -> 2014
D92: OPERATING ACTIVITIES
D93: Net profit | F93: 3160.899961 | G93: =G85-F85 -> 4004.718764 | H93: =H85-G85 -> 7091.05406 | I93: =I85-H85 -> 5570
D94: Depreciation | F94: 16 | G94: =G63-F63 -> 146.7210882 | H94: =H63-G63 -> 163.6933406 | I94: =I63-H63 -> 180
D95: Other
D96: CASH | F96: =SUM(F93:F95) -> 3176.899961 | G96: =SUM(G93:G95) -> 4151.439853 | H96: 7254.7474 | I96: 5750
D97: WORKING CAPITAL :
D98: Receivables | F98: -4968.21572 | G98: =+F52-G52 -> -598.5410545 | H98: =+G52-H52 -> 970.5066425 | I98: =+H52-I52 -> -2528.408367
D99: Inventory | F99: -4037.449688 | G99: =+F54-G54 -> 2279.620594 | H99: 695.9019468 | I99: -1163.325477
D100: Inventory (Rebar) | F100: -1765.9257 | G100: -4069.772085 | H100: 516.6319666 | I100: 319.0658189
D101: =+D53 -> Prepaid expenses | F101: 0 | G101: =+F53-G53 -> -176.8374651 | H101: =+G53-H53 -> 66.86378304 | I101: =+H53-I53 -> -40.0263179
D102: =+D56 -> Short term assets for sale /apartments/ | F102: 0 | G102: =+F56-G56 -> 0 | H102: =+G56-H56 -> -954.6132597 | I102: =+H56-I56 -> -1545.38674
D103: Payables | F103: =6231.54152313-2927.23180373 -> 3304.309719 | G103: =+G72-F72 -> 420.6892767 | H103: =+H72-G72 -> -6096.403953 | I103: =+I72-H72 -> -2210.366115
D104: Payables (Transportation and Logistics)
D105: Payables (Other)
D106: Intercompany payables
D107: Tax payable
D108: Advances from customer
D109: Other current liabilities
D110: CHANGES IN WORKING CAPITAL | F110: =SUM(F98:F109) -> -7467.281389 | G110: =SUM(G98:G109) -> -2144.840734 | H110: =SUM(H98:H109) -> -4801.112874 | I110: -7168.447198
D111: NET OPERATING CASH FLOW | F111: =F110+F96 -> -4290.381428 | G111: =G110+G96 -> 2006.599118 | H111: =H110+H96 -> 2453.634527 | I111: -1418.447198
D112: INVESTING ACTIVITIES
D113: Land | F113: -1886.6 | G113: =+F58-G58 -> 0 | H113: 0 | I113: 0
D114: Building | G114: 0 | H114: -101.7819528 | I114: -609.5399122
D115: =+D60 -> Equipment and facilities | F115: -531.8475 | G115: -1010.5776 | H115: -429.1787977 | I115: -480.4961023
D116: Vehicles | F116: 18.58409305 | G116: 0 | H116: 0 | I116: -362.1840931
D117: Construction in progress | F117: -125.34747 | G117: =+F65-G65 -> -1683.007858 | H117: =+G65-H65 -> -498.1743306
D118: =+D66 -> Long term investments | G118: -197.6645221 | H118: 0 | I118: 0
D119: NET INVESTING CASH FLOW | F119: =SUM(F113:F118) -> -2525.210877 | G119: -2891.24998 | H119: -1029.135081 | I119: -1452.220108
D120: FINANCING ACTIVITIES
D121: Scheduled debt repayment | G121: -12099.49 | H121: =-G71-900-3077+H71 -> -5143.310072 | I121: =-H71 -> -2734.673996
D122: Projected new loan repayment | F122: 0 | G122: 0 | H122: 0 | I122: 0
D123: Increase in debt | F123: 3500 | G123: 12500 | H123: =900+3077 -> 3977
D124: Net increase/decrease Debt | F124: =F121+F123+F122 -> 3500 | G124: =G121+G123+G122 -> 400.51 | H124: -1166.310072 | I124: -2734.673996
D125: Debt refer to non current asses to be sold | F125: =+F77-#REF! ->  | G125: =+G77-F77 -> 0 | I125: =I77-G77 -> 0
D126: Long term debt intercompany | F126: =F79-#REF! ->  | G126: =G79-F79 -> 0 | I126: =I79-G79 -> 0
D127: Other non current liabilities | F127: =F80-#REF! ->  | G127: =G80-F80 -> 0 | I127: =I80-G80 -> 0
D128: Dividends paid | F128: =-F46 -> 0 | G128: =-G46 -> 0 | H128: 0 | I128: 0
D129: Equity | F129: -0.1646728994 | G129: =G83-F83+G85-F85-G47 -> -0.4316575488 | H129: =H83-G83+H85-G85-H47 -> 0 | I129: =I83-H83+I85-H85-I47 -> 0
D130: Re-evaluation | F130: 0 | G130: =G84-F84 -> 0 | H130: =H84-G84 -> 0 | I130: =I84-H84 -> 0
D131: NET FINANCING CASH FLOW | G131: =G129+G125+G124+G126+G130 -> 400.0783425 | H131: -1166.310072 | I131: -2734.673996
D133: NET TOTAL CASH FLOW | F133: =F111+F119+F131 -> -6815.592305 | G133: -484.5725193 | H133: 258.1893734 | I133: -5605.341302
D135: Starting balance | F135: 1601 | G135: 543.1575818 | H135: 59.49078854 | I135: 317.6801619
D136: Ending balance | F136: =F133+F135 -> -5214.592305 | G136: =G133+G135 -> 58.58506256 | H136: 317.6801619 | I136: -5287.66114
D137: check | F137: =F51-F136 -> 5757.749887 | G137: =G51-G136 -> 0.9057259788 | H137: =H51-H136 -> 3.245759217e-11 | I137: =I51-I136 -> 6593.732849
A140: Operating assumptions
B141: Revenue grown
C142: History | G142: =IF(G7,G9/F9-1) -> 0.8302109542 | H142: 0.1557806044 | I142: -0.1345762334 | J142: FALSE | K142: FALSE | L142: FALSE | M142: FALSE | N142: FALSE | O142: FALSE | P142: FALSE
C143: Base case | J143: 0.1 | K143: 0.1 | L143: 0.1 | M143: 0.1 | N143: 0.1 | O143: 0.1 | P143: 0.1
C144: Low case | J144: 0 | K144: 0.01 | L144: 0.02 | M144: 0.02 | N144: 0.02 | O144: 0.02 | P144: 0.02
C145: High case | J145: 0.2 | K145: 0.17 | L145: 0.15 | M145: 0.15 | N145: 0.15 | O145: 0.15 | P145: 0.15
C146: Revenue grown history and forecast | E146: ='Master scenario'!C19 -> 1 | G146: =IF(G7,G142,INDEX(G143:G145,$E$146)) -> 0.8302109542 | H146: =IF(H7,H142,INDEX(H143:H145,$E$146)) -> 0.1557806044 | I146: -0.1345762334 | J146: 0.1 | K146: =IF(K7,K142,INDEX(K143:K145,$E$146)) -> 0.1 | L146: =IF(L7,L142,INDEX(L143:L145,$E$146)) -> 0.1 | M146: =IF(M7,M142,INDEX(M143:M145,$E$146)) -> 0.1 | N146: =IF(N7,N142,INDEX(N143:N145,$E$146)) -> 0.1 | O146: =IF(O7,O142,INDEX(O143:O145,$E$146)) -> 0.1 | P146: =IF(P7,P142,INDEX(P143:P145,$E$146)) -> 0.1
C148: COGS margin | E148: ='Master scenario'!D19 -> 1 | F148: =IF(F7,F18/F9,AVERAGEIF(7:7,TRUE,148:148)*$E$148) -> 0.7849581281 | G148: 0.8599816305 | H148: 0.8080085424 | I148: 0.8078651685 | J148: 0.8152033674 | K148: 0.8152033674 | L148: 0.8152033674 | M148: 0.8152033674 | N148: 0.8152033674 | O148: 0.8152033674 | P148: 0.8152033674
C150: Other expences | E150: 0.15 | F150: =IF(F7,F34,E150*(1+$E$150)) -> 1046 | G150: 745 | H150: 1010.311243 | I150: 1300 | J150: 1495 | K150: 1719.25 | L150: 1977.1375 | M150: 2273.708125 | N150: 2614.764344 | O150: 3006.978995 | P150: 3458.025845
C152: Depreciation Rate | F152: =IF(F7,F35/F64,E152) -> 0.001586775568 | G152: =IF(G7,G35/G64,F152) -> 0.01342809359 | H152: 0.01446761591 | I152: 0.01430082598 | J152: 0.01430082598 | K152: 0.01430082598 | L152: 0.01430082598 | M152: 0.01430082598 | N152: 0.01430082598 | O152: 0.01430082598 | P152: 0.01430082598
C154: Capex | E154: ='Master scenario'!F19 -> 1 | F154: =IF(F7,-F119/F9,AVERAGEIF(7:7,TRUE,154:154)*$E$154) -> 0.1038826478 | G154: 0.06498750319 | H154: 0.02001433614 | I154: 0.03263415972 | J154: 0.05537966172 | K154: 0.05537966172 | L154: 0.05537966172 | M154: 0.05537966172 | N154: 0.05537966172 | O154: 0.05537966172 | P154: 0.05537966172
C156: Working Capital
D157: A/R to Revenues | E157: ='Master scenario'!G19 -> 0.3 | F157: =IF(F7,F52/F9,$E$157) -> 0.4641030364 | G157: 0.2670325741 | H157: 0.212166739 | I157: 0.3019775281 | J157: 0.3 | K157: 0.3 | L157: 0.3 | M157: 0.3 | N157: 0.3 | O157: 0.3 | P157: 0.3
D158: Inventory to COGS | E158: ='Master scenario'!H19 -> 0.14 | F158: =IF(F7,F55/F18,$E$158) -> 0.09254890732 | G158: 0.1525273859 | H158: 0.1280230646 | I158: 0.1390820584 | J158: 0.14 | K158: 0.14 | L158: 0.14 | M158: 0.14 | N158: 0.14 | O158: 0.14 | P158: 0.14
D159: Other Current Assets | F159: =IF(F7,F53+F54+F55+F56,E159) -> 6578.122765 | G159: 8545.111721 | H159: 8220.327284 | I159: 10650 | J159: 10650 | K159: 10650 | L159: 10650 | M159: 10650 | N159: 10650 | O159: 10650 | P159: 10650
D160: Accounts Payable to COGS | E160: ='Master scenario'!I19 -> 0.14 | F160: =IF(F7,F72/F18,$E$160) -> 0.5443153289 | G160: 0.2824560917 | H160: 0.1133724466 | I160: 0.06954102921 | J160: 0.14 | K160: 0.14 | L160: 0.14 | M160: 0.14 | N160: 0.14 | O160: 0.14 | P160: 0.14
C162: Tax rate | E162: 0.1 | F162: =IF(F7,F43/F42,$E$162) -> 0.07588466611 | G162: 0.06741254993 | H162: 0.05536582521 | I162: 0.09724473258 | J162: 0.1 | K162: 0.1 | L162: 0.1 | M162: 0.1 | N162: 0.1 | O162: 0.1 | P162: 0.1
A164: Financing assumptions
B165: Interest income rate | E165: 0.035 | F165: =IF(F7,F37/AVERAGE(E51:F51),$E$165) -> 0 | G165: 0 | H165: 0.01153487906 | I165: 0 | J165: 0.035 | K165: 0.035 | L165: 0.035 | M165: 0.035 | N165: 0.035 | O165: 0.035 | P165: 0.035
B166: Interest expense rate | E166: 0.192 | F166: =IF(F7,F41/AVERAGE(E71:F71),E166) -> 0 | G166: 0.1858287095 | H166: 0.2377683814 | I166: 0.2490961474 | J166: 0.2490961474 | K166: 0.2490961474 | L166: 0.2490961474 | M166: 0.2490961474 | N166: 0.2490961474 | O166: 0.2490961474 | P166: 0.2490961474
B167: Dividend Payout | E167: 0.8 | F167: =IF(F7,0,$E$167) -> 0 | G167: 0 | H167: 0 | I167: 0 | J167: 0.8 | K167: 0.8 | L167: 0.8 | M167: 0.8 | N167: 0.8 | O167: 0.8 | P167: 0.8
A170: Calculation free casflow
B171: Revenue
C172: Growth | F172: =F146 -> 0 | G172: =G146 -> 0.8302109542 | H172: 0.1557806044 | I172: -0.1345762334 | J172: 0.1 | K172: 0.1 | L172: 0.1 | M172: 0.1 | N172: 0.1 | O172: 0.1 | P172: 0.1
C173: Revenues | F173: =IF(F7,F9,E173*(1+F172)) -> 24308.30297 | G173: =IF(G7,G9,F173*(1+G172)) -> 44489.32238 | H173: 51419.89591 | I173: 44500 | J173: 48950 | K173: 53845 | L173: 59229.5 | M173: 65152.45 | N173: 71667.695 | O173: 78834.4645 | P173: 86717.91095
B175: COGS
C176: COGS Percent | F176: =F148 -> 0.7849581281 | G176: =G148 -> 0.8599816305 | H176: 0.8080085424 | I176: 0.8078651685 | J176: 0.8152033674 | K176: 0.8152033674 | L176: 0.8152033674 | M176: 0.8152033674 | N176: 0.8152033674 | O176: 0.8152033674 | P176: 0.8152033674
C177: COGS | F177: =F176*F173 -> 19081 | G177: =G176*G173 -> 38260 | H177: 41547.71515 | I177: 35950 | J177: 39904.20483 | K177: 43894.62532 | L177: 48284.08785 | M177: 53112.49663 | N177: 58423.7463 | O177: 64266.12093 | P177: 70692.73302
B179: Other expense | F179: =F150 -> 1046 | G179: =G150 -> 745 | H179: 1010.311243 | I179: 1300 | J179: 1495 | K179: 1719.25 | L179: 1977.1375 | M179: 2273.708125 | N179: 2614.764344 | O179: 3006.978995 | P179: 3458.025845
B181: EBITDA | F181: =F173-F177-F179 -> 4181.302974 | G181: =G173-G177-G179 -> 5484.322381 | H181: 8861.869521 | I181: 7250 | J181: 7550.795166 | K181: 8231.124683 | L181: 8968.274651 | M181: 9766.245241 | N181: 10629.18436 | O181: 11561.36458 | P181: 12567.15209
C183: CAPEX pesent of sales | F183: =F154 -> 0.1038826478 | G183: =G154 -> 0.06498750319 | H183: 0.02001433614 | I183: 0.03263415972 | J183: 0.05537966172 | K183: 0.05537966172 | L183: 0.05537966172 | M183: 0.05537966172 | N183: 0.05537966172 | O183: 0.05537966172 | P183: 0.05537966172
C184: CAPEX | F184: =F183*F173 -> 2525.210877 | G184: =G183*G173 -> 2891.24998 | H184: 1029.135081 | I184: 1452.220108 | J184: 2710.834441 | K184: 2981.917885 | L184: 3280.109674 | M184: 3608.120641 | N184: 3968.932705 | O184: 4365.825976 | P184: 4802.408573
B186: Working capital balance
C187: A/R Percent | F187: =F157 -> 0.4641030364 | G187: =G157 -> 0.2670325741 | H187: 0.212166739 | I187: 0.3019775281 | J187: 0.3 | K187: 0.3 | L187: 0.3 | M187: 0.3 | N187: 0.3 | O187: 0.3 | P187: 0.3
C188: A/R Level | F188: =F187*F173 -> 11281.55722 | G188: =G187*G173 -> 11880.09828 | H188: 10909.59163 | I188: 13438 | J188: 14685 | K188: 16153.5 | L188: 17768.85 | M188: 19545.735 | N188: 21500.3085 | O188: 23650.33935 | P188: 26015.37329
C190: Inventory Percent | F190: =F176 -> 0.7849581281 | G190: =G176 -> 0.8599816305 | H190: 0.8080085424 | I190: 0.8078651685 | J190: 0.8152033674 | K190: 0.8152033674 | L190: 0.8152033674 | M190: 0.8152033674 | N190: 0.8152033674 | O190: 0.8152033674 | P190: 0.8152033674
C191: Inventorry Level
C193: Other Current Assets | F193: =F159 -> 6578.122765 | G193: =G159 -> 8545.111721 | H193: 8220.327284 | I193: 10650 | J193: 10650 | K193: 10650 | L193: 10650 | M193: 10650 | N193: 10650 | O193: 10650 | P193: 10650
C195: Accounts Payable Percent | F195: =F160 -> 0.5443153289 | G195: =G160 -> 0.2824560917 | H195: 0.1133724466 | I195: 0.06954102921 | J195: 0.14 | K195: 0.14 | L195: 0.14 | M195: 0.14 | N195: 0.14 | O195: 0.14 | P195: 0.14
C196: Accounts Payable Level | F196: =F195*F177 -> 10386.08079 | G196: =G195*G177 -> 10806.77007 | H196: 4710.366115 | I196: 2500 | J196: 5586.588677 | K196: 6145.247544 | L196: 6759.772299 | M196: 7435.749529 | N196: 8179.324482 | O196: 8997.25693 | P196: 9896.982623
B198: Total Working Capital | F198: =F188+F191+F193-F196 -> 7473.599194 | G198: =G188+G191+G193-G196 -> 9618.439928 | H198: 14419.5528 | I198: 21588 | J198: 19748.41132 | K198: 20658.25246 | L198: 21659.0777 | M198: 22759.98547 | N198: 23970.98402 | O198: 25303.08242 | P198: 26768.39066
B199: Working capital change | G199: =G198-F198 -> 2144.840734 | H199: =H198-G198 -> 4801.112874 | I199: 7168.447198 | J199: -1839.588677 | K199: 909.8411323 | L199: 1000.825246 | M199: 1100.90777 | N199: 1210.998547 | O199: 1332.098402 | P199: 1465.308242
A201: Other Items
B202: Other Income | F202: =IF(F7,F37-F38+F39,E202) -> -744.8425133 | G202: -355 | H202: -402.6344764 | I202: -50 | J202: -50 | K202: -50 | L202: -50 | M202: -50 | N202: -50 | O202: -50 | P202: -50
B204: Other Assets | F204: =IF(F7,F65+F66,E204) -> 323.04747 | G204: 2203.71985 | H204: 2701.894181 | I204: 197.6645221 | J204: 197.6645221 | K204: 197.6645221 | L204: 197.6645221 | M204: 197.6645221 | N204: 197.6645221 | O204: 197.6645221 | P204: 197.6645221
A207: Plant balance
B208: Calculation of net plant
C209: Opening balance | G209: =F212 -> 10083.34154 | H209: =G212 -> 10947.19805 | I209: 11314.46546 | J209: 12586.68557 | K209: 15117.52001 | L209: 17883.24487 | M209: 20907.60938 | N209: 24216.73393 | O209: 27839.34734 | P209: 31807.04765
C210: Add CAPEX | F210: =F184 -> 2525.210877 | G210: =G184 -> 2891.24998 | H210: =H184 -> 1029.135081 | I210: 1452.220108 | J210: 2710.834441 | K210: 2981.917885 | L210: 3280.109674 | M210: 3608.120641 | N210: 3968.932705 | O210: 4365.825976 | P210: 4802.408573
C211: Less depreciation | F211: =F215 -> 16 | G211: =G215 -> 147 | H211: =H215 -> 163.6933406 | I211: 180 | J211: 180 | K211: 216.1930229 | L211: 255.7451729 | M211: 298.9960833 | N211: 346.3192977 | O211: 398.1256617 | P211: 454.8670534
C212: Closing balance | F212: =IF(F7,F64,F209+F210-F211) -> 10083.34154 | G212: =IF(G7,G64,G209+G210-G211) -> 10947.19805 | H212: =IF(H7,H64,H209+H210-H211) -> 11314.46546 | I212: =IF(I7,I64,I209+I210-I211) -> 12586.68557 | J212: =IF(J7,J64,J209+J210-J211) -> 15117.52001 | K212: =IF(K7,K64,K209+K210-K211) -> 17883.24487 | L212: =IF(L7,L64,L209+L210-L211) -> 20907.60938 | M212: =IF(M7,M64,M209+M210-M211) -> 24216.73393 | N212: =IF(N7,N64,N209+N210-N211) -> 27839.34734 | O212: =IF(O7,O64,O209+O210-O211) -> 31807.04765 | P212: =IF(P7,P64,P209+P210-P211) -> 36154.58917
C214: Depreciation Rate | F214: =F152 -> 0.001586775568 | G214: =G152 -> 0.01342809359 | H214: 0.01446761591 | I214: 0.01430082598 | J214: 0.01430082598 | K214: 0.01430082598 | L214: 0.01430082598 | M214: 0.01430082598 | N214: 0.01430082598 | O214: 0.01430082598 | P214: 0.01430082598
C215: Depreciation Expense | F215: =IF(F7,F35,F214*F209) -> 16 | G215: 147 | H215: 163.6933406 | I215: 180 | J215: 180 | K215: 216.1930229 | L215: 255.7451729 | M215: 298.9960833 | N215: 346.3192977 | O215: 398.1256617 | P215: 454.8670534
A217: Calculation of Finance
B218: Cash and ST debt
C219: Opening balance | F219: =E221 -> 0 | G219: =F221 -> -2956.842418 | H219: -3841.49328 | I219: -2416.993834 | J219: -2783.928291 | K219: -2332.587258 | L219: -4679.052484 | M219: -7354.783034 | N219: -10399.47918 | O219: -13857.46005 | P219: -17778.20695
C220: Add net cashflow | F220: =F262 -> 651.6890838 | G220: =G262 -> -883.9402924 | H220: 1425.147671 | I220: -2870.667306 | J220: 451.3410336 | K220: -2346.465226 | L220: -2675.730551 | M220: -3044.696141 | N220: -3457.980879 | O220: -3920.746895 | P220: -4438.765371
C221: Closing balance | F221: =IF(F7,F223-F227,F219+F220) -> -2956.842418 | G221: =IF(G7,G223-G227,G219+G220) -> -3841.49328 | H221: -2416.993834 | I221: -2783.928291 | J221: -2332.587258 | K221: -4679.052484 | L221: -7354.783034 | M221: -10399.47918 | N221: -13857.46005 | O221: -17778.20695 | P221: -22216.97232
C223: Cash balance | F223: =IF(F7,F51,MAX(F221,0)) -> 543.1575818 | G223: =IF(G7,G51,MAX(G221,0)) -> 59.49078854 | H223: 317.6801619 | I223: 1306.071709 | J223: 0 | K223: 0 | L223: 0 | M223: 0 | N223: 0 | O223: 0 | P223: 0
C224: Interest income rate | F224: =F165 -> 0 | G224: =G165 -> 0 | H224: 0.01153487906 | I224: 0 | J224: 0.035 | K224: 0.035 | L224: 0.035 | M224: 0.035 | N224: 0.035 | O224: 0.035 | P224: 0.035
C225: Interest income | F225: =F224*E223 -> 0 | G225: =G224*F223 -> 0 | H225: 0.6862190512 | I225: 0 | J225: 45.7125098 | K225: 0 | L225: 0 | M225: 0 | N225: 0 | O225: 0 | P225: 0
C227: Debt balance | F227: =IF(F7,F71,MAX(-F221,0)) -> 3500 | G227: =IF(G7,G71,MAX(-G221,0)) -> 3900.984068 | H227: 2734.673996 | I227: 4090 | J227: 2332.587258 | K227: 4679.052484 | L227: 7354.783034 | M227: 10399.47918 | N227: 13857.46005 | O227: 17778.20695 | P227: 22216.97232
C228: Interest expense rate | F228: =F166 -> 0 | G228: =G166 -> 0.1858287095 | H228: 0.2377683814 | I228: 0.2490961474 | J228: 0.2490961474 | K228: 0.2490961474 | L228: 0.2490961474 | M228: 0.2490961474 | N228: 0.2490961474 | O228: 0.2490961474 | P228: 0.2490961474
C229: Interest expense | F229: =IF(F7,F41,F228*E227) -> 0 | G229: =IF(G7,G41,G228*F227) -> 687.6576592 | H229: 788.8748387 | I229: 850 | J229: 1018.803243 | K229: 581.0384995 | L229: 1165.533947 | M229: 1832.048119 | N229: 2590.470198 | O229: 3451.839913 | P229: 4428.482859
C231: Income Tax Rate | F231: =F162 -> 0.07588466611 | G231: =G162 -> 0.06741254993 | H231: 0.05536582521 | I231: 0.09724473258 | J231: 0.1 | K231: 0.1 | L231: 0.1 | M231: 0.1 | N231: 0.1 | O231: 0.1 | P231: 0.1
A233: Profit and Loss
C234: Sales | F234: =F173 -> 24308.30297 | G234: =G173 -> 44489.32238 | H234: 51419.89591 | I234: 44500 | J234: 48950 | K234: 53845 | L234: 59229.5 | M234: 65152.45 | N234: 71667.695 | O234: 78834.4645 | P234: 86717.91095
C235: COGS | F235: =F177 -> 19081 | G235: =G177 -> 38260 | H235: 41547.71515 | I235: 35950 | J235: 39904.20483 | K235: 43894.62532 | L235: 48284.08785 | M235: 53112.49663 | N235: 58423.7463 | O235: 64266.12093 | P235: 70692.73302
C236: Gross profit | F236: =F234-F235 -> 5227.302974 | G236: =G234-G235 -> 6229.322381 | H236: 9872.180763 | I236: 8550 | J236: 9045.795166 | K236: 9950.374683 | L236: 10945.41215 | M236: 12039.95337 | N236: 13243.9487 | O236: 14568.34357 | P236: 16025.17793
C237: Operating expense | F237: =F179 -> 1046 | G237: =G179 -> 745 | H237: 1010.311243 | I237: 1300 | J237: 1495 | K237: 1719.25 | L237: 1977.1375 | M237: 2273.708125 | N237: 2614.764344 | O237: 3006.978995 | P237: 3458.025845
... 67 more rows

Sheet Working Capital Loan
B2: code number | C2: 2
C3: 2016 | D3: 2017 | E3: 2018
B4: Revenue
B5: base case | C5: 100 | D5: 150 | E5: 160
B6: low case | C6: 100 | D6: 70 | E6: 50
A7: Operating assumption
B8: =INDEX(B5:B6,$C$2) -> low case | C8: =INDEX(C5:C6,$C$2) -> 100 | D8: 70 | E8: 50
B10: month AR account reciable
B11: base case | C11: 2
B12: low case | C12: 4
B14: =INDEX(B11:B12,$C$2) -> low case | C14: =INDEX(C11:C12,$C$2) -> 4
B16: operating cost | C16: 65
B18: monthly revenues | C18: 1 | D18: 2 | E18: 3 | F18: 4 | G18: 5 | H18: 6 | I18: 7 | J18: 8 | K18: 9 | L18: 10 | M18: 11 | N18: 12
B19: revenue percentage | C19: 0.02 | D19: 0.02 | E19: 0.02 | F19: 0.02 | G19: 0.1 | H19: 0.1 | I19: 0.1 | J19: 0.1 | K19: 0.1 | L19: 0.12 | M19: 0.15 | N19: 0.2
A21: Financing Assumption
B22: Interest income rate | C22: =3.6%/12 -> 0.003
B23: Interest expense rate | C23: =19.4%/12 -> 0.01616666667
B25: Min cash | C25: =2% -> 0.02
A28: Timeline
A29: Months | E29: 1 | F29: =IF(E29=12,1,E29+1) -> 2 | G29: =IF(F29=12,1,F29+1) -> 3 | H29: 4 | I29: 5 | J29: 6 | K29: 7 | L29: 8 | M29: 9 | N29: 10 | O29: 11 | P29: 12 | Q29: 1 | R29: 2 | S29: 3 | T29: 4 | U29: 5 | V29: 6 | W29: 7 | X29: 8 | Y29: 9 | Z29: 10 | AA29: =IF(Z29=12,1,Z29+1) -> 11 | AB29: 12 | AC29: 1 | AD29: 2 | AE29: 3 | AF29: 4 | AG29: 5 | AH29: 6 | AI29: 7 | AJ29: 8 | AK29: 9 | AL29: 10 | AM29: 11 | AN29: 12
A30: Years | E30: 2016 | F30: =IF(F29=1,E30+1,E30) -> 2016 | G30: =IF(G29=1,F30+1,F30) -> 2016 | H30: 2016 | I30: 2016 | J30: 2016 | K30: 2016 | L30: 2016 | M30: 2016 | N30: 2016 | O30: 2016 | P30: 2016 | Q30: 2017 | R30: 2017 | S30: 2017 | T30: 2017 | U30: 2017 | V30: 2017 | W30: 2017 | X30: 2017 | Y30: 2017 | Z30: 2017 | AA30: 2017 | AB30: 2017 | AC30: 2018 | AD30: 2018 | AE30: 2018 | AF30: 2018 | AG30: 2018 | AH30: 2018 | AI30: 2018 | AJ30: 2018 | AK30: 2018 | AL30: 2018 | AM30: 2018 | AN30: 2018
A33: Operating analysis
A34: year revenue | E34: =LOOKUP(E30,3:3,8:8) -> 100 | F34: 100 | G34: 100 | H34: 100 | I34: 100 | J34: 100 | K34: 100 | L34: 100 | M34: 100 | N34: 100 | O34: 100 | P34: 100 | Q34: 70 | R34: 70 | S34: 70 | T34: 70 | U34: 70 | V34: 70 | W34: 70 | X34: 70 | Y34: 70 | Z34: 70 | AA34: 70 | AB34: 70 | AC34: 50 | AD34: 50 | AE34: 50 | AF34: 50 | AG34: 50 | AH34: 50 | AI34: 50 | AJ34: 50 | AK34: 50 | AL34: 50 | AM34: 50 | AN34: 50
A35: month % | E35: =LOOKUP(E29,18:18,19:19) -> 0.02 | F35: 0.02 | G35: 0.02 | H35: 0.02 | I35: 0.1 | J35: 0.1 | K35: 0.1 | L35: 0.1 | M35: 0.1 | N35: 0.12 | O35: 0.15 | P35: 0.2 | Q35: 0.02 | R35: 0.02 | S35: 0.02 | T35: 0.02 | U35: 0.1 | V35: 0.1 | W35: 0.1 | X35: 0.1 | Y35: 0.1 | Z35: 0.12 | AA35: 0.15 | AB35: 0.2 | AC35: 0.02 | AD35: 0.02 | AE35: 0.02 | AF35: 0.02 | AG35: 0.1 | AH35: 0.1 | AI35: 0.1 | AJ35: 0.1 | AK35: 0.1 | AL35: 0.12 | AM35: 0.15 | AN35: 0.2
A36: month revenue | E36: =E34*E35 -> 2 | F36: =F34*F35 -> 2 | G36: 2 | H36: 2 | I36: 10 | J36: 10 | K36: 10 | L36: 10 | M36: 10 | N36: 12 | O36: 15 | P36: 20 | Q36: 1.4 | R36: 1.4 | S36: 1.4 | T36: 1.4 | U36: 7 | V36: 7 | W36: 7 | X36: 7 | Y36: 7 | Z36: 8.4 | AA36: 10.5 | AB36: 14 | AC36: 1 | AD36: 1 | AE36: 1 | AF36: 1 | AG36: 5 | AH36: 5 | AI36: 5 | AJ36: 5 | AK36: 5 | AL36: 6 | AM36: 7.5 | AN36: 10
A38: monthly expense | E38: =$C$16/12 -> 5.416666667 | F38: =$C$16/12 -> 5.416666667 | G38: 5.416666667 | H38: 5.416666667 | I38: 5.416666667 | J38: 5.416666667 | K38: 5.416666667 | L38: 5.416666667 | M38: 5.416666667 | N38: 5.416666667 | O38: 5.416666667 | P38: 5.416666667 | Q38: 5.416666667 | R38: 5.416666667 | S38: 5.416666667 | T38: 5.416666667 | U38: 5.416666667 | V38: 5.416666667 | W38: 5.416666667 | X38: 5.416666667 | Y38: 5.416666667 | Z38: 5.416666667 | AA38: 5.416666667 | AB38: 5.416666667 | AC38: 5.416666667 | AD38: 5.416666667 | AE38: 5.416666667 | AF38: 5.416666667 | AG38: 5.416666667 | AH38: 5.416666667 | AI38: 5.416666667 | AJ38: 5.416666667 | AK38: 5.416666667 | AL38: 5.416666667 | AM38: 5.416666667 | AN38: 5.416666667
A39: EBITDA | E39: =E36-E38 -> -3.416666667 | F39: =F36-F38 -> -3.416666667 | G39: -3.416666667 | H39: -3.416666667 | I39: 4.583333333 | J39: 4.583333333 | K39: 4.583333333 | L39: 4.583333333 | M39: 4.583333333 | N39: 6.583333333 | O39: 9.583333333 | P39: 14.58333333 | Q39: -4.016666667 | R39: -4.016666667 | S39: -4.016666667 | T39: -4.016666667 | U39: 1.583333333 | V39: 1.583333333 | W39: 1.583333333 | X39: 1.583333333 | Y39: 1.583333333 | Z39: 2.983333333 | AA39: 5.083333333 | AB39: 8.583333333 | AC39: -4.416666667 | AD39: -4.416666667 | AE39: -4.416666667 | AF39: -4.416666667 | AG39: -0.4166666667 | AH39: -0.4166666667 | AI39: -0.4166666667 | AJ39: -0.4166666667 | AK39: -0.4166666667 | AL39: 0.5833333333 | AM39: 2.083333333 | AN39: 4.583333333
B41: Account receible
B42: Opening balance | E42: =D45 -> 0 | F42: =E45 -> 2 | G42: 4 | H42: 6 | I42: 8 | J42: 16 | K42: 24 | L42: 32 | M42: 40 | N42: 40 | O42: 42 | P42: 47 | Q42: 57 | R42: 48.4 | S42: 37.8 | T42: 24.2 | U42: 5.6 | V42: 11.2 | W42: 16.8 | X42: 22.4 | Y42: 28 | Z42: 28 | AA42: 29.4 | AB42: 32.9 | AC42: 39.9 | AD42: 33.9 | AE42: 26.5 | AF42: 17 | AG42: 4 | AH42: 8 | AI42: 12 | AJ42: 16 | AK42: 20 | AL42: 20 | AM42: 21 | AN42: 23.5
B43: Add revenue | E43: =E36 -> 2 | F43: =F36 -> 2 | G43: 2 | H43: 2 | I43: 10 | J43: 10 | K43: 10 | L43: 10 | M43: 10 | N43: 12 | O43: 15 | P43: 20 | Q43: 1.4 | R43: 1.4 | S43: 1.4 | T43: 1.4 | U43: 7 | V43: 7 | W43: 7 | X43: 7 | Y43: 7 | Z43: 8.4 | AA43: 10.5 | AB43: 14 | AC43: 1 | AD43: 1 | AE43: 1 | AF43: 1 | AG43: 5 | AH43: 5 | AI43: 5 | AJ43: 5 | AK43: 5 | AL43: 6 | AM43: 7.5 | AN43: 10
B44: Less collection | C44: =C14 -> 4 | F44: =OFFSET(F36,0,-$C$44) -> 0 | G44: 0 | H44: 0 | I44: 2 | J44: 2 | K44: 2 | L44: 2 | M44: 10 | N44: 10 | O44: 10 | P44: 10 | Q44: 10 | R44: 12 | S44: 15 | T44: 20 | U44: 1.4 | V44: 1.4 | W44: 1.4 | X44: 1.4 | Y44: 7 | Z44: 7 | AA44: 7 | AB44: 7 | AC44: 7 | AD44: 8.4 | AE44: 10.5 | AF44: 14 | AG44: 1 | AH44: 1 | AI44: 1 | AJ44: 1 | AK44: 5 | AL44: 5 | AM44: 5 | AN44: 5
B45: Closing balance | E45: =E42+E43-E44 -> 2 | F45: =F42+F43-F44 -> 4 | G45: 6 | H45: 8 | I45: 16 | J45: 24 | K45: 32 | L45: 40 | M45: 40 | N45: 42 | O45: 47 | P45: 57 | Q45: 48.4 | R45: 37.8 | S45: 24.2 | T45: 5.6 | U45: 11.2 | V45: 16.8 | W45: 22.4 | X45: 28 | Y45: 28 | Z45: 29.4 | AA45: 32.9 | AB45: 39.9 | AC45: 33.9 | AD45: 26.5 | AE45: 17 | AF45: 4 | AG45: 8 | AH45: 12 | AI45: 16 | AJ45: 20 | AK45: 20 | AL45: 21 | AM45: 23.5 | AN45: 28.5
B47: Change in working capital | E47: =E45-E42 -> 2 | F47: =F45-F42 -> 2 | G47: 2 | H47: 2 | I47: 8 | J47: 8 | K47: 8 | L47: 8 | M47: 0 | N47: 2 | O47: 5 | P47: 10 | Q47: -8.6 | R47: -10.6 | S47: -13.6 | T47: -18.6 | U47: 5.6 | V47: 5.6 | W47: 5.6 | X47: 5.6 | Y47: 0 | Z47: 1.4 | AA47: 3.5 | AB47: 7 | AC47: -6 | AD47: -7.4 | AE47: -9.5 | AF47: -13 | AG47: 4 | AH47: 4 | AI47: 4 | AJ47: 4 | AK47: 0 | AL47: 1 | AM47: 2.5 | AN47: 5
B49: FFO | E49: =E39-E47 -> -5.416666667 | F49: =F39-F47 -> -5.416666667 | G49: -5.416666667 | H49: -5.416666667 | I49: -3.416666667 | J49: -3.416666667 | K49: -3.416666667 | L49: -3.416666667 | M49: 4.583333333 | N49: 4.583333333 | O49: 4.583333333 | P49: 4.583333333 | Q49: 4.583333333 | R49: 6.583333333 | S49: 9.583333333 | T49: 14.58333333 | U49: -4.016666667 | V49: -4.016666667 | W49: -4.016666667 | X49: -4.016666667 | Y49: 1.583333333 | Z49: 1.583333333 | AA49: 1.583333333 | AB49: 1.583333333 | AC49: 1.583333333 | AD49: 2.983333333 | AE49: 5.083333333 | AF49: 8.583333333 | AG49: -4.416666667 | AH49: -4.416666667 | AI49: -4.416666667 | AJ49: -4.416666667 | AK49: -0.4166666667 | AL49: -0.4166666667 | AM49: -0.4166666667 | AN49: -0.4166666667
A51: Financing section
B53: Cash and Debt balance
B54: Opening balance | E54: =+D56 -> 0 | F54: =+E56 -> -5.416666667 | G54: -10.94723611 | H54: -16.56721643 | I54: -22.27805309 | J54: -26.08121495 | K54: -29.94586126 | L54: -33.87298602 | M54: -37.86359929 | N54: -33.91872748 | O54: -29.91008024 | P54: -25.83662654 | Q54: -21.69731867 | R54: -17.49109199 | S54: -11.20896464 | T54: -1.825276235 | U54: 12.71011513 | V54: 8.731578812 | W54: 4.741106881 | X54: 0.7386635355 | Y54: -3.284494737 | Z54: -1.772694069 | AA54: -0.2364526231 | AB54: 1.324624726 | AC54: 2.910939493 | AD54: 4.503005644 | AE54: 7.499847995 | AF54: 12.60568087 | AG54: 21.22683125 | AH54: 16.87384508 | AI54: 12.50779994 | AJ54: 8.128656677 | AK54: 3.73637598 | AL54: 3.330918441 | AM54: 2.92424453 | AN54: 2.516350597
B55: Add Cash flow | E55: =+E81 -> -5.416666667 | F55: =+F81 -> -5.530569444 | G55: -5.619980317 | H55: -5.710836666 | I55: -3.803161858 | J55: -3.864646308 | K55: -3.927124757 | L55: -3.990613274 | M55: 3.944871811 | N55: 4.008647239 | O55: 4.073453703 | P55: 4.139307871 | Q55: 4.206226682 | R55: 6.282127346 | S55: 9.383688405 | T55: 14.53539137 | U55: -3.978536321 | V55: -3.99047193 | W55: -4.002443346 | X55: -4.023158273 | Y55: 1.511800668 | Z55: 1.536241446 | AA55: 1.561077349 | AB55: 1.586314766 | AC55: 1.592066152 | AD55: 2.99684235 | AE55: 5.105832877 | AF55: 8.621150376 | AG55: -4.352986173 | AH55: -4.366045131 | AI55: -4.379143267 | AJ55: -4.392280697 | AK55: -0.4054575387 | AL55: -0.4066739113 | AM55: -0.4078939331 | AN55: -0.4091176149
B56: Closing balance | E56: =SUM(E54:E55) -> -5.416666667 | F56: =SUM(F54:F55) -> -10.94723611 | G56: -16.56721643 | H56: -22.27805309 | I56: -26.08121495 | J56: -29.94586126 | K56: -33.87298602 | L56: -37.86359929 | M56: -33.91872748 | N56: -29.91008024 | O56: -25.83662654 | P56: -21.69731867 | Q56: -17.49109199 | R56: -11.20896464 | S56: -1.825276235 | T56: 12.71011513 | U56: 8.731578812 | V56: 4.741106881 | W56: 0.7386635355 | X56: -3.284494737 | Y56: -1.772694069 | Z56: -0.2364526231 | AA56: 1.324624726 | AB56: 2.910939493 | AC56: 4.503005644 | AD56: 7.499847995 | AE56: 12.60568087 | AF56: 21.22683125 | AG56: 16.87384508 | AH56: 12.50779994 | AI56: 8.128656677 | AJ56: 3.73637598 | AK56: 3.330918441 | AL56: 2.92424453 | AM56: 2.516350597 | AN56: 2.107232982
B58: Minimum cash balance | C58: =C25 -> 0.02 | E58: =$C$58*E34 -> 2 | F58: =$C$58*F34 -> 2 | G58: 2 | H58: 2 | I58: 2 | J58: 2 | K58: 2 | L58: 2 | M58: 2 | N58: 2 | O58: 2 | P58: 2 | Q58: 1.4 | R58: 1.4 | S58: 1.4 | T58: 1.4 | U58: 1.4 | V58: 1.4 | W58: 1.4 | X58: 1.4 | Y58: 1.4 | Z58: 1.4 | AA58: 1.4 | AB58: 1.4 | AC58: 1 | AD58: 1 | AE58: 1 | AF58: 1 | AG58: 1 | AH58: 1 | AI58: 1 | AJ58: 1 | AK58: 1 | AL58: 1 | AM58: 1 | AN58: 1
B60: Cash balance | E60: =MAX(E56,E58) -> 2 | F60: =MAX(F56,F58) -> 2 | G60: 2 | H60: 2 | I60: 2 | J60: 2 | K60: 2 | L60: 2 | M60: 2 | N60: 2 | O60: 2 | P60: 2 | Q60: 1.4 | R60: 1.4 | S60: 1.4 | T60: 12.71011513 | U60: 8.731578812 | V60: 4.741106881 | W60: 1.4 | X60: 1.4 | Y60: 1.4 | Z60: 1.4 | AA60: 1.4 | AB60: 2.910939493 | AC60: 4.503005644 | AD60: 7.499847995 | AE60: 12.60568087 | AF60: 21.22683125 | AG60: 16.87384508 | AH60: 12.50779994 | AI60: 8.128656677 | AJ60: 3.73637598 | AK60: 3.330918441 | AL60: 2.92424453 | AM60: 2.516350597 | AN60: 2.107232982
B61: Ineterst on cash | C61: =C22 -> 0.003 | E61: =$C$61*D60 -> 0 | F61: =$C$61*E60 -> 0.006 | G61: 0.006 | H61: 0.006 | I61: 0.006 | J61: 0.006 | K61: 0.006 | L61: 0.006 | M61: 0.006 | N61: 0.006 | O61: 0.006 | P61: 0.006 | Q61: 0.006 | R61: 0.0042 | S61: 0.0042 | T61: 0.0042 | U61: 0.0381303454 | V61: 0.02619473644 | W61: 0.01422332064 | X61: 0.0042 | Y61: 0.0042 | Z61: 0.0042 | AA61: 0.0042 | AB61: 0.0042 | AC61: 0.008732818478 | AD61: 0.01350901693 | AE61: 0.02249954398 | AF61: 0.03781704262 | AG61: 0.06368049374 | AH61: 0.05062153523 | AI61: 0.03752339983 | AJ61: 0.02438597003 | AK61: 0.01120912794 | AL61: 0.009992755324 | AM61: 0.00877273359 | AN61: 0.007549051791
B63: Debt balance | E63: =MAX(-E56+E58,0) -> 7.416666667 | F63: =MAX(-F56+F58,0) -> 12.94723611 | G63: 18.56721643 | H63: 24.27805309 | I63: 28.08121495 | J63: 31.94586126 | K63: 35.87298602 | L63: 39.86359929 | M63: 35.91872748 | N63: 31.91008024 | O63: 27.83662654 | P63: 23.69731867 | Q63: 18.89109199 | R63: 12.60896464 | S63: 3.225276235 | T63: 0 | U63: 0 | V63: 0 | W63: 0.6613364645 | X63: 4.684494737 | Y63: 3.172694069 | Z63: 1.636452623 | AA63: 0.07537527381 | AB63: 0 | AC63: 0 | AD63: 0 | AE63: 0 | AF63: 0 | AG63: 0 | AH63: 0 | AI63: 0 | AJ63: 0 | AK63: 0 | AL63: 0 | AM63: 0 | AN63: 0
B64: Interest on debt | C64: =C23 -> 0.01616666667 | E64: =$C$64*D63 -> 0 | F64: =$C$64*E63 -> 0.1199027778 | G64: 0.2093136505 | H64: 0.3001699989 | I64: 0.3924951917 | J64: 0.4539796417 | K64: 0.5164580904 | L64: 0.5799466073 | M64: 0.6444615219 | N64: 0.5806860943 | O64: 0.5158796306 | P64: 0.4500254624 | Q64: 0.3831066518 | R64: 0.3054059871 | S64: 0.2038449283 | T64: 0.05214196579 | U64: 0 | V64: 0 | W64: 0 | X64: 0.01069160618 | Y64: 0.07573266492 | Z64: 0.05129188745 | AA64: 0.02645598407 | AB64: 0.001218566927 | AC64: 0 | AD64: 0 | AE64: 0 | AF64: 0 | AG64: 0 | AH64: 0 | AI64: 0 | AJ64: 0 | AK64: 0 | AL64: 0 | AM64: 0 | AN64: 0
A67: Profit and loss
B68: Revenue | E68: =+E36 -> 2 | F68: =+F36 -> 2 | G68: 2 | H68: 2 | I68: 10 | J68: 10 | K68: 10 | L68: 10 | M68: 10 | N68: 12 | O68: 15 | P68: 20 | Q68: 1.4 | R68: 1.4 | S68: 1.4 | T68: 1.4 | U68: 7 | V68: 7 | W68: 7 | X68: 7 | Y68: 7 | Z68: 8.4 | AA68: 10.5 | AB68: 14 | AC68: 1 | AD68: 1 | AE68: 1 | AF68: 1 | AG68: 5 | AH68: 5 | AI68: 5 | AJ68: 5 | AK68: 5 | AL68: 6 | AM68: 7.5 | AN68: 10
B69: Expenses | E69: =E38 -> 5.416666667 | F69: =F38 -> 5.416666667 | G69: 5.416666667 | H69: 5.416666667 | I69: 5.416666667 | J69: 5.416666667 | K69: 5.416666667 | L69: 5.416666667 | M69: 5.416666667 | N69: 5.416666667 | O69: 5.416666667 | P69: 5.416666667 | Q69: 5.416666667 | R69: 5.416666667 | S69: 5.416666667 | T69: 5.416666667 | U69: 5.416666667 | V69: 5.416666667 | W69: 5.416666667 | X69: 5.416666667 | Y69: 5.416666667 | Z69: 5.416666667 | AA69: 5.416666667 | AB69: 5.416666667 | AC69: 5.416666667 | AD69: 5.416666667 | AE69: 5.416666667 | AF69: 5.416666667 | AG69: 5.416666667 | AH69: 5.416666667 | AI69: 5.416666667 | AJ69: 5.416666667 | AK69: 5.416666667 | AL69: 5.416666667 | AM69: 5.416666667 | AN69: 5.416666667
B70: EBITDA | E70: =E68-E69 -> -3.416666667 | F70: =F68-F69 -> -3.416666667 | G70: -3.416666667 | H70: -3.416666667 | I70: 4.583333333 | J70: 4.583333333 | K70: 4.583333333 | L70: 4.583333333 | M70: 4.583333333 | N70: 6.583333333 | O70: 9.583333333 | P70: 14.58333333 | Q70: -4.016666667 | R70: -4.016666667 | S70: -4.016666667 | T70: -4.016666667 | U70: 1.583333333 | V70: 1.583333333 | W70: 1.583333333 | X70: 1.583333333 | Y70: 1.583333333 | Z70: 2.983333333 | AA70: 5.083333333 | AB70: 8.583333333 | AC70: -4.416666667 | AD70: -4.416666667 | AE70: -4.416666667 | AF70: -4.416666667 | AG70: -0.4166666667 | AH70: -0.4166666667 | AI70: -0.4166666667 | AJ70: -0.4166666667 | AK70: -0.4166666667 | AL70: 0.5833333333 | AM70: 2.083333333 | AN70: 4.583333333
B71: Add interest income | E71: =E61 -> 0 | F71: =F61 -> 0.006 | G71: 0.006 | H71: 0.006 | I71: 0.006 | J71: 0.006 | K71: 0.006 | L71: 0.006 | M71: 0.006 | N71: 0.006 | O71: 0.006 | P71: 0.006 | Q71: 0.006 | R71: 0.0042 | S71: 0.0042 | T71: 0.0042 | U71: 0.0381303454 | V71: 0.02619473644 | W71: 0.01422332064 | X71: 0.0042 | Y71: 0.0042 | Z71: 0.0042 | AA71: 0.0042 | AB71: 0.0042 | AC71: 0.008732818478 | AD71: 0.01350901693 | AE71: 0.02249954398 | AF71: 0.03781704262 | AG71: 0.06368049374 | AH71: 0.05062153523 | AI71: 0.03752339983 | AJ71: 0.02438597003 | AK71: 0.01120912794 | AL71: 0.009992755324 | AM71: 0.00877273359 | AN71: 0.007549051791
B72: Less interest expense | E72: =E64 -> 0 | F72: =F64 -> 0.1199027778 | G72: 0.2093136505 | H72: 0.3001699989 | I72: 0.3924951917 | J72: 0.4539796417 | K72: 0.5164580904 | L72: 0.5799466073 | M72: 0.6444615219 | N72: 0.5806860943 | O72: 0.5158796306 | P72: 0.4500254624 | Q72: 0.3831066518 | R72: 0.3054059871 | S72: 0.2038449283 | T72: 0.05214196579 | U72: 0 | V72: 0 | W72: 0 | X72: 0.01069160618 | Y72: 0.07573266492 | Z72: 0.05129188745 | AA72: 0.02645598407 | AB72: 0.001218566927 | AC72: 0 | AD72: 0 | AE72: 0 | AF72: 0 | AG72: 0 | AH72: 0 | AI72: 0 | AJ72: 0 | AK72: 0 | AL72: 0 | AM72: 0 | AN72: 0
B73: Earnings | E73: =E70+E71-E72 -> -3.416666667 | F73: =F70+F71-F72 -> -3.530569444 | G73: -3.619980317 | H73: -3.710836666 | I73: 4.196838142 | J73: 4.135353692 | K73: 4.072875243 | L73: 4.009386726 | M73: 3.944871811 | N73: 6.008647239 | O73: 9.073453703 | P73: 14.13930787 | Q73: -4.393773318 | R73: -4.317872654 | S73: -4.216311595 | T73: -4.064608632 | U73: 1.621463679 | V73: 1.60952807 | W73: 1.597556654 | X73: 1.576841727 | Y73: 1.511800668 | Z73: 2.936241446 | AA73: 5.061077349 | AB73: 8.586314766 | AC73: -4.407933848 | AD73: -4.40315765 | AE73: -4.394167123 | AF73: -4.378849624 | AG73: -0.3529861729 | AH73: -0.3660451314 | AI73: -0.3791432668 | AJ73: -0.3922806966 | AK73: -0.4054575387 | AL73: 0.5933260887 | AM73: 2.092106067 | AN73: 4.590882385
A75: Cash flow
B76: EBITDA | E76: =E70 -> -3.416666667 | F76: =F70 -> -3.416666667 | G76: -3.416666667 | H76: -3.416666667 | I76: 4.583333333 | J76: 4.583333333 | K76: 4.583333333 | L76: 4.583333333 | M76: 4.583333333 | N76: 6.583333333 | O76: 9.583333333 | P76: 14.58333333 | Q76: -4.016666667 | R76: -4.016666667 | S76: -4.016666667 | T76: -4.016666667 | U76: 1.583333333 | V76: 1.583333333 | W76: 1.583333333 | X76: 1.583333333 | Y76: 1.583333333 | Z76: 2.983333333 | AA76: 5.083333333 | AB76: 8.583333333 | AC76: -4.416666667 | AD76: -4.416666667 | AE76: -4.416666667 | AF76: -4.416666667 | AG76: -0.4166666667 | AH76: -0.4166666667 | AI76: -0.4166666667 | AJ76: -0.4166666667 | AK76: -0.4166666667 | AL76: 0.5833333333 | AM76: 2.083333333 | AN76: 4.583333333
B77: Less Change in working capital | E77: =E47 -> 2 | F77: =F47 -> 2 | G77: 2 | H77: 2 | I77: 8 | J77: 8 | K77: 8 | L77: 8 | M77: 0 | N77: 2 | O77: 5 | P77: 10 | Q77: -8.6 | R77: -10.6 | S77: -13.6 | T77: -18.6 | U77: 5.6 | V77: 5.6 | W77: 5.6 | X77: 5.6 | Y77: 0 | Z77: 1.4 | AA77: 3.5 | AB77: 7 | AC77: -6 | AD77: -7.4 | AE77: -9.5 | AF77: -13 | AG77: 4 | AH77: 4 | AI77: 4 | AJ77: 4 | AK77: 0 | AL77: 1 | AM77: 2.5 | AN77: 5
B78: Operating cash flow | E78: =E76-E77 -> -5.416666667 | F78: =F76-F77 -> -5.416666667 | G78: -5.416666667 | H78: -5.416666667 | I78: -3.416666667 | J78: -3.416666667 | K78: -3.416666667 | L78: -3.416666667 | M78: 4.583333333 | N78: 4.583333333 | O78: 4.583333333 | P78: 4.583333333 | Q78: 4.583333333 | R78: 6.583333333 | S78: 9.583333333 | T78: 14.58333333 | U78: -4.016666667 | V78: -4.016666667 | W78: -4.016666667 | X78: -4.016666667 | Y78: 1.583333333 | Z78: 1.583333333 | AA78: 1.583333333 | AB78: 1.583333333 | AC78: 1.583333333 | AD78: 2.983333333 | AE78: 5.083333333 | AF78: 8.583333333 | AG78: -4.416666667 | AH78: -4.416666667 | AI78: -4.416666667 | AJ78: -4.416666667 | AK78: -0.4166666667 | AL78: -0.4166666667 | AM78: -0.4166666667 | AN78: -0.4166666667
B79: Add interest income | E79: =E71 -> 0 | F79: =F71 -> 0.006 | G79: 0.006 | H79: 0.006 | I79: 0.006 | J79: 0.006 | K79: 0.006 | L79: 0.006 | M79: 0.006 | N79: 0.006 | O79: 0.006 | P79: 0.006 | Q79: 0.006 | R79: 0.0042 | S79: 0.0042 | T79: 0.0042 | U79: 0.0381303454 | V79: 0.02619473644 | W79: 0.01422332064 | X79: 0.0042 | Y79: 0.0042 | Z79: 0.0042 | AA79: 0.0042 | AB79: 0.0042 | AC79: 0.008732818478 | AD79: 0.01350901693 | AE79: 0.02249954398 | AF79: 0.03781704262 | AG79: 0.06368049374 | AH79: 0.05062153523 | AI79: 0.03752339983 | AJ79: 0.02438597003 | AK79: 0.01120912794 | AL79: 0.009992755324 | AM79: 0.00877273359 | AN79: 0.007549051791
B80: Less Interest expense | E80: =E72 -> 0 | F80: =F72 -> 0.1199027778 | G80: 0.2093136505 | H80: 0.3001699989 | I80: 0.3924951917 | J80: 0.4539796417 | K80: 0.5164580904 | L80: 0.5799466073 | M80: 0.6444615219 | N80: 0.5806860943 | O80: 0.5158796306 | P80: 0.4500254624 | Q80: 0.3831066518 | R80: 0.3054059871 | S80: 0.2038449283 | T80: 0.05214196579 | U80: 0 | V80: 0 | W80: 0 | X80: 0.01069160618 | Y80: 0.07573266492 | Z80: 0.05129188745 | AA80: 0.02645598407 | AB80: 0.001218566927 | AC80: 0 | AD80: 0 | AE80: 0 | AF80: 0 | AG80: 0 | AH80: 0 | AI80: 0 | AJ80: 0 | AK80: 0 | AL80: 0 | AM80: 0 | AN80: 0
B81: Net cash flow | E81: =E78+E79-E80 -> -5.416666667 | F81: =F78+F79-F80 -> -5.530569444 | G81: -5.619980317 | H81: -5.710836666 | I81: -3.803161858 | J81: -3.864646308 | K81: -3.927124757 | L81: -3.990613274 | M81: 3.944871811 | N81: 4.008647239 | O81: 4.073453703 | P81: 4.139307871 | Q81: 4.206226682 | R81: 6.282127346 | S81: 9.383688405 | T81: 14.53539137 | U81: -3.978536321 | V81: -3.99047193 | W81: -4.002443346 | X81: -4.023158273 | Y81: 1.511800668 | Z81: 1.536241446 | AA81: 1.561077349 | AB81: 1.586314766 | AC81: 1.592066152 | AD81: 2.99684235 | AE81: 5.105832877 | AF81: 8.621150376 | AG81: -4.352986173 | AH81: -4.366045131 | AI81: -4.379143267 | AJ81: -4.392280697 | AK81: -0.4054575387 | AL81: -0.4066739113 | AM81: -0.4078939331 | AN81: -0.4091176149
A83: Balance sheet
B84: Equity balance
B85: Opening balance | E85: =D88 -> 0 | F85: =E88 -> -3.416666667 | G85: -6.947236111 | H85: -10.56721643 | I85: -14.27805309 | J85: -10.08121495 | K85: -5.945861261 | L85: -1.872986018 | M85: 2.136400708 | N85: 6.08127252 | O85: 12.08991976 | P85: 21.16337346 | Q85: 35.30268133 | R85: 30.90890801 | S85: 26.59103536 | T85: 22.37472377 | U85: 18.31011513 | V85: 19.93157881 | W85: 21.54110688 | X85: 23.13866354 | Y85: 24.71550526 | Z85: 26.22730593 | AA85: 29.16354738 | AB85: 34.22462473 | AC85: 42.81093949 | AD85: 38.40300564 | AE85: 33.99984799 | AF85: 29.60568087 | AG85: 25.22683125 | AH85: 24.87384508 | AI85: 24.50779994 | AJ85: 24.12865668 | AK85: 23.73637598 | AL85: 23.33091844 | AM85: 23.92424453 | AN85: 26.0163506
B86: Profit and loss | E86: =E73 -> -3.416666667 | F86: =F73 -> -3.530569444 | G86: -3.619980317 | H86: -3.710836666 | I86: 4.196838142 | J86: 4.135353692 | K86: 4.072875243 | L86: 4.009386726 | M86: 3.944871811 | N86: 6.008647239 | O86: 9.073453703 | P86: 14.13930787 | Q86: -4.393773318 | R86: -4.317872654 | S86: -4.216311595 | T86: -4.064608632 | U86: 1.621463679 | V86: 1.60952807 | W86: 1.597556654 | X86: 1.576841727 | Y86: 1.511800668 | Z86: 2.936241446 | AA86: 5.061077349 | AB86: 8.586314766 | AC86: -4.407933848 | AD86: -4.40315765 | AE86: -4.394167123 | AF86: -4.378849624 | AG86: -0.3529861729 | AH86: -0.3660451314 | AI86: -0.3791432668 | AJ86: -0.3922806966 | AK86: -0.4054575387 | AL86: 0.5933260887 | AM86: 2.092106067 | AN86: 4.590882385
B87: Divident
B88: Closing balance | E88: =E85+E86-E87 -> -3.416666667 | F88: =F85+F86-F87 -> -6.947236111 | G88: -10.56721643 | H88: -14.27805309 | I88: -10.08121495 | J88: -5.945861261 | K88: -1.872986018 | L88: 2.136400708 | M88: 6.08127252 | N88: 12.08991976 | O88: 21.16337346 | P88: 35.30268133 | Q88: 30.90890801 | R88: 26.59103536 | S88: 22.37472377 | T88: 18.31011513 | U88: 19.93157881 | V88: 21.54110688 | W88: 23.13866354 | X88: 24.71550526 | Y88: 26.22730593 | Z88: 29.16354738 | AA88: 34.22462473 | AB88: 42.81093949 | AC88: 38.40300564 | AD88: 33.99984799 | AE88: 29.60568087 | AF88: 25.22683125 | AG88: 24.87384508 | AH88: 24.50779994 | AI88: 24.12865668 | AJ88: 23.73637598 | AK88: 23.33091844 | AL88: 23.92424453 | AM88: 26.0163506 | AN88: 30.60723298
B90: Asset
B91: Cash | E91: =E60 -> 2 | F91: =F60 -> 2 | G91: 2 | H91: 2 | I91: 2 | J91: 2 | K91: 2 | L91: 2 | M91: 2 | N91: 2 | O91: 2 | P91: 2 | Q91: 1.4 | R91: 1.4 | S91: 1.4 | T91: 12.71011513 | U91: 8.731578812 | V91: 4.741106881 | W91: 1.4 | X91: 1.4 | Y91: 1.4 | Z91: 1.4 | AA91: 1.4 | AB91: 2.910939493 | AC91: 4.503005644 | AD91: 7.499847995 | AE91: 12.60568087 | AF91: 21.22683125 | AG91: 16.87384508 | AH91: 12.50779994 | AI91: 8.128656677 | AJ91: 3.73637598 | AK91: 3.330918441 | AL91: 2.92424453 | AM91: 2.516350597 | AN91: 2.107232982
B92: Account receivable | E92: =E45 -> 2 | F92: =F45 -> 4 | G92: 6 | H92: 8 | I92: 16 | J92: 24 | K92: 32 | L92: 40 | M92: 40 | N92: 42 | O92: 47 | P92: 57 | Q92: 48.4 | R92: 37.8 | S92: 24.2 | T92: 5.6 | U92: 11.2 | V92: 16.8 | W92: 22.4 | X92: 28 | Y92: 28 | Z92: 29.4 | AA92: 32.9 | AB92: 39.9 | AC92: 33.9 | AD92: 26.5 | AE92: 17 | AF92: 4 | AG92: 8 | AH92: 12 | AI92: 16 | AJ92: 20 | AK92: 20 | AL92: 21 | AM92: 23.5 | AN92: 28.5
B93: Total | E93: =SUM(E91:E92) -> 4 | F93: =SUM(F91:F92) -> 6 | G93: 8 | H93: 10 | I93: 18 | J93: 26 | K93: 34 | L93: 42 | M93: 42 | N93: 44 | O93: 49 | P93: 59 | Q93: 49.8 | R93: 39.2 | S93: 25.6 | T93: 18.31011513 | U93: 19.93157881 | V93: 21.54110688 | W93: 23.8 | X93: 29.4 | Y93: 29.4 | Z93: 30.8 | AA93: 34.3 | AB93: 42.81093949 | AC93: 38.40300564 | AD93: 33.99984799 | AE93: 29.60568087 | AF93: 25.22683125 | AG93: 24.87384508 | AH93: 24.50779994 | AI93: 24.12865668 | AJ93: 23.73637598 | AK93: 23.33091844 | AL93: 23.92424453 | AM93: 26.0163506 | AN93: 30.60723298
B95: Liabilities and capital
B96: Debt | E96: =E63 -> 7.416666667 | F96: =F63 -> 12.94723611 | G96: 18.56721643 | H96: 24.27805309 | I96: 28.08121495 | J96: 31.94586126 | K96: 35.87298602 | L96: 39.86359929 | M96: 35.91872748 | N96: 31.91008024 | O96: 27.83662654 | P96: 23.69731867 | Q96: 18.89109199 | R96: 12.60896464 | S96: 3.225276235 | T96: 0 | U96: 0 | V96: 0 | W96: 0.6613364645 | X96: 4.684494737 | Y96: 3.172694069 | Z96: 1.636452623 | AA96: 0.07537527381 | AB96: 0 | AC96: 0 | AD96: 0 | AE96: 0 | AF96: 0 | AG96: 0 | AH96: 0 | AI96: 0 | AJ96: 0 | AK96: 0 | AL96: 0 | AM96: 0 | AN96: 0
B97: Equity | E97: =E88 -> -3.416666667 | F97: =F88 -> -6.947236111 | G97: -10.56721643 | H97: -14.27805309 | I97: -10.08121495 | J97: -5.945861261 | K97: -1.872986018 | L97: 2.136400708 | M97: 6.08127252 | N97: 12.08991976 | O97: 21.16337346 | P97: 35.30268133 | Q97: 30.90890801 | R97: 26.59103536 | S97: 22.37472377 | T97: 18.31011513 | U97: 19.93157881 | V97: 21.54110688 | W97: 23.13866354 | X97: 24.71550526 | Y97: 26.22730593 | Z97: 29.16354738 | AA97: 34.22462473 | AB97: 42.81093949 | AC97: 38.40300564 | AD97: 33.99984799 | AE97: 29.60568087 | AF97: 25.22683125 | AG97: 24.87384508 | AH97: 24.50779994 | AI97: 24.12865668 | AJ97: 23.73637598 | AK97: 23.33091844 | AL97: 23.92424453 | AM97: 26.0163506 | AN97: 30.60723298
B98: Total | E98: =SUM(E96:E97) -> 4 | F98: =SUM(F96:F97) -> 6 | G98: 8 | H98: 10 | I98: 18 | J98: 26 | K98: 34 | L98: 42 | M98: 42 | N98: 44 | O98: 49 | P98: 59 | Q98: 49.8 | R98: 39.2 | S98: 25.6 | T98: 18.31011513 | U98: 19.93157881 | V98: 21.54110688 | W98: 23.8 | X98: 29.4 | Y98: 29.4 | Z98: 30.8 | AA98: 34.3 | AB98: 42.81093949 | AC98: 38.40300564 | AD98: 33.99984799 | AE98: 29.60568087 | AF98: 25.22683125 | AG98: 24.87384508 | AH98: 24.50779994 | AI98: 24.12865668 | AJ98: 23.73637598 | AK98: 23.33091844 | AL98: 23.92424453 | AM98: 26.0163506 | AN98: 30.60723298
B100: Difference | E100: =E93-E98 -> 0 | F100: =F93-F98 -> 0 | G100: 0 | H100: 0 | I100: 0 | J100: 0 | K100: =K93-K98 -> 0 | L100: 0 | M100: 0 | N100: 0 | O100: 0 | P100: 0 | Q100: 0 | R100: 0 | S100: 0 | T100: 0 | U100: 0 | V100: 0 | W100: 0 | X100: 0 | Y100: 0 | Z100: 0 | AA100: 0 | AB100: 0 | AC100: 0 | AD100: 0 | AE100: 0 | AF100: 0 | AG100: 0 | AH100: 0 | AI100: 0 | AJ100: 0 | AK100: 0 | AL100: 0 | AM100: 0 | AN100: 0
B101: Test | C101: =AND(E101:AN101) -> TRUE | E101: =ROUND(E100,3)=0 -> TRUE | F101: =ROUND(F100,3)=0 -> TRUE | G101: TRUE | H101: TRUE | I101: TRUE | J101: TRUE | K101: TRUE | L101: TRUE | M101: TRUE | N101: TRUE | O101: TRUE | P101: TRUE | Q101: TRUE | R101: TRUE | S101: TRUE | T101: TRUE | U101: TRUE | V101: TRUE | W101: TRUE | X101: TRUE | Y101: TRUE | Z101: TRUE | AA101: TRUE | AB101: TRUE | AC101: TRUE | AD101: TRUE | AE101: TRUE | AF101: TRUE | AG101: TRUE | AH101: TRUE | AI101: TRUE | AJ101: TRUE | AK101: TRUE | AL101: TRUE | AM101: TRUE | AN101: TRUE

Sheet Valuation

Sheet PF Module
A1: Time assumption
B2: Start a project | E2: Date | H2: 2016-01-01
B3: Construction | E3: Months | H3: 35
B4: COD | E4: Date | H4: =EDATE(H2,H3) -> 2018-12-01
B5: Project live | E5: Years | H5: 19
B6: End date | E6: Date | H6: =EDATE(H4,H5*12) -> 2037-12-01
A8: Operatng Assumpstion- Үйл ажиллагааны таамаглал
B9: Capacity | E9: Tons / year | H9: 10000
B10: Project cost | E10: USD .000 | H10: 1550000
B12: Fixed costs | E12: USD /per year | H12: 15000
B13: Variuble cost | E13: USD /per ton/ | H13: 12
B15: Pricing | E15: USD /per ton/
E17: 1 | H17: 2016 | I17: 2018 | J17: 2020 | K17: 2025 | L17: 2030
A18: 1 | B18: Base case | H18: 40 | I18: 42 | J18: 45 | K18: 47 | L18: 50
A19: 2 | B19: Low case | H19: 37 | I19: =H19 -> 37 | J19: =I19 -> 37 | K19: =J19 -> 37 | L19: =K19 -> 37
A20: 3 | B20: High case | H20: 50 | I20: 50 | J20: 50 | K20: 50 | L20: 50
B22: =INDEX(B18:B20,$E$17) -> Base case | H22: =INDEX(H18:H20,$E$17) -> 40 | I22: 42 | J22: 45 | K22: 47 | L22: 50
A25: Financing Assumption
B26: Debt size | H26: =I26/100 -> 0.8 | I26: 80
B27: Borrowing method | H27: pro rata
B28: Repayment years | H28: 10
B29: Repayment method | H29: annuity
B30: Interest rate | H30: 0.08
A33: Operate module
B34: Timeline
C35: Date | F35: =H2 -> 2016-01-01 | H35: =F35 -> 2016-01-01 | I35: =EDATE(H35,1) -> 2016-02-01 | J35: =EDATE(I35,1) -> 2016-03-01 | K35: =EDATE(J35,1) -> 2016-04-01 | L35: 2016-05-01 | M35: 2016-06-01 | N35: 2016-07-01 | O35: 2016-08-01 | P35: 2016-09-01 | Q35: 2016-10-01 | R35: 2016-11-01 | S35: 2016-12-01 | T35: 2017-01-01 | U35: 2017-02-01 | V35: 2017-03-01 | W35: 2017-04-01 | X35: 2017-05-01 | Y35: 2017-06-01 | Z35: 2017-07-01 | AA35: 2017-08-01 | AB35: 2017-09-01 | AC35: 2017-10-01 | AD35: 2017-11-01 | AE35: 2017-12-01 | AF35: 2018-01-01 | AG35: 2018-02-01 | AH35: 2018-03-01 | AI35: 2018-04-01 | AJ35: 2018-05-01 | AK35: 2018-06-01 | AL35: 2018-07-01 | AM35: 2018-08-01 | AN35: 2018-09-01 | AO35: 2018-10-01 | AP35: 2018-11-01 | AQ35: 2018-12-01 | AR35: 2019-01-01 | AS35: 2019-02-01 | AT35: 2019-03-01 | AU35: 2019-04-01 | AV35: 2019-05-01 | AW35: 2019-06-01 | AX35: 2019-07-01 | AY35: 2019-08-01 | AZ35: 2019-09-01 | BA35: 2019-10-01 | BB35: 2019-11-01 | BC35: 2019-12-01 | BD35: 2020-01-01 | BE35: 2020-02-01 | BF35: 2020-03-01 | BG35: 2020-04-01 | BH35: 2020-05-01 | BI35: 2020-06-01 | BJ35: 2020-07-01 | BK35: 2020-08-01 | BL35: 2020-09-01 | BM35: 2020-10-01 | BN35: 2020-11-01 | BO35: 2020-12-01 | BP35: 2021-01-01 | BQ35: 2021-02-01 | BR35: 2021-03-01 | BS35: 2021-04-01 | BT35: 2021-05-01 | BU35: 2021-06-01 | BV35: 2021-07-01 | BW35: =EDATE(BV35,1) -> 2021-08-01 | BX35: 2021-09-01 | BY35: 2021-10-01 | BZ35: 2021-11-01 | CA35: 2021-12-01 | CB35: 2022-01-01 | CC35: 2022-02-01 | CD35: 2022-03-01 | CE35: 2022-04-01 | CF35: 2022-05-01 | CG35: 2022-06-01 | CH35: 2022-07-01 | CI35: 2022-08-01 | CJ35: 2022-09-01 | CK35: 2022-10-01 | CL35: 2022-11-01 | CM35: 2022-12-01 | CN35: 2023-01-01 | CO35: 2023-02-01 | CP35: 2023-03-01 | CQ35: 2023-04-01 | CR35: 2023-05-01 | CS35: 2023-06-01 | CT35: 2023-07-01 | CU35: 2023-08-01 | CV35: 2023-09-01 | CW35: 2023-10-01 | CX35: 2023-11-01 | CY35: 2023-12-01 | CZ35: 2024-01-01 | DA35: 2024-02-01 | DB35: 2024-03-01 | DC35: 2024-04-01 | DD35: 2024-05-01 | DE35: 2024-06-01 | DF35: 2024-07-01 | DG35: 2024-08-01 | DH35: 2024-09-01 | DI35: 2024-10-01 | DJ35: 2024-11-01 | DK35: 2024-12-01 | DL35: 2025-01-01 | DM35: 2025-02-01 | DN35: 2025-03-01 | DO35: 2025-04-01 | DP35: 2025-05-01 | DQ35: 2025-06-01 | DR35: 2025-07-01 | DS35: 2025-08-01 | DT35: 2025-09-01 | DU35: 2025-10-01 | DV35: 2025-11-01 | DW35: 2025-12-01 | DX35: 2026-01-01 | DY35: 2026-02-01 | DZ35: 2026-03-01 | EA35: 2026-04-01 | EB35: 2026-05-01 | EC35: 2026-06-01 | ED35: 2026-07-01 | EE35: 2026-08-01 | EF35: 2026-09-01 | EG35: 2026-10-01 | EH35: 2026-11-01 | EI35: =EDATE(EH35,1) -> 2026-12-01 | EJ35: 2027-01-01 | EK35: 2027-02-01 | EL35: 2027-03-01 | EM35: 2027-04-01 | EN35: 2027-05-01 | EO35: 2027-06-01 | EP35: 2027-07-01 | EQ35: 2027-08-01 | ER35: 2027-09-01 | ES35: 2027-10-01 | ET35: 2027-11-01 | EU35: 2027-12-01 | EV35: 2028-01-01 | EW35: 2028-02-01 | EX35: 2028-03-01 | EY35: 2028-04-01 | EZ35: 2028-05-01 | FA35: 2028-06-01 | FB35: 2028-07-01 | FC35: 2028-08-01 | FD35: 2028-09-01 | FE35: 2028-10-01 | FF35: 2028-11-01 | FG35: 2028-12-01 | FH35: 2029-01-01 | FI35: 2029-02-01 | FJ35: 2029-03-01 | FK35: 2029-04-01 | FL35: 2029-05-01 | FM35: 2029-06-01 | FN35: 2029-07-01 | FO35: 2029-08-01 | FP35: 2029-09-01 | FQ35: 2029-10-01 | FR35: 2029-11-01 | FS35: 2029-12-01 | FT35: 2030-01-01 | FU35: 2030-02-01 | FV35: 2030-03-01 | FW35: 2030-04-01 | FX35: 2030-05-01 | FY35: 2030-06-01 | FZ35: 2030-07-01 | GA35: 2030-08-01 | GB35: 2030-09-01 | GC35: 2030-10-01 | GD35: 2030-11-01 | GE35: 2030-12-01 | GF35: 2031-01-01 | GG35: 2031-02-01 | GH35: 2031-03-01 | GI35: 2031-04-01 | GJ35: 2031-05-01 | GK35: 2031-06-01 | GL35: 2031-07-01 | GM35: 2031-08-01 | GN35: 2031-09-01 | GO35: 2031-10-01 | GP35: 2031-11-01 | GQ35: 2031-12-01 | GR35: 2032-01-01 | GS35: 2032-02-01 | GT35: 2032-03-01 | GU35: =EDATE(GT35,1) -> 2032-04-01 | GV35: 2032-05-01 | GW35: 2032-06-01 | GX35: 2032-07-01 | GY35: 2032-08-01 | GZ35: 2032-09-01 | HA35: 2032-10-01 | HB35: 2032-11-01 | HC35: 2032-12-01 | HD35: 2033-01-01 | HE35: 2033-02-01 | HF35: 2033-03-01 | HG35: 2033-04-01 | HH35: 2033-05-01 | HI35: 2033-06-01 | HJ35: 2033-07-01 | HK35: 2033-08-01 | HL35: 2033-09-01 | HM35: 2033-10-01 | HN35: 2033-11-01 | HO35: 2033-12-01 | HP35: 2034-01-01 | HQ35: 2034-02-01 | HR35: 2034-03-01 | HS35: 2034-04-01 | HT35: 2034-05-01 | HU35: 2034-06-01 | HV35: 2034-07-01 | HW35: 2034-08-01 | HX35: 2034-09-01 | HY35: 2034-10-01 | HZ35: 2034-11-01 | IA35: 2034-12-01 | IB35: 2035-01-01 | IC35: 2035-02-01 | ID35: 2035-03-01 | IE35: 2035-04-01 | IF35: 2035-05-01 | IG35: 2035-06-01 | IH35: 2035-07-01 | II35: 2035-08-01 | IJ35: 2035-09-01 | IK35: 2035-10-01 | IL35: 2035-11-01 | IM35: 2035-12-01 | IN35: 2036-01-01 | IO35: 2036-02-01 | IP35: 2036-03-01 | IQ35: 2036-04-01 | IR35: 2036-05-01 | IS35: 2036-06-01 | IT35: 2036-07-01 | IU35: 2036-08-01 | IV35: 2036-09-01 | IW35: 2036-10-01 | IX35: 2036-11-01 | IY35: 2036-12-01 | IZ35: 2037-01-01 | JA35: 2037-02-01 | JB35: 2037-03-01 | JC35: 2037-04-01 | JD35: 2037-05-01 | JE35: 2037-06-01 | JF35: 2037-07-01 | JG35: =EDATE(JF35,1) -> 2037-08-01 | JH35: 2037-09-01 | JI35: 2037-10-01 | JJ35: 2037-11-01 | JK35: 2037-12-01 | JL35: 2038-01-01 | JM35: 2038-02-01 | JN35: 2038-03-01 | JO35: 2038-04-01 | JP35: 2038-05-01 | JQ35: 2038-06-01 | JR35: 2038-07-01 | JS35: 2038-08-01 | JT35: 2038-09-01 | JU35: 2038-10-01 | JV35: 2038-11-01 | JW35: 2038-12-01 | JX35: 2039-01-01 | JY35: 2039-02-01 | JZ35: 2039-03-01 | KA35: 2039-04-01 | KB35: 2039-05-01
C36: Year | H36: =YEAR(H35) -> 2016 | I36: =YEAR(I35) -> 2016 | J36: 2016 | K36: 2016 | L36: 2016 | M36: 2016 | N36: 2016 | O36: 2016 | P36: 2016 | Q36: 2016 | R36: 2016 | S36: 2016 | T36: 2017 | U36: 2017 | V36: 2017 | W36: 2017 | X36: 2017 | Y36: 2017 | Z36: 2017 | AA36: 2017 | AB36: 2017 | AC36: 2017 | AD36: 2017 | AE36: 2017 | AF36: 2018 | AG36: 2018 | AH36: 2018 | AI36: 2018 | AJ36: 2018 | AK36: 2018 | AL36: 2018 | AM36: 2018 | AN36: 2018 | AO36: 2018 | AP36: 2018 | AQ36: 2018 | AR36: 2019 | AS36: 2019 | AT36: 2019 | AU36: 2019 | AV36: 2019 | AW36: 2019 | AX36: 2019 | AY36: 2019 | AZ36: 2019 | BA36: 2019 | BB36: 2019 | BC36: 2019 | BD36: 2020 | BE36: 2020 | BF36: 2020 | BG36: 2020 | BH36: 2020 | BI36: 2020 | BJ36: 2020 | BK36: 2020 | BL36: 2020 | BM36: 2020 | BN36: 2020 | BO36: 2020 | BP36: 2021 | BQ36: 2021 | BR36: 2021 | BS36: 2021 | BT36: 2021 | BU36: =YEAR(BU35) -> 2021 | BV36: 2021 | BW36: 2021 | BX36: 2021 | BY36: 2021 | BZ36: 2021 | CA36: 2021 | CB36: 2022 | CC36: 2022 | CD36: 2022 | CE36: 2022 | CF36: 2022 | CG36: 2022 | CH36: 2022 | CI36: 2022 | CJ36: 2022 | CK36: 2022 | CL36: 2022 | CM36: 2022 | CN36: 2023 | CO36: 2023 | CP36: 2023 | CQ36: 2023 | CR36: 2023 | CS36: 2023 | CT36: 2023 | CU36: 2023 | CV36: 2023 | CW36: 2023 | CX36: 2023 | CY36: 2023 | CZ36: 2024 | DA36: 2024 | DB36: 2024 | DC36: 2024 | DD36: 2024 | DE36: 2024 | DF36: 2024 | DG36: 2024 | DH36: 2024 | DI36: 2024 | DJ36: 2024 | DK36: 2024 | DL36: 2025 | DM36: 2025 | DN36: 2025 | DO36: 2025 | DP36: 2025 | DQ36: 2025 | DR36: 2025 | DS36: 2025 | DT36: 2025 | DU36: 2025 | DV36: 2025 | DW36: 2025 | DX36: 2026 | DY36: 2026 | DZ36: 2026 | EA36: 2026 | EB36: 2026 | EC36: 2026 | ED36: 2026 | EE36: 2026 | EF36: 2026 | EG36: =YEAR(EG35) -> 2026 | EH36: 2026 | EI36: 2026 | EJ36: 2027 | EK36: 2027 | EL36: 2027 | EM36: 2027 | EN36: 2027 | EO36: 2027 | EP36: 2027 | EQ36: 2027 | ER36: 2027 | ES36: 2027 | ET36: 2027 | EU36: 2027 | EV36: 2028 | EW36: 2028 | EX36: 2028 | EY36: 2028 | EZ36: 2028 | FA36: 2028 | FB36: 2028 | FC36: 2028 | FD36: 2028 | FE36: 2028 | FF36: 2028 | FG36: 2028 | FH36: 2029 | FI36: 2029 | FJ36: 2029 | FK36: 2029 | FL36: 2029 | FM36: 2029 | FN36: 2029 | FO36: 2029 | FP36: 2029 | FQ36: 2029 | FR36: 2029 | FS36: 2029 | FT36: 2030 | FU36: 2030 | FV36: 2030 | FW36: 2030 | FX36: 2030 | FY36: 2030 | FZ36: 2030 | GA36: 2030 | GB36: 2030 | GC36: 2030 | GD36: 2030 | GE36: 2030 | GF36: 2031 | GG36: 2031 | GH36: 2031 | GI36: 2031 | GJ36: 2031 | GK36: 2031 | GL36: 2031 | GM36: 2031 | GN36: 2031 | GO36: 2031 | GP36: 2031 | GQ36: 2031 | GR36: 2032 | GS36: =YEAR(GS35) -> 2032 | GT36: 2032 | GU36: 2032 | GV36: 2032 | GW36: 2032 | GX36: 2032 | GY36: 2032 | GZ36: 2032 | HA36: 2032 | HB36: 2032 | HC36: 2032 | HD36: 2033 | HE36: 2033 | HF36: 2033 | HG36: 2033 | HH36: 2033 | HI36: 2033 | HJ36: 2033 | HK36: 2033 | HL36: 2033 | HM36: 2033 | HN36: 2033 | HO36: 2033 | HP36: 2034 | HQ36: 2034 | HR36: 2034 | HS36: 2034 | HT36: 2034 | HU36: 2034 | HV36: 2034 | HW36: 2034 | HX36: 2034 | HY36: 2034 | HZ36: 2034 | IA36: 2034 | IB36: 2035 | IC36: 2035 | ID36: 2035 | IE36: 2035 | IF36: 2035 | IG36: 2035 | IH36: 2035 | II36: 2035 | IJ36: 2035 | IK36: 2035 | IL36: 2035 | IM36: 2035 | IN36: 2036 | IO36: 2036 | IP36: 2036 | IQ36: 2036 | IR36: 2036 | IS36: 2036 | IT36: 2036 | IU36: 2036 | IV36: 2036 | IW36: 2036 | IX36: 2036 | IY36: 2036 | IZ36: 2037 | JA36: 2037 | JB36: 2037 | JC36: 2037 | JD36: 2037 | JE36: =YEAR(JE35) -> 2037 | JF36: 2037 | JG36: 2037 | JH36: 2037 | JI36: 2037 | JJ36: 2037 | JK36: 2037 | JL36: 2038 | JM36: 2038 | JN36: 2038 | JO36: 2038 | JP36: 2038 | JQ36: 2038 | JR36: 2038 | JS36: 2038 | JT36: 2038 | JU36: =YEAR(JU35) -> 2038 | JV36: =YEAR(JV35) -> 2038 | JW36: =YEAR(JW35) -> 2038 | JX36: =YEAR(JX35) -> 2039 | JY36: =YEAR(JY35) -> 2039 | JZ36: =YEAR(JZ35) -> 2039 | KA36: =YEAR(KA35) -> 2039 | KB36: =YEAR(KB35) -> 2039
C37: Construction phase | F37: =H4 -> 2018-12-01 | G37: =F35 -> 2016-01-01 | H37: =H35<$F$37 -> TRUE | I37: =I35<$F$37 -> TRUE | J37: TRUE | K37: TRUE | L37: TRUE | M37: TRUE | N37: TRUE | O37: TRUE | P37: TRUE | Q37: TRUE | R37: TRUE | S37: TRUE | T37: TRUE | U37: TRUE | V37: TRUE | W37: TRUE | X37: TRUE | Y37: TRUE | Z37: TRUE | AA37: TRUE | AB37: TRUE | AC37: TRUE | AD37: TRUE | AE37: TRUE | AF37: TRUE | AG37: TRUE | AH37: TRUE | AI37: TRUE | AJ37: TRUE | AK37: TRUE | AL37: TRUE | AM37: TRUE | AN37: TRUE | AO37: TRUE | AP37: TRUE | AQ37: FALSE | AR37: FALSE | AS37: FALSE | AT37: FALSE | AU37: FALSE | AV37: FALSE | AW37: FALSE | AX37: FALSE | AY37: FALSE | AZ37: FALSE | BA37: FALSE | BB37: FALSE | BC37: FALSE | BD37: FALSE | BE37: FALSE | BF37: FALSE | BG37: FALSE | BH37: FALSE | BI37: FALSE | BJ37: FALSE | BK37: FALSE | BL37: FALSE | BM37: FALSE | BN37: FALSE | BO37: FALSE | BP37: FALSE | BQ37: FALSE | BR37: FALSE | BS37: FALSE | BT37: FALSE | BU37: =BU35<$F$37 -> FALSE | BV37: FALSE | BW37: FALSE | BX37: FALSE | BY37: FALSE | BZ37: FALSE | CA37: FALSE | CB37: FALSE | CC37: FALSE | CD37: FALSE | CE37: FALSE | CF37: FALSE | CG37: FALSE | CH37: FALSE | CI37: FALSE | CJ37: FALSE | CK37: FALSE | CL37: FALSE | CM37: FALSE | CN37: FALSE | CO37: FALSE | CP37: FALSE | CQ37: FALSE | CR37: FALSE | CS37: FALSE | CT37: FALSE | CU37: FALSE | CV37: FALSE | CW37: FALSE | CX37: FALSE | CY37: FALSE | CZ37: FALSE | DA37: FALSE | DB37: FALSE | DC37: FALSE | DD37: FALSE | DE37: FALSE | DF37: FALSE | DG37: FALSE | DH37: FALSE | DI37: FALSE | DJ37: FALSE | DK37: FALSE | DL37: FALSE | DM37: FALSE | DN37: FALSE | DO37: FALSE | DP37: FALSE | DQ37: FALSE | DR37: FALSE | DS37: FALSE | DT37: FALSE | DU37: FALSE | DV37: FALSE | DW37: FALSE | DX37: FALSE | DY37: FALSE | DZ37: FALSE | EA37: FALSE | EB37: FALSE | EC37: FALSE | ED37: FALSE | EE37: FALSE | EF37: FALSE | EG37: =EG35<$F$37 -> FALSE | EH37: FALSE | EI37: FALSE | EJ37: FALSE | EK37: FALSE | EL37: FALSE | EM37: FALSE | EN37: FALSE | EO37: FALSE | EP37: FALSE | EQ37: FALSE | ER37: FALSE | ES37: FALSE | ET37: FALSE | EU37: FALSE | EV37: FALSE | EW37: FALSE | EX37: FALSE | EY37: FALSE | EZ37: FALSE | FA37: FALSE | FB37: FALSE | FC37: FALSE | FD37: FALSE | FE37: FALSE | FF37: FALSE | FG37: FALSE | FH37: FALSE | FI37: FALSE | FJ37: FALSE | FK37: FALSE | FL37: FALSE | FM37: FALSE | FN37: FALSE | FO37: FALSE | FP37: FALSE | FQ37: FALSE | FR37: FALSE | FS37: FALSE | FT37: FALSE | FU37: FALSE | FV37: FALSE | FW37: FALSE | FX37: FALSE | FY37: FALSE | FZ37: FALSE | GA37: FALSE | GB37: FALSE | GC37: FALSE | GD37: FALSE | GE37: FALSE | GF37: FALSE | GG37: FALSE | GH37: FALSE | GI37: FALSE | GJ37: FALSE | GK37: FALSE | GL37: FALSE | GM37: FALSE | GN37: FALSE | GO37: FALSE | GP37: FALSE | GQ37: FALSE | GR37: FALSE | GS37: =GS35<$F$37 -> FALSE | GT37: FALSE | GU37: FALSE | GV37: FALSE | GW37: FALSE | GX37: FALSE | GY37: FALSE | GZ37: FALSE | HA37: FALSE | HB37: FALSE | HC37: FALSE | HD37: FALSE | HE37: FALSE | HF37: FALSE | HG37: FALSE | HH37: FALSE | HI37: FALSE | HJ37: FALSE | HK37: FALSE | HL37: FALSE | HM37: FALSE | HN37: FALSE | HO37: FALSE | HP37: FALSE | HQ37: FALSE | HR37: FALSE | HS37: FALSE | HT37: FALSE | HU37: FALSE | HV37: FALSE | HW37: FALSE | HX37: FALSE | HY37: FALSE | HZ37: FALSE | IA37: FALSE | IB37: FALSE | IC37: FALSE | ID37: FALSE | IE37: FALSE | IF37: FALSE | IG37: FALSE | IH37: FALSE | II37: FALSE | IJ37: FALSE | IK37: FALSE | IL37: FALSE | IM37: FALSE | IN37: FALSE | IO37: FALSE | IP37: FALSE | IQ37: FALSE | IR37: FALSE | IS37: FALSE | IT37: FALSE | IU37: FALSE | IV37: FALSE | IW37: FALSE | IX37: FALSE | IY37: FALSE | IZ37: FALSE | JA37: FALSE | JB37: FALSE | JC37: FALSE | JD37: FALSE | JE37: =JE35<$F$37 -> FALSE | JF37: FALSE | JG37: FALSE | JH37: FALSE | JI37: FALSE | JJ37: FALSE | JK37: FALSE | JL37: FALSE | JM37: FALSE | JN37: FALSE | JO37: FALSE | JP37: FALSE | JQ37: FALSE | JR37: FALSE | JS37: FALSE | JT37: FALSE | JU37: =JU35<$F$37 -> FALSE | JV37: FALSE | JW37: FALSE | JX37: FALSE | JY37: FALSE | JZ37: FALSE | KA37: FALSE | KB37: FALSE
C38: Operation phase | F38: =F37 -> 2018-12-01 | G38: =EDATE(F38,240) -> 2038-12-01 | H38: =(AND(H35>=$F$38,H35<$G$38)) -> FALSE | I38: =(AND(I35>=$F$38,I35<$G$38)) -> FALSE | J38: FALSE | K38: FALSE | L38: FALSE | M38: FALSE | N38: FALSE | O38: FALSE | P38: FALSE | Q38: FALSE | R38: FALSE | S38: FALSE | T38: FALSE | U38: FALSE | V38: FALSE | W38: FALSE | X38: FALSE | Y38: FALSE | Z38: FALSE | AA38: FALSE | AB38: FALSE | AC38: FALSE | AD38: FALSE | AE38: FALSE | AF38: FALSE | AG38: FALSE | AH38: FALSE | AI38: FALSE | AJ38: FALSE | AK38: FALSE | AL38: FALSE | AM38: FALSE | AN38: FALSE | AO38: FALSE | AP38: FALSE | AQ38: TRUE | AR38: TRUE | AS38: TRUE | AT38: TRUE | AU38: TRUE | AV38: TRUE | AW38: TRUE | AX38: TRUE | AY38: TRUE | AZ38: TRUE | BA38: TRUE | BB38: TRUE | BC38: TRUE | BD38: TRUE | BE38: TRUE | BF38: TRUE | BG38: TRUE | BH38: TRUE | BI38: TRUE | BJ38: TRUE | BK38: TRUE | BL38: TRUE | BM38: TRUE | BN38: TRUE | BO38: TRUE | BP38: TRUE | BQ38: TRUE | BR38: TRUE | BS38: TRUE | BT38: TRUE | BU38: =(AND(BU35>=$F$38,BU35<$G$38)) -> TRUE | BV38: TRUE | BW38: TRUE | BX38: TRUE | BY38: TRUE | BZ38: TRUE | CA38: TRUE | CB38: TRUE | CC38: TRUE | CD38: TRUE | CE38: TRUE | CF38: TRUE | CG38: TRUE | CH38: TRUE | CI38: TRUE | CJ38: TRUE | CK38: TRUE | CL38: TRUE | CM38: TRUE | CN38: TRUE | CO38: TRUE | CP38: TRUE | CQ38: TRUE | CR38: TRUE | CS38: TRUE | CT38: TRUE | CU38: TRUE | CV38: TRUE | CW38: TRUE | CX38: TRUE | CY38: TRUE | CZ38: TRUE | DA38: TRUE | DB38: TRUE | DC38: TRUE | DD38: TRUE | DE38: TRUE | DF38: TRUE | DG38: TRUE | DH38: TRUE | DI38: TRUE | DJ38: TRUE | DK38: TRUE | DL38: TRUE | DM38: TRUE | DN38: TRUE | DO38: TRUE | DP38: TRUE | DQ38: TRUE | DR38: TRUE | DS38: TRUE | DT38: TRUE | DU38: TRUE | DV38: TRUE | DW38: TRUE | DX38: TRUE | DY38: TRUE | DZ38: TRUE | EA38: TRUE | EB38: TRUE | EC38: TRUE | ED38: TRUE | EE38: TRUE | EF38: TRUE | EG38: =(AND(EG35>=$F$38,EG35<$G$38)) -> TRUE | EH38: TRUE | EI38: TRUE | EJ38: TRUE | EK38: TRUE | EL38: TRUE | EM38: TRUE | EN38: TRUE | EO38: TRUE | EP38: TRUE | EQ38: TRUE | ER38: TRUE | ES38: TRUE | ET38: TRUE | EU38: TRUE | EV38: TRUE | EW38: TRUE | EX38: TRUE | EY38: TRUE | EZ38: TRUE | FA38: TRUE | FB38: TRUE | FC38: TRUE | FD38: TRUE | FE38: TRUE | FF38: TRUE | FG38: TRUE | FH38: TRUE | FI38: TRUE | FJ38: TRUE | FK38: TRUE | FL38: TRUE | FM38: TRUE | FN38: TRUE | FO38: TRUE | FP38: TRUE | FQ38: TRUE | FR38: TRUE | FS38: TRUE | FT38: TRUE | FU38: TRUE | FV38: TRUE | FW38: TRUE | FX38: TRUE | FY38: TRUE | FZ38: TRUE | GA38: TRUE | GB38: TRUE | GC38: TRUE | GD38: TRUE | GE38: TRUE | GF38: TRUE | GG38: TRUE | GH38: TRUE | GI38: TRUE | GJ38: TRUE | GK38: TRUE | GL38: TRUE | GM38: TRUE | GN38: TRUE | GO38: TRUE | GP38: TRUE | GQ38: TRUE | GR38: TRUE | GS38: =(AND(GS35>=$F$38,GS35<$G$38)) -> TRUE | GT38: TRUE | GU38: TRUE | GV38: TRUE | GW38: TRUE | GX38: TRUE | GY38: TRUE | GZ38: TRUE | HA38: TRUE | HB38: TRUE | HC38: TRUE | HD38: TRUE | HE38: TRUE | HF38: TRUE | HG38: TRUE | HH38: TRUE | HI38: TRUE | HJ38: TRUE | HK38: TRUE | HL38: TRUE | HM38: TRUE | HN38: TRUE | HO38: TRUE | HP38: TRUE | HQ38: TRUE | HR38: TRUE | HS38: TRUE | HT38: TRUE | HU38: TRUE | HV38: TRUE | HW38: TRUE | HX38: TRUE | HY38: TRUE | HZ38: TRUE | IA38: TRUE | IB38: TRUE | IC38: TRUE | ID38: TRUE | IE38: TRUE | IF38: TRUE | IG38: TRUE | IH38: TRUE | II38: TRUE | IJ38: TRUE | IK38: TRUE | IL38: TRUE | IM38: TRUE | IN38: TRUE | IO38: TRUE | IP38: TRUE | IQ38: TRUE | IR38: TRUE | IS38: TRUE | IT38: TRUE | IU38: TRUE | IV38: TRUE | IW38: TRUE | IX38: TRUE | IY38: TRUE | IZ38: TRUE | JA38: TRUE | JB38: TRUE | JC38: TRUE | JD38: TRUE | JE38: =(AND(JE35>=$F$38,JE35<$G$38)) -> TRUE | JF38: TRUE | JG38: TRUE | JH38: TRUE | JI38: TRUE | JJ38: TRUE | JK38: TRUE | JL38: TRUE | JM38: TRUE | JN38: TRUE | JO38: TRUE | JP38: TRUE | JQ38: TRUE | JR38: TRUE | JS38: TRUE | JT38: TRUE | JU38: =(AND(JU35>=$F$38,JU35<$G$38)) -> TRUE | JV38: TRUE | JW38: FALSE | JX38: FALSE | JY38: FALSE | JZ38: FALSE | KA38: FALSE | KB38: FALSE
C39: Date repayment phase
B41: Operating analysis
C42: Capacity | F42: =H9 -> 10000 | H42: =$F$42*H38 -> 0 | I42: =$F$42*I38 -> 0 | J42: 0 | K42: 0 | L42: 0 | M42: 0 | N42: 0 | O42: 0 | P42: 0 | Q42: 0 | R42: 0 | S42: 0 | T42: 0 | U42: 0 | V42: 0 | W42: 0 | X42: 0 | Y42: 0 | Z42: 0 | AA42: 0 | AB42: 0 | AC42: 0 | AD42: 0 | AE42: 0 | AF42: 0 | AG42: 0 | AH42: 0 | AI42: 0 | AJ42: 0 | AK42: 0 | AL42: 0 | AM42: 0 | AN42: 0 | AO42: 0 | AP42: 0 | AQ42: 10000 | AR42: 10000 | AS42: 10000 | AT42: 10000 | AU42: 10000 | AV42: 10000 | AW42: 10000 | AX42: 10000 | AY42: 10000 | AZ42: 10000 | BA42: 10000 | BB42: 10000 | BC42: 10000 | BD42: 10000 | BE42: 10000 | BF42: 10000 | BG42: 10000 | BH42: 10000 | BI42: 10000 | BJ42: 10000 | BK42: 10000 | BL42: 10000 | BM42: 10000 | BN42: 10000 | BO42: 10000 | BP42: 10000 | BQ42: 10000 | BR42: 10000 | BS42: 10000 | BT42: 10000 | BU42: =$F$42*BU38 -> 10000 | BV42: 10000 | BW42: 10000 | BX42: 10000 | BY42: 10000 | BZ42: 10000 | CA42: 10000 | CB42: 10000 | CC42: 10000 | CD42: 10000 | CE42: 10000 | CF42: 10000 | CG42: 10000 | CH42: 10000 | CI42: 10000 | CJ42: 10000 | CK42: 10000 | CL42: 10000 | CM42: 10000 | CN42: 10000 | CO42: 10000 | CP42: 10000 | CQ42: 10000 | CR42: 10000 | CS42: 10000 | CT42: 10000 | CU42: 10000 | CV42: 10000 | CW42: 10000 | CX42: 10000 | CY42: 10000 | CZ42: 10000 | DA42: 10000 | DB42: 10000 | DC42: 10000 | DD42: 10000 | DE42: 10000 | DF42: 10000 | DG42: 10000 | DH42: 10000 | DI42: 10000 | DJ42: 10000 | DK42: 10000 | DL42: 10000 | DM42: 10000 | DN42: 10000 | DO42: 10000 | DP42: 10000 | DQ42: 10000 | DR42: 10000 | DS42: 10000 | DT42: 10000 | DU42: 10000 | DV42: 10000 | DW42: 10000 | DX42: 10000 | DY42: 10000 | DZ42: 10000 | EA42: 10000 | EB42: 10000 | EC42: 10000 | ED42: 10000 | EE42: 10000 | EF42: 10000 | EG42: =$F$42*EG38 -> 10000 | EH42: 10000 | EI42: 10000 | EJ42: 10000 | EK42: 10000 | EL42: 10000 | EM42: 10000 | EN42: 10000 | EO42: 10000 | EP42: 10000 | EQ42: 10000 | ER42: 10000 | ES42: 10000 | ET42: 10000 | EU42: 10000 | EV42: 10000 | EW42: 10000 | EX42: 10000 | EY42: 10000 | EZ42: 10000 | FA42: 10000 | FB42: 10000 | FC42: 10000 | FD42: 10000 | FE42: 10000 | FF42: 10000 | FG42: 10000 | FH42: 10000 | FI42: 10000 | FJ42: 10000 | FK42: 10000 | FL42: 10000 | FM42: 10000 | FN42: 10000 | FO42: 10000 | FP42: 10000 | FQ42: 10000 | FR42: 10000 | FS42: 10000 | FT42: 10000 | FU42: 10000 | FV42: 10000 | FW42: 10000 | FX42: 10000 | FY42: 10000 | FZ42: 10000 | GA42: 10000 | GB42: 10000 | GC42: 10000 | GD42: 10000 | GE42: 10000 | GF42: 10000 | GG42: 10000 | GH42: 10000 | GI42: 10000 | GJ42: 10000 | GK42: 10000 | GL42: 10000 | GM42: 10000 | GN42: 10000 | GO42: 10000 | GP42: 10000 | GQ42: 10000 | GR42: 10000 | GS42: =$F$42*GS38 -> 10000 | GT42: 10000 | GU42: 10000 | GV42: 10000 | GW42: 10000 | GX42: 10000 | GY42: 10000 | GZ42: 10000 | HA42: 10000 | HB42: 10000 | HC42: 10000 | HD42: 10000 | HE42: 10000 | HF42: 10000 | HG42: 10000 | HH42: 10000 | HI42: 10000 | HJ42: 10000 | HK42: 10000 | HL42: 10000 | HM42: 10000 | HN42: 10000 | HO42: 10000 | HP42: 10000 | HQ42: 10000 | HR42: 10000 | HS42: 10000 | HT42: 10000 | HU42: 10000 | HV42: 10000 | HW42: 10000 | HX42: 10000 | HY42: 10000 | HZ42: 10000 | IA42: 10000 | IB42: 10000 | IC42: 10000 | ID42: 10000 | IE42: 10000 | IF42: 10000 | IG42: 10000 | IH42: 10000 | II42: 10000 | IJ42: 10000 | IK42: 10000 | IL42: 10000 | IM42: 10000 | IN42: 10000 | IO42: 10000 | IP42: 10000 | IQ42: 10000 | IR42: 10000 | IS42: 10000 | IT42: 10000 | IU42: 10000 | IV42: 10000 | IW42: 10000 | IX42: 10000 | IY42: 10000 | IZ42: 10000 | JA42: 10000 | JB42: 10000 | JC42: 10000 | JD42: 10000 | JE42: =$F$42*JE38 -> 10000 | JF42: 10000 | JG42: 10000 | JH42: 10000 | JI42: 10000 | JJ42: 10000 | JK42: 10000 | JL42: 10000 | JM42: 10000 | JN42: 10000 | JO42: 10000 | JP42: 10000 | JQ42: 10000 | JR42: 10000 | JS42: 10000 | JT42: 10000 | JU42: 10000 | JV42: 10000 | JW42: 0 | JX42: 0 | JY42: 0 | JZ42: 0 | KA42: 0 | KB42: 0
C43: Year fraction | I43: =YEARFRAC(H35,I35) -> 0.08333333333 | J43: =YEARFRAC(I35,J35) -> 0.08333333333 | K43: 0.08333333333 | L43: 0.08333333333 | M43: 0.08333333333 | N43: 0.08333333333 | O43: 0.08333333333 | P43: 0.08333333333 | Q43: 0.08333333333 | R43: 0.08333333333 | S43: 0.08333333333 | T43: 0.08333333333 | U43: 0.08333333333 | V43: 0.08333333333 | W43: 0.08333333333 | X43: 0.08333333333 | Y43: 0.08333333333 | Z43: 0.08333333333 | AA43: 0.08333333333 | AB43: 0.08333333333 | AC43: 0.08333333333 | AD43: 0.08333333333 | AE43: 0.08333333333 | AF43: 0.08333333333 | AG43: 0.08333333333 | AH43: 0.08333333333 | AI43: 0.08333333333 | AJ43: 0.08333333333 | AK43: 0.08333333333 | AL43: 0.08333333333 | AM43: 0.08333333333 | AN43: 0.08333333333 | AO43: 0.08333333333 | AP43: 0.08333333333 | AQ43: 0.08333333333 | AR43: 0.08333333333 | AS43: 0.08333333333 | AT43: 0.08333333333 | AU43: 0.08333333333 | AV43: 0.08333333333 | AW43: 0.08333333333 | AX43: 0.08333333333 | AY43: 0.08333333333 | AZ43: 0.08333333333 | BA43: 0.08333333333 | BB43: 0.08333333333 | BC43: 0.08333333333 | BD43: 0.08333333333 | BE43: 0.08333333333 | BF43: 0.08333333333 | BG43: 0.08333333333 | BH43: 0.08333333333 | BI43: 0.08333333333 | BJ43: 0.08333333333 | BK43: 0.08333333333 | BL43: 0.08333333333 | BM43: 0.08333333333 | BN43: 0.08333333333 | BO43: 0.08333333333 | BP43: 0.08333333333 | BQ43: 0.08333333333 | BR43: 0.08333333333 | BS43: 0.08333333333 | BT43: 0.08333333333 | BU43: 0.08333333333 | BV43: =YEARFRAC(BU35,BV35) -> 0.08333333333 | BW43: 0.08333333333 | BX43: 0.08333333333 | BY43: 0.08333333333 | BZ43: 0.08333333333 | CA43: 0.08333333333 | CB43: 0.08333333333 | CC43: 0.08333333333 | CD43: 0.08333333333 | CE43: 0.08333333333 | CF43: 0.08333333333 | CG43: 0.08333333333 | CH43: 0.08333333333 | CI43: 0.08333333333 | CJ43: 0.08333333333 | CK43: 0.08333333333 | CL43: 0.08333333333 | CM43: 0.08333333333 | CN43: 0.08333333333 | CO43: 0.08333333333 | CP43: 0.08333333333 | CQ43: 0.08333333333 | CR43: 0.08333333333 | CS43: 0.08333333333 | CT43: 0.08333333333 | CU43: 0.08333333333 | CV43: 0.08333333333 | CW43: 0.08333333333 | CX43: 0.08333333333 | CY43: 0.08333333333 | CZ43: 0.08333333333 | DA43: 0.08333333333 | DB43: 0.08333333333 | DC43: 0.08333333333 | DD43: 0.08333333333 | DE43: 0.08333333333 | DF43: 0.08333333333 | DG43: 0.08333333333 | DH43: 0.08333333333 | DI43: 0.08333333333 | DJ43: 0.08333333333 | DK43: 0.08333333333 | DL43: 0.08333333333 | DM43: 0.08333333333 | DN43: 0.08333333333 | DO43: 0.08333333333 | DP43: 0.08333333333 | DQ43: 0.08333333333 | DR43: 0.08333333333 | DS43: 0.08333333333 | DT43: 0.08333333333 | DU43: 0.08333333333 | DV43: 0.08333333333 | DW43: 0.08333333333 | DX43: 0.08333333333 | DY43: 0.08333333333 | DZ43: 0.08333333333 | EA43: 0.08333333333 | EB43: 0.08333333333 | EC43: 0.08333333333 | ED43: 0.08333333333 | EE43: 0.08333333333 | EF43: 0.08333333333 | EG43: 0.08333333333 | EH43: =YEARFRAC(EG35,EH35) -> 0.08333333333 | EI43: 0.08333333333 | EJ43: 0.08333333333 | EK43: 0.08333333333 | EL43: 0.08333333333 | EM43: 0.08333333333 | EN43: 0.08333333333 | EO43: 0.08333333333 | EP43: 0.08333333333 | EQ43: 0.08333333333 | ER43: 0.08333333333 | ES43: 0.08333333333 | ET43: 0.08333333333 | EU43: 0.08333333333 | EV43: 0.08333333333 | EW43: 0.08333333333 | EX43: 0.08333333333 | EY43: 0.08333333333 | EZ43: 0.08333333333 | FA43: 0.08333333333 | FB43: 0.08333333333 | FC43: 0.08333333333 | FD43: 0.08333333333 | FE43: 0.08333333333 | FF43: 0.08333333333 | FG43: 0.08333333333 | FH43: 0.08333333333 | FI43: 0.08333333333 | FJ43: 0.08333333333 | FK43: 0.08333333333 | FL43: 0.08333333333 | FM43: 0.08333333333 | FN43: 0.08333333333 | FO43: 0.08333333333 | FP43: 0.08333333333 | FQ43: 0.08333333333 | FR43: 0.08333333333 | FS43: 0.08333333333 | FT43: 0.08333333333 | FU43: 0.08333333333 | FV43: 0.08333333333 | FW43: 0.08333333333 | FX43: 0.08333333333 | FY43: 0.08333333333 | FZ43: 0.08333333333 | GA43: 0.08333333333 | GB43: 0.08333333333 | GC43: 0.08333333333 | GD43: 0.08333333333 | GE43: 0.08333333333 | GF43: 0.08333333333 | GG43: 0.08333333333 | GH43: 0.08333333333 | GI43: 0.08333333333 | GJ43: 0.08333333333 | GK43: 0.08333333333 | GL43: 0.08333333333 | GM43: 0.08333333333 | GN43: 0.08333333333 | GO43: 0.08333333333 | GP43: 0.08333333333 | GQ43: 0.08333333333 | GR43: 0.08333333333 | GS43: 0.08333333333 | GT43: =YEARFRAC(GS35,GT35) -> 0.08333333333 | GU43: 0.08333333333 | GV43: 0.08333333333 | GW43: 0.08333333333 | GX43: 0.08333333333 | GY43: 0.08333333333 | GZ43: 0.08333333333 | HA43: 0.08333333333 | HB43: 0.08333333333 | HC43: 0.08333333333 | HD43: 0.08333333333 | HE43: 0.08333333333 | HF43: 0.08333333333 | HG43: 0.08333333333 | HH43: 0.08333333333 | HI43: 0.08333333333 | HJ43: 0.08333333333 | HK43: 0.08333333333 | HL43: 0.08333333333 | HM43: 0.08333333333 | HN43: 0.08333333333 | HO43: 0.08333333333 | HP43: 0.08333333333 | HQ43: 0.08333333333 | HR43: 0.08333333333 | HS43: 0.08333333333 | HT43: 0.08333333333 | HU43: 0.08333333333 | HV43: 0.08333333333 | HW43: 0.08333333333 | HX43: 0.08333333333 | HY43: 0.08333333333 | HZ43: 0.08333333333 | IA43: 0.08333333333 | IB43: 0.08333333333 | IC43: 0.08333333333 | ID43: 0.08333333333 | IE43: 0.08333333333 | IF43: 0.08333333333 | IG43: 0.08333333333 | IH43: 0.08333333333 | II43: 0.08333333333 | IJ43: 0.08333333333 | IK43: 0.08333333333 | IL43: 0.08333333333 | IM43: 0.08333333333 | IN43: 0.08333333333 | IO43: 0.08333333333 | IP43: 0.08333333333 | IQ43: 0.08333333333 | IR43: 0.08333333333 | IS43: 0.08333333333 | IT43: 0.08333333333 | IU43: 0.08333333333 | IV43: 0.08333333333 | IW43: 0.08333333333 | IX43: 0.08333333333 | IY43: 0.08333333333 | IZ43: 0.08333333333 | JA43: 0.08333333333 | JB43: 0.08333333333 | JC43: 0.08333333333 | JD43: 0.08333333333 | JE43: 0.08333333333 | JF43: =YEARFRAC(JE35,JF35) -> 0.08333333333 | JG43: 0.08333333333 | JH43: 0.08333333333 | JI43: 0.08333333333 | JJ43: 0.08333333333 | JK43: 0.08333333333 | JL43: 0.08333333333 | JM43: 0.08333333333 | JN43: 0.08333333333 | JO43: 0.08333333333 | JP43: 0.08333333333 | JQ43: 0.08333333333 | JR43: 0.08333333333 | JS43: 0.08333333333 | JT43: 0.08333333333 | JU43: 0.08333333333 | JV43: 0.08333333333 | JW43: 0.08333333333 | JX43: 0.08333333333 | JY43: 0.08333333333 | JZ43: 0.08333333333 | KA43: 0.08333333333 | KB43: 0.08333333333
C44: Production | I44: =I42*I43 -> 0 | J44: =J42*J43 -> 0 | K44: 0 | L44: 0 | M44: 0 | N44: 0 | O44: 0 | P44: 0 | Q44: 0 | R44: 0 | S44: 0 | T44: 0 | U44: 0 | V44: 0 | W44: 0 | X44: 0 | Y44: 0 | Z44: 0 | AA44: 0 | AB44: 0 | AC44: 0 | AD44: 0 | AE44: 0 | AF44: 0 | AG44: 0 | AH44: 0 | AI44: 0 | AJ44: 0 | AK44: 0 | AL44: 0 | AM44: 0 | AN44: 0 | AO44: 0 | AP44: 0 | AQ44: 833.3333333 | AR44: 833.3333333 | AS44: 833.3333333 | AT44: 833.3333333 | AU44: 833.3333333 | AV44: 833.3333333 | AW44: 833.3333333 | AX44: 833.3333333 | AY44: 833.3333333 | AZ44: 833.3333333 | BA44: 833.3333333 | BB44: 833.3333333 | BC44: 833.3333333 | BD44: 833.3333333 | BE44: 833.3333333 | BF44: 833.3333333 | BG44: 833.3333333 | BH44: 833.3333333 | BI44: 833.3333333 | BJ44: 833.3333333 | BK44: 833.3333333 | BL44: 833.3333333 | BM44: 833.3333333 | BN44: 833.3333333 | BO44: 833.3333333 | BP44: 833.3333333 | BQ44: 833.3333333 | BR44: 833.3333333 | BS44: 833.3333333 | BT44: 833.3333333 | BU44: 833.3333333 | BV44: =BV42*BV43 -> 833.3333333 | BW44: 833.3333333 | BX44: 833.3333333 | BY44: 833.3333333 | BZ44: 833.3333333 | CA44: 833.3333333 | CB44: 833.3333333 | CC44: 833.3333333 | CD44: 833.3333333 | CE44: 833.3333333 | CF44: 833.3333333 | CG44: 833.3333333 | CH44: 833.3333333 | CI44: 833.3333333 | CJ44: 833.3333333 | CK44: 833.3333333 | CL44: 833.3333333 | CM44: 833.3333333 | CN44: 833.3333333 | CO44: 833.3333333 | CP44: 833.3333333 | CQ44: 833.3333333 | CR44: 833.3333333 | CS44: 833.3333333 | CT44: 833.3333333 | CU44: 833.3333333 | CV44: 833.3333333 | CW44: 833.3333333 | CX44: 833.3333333 | CY44: 833.3333333 | CZ44: 833.3333333 | DA44: 833.3333333 | DB44: 833.3333333 | DC44: 833.3333333 | DD44: 833.3333333 | DE44: 833.3333333 | DF44: 833.3333333 | DG44: 833.3333333 | DH44: 833.3333333 | DI44: 833.3333333 | DJ44: 833.3333333 | DK44: 833.3333333 | DL44: 833.3333333 | DM44: 833.3333333 | DN44: 833.3333333 | DO44: 833.3333333 | DP44: 833.3333333 | DQ44: 833.3333333 | DR44: 833.3333333 | DS44: 833.3333333 | DT44: 833.3333333 | DU44: 833.3333333 | DV44: 833.3333333 | DW44: 833.3333333 | DX44: 833.3333333 | DY44: 833.3333333 | DZ44: 833.3333333 | EA44: 833.3333333 | EB44: 833.3333333 | EC44: 833.3333333 | ED44: 833.3333333 | EE44: 833.3333333 | EF44: 833.3333333 | EG44: 833.3333333 | EH44: =EH42*EH43 -> 833.3333333 | EI44: 833.3333333 | EJ44: 833.3333333 | EK44: 833.3333333 | EL44: 833.3333333 | EM44: 833.3333333 | EN44: 833.3333333 | EO44: 833.3333333 | EP44: 833.3333333 | EQ44: 833.3333333 | ER44: 833.3333333 | ES44: 833.3333333 | ET44: 833.3333333 | EU44: 833.3333333 | EV44: 833.3333333 | EW44: 833.3333333 | EX44: 833.3333333 | EY44: 833.3333333 | EZ44: 833.3333333 | FA44: 833.3333333 | FB44: 833.3333333 | FC44: 833.3333333 | FD44: 833.3333333 | FE44: 833.3333333 | FF44: 833.3333333 | FG44: 833.3333333 | FH44: 833.3333333 | FI44: 833.3333333 | FJ44: 833.3333333 | FK44: 833.3333333 | FL44: 833.3333333 | FM44: 833.3333333 | FN44: 833.3333333 | FO44: 833.3333333 | FP44: 833.3333333 | FQ44: 833.3333333 | FR44: 833.3333333 | FS44: 833.3333333 | FT44: 833.3333333 | FU44: 833.3333333 | FV44: 833.3333333 | FW44: 833.3333333 | FX44: 833.3333333 | FY44: 833.3333333 | FZ44: 833.3333333 | GA44: 833.3333333 | GB44: 833.3333333 | GC44: 833.3333333 | GD44: 833.3333333 | GE44: 833.3333333 | GF44: 833.3333333 | GG44: 833.3333333 | GH44: 833.3333333 | GI44: 833.3333333 | GJ44: 833.3333333 | GK44: 833.3333333 | GL44: 833.3333333 | GM44: 833.3333333 | GN44: 833.3333333 | GO44: 833.3333333 | GP44: 833.3333333 | GQ44: 833.3333333 | GR44: 833.3333333 | GS44: 833.3333333 | GT44: =GT42*GT43 -> 833.3333333 | GU44: 833.3333333 | GV44: 833.3333333 | GW44: 833.3333333 | GX44: 833.3333333 | GY44: 833.3333333 | GZ44: 833.3333333 | HA44: 833.3333333 | HB44: 833.3333333 | HC44: 833.3333333 | HD44: 833.3333333 | HE44: 833.3333333 | HF44: 833.3333333 | HG44: 833.3333333 | HH44: 833.3333333 | HI44: 833.3333333 | HJ44: 833.3333333 | HK44: 833.3333333 | HL44: 833.3333333 | HM44: 833.3333333 | HN44: 833.3333333 | HO44: 833.3333333 | HP44: 833.3333333 | HQ44: 833.3333333 | HR44: 833.3333333 | HS44: 833.3333333 | HT44: 833.3333333 | HU44: 833.3333333 | HV44: 833.3333333 | HW44: 833.3333333 | HX44: 833.3333333 | HY44: 833.3333333 | HZ44: 833.3333333 | IA44: 833.3333333 | IB44: 833.3333333 | IC44: 833.3333333 | ID44: 833.3333333 | IE44: 833.3333333 | IF44: 833.3333333 | IG44: 833.3333333 | IH44: 833.3333333 | II44: 833.3333333 | IJ44: 833.3333333 | IK44: 833.3333333 | IL44: 833.3333333 | IM44: 833.3333333 | IN44: 833.3333333 | IO44: 833.3333333 | IP44: 833.3333333 | IQ44: 833.3333333 | IR44: 833.3333333 | IS44: 833.3333333 | IT44: 833.3333333 | IU44: 833.3333333 | IV44: 833.3333333 | IW44: 833.3333333 | IX44: 833.3333333 | IY44: 833.3333333 | IZ44: 833.3333333 | JA44: 833.3333333 | JB44: 833.3333333 | JC44: 833.3333333 | JD44: 833.3333333 | JE44: 833.3333333 | JF44: =JF42*JF43 -> 833.3333333 | JG44: 833.3333333 | JH44: 833.3333333 | JI44: 833.3333333 | JJ44: 833.3333333 | JK44: 833.3333333 | JL44: 833.3333333 | JM44: 833.3333333 | JN44: 833.3333333 | JO44: 833.3333333 | JP44: 833.3333333 | JQ44: 833.3333333 | JR44: 833.3333333 | JS44: 833.3333333 | JT44: 833.3333333 | JU44: 833.3333333 | JV44: 833.3333333 | JW44: 0 | JX44: 0 | JY44: 0 | JZ44: 0 | KA44: 0 | KB44: 0
C46: Capital Expenditure | F46: =H10 -> 1550000 | G46: =H3 -> 35 | H46: =1/$G$46*$F$46*H37 -> 44285.71429 | I46: =1/$G$46*$F$46*I37 -> 44285.71429 | J46: 44285.71429 | K46: 44285.71429 | L46: 44285.71429 | M46: 44285.71429 | N46: 44285.71429 | O46: 44285.71429 | P46: 44285.71429 | Q46: 44285.71429 | R46: 44285.71429 | S46: 44285.71429 | T46: 44285.71429 | U46: 44285.71429 | V46: 44285.71429 | W46: 44285.71429 | X46: 44285.71429 | Y46: 44285.71429 | Z46: 44285.71429 | AA46: 44285.71429 | AB46: 44285.71429 | AC46: 44285.71429 | AD46: 44285.71429 | AE46: 44285.71429 | AF46: 44285.71429 | AG46: 44285.71429 | AH46: 44285.71429 | AI46: 44285.71429 | AJ46: 44285.71429 | AK46: 44285.71429 | AL46: 44285.71429 | AM46: 44285.71429 | AN46: 44285.71429 | AO46: 44285.71429 | AP46: 44285.71429 | AQ46: 0 | AR46: 0 | AS46: 0 | AT46: 0 | AU46: 0 | AV46: 0 | AW46: 0 | AX46: 0 | AY46: 0 | AZ46: 0 | BA46: 0 | BB46: 0 | BC46: 0 | BD46: 0 | BE46: 0 | BF46: 0 | BG46: 0 | BH46: 0 | BI46: 0 | BJ46: 0 | BK46: 0 | BL46: 0 | BM46: 0 | BN46: 0 | BO46: 0 | BP46: 0 | BQ46: 0 | BR46: 0 | BS46: 0 | BT46: 0 | BU46: =1/$G$46*$F$46*BU37 -> 0 | BV46: 0 | BW46: 0 | BX46: 0 | BY46: 0 | BZ46: 0 | CA46: 0 | CB46: 0 | CC46: 0 | CD46: 0 | CE46: 0 | CF46: 0 | CG46: 0 | CH46: 0 | CI46: 0 | CJ46: 0 | CK46: 0 | CL46: 0 | CM46: 0 | CN46: 0 | CO46: 0 | CP46: 0 | CQ46: 0 | CR46: 0 | CS46: 0 | CT46: 0 | CU46: 0 | CV46: 0 | CW46: 0 | CX46: 0 | CY46: 0 | CZ46: 0 | DA46: 0 | DB46: 0 | DC46: 0 | DD46: 0 | DE46: 0 | DF46: 0 | DG46: 0 | DH46: 0 | DI46: 0 | DJ46: 0 | DK46: 0 | DL46: 0 | DM46: 0 | DN46: 0 | DO46: 0 | DP46: 0 | DQ46: 0 | DR46: 0 | DS46: 0 | DT46: 0 | DU46: 0 | DV46: 0 | DW46: 0 | DX46: 0 | DY46: 0 | DZ46: 0 | EA46: 0 | EB46: 0 | EC46: 0 | ED46: 0 | EE46: 0 | EF46: 0 | EG46: =1/$G$46*$F$46*EG37 -> 0 | EH46: 0 | EI46: 0 | EJ46: 0 | EK46: 0 | EL46: 0 | EM46: 0 | EN46: 0 | EO46: 0 | EP46: 0 | EQ46: 0 | ER46: 0 | ES46: 0 | ET46: 0 | EU46: 0 | EV46: 0 | EW46: 0 | EX46: 0 | EY46: 0 | EZ46: 0 | FA46: 0 | FB46: 0 | FC46: 0 | FD46: 0 | FE46: 0 | FF46: 0 | FG46: 0 | FH46: 0 | FI46: 0 | FJ46: 0 | FK46: 0 | FL46: 0 | FM46: 0 | FN46: 0 | FO46: 0 | FP46: 0 | FQ46: 0 | FR46: 0 | FS46: 0 | FT46: 0 | FU46: 0 | FV46: 0 | FW46: 0 | FX46: 0 | FY46: 0 | FZ46: 0 | GA46: 0 | GB46: 0 | GC46: 0 | GD46: 0 | GE46: 0 | GF46: 0 | GG46: 0 | GH46: 0 | GI46: 0 | GJ46: 0 | GK46: 0 | GL46: 0 | GM46: 0 | GN46: 0 | GO46: 0 | GP46: 0 | GQ46: 0 | GR46: 0 | GS46: =1/$G$46*$F$46*GS37 -> 0 | GT46: 0 | GU46: 0 | GV46: 0 | GW46: 0 | GX46: 0 | GY46: 0 | GZ46: 0 | HA46: 0 | HB46: 0 | HC46: 0 | HD46: 0 | HE46: 0 | HF46: 0 | HG46: 0 | HH46: 0 | HI46: 0 | HJ46: 0 | HK46: 0 | HL46: 0 | HM46: 0 | HN46: 0 | HO46: 0 | HP46: 0 | HQ46: 0 | HR46: 0 | HS46: 0 | HT46: 0 | HU46: 0 | HV46: 0 | HW46: 0 | HX46: 0 | HY46: 0 | HZ46: 0 | IA46: 0 | IB46: 0 | IC46: 0 | ID46: 0 | IE46: 0 | IF46: 0 | IG46: 0 | IH46: 0 | II46: 0 | IJ46: 0 | IK46: 0 | IL46: 0 | IM46: 0 | IN46: 0 | IO46: 0 | IP46: 0 | IQ46: 0 | IR46: 0 | IS46: 0 | IT46: 0 | IU46: 0 | IV46: 0 | IW46: 0 | IX46: 0 | IY46: 0 | IZ46: 0 | JA46: 0 | JB46: 0 | JC46: 0 | JD46: 0 | JE46: =1/$G$46*$F$46*JE37 -> 0 | JF46: 0 | JG46: 0 | JH46: 0 | JI46: 0 | JJ46: 0 | JK46: 0 | JL46: 0 | JM46: 0 | JN46: 0 | JO46: 0 | JP46: 0 | JQ46: 0 | JR46: 0 | JS46: 0 | JT46: 0 | JU46: 0 | JV46: 0 | JW46: 0 | JX46: 0 | JY46: 0 | JZ46: 0 | KA46: 0 | KB46: 0 | KC46: 0 | KD46: 0 | KE46: 0 | KF46: 0 | KG46: 0 | KH46: 0 | KI46: 0 | KJ46: 0 | KK46: 0 | KL46: 0 | KM46: 0 | KN46: 0 | KO46: 0 | KP46: 0 | KQ46: 0 | KR46: 0 | KS46: 0 | KT46: 0 | KU46: 0 | KV46: 0 | KW46: 0 | KX46: 0 | KY46: 0 | KZ46: 0 | LA46: 0 | LB46: 0 | LC46: 0 | LD46: 0 | LE46: 0 | LF46: 0 | LG46: 0 | LH46: 0 | LI46: 0 | LJ46: 0 | LK46: 0 | LL46: 0 | LM46: 0 | LN46: 0 | LO46: 0 | LP46: 0 | LQ46: =1/$G$46*$F$46*LQ37 -> 0 | LR46: 0 | LS46: 0 | LT46: 0 | LU46: 0 | LV46: 0 | LW46: 0 | LX46: 0 | LY46: 0 | LZ46: 0 | MA46: 0 | MB46: 0 | MC46: 0 | MD46: 0 | ME46: 0 | MF46: 0 | MG46: 0 | MH46: 0 | MI46: 0 | MJ46: 0 | MK46: 0 | ML46: 0 | MM46: 0 | MN46: 0 | MO46: 0 | MP46: 0 | MQ46: 0 | MR46: 0 | MS46: 0 | MT46: 0 | MU46: 0 | MV46: 0 | MW46: 0 | MX46: 0 | MY46: 0 | MZ46: 0 | NA46: 0 | NB46: 0 | NC46: 0 | ND46: 0 | NE46: 0 | NF46: 0 | NG46: 0 | NH46: 0 | NI46: 0 | NJ46: 0 | NK46: 0 | NL46: 0 | NM46: 0 | NN46: 0 | NO46: 0 | NP46: 0 | NQ46: 0 | NR46: 0 | NS46: 0 | NT46: 0 | NU46: 0 | NV46: 0 | NW46: 0 | NX46: 0 | NY46: 0 | NZ46: 0 | OA46: 0 | OB46: 0 | OC46: =1/$G$46*$F$46*OC37 -> 0 | OD46: 0 | OE46: 0 | OF46: 0 | OG46: 0 | OH46: 0 | OI46: 0 | OJ46: 0 | OK46: 0 | OL46: 0 | OM46: 0 | ON46: 0 | OO46: 0 | OP46: 0 | OQ46: 0 | OR46: 0 | OS46: 0 | OT46: 0 | OU46: 0 | OV46: 0 | OW46: 0 | OX46: 0 | OY46: 0 | OZ46: 0 | PA46: 0 | PB46: 0 | PC46: 0 | PD46: 0 | PE46: 0 | PF46: 0 | PG46: 0 | PH46: 0 | PI46: 0 | PJ46: 0 | PK46: 0 | PL46: 0 | PM46: 0 | PN46: 0 | PO46: 0 | PP46: 0 | PQ46: 0 | PR46: 0 | PS46: 0 | PT46: 0 | PU46: 0 | PV46: 0 | PW46: 0 | PX46: 0 | PY46: 0 | PZ46: 0 | QA46: 0 | QB46: 0 | QC46: 0 | QD46: 0 | QE46: 0 | QF46: 0 | QG46: 0 | QH46: 0 | QI46: 0 | QJ46: 0 | QK46: 0 | QL46: 0 | QM46: 0 | QN46: 0 | QO46: =1/$G$46*$F$46*QO37 -> 0 | QP46: 0 | QQ46: 0 | QR46: 0 | QS46: 0 | QT46: 0 | QU46: 0 | QV46: 0 | QW46: 0 | QX46: 0 | QY46: 0 | QZ46: 0 | RA46: 0 | RB46: 0 | RC46: 0 | RD46: 0 | RE46: 0 | RF46: 0 | RG46: 0 | RH46: 0 | RI46: 0 | RJ46: 0 | RK46: 0 | RL46: 0 | RM46: 0 | RN46: 0 | RO46: 0 | RP46: 0 | RQ46: 0 | RR46: 0 | RS46: 0 | RT46: 0 | RU46: 0 | RV46: 0 | RW46: 0 | RX46: 0 | RY46: 0 | RZ46: 0 | SA46: 0 | SB46: 0 | SC46: 0 | SD46: 0 | SE46: 0 | SF46: 0 | SG46: 0 | SH46: 0 | SI46: 0 | SJ46: 0 | SK46: 0 | SL46: 0 | SM46: 0 | SN46: 0 | SO46: 0 | SP46: 0 | SQ46: 0 | SR46: 0 | SS46: 0 | ST46: 0 | SU46: 0 | SV46: 0 | SW46: 0 | SX46: 0 | SY46: 0 | SZ46: 0 | TA46: =1/$G$46*$F$46*TA37 -> 0 | TB46: 0 | TC46: 0 | TD46: 0 | TE46: 0 | TF46: 0 | TG46: 0 | TH46: 0 | TI46: 0 | TJ46: 0 | TK46: 0 | TL46: 0 | TM46: 0 | TN46: 0 | TO46: 0 | TP46: 0 | TQ46: 0 | TR46: 0 | TS46: 0 | TT46: 0 | TU46: 0 | TV46: 0 | TW46: 0 | TX46: 0 | TY46: 0 | TZ46: 0 | UA46: 0 | UB46: 0 | UC46: 0 | UD46: 0 | UE46: 0 | UF46: 0 | UG46: 0 | UH46: 0 | UI46: 0 | UJ46: 0 | UK46: 0 | UL46: 0 | UM46: 0 | UN46: 0 | UO46: 0 | UP46: 0 | UQ46: 0 | UR46: 0 | US46: 0 | UT46: 0 | UU46: 0 | UV46: 0 | UW46: 0 | UX46: 0 | UY46: 0 | UZ46: 0 | VA46: 0 | VB46: 0 | VC46: 0 | VD46: 0 | VE46: 0 | VF46: 0 | VG46: 0 | VH46: 0 | VI46: 0 | VJ46: 0 | VK46: 0 | VL46: 0 | VM46: =1/$G$46*$F$46*VM37 -> 0 | VN46: 0 | VO46: 0 | VP46: 0 | VQ46: 0 | VR46: 0 | VS46: 0 | VT46: 0 | VU46: 0 | VV46: 0 | VW46: 0 | VX46: 0 | VY46: 0 | VZ46: 0 | WA46: 0 | WB46: 0 | WC46: 0 | WD46: 0 | WE46: 0 | WF46: 0 | WG46: 0 | WH46: 0 | WI46: 0 | WJ46: 0 | WK46: 0 | WL46: 0 | WM46: 0 | WN46: 0 | WO46: 0 | WP46: 0 | WQ46: 0 | WR46: 0 | WS46: 0 | WT46: 0 | WU46: 0 | WV46: 0 | WW46: 0 | WX46: 0 | WY46: 0 | WZ46: 0 | XA46: 0 | XB46: 0 | XC46: 0 | XD46: 0 | XE46: 0 | XF46: 0 | XG46: 0 | XH46: 0 | XI46: 0 | XJ46: 0 | XK46: 0 | XL46: 0 | XM46: 0 | XN46: 0 | XO46: 0 | XP46: 0 | XQ46: 0 | XR46: 0 | XS46: 0 | XT46: 0 | XU46: 0 | XV46: 0 | XW46: 0 | XX46: 0 | XY46: =1/$G$46*$F$46*XY37 -> 0 | XZ46: 0 | YA46: 0 | YB46: 0 | YC46: 0 | YD46: 0 | YE46: 0 | YF46: 0 | YG46: 0 | YH46: 0 | YI46: 0 | YJ46: 0 | YK46: 0 | YL46: 0 | YM46: 0 | YN46: 0 | YO46: 0 | YP46: 0 | YQ46: 0 | YR46: 0 | YS46: 0 | YT46: 0 | YU46: 0 | YV46: 0 | YW46: 0 | YX46: 0 | YY46: 0 | YZ46: 0 | ZA46: 0 | ZB46: 0 | ZC46: 0 | ZD46: 0 | ZE46: 0 | ZF46: 0 | ZG46: 0 | ZH46: 0 | ZI46: 0 | ZJ46: 0 | ZK46: 0 | ZL46: 0 | ZM46: 0 | ZN46: 0 | ZO46: 0 | ZP46: 0 | ZQ46: 0 | ZR46: 0 | ZS46: 0 | ZT46: 0 | ZU46: 0 | ZV46: 0 | ZW46: 0 | ZX46: 0 | ZY46: 0 | ZZ46: 0 | AAA46: 0 | AAB46: 0 | AAC46: 0 | AAD46: 0 | AAE46: 0 | AAF46: 0 | AAG46: 0 | AAH46: 0 | AAI46: 0 | AAJ46: 0 | AAK46: =1/$G$46*$F$46*AAK37 -> 0 | AAL46: 0 | AAM46: 0 | AAN46: 0 | AAO46: 0 | AAP46: 0 | AAQ46: 0 | AAR46: 0 | AAS46: 0 | AAT46: 0 | AAU46: 0 | AAV46: 0 | AAW46: 0 | AAX46: 0 | AAY46: 0 | AAZ46: 0 | ABA46: 0 | ABB46: 0 | ABC46: 0 | ABD46: 0 | ABE46: 0 | ABF46: 0 | ABG46: 0 | ABH46: 0 | ABI46: 0 | ABJ46: 0 | ABK46: 0 | ABL46: 0 | ABM46: 0 | ABN46: 0 | ABO46: 0 | ABP46: 0 | ABQ46: 0 | ABR46: 0 | ABS46: 0 | ABT46: 0 | ABU46: 0 | ABV46: 0 | ABW46: 0 | ABX46: 0 | ABY46: 0 | ABZ46: 0 | ACA46: 0 | ACB46: 0 | ACC46: 0 | ACD46: 0 | ACE46: 0 | ACF46: 0 | ACG46: 0 | ACH46: 0 | ACI46: 0 | ACJ46: 0 | ACK46: 0 | ACL46: 0 | ACM46: 0 | ACN46: 0 | ACO46: 0 | ACP46: 0 | ACQ46: 0 | ACR46: 0 | ACS46: 0 | ACT46: 0 | ACU46: 0 | ACV46: 0 | ACW46: =1/$G$46*$F$46*ACW37 -> 0 | ACX46: 0 | ACY46: 0 | ACZ46: 0 | ADA46: 0 | ADB46: 0 | ADC46: 0 | ADD46: 0 | ADE46: 0 | ADF46: 0 | ADG46: 0 | ADH46: 0 | ADI46: 0 | ADJ46: 0 | ADK46: 0 | ADL46: 0 | ADM46: 0 | ADN46: 0 | ADO46: 0 | ADP46: 0 | ADQ46: 0 | ADR46: 0 | ADS46: 0 | ADT46: 0 | ADU46: 0 | ADV46: 0 | ADW46: 0 | ADX46: 0 | ADY46: 0 | ADZ46: 0 | AEA46: 0 | AEB46: 0 | AEC46: 0 | AED46: 0 | AEE46: 0 | AEF46: 0 | AEG46: 0 | AEH46: 0 | AEI46: 0 | AEJ46: 0 | AEK46: 0 | AEL46: 0 | AEM46: 0 | AEN46: 0 | AEO46: 0 | AEP46: 0 | AEQ46: 0 | AER46: 0 | AES46: 0 | AET46: 0 | AEU46: 0 | AEV46: 0 | AEW46: 0 | AEX46: 0 | AEY46: 0 | AEZ46: 0 | AFA46: 0 | AFB46: 0 | AFC46: 0 | AFD46: 0 | AFE46: 0 | AFF46: 0 | AFG46: 0 | AFH46: 0 | AFI46: =1/$G$46*$F$46*AFI37 -> 0 | AFJ46: 0 | AFK46: 0 | AFL46: 0 | AFM46: 0 | AFN46: 0 | AFO46: 0 | AFP46: 0 | AFQ46: 0 | AFR46: 0 | AFS46: 0 | AFT46: 0 | AFU46: 0 | AFV46: 0 | AFW46: 0 | AFX46: 0 | AFY46: 0 | AFZ46: 0 | AGA46: 0 | AGB46: 0 | AGC46: 0 | AGD46: 0 | AGE46: 0 | AGF46: 0 | AGG46: 0 | AGH46: 0 | AGI46: 0 | AGJ46: 0 | AGK46: 0 | AGL46: 0 | AGM46: 0 | AGN46: 0 | AGO46: 0 | AGP46: 0 | AGQ46: 0 | AGR46: 0 | AGS46: 0 | AGT46: 0 | AGU46: 0 | AGV46: 0 | AGW46: 0 | AGX46: 0 | AGY46: 0 | AGZ46: 0 | AHA46: 0 | AHB46: 0 | AHC46: 0 | AHD46: 0 | AHE46: 0 | AHF46: 0 | AHG46: 0 | AHH46: 0 | AHI46: 0 | AHJ46: 0 | AHK46: 0 | AHL46: 0 | AHM46: 0 | AHN46: 0 | AHO46: 0 | AHP46: 0 | AHQ46: 0 | AHR46: 0 | AHS46: 0 | AHT46: 0 | AHU46: =1/$G$46*$F$46*AHU37 -> 0 | AHV46: 0 | AHW46: 0 | AHX46: 0 | AHY46: 0 | AHZ46: 0 | AIA46: 0 | AIB46: 0 | AIC46: 0 | AID46: 0 | AIE46: 0 | AIF46: 0 | AIG46: 0 | AIH46: 0 | AII46: 0 | AIJ46: 0 | AIK46: 0 | AIL46: 0 | AIM46: 0 | AIN46: 0 | AIO46: 0 | AIP46: 0 | AIQ46: 0 | AIR46: 0 | AIS46: 0 | AIT46: 0 | AIU46: 0 | AIV46: 0 | AIW46: 0 | AIX46: 0 | AIY46: 0 | AIZ46: 0 | AJA46: 0 | AJB46: 0 | AJC46: 0 | AJD46: 0 | AJE46: 0 | AJF46: 0 | AJG46: 0 | AJH46: 0 | AJI46: 0 | AJJ46: 0 | AJK46: 0 | AJL46: 0 | AJM46: 0 | AJN46: 0 | AJO46: 0 | AJP46: 0 | AJQ46: 0 | AJR46: 0 | AJS46: 0 | AJT46: 0 | AJU46: 0 | AJV46: 0 | AJW46: 0 | AJX46: 0 | AJY46: 0 | AJZ46: 0 | AKA46: 0 | AKB46: 0 | AKC46: 0 | AKD46: 0 | AKE46: 0 | AKF46: 0 | AKG46: =1/$G$46*$F$46*AKG37 -> 0 | AKH46: 0 | AKI46: 0 | AKJ46: 0 | AKK46: 0 | AKL46: 0 | AKM46: 0 | AKN46: 0 | AKO46: 0 | AKP46: 0 | AKQ46: 0 | AKR46: 0 | AKS46: 0 | AKT46: 0 | AKU46: 0 | AKV46: 0 | AKW46: 0 | AKX46: 0 | AKY46: 0 | AKZ46: 0 | ALA46: 0 | ALB46: 0 | ALC46: 0 | ALD46: 0 | ALE46: 0 | ALF46: 0 | ALG46: 0 | ALH46: 0 | ALI46: 0 | ALJ46: 0 | ALK46: 0 | ALL46: 0 | ALM46: 0 | ALN46: 0 | ALO46: 0 | ALP46: 0 | ALQ46: 0 | ALR46: 0 | ALS46: 0 | ALT46: 0 | ALU46: 0 | ALV46: 0 | ALW46: 0 | ALX46: 0 | ALY46: 0 | ALZ46: 0 | AMA46: 0 | AMB46: 0 | AMC46: 0 | AMD46: 0 | AME46: 0 | AMF46: 0 | AMG46: 0 | AMH46: 0 | AMI46: 0 | AMJ46: 0 | AMK46: 0 | AML46: 0 | AMM46: 0 | AMN46: 0 | AMO46: 0 | AMP46: 0 | AMQ46: 0 | AMR46: 0 | AMS46: =1/$G$46*$F$46*AMS37 -> 0 | AMT46: 0 | AMU46: 0 | AMV46: 0 | AMW46: 0 | AMX46: 0 | AMY46: 0 | AMZ46: 0 | ANA46: 0 | ANB46: 0 | ANC46: 0 | AND46: 0 | ANE46: 0 | ANF46: 0 | ANG46: 0 | ANH46: 0 | ANI46: 0 | ANJ46: 0 | ANK46: 0 | ANL46: 0 | ANM46: 0 | ANN46: 0 | ANO46: 0 | ANP46: 0 | ANQ46: 0 | ANR46: 0 | ANS46: 0 | ANT46: 0 | ANU46: 0 | ANV46: 0 | ANW46: 0 | ANX46: 0 | ANY46: 0 | ANZ46: 0 | AOA46: 0 | AOB46: 0 | AOC46: 0 | AOD46: 0 | AOE46: 0 | AOF46: 0 | AOG46: 0 | AOH46: 0 | AOI46: 0 | AOJ46: 0 | AOK46: 0 | AOL46: 0 | AOM46: 0 | AON46: 0 | AOO46: 0 | AOP46: 0 | AOQ46: 0 | AOR46: 0 | AOS46: 0 | AOT46: 0 | AOU46: 0 | AOV46: 0 | AOW46: 0 | AOX46: 0 | AOY46: 0 | AOZ46: 0 | APA46: 0 | APB46: 0 | APC46: 0 | APD46: 0 | APE46: =1/$G$46*$F$46*APE37 -> 0 | APF46: 0 | APG46: 0 | APH46: 0 | API46: 0 | APJ46: 0 | APK46: 0 | APL46: 0 | APM46: 0 | APN46: 0 | APO46: 0 | APP46: 0 | APQ46: 0 | APR46: 0 | APS46: 0 | APT46: 0 | APU46: 0 | APV46: 0 | APW46: 0 | APX46: 0 | APY46: 0 | APZ46: 0 | AQA46: 0 | AQB46: 0 | AQC46: 0 | AQD46: 0 | AQE46: 0 | AQF46: 0 | AQG46: 0 | AQH46: 0 | AQI46: 0 | AQJ46: 0 | AQK46: 0 | AQL46: 0 | AQM46: 0 | AQN46: 0 | AQO46: 0 | AQP46: 0 | AQQ46: 0 | AQR46: 0 | AQS46: 0 | AQT46: 0 | AQU46: 0 | AQV46: 0 | AQW46: 0 | AQX46: 0 | AQY46: 0 | AQZ46: 0 | ARA46: 0 | ARB46: 0 | ARC46: 0 | ARD46: 0 | ARE46: 0 | ARF46: 0 | ARG46: 0 | ARH46: 0 | ARI46: 0 | ARJ46: 0 | ARK46: 0 | ARL46: 0 | ARM46: 0 | ARN46: 0 | ARO46: 0 | ARP46: 0 | ARQ46: =1/$G$46*$F$46*ARQ37 -> 0 | ARR46: 0 | ARS46: 0 | ART46: 0 | ARU46: 0 | ARV46: 0 | ARW46: 0 | ARX46: 0 | ARY46: 0 | ARZ46: 0 | ASA46: 0 | ASB46: 0 | ASC46: 0 | ASD46: 0 | ASE46: 0 | ASF46: 0 | ASG46: 0 | ASH46: 0 | ASI46: 0 | ASJ46: 0 | ASK46: 0 | ASL46: 0 | ASM46: 0 | ASN46: 0 | ASO46: 0 | ASP46: 0 | ASQ46: 0 | ASR46: 0 | ASS46: 0 | AST46: 0 | ASU46: 0 | ASV46: 0 | ASW46: 0 | ASX46: 0 | ASY46: 0 | ASZ46: 0 | ATA46: 0 | ATB46: 0 | ATC46: 0 | ATD46: 0 | ATE46: 0 | ATF46: 0 | ATG46: 0 | ATH46: 0 | ATI46: 0 | ATJ46: 0 | ATK46: 0 | ATL46: 0 | ATM46: 0 | ATN46: 0 | ATO46: 0 | ATP46: 0 | ATQ46: 0 | ATR46: 0 | ATS46: 0 | ATT46: 0 | ATU46: 0 | ATV46: 0 | ATW46: 0 | ATX46: 0 | ATY46: 0 | ATZ46: 0 | AUA46: 0 | AUB46: 0 | AUC46: =1/$G$46*$F$46*AUC37 -> 0 | AUD46: 0 | AUE46: 0 | AUF46: 0 | AUG46: 0 | AUH46: 0 | AUI46: 0 | AUJ46: 0 | AUK46: 0 | AUL46: 0 | AUM46: 0 | AUN46: 0 | AUO46: 0 | AUP46: 0 | AUQ46: 0 | AUR46: 0 | AUS46: 0 | AUT46: 0 | AUU46: 0 | AUV46: 0 | AUW46: 0 | AUX46: 0 | AUY46: 0 | AUZ46: 0 | AVA46: 0 | AVB46: 0 | AVC46: 0 | AVD46: 0 | AVE46: 0 | AVF46: 0 | AVG46: 0 | AVH46: 0 | AVI46: 0 | AVJ46: 0 | AVK46: 0 | AVL46: 0 | AVM46: 0 | AVN46: 0 | AVO46: 0 | AVP46: 0 | AVQ46: 0 | AVR46: 0 | AVS46: 0 | AVT46: 0 | AVU46: 0 | AVV46: 0 | AVW46: 0 | AVX46: 0 | AVY46: 0 | AVZ46: 0 | AWA46: 0 | AWB46: 0 | AWC46: 0 | AWD46: 0 | AWE46: 0 | AWF46: 0 | AWG46: 0 | AWH46: 0 | AWI46: 0 | AWJ46: 0 | AWK46: 0 | AWL46: 0 | AWM46: 0 | AWN46: 0 | AWO46: =1/$G$46*$F$46*AWO37 -> 0 | AWP46: 0 | AWQ46: 0 | AWR46: 0 | AWS46: 0 | AWT46: 0 | AWU46: 0 | AWV46: 0 | AWW46: 0 | AWX46: 0 | AWY46: 0 | AWZ46: 0 | AXA46: 0 | AXB46: 0 | AXC46: 0 | AXD46: 0 | AXE46: 0 | AXF46: 0 | AXG46: 0 | AXH46: 0 | AXI46: 0 | AXJ46: 0 | AXK46: 0 | AXL46: 0 | AXM46: 0 | AXN46: 0 | AXO46: 0 | AXP46: 0 | AXQ46: 0 | AXR46: 0 | AXS46: 0 | AXT46: 0 | AXU46: 0 | AXV46: 0 | AXW46: 0 | AXX46: 0 | AXY46: 0 | AXZ46: 0 | AYA46: 0 | AYB46: 0 | AYC46: 0 | AYD46: 0 | AYE46: 0 | AYF46: 0 | AYG46: 0 | AYH46: 0 | AYI46: 0 | AYJ46: 0 | AYK46: 0 | AYL46: 0 | AYM46: 0 | AYN46: 0 | AYO46: 0 | AYP46: 0 | AYQ46: 0 | AYR46: 0 | AYS46: 0 | AYT46: 0 | AYU46: 0 | AYV46: 0 | AYW46: 0 | AYX46: 0 | AYY46: 0 | AYZ46: 0 | AZA46: =1/$G$46*$F$46*AZA37 -> 0 | AZB46: 0 | AZC46: 0 | AZD46: 0 | AZE46: 0 | AZF46: 0 | AZG46: 0 | AZH46: 0 | AZI46: 0 | AZJ46: 0 | AZK46: 0 | AZL46: 0 | AZM46: 0 | AZN46: 0 | AZO46: 0 | AZP46: 0 | AZQ46: 0 | AZR46: 0 | AZS46: 0 | AZT46: 0 | AZU46: 0 | AZV46: 0 | AZW46: 0 | AZX46: 0 | AZY46: 0 | AZZ46: 0 | BAA46: 0 | BAB46: 0 | BAC46: 0 | BAD46: 0 | BAE46: 0 | BAF46: 0 | BAG46: 0 | BAH46: 0 | BAI46: 0 | BAJ46: 0 | BAK46: 0 | BAL46: 0 | BAM46: 0 | BAN46: 0 | BAO46: 0 | BAP46: 0 | BAQ46: 0 | BAR46: 0 | BAS46: 0 | BAT46: 0 | BAU46: 0 | BAV46: 0 | BAW46: 0 | BAX46: 0 | BAY46: 0 | BAZ46: 0 | BBA46: 0 | BBB46: 0 | BBC46: 0 | BBD46: 0 | BBE46: 0 | BBF46: 0 | BBG46: 0 | BBH46: 0 | BBI46: 0 | BBJ46: 0 | BBK46: 0 | BBL46: 0 | BBM46: =1/$G$46*$F$46*BBM37 -> 0 | BBN46: 0 | BBO46: 0 | BBP46: 0 | BBQ46: 0 | BBR46: 0 | BBS46: 0 | BBT46: 0 | BBU46: 0 | BBV46: 0 | BBW46: 0 | BBX46: 0 | BBY46: 0 | BBZ46: 0 | BCA46: 0 | BCB46: 0 | BCC46: 0 | BCD46: 0 | BCE46: 0 | BCF46: 0 | BCG46: 0 | BCH46: 0 | BCI46: 0 | BCJ46: 0 | BCK46: 0 | BCL46: 0 | BCM46: 0 | BCN46: 0 | BCO46: 0 | BCP46: 0 | BCQ46: 0 | BCR46: 0 | BCS46: 0 | BCT46: 0 | BCU46: 0 | BCV46: 0 | BCW46: 0 | BCX46: 0 | BCY46: 0 | BCZ46: 0 | BDA46: 0 | BDB46: 0 | BDC46: 0 | BDD46: 0 | BDE46: 0 | BDF46: 0 | BDG46: 0 | BDH46: 0 | BDI46: 0 | BDJ46: 0 | BDK46: 0 | BDL46: 0 | BDM46: 0 | BDN46: 0 | BDO46: 0 | BDP46: 0 | BDQ46: 0 | BDR46: 0 | BDS46: 0 | BDT46: 0 | BDU46: 0 | BDV46: 0 | BDW46: 0 | BDX46: 0 | BDY46: =1/$G$46*$F$46*BDY37 -> 0 | BDZ46: 0 | BEA46: 0 | BEB46: 0 | BEC46: 0 | BED46: 0 | BEE46: 0 | BEF46: 0 | BEG46: 0 | BEH46: 0 | BEI46: 0 | BEJ46: 0 | BEK46: 0 | BEL46: 0 | BEM46: 0 | BEN46: 0 | BEO46: 0 | BEP46: 0 | BEQ46: 0 | BER46: 0 | BES46: 0 | BET46: 0 | BEU46: 0 | BEV46: 0 | BEW46: 0 | BEX46: 0 | BEY46: 0 | BEZ46: 0 | BFA46: 0 | BFB46: 0 | BFC46: 0 | BFD46: 0 | BFE46: 0 | BFF46: 0 | BFG46: 0 | BFH46: 0 | BFI46: 0 | BFJ46: 0 | BFK46: 0 | BFL46: 0 | BFM46: 0 | BFN46: 0 | BFO46: 0 | BFP46: 0 | BFQ46: 0 | BFR46: 0 | BFS46: 0 | BFT46: 0 | BFU46: 0 | BFV46: 0 | BFW46: 0 | BFX46: 0 | BFY46: 0 | BFZ46: 0 | BGA46: 0 | BGB46: 0 | BGC46: 0 | BGD46: 0 | BGE46: 0 | BGF46: 0 | BGG46: 0 | BGH46: 0 | BGI46: 0 | BGJ46: 0 | BGK46: =1/$G$46*$F$46*BGK37 -> 0 | BGL46: 0 | BGM46: 0 | BGN46: 0 | BGO46: 0 | BGP46: 0 | BGQ46: 0 | BGR46: 0 | BGS46: 0 | BGT46: 0 | BGU46: 0 | BGV46: 0 | BGW46: 0 | BGX46: 0 | BGY46: 0 | BGZ46: 0 | BHA46: 0 | BHB46: 0 | BHC46: 0 | BHD46: 0 | BHE46: 0 | BHF46: 0 | BHG46: 0 | BHH46: 0 | BHI46: 0 | BHJ46: 0 | BHK46: 0 | BHL46: 0 | BHM46: 0 | BHN46: 0 | BHO46: 0 | BHP46: 0 | BHQ46: 0 | BHR46: 0 | BHS46: 0 | BHT46: 0 | BHU46: 0 | BHV46: 0 | BHW46: 0 | BHX46: 0 | BHY46: 0 | BHZ46: 0 | BIA46: 0 | BIB46: 0 | BIC46: 0 | BID46: 0 | BIE46: 0 | BIF46: 0 | BIG46: 0 | BIH46: 0 | BII46: 0 | BIJ46: 0 | BIK46: 0 | BIL46: 0 | BIM46: 0 | BIN46: 0 | BIO46: 0 | BIP46: 0 | BIQ46: 0 | BIR46: 0 | BIS46: 0 | BIT46: 0 | BIU46: 0 | BIV46: 0 | BIW46: =1/$G$46*$F$46*BIW37 -> 0 | BIX46: 0 | BIY46: 0 | BIZ46: 0 | BJA46: 0 | BJB46: 0 | BJC46: 0 | BJD46: 0 | BJE46: 0 | BJF46: 0 | BJG46: 0 | BJH46: 0 | BJI46: 0 | BJJ46: 0 | BJK46: 0 | BJL46: 0 | BJM46: 0 | BJN46: 0 | BJO46: 0 | BJP46: 0 | BJQ46: 0 | BJR46: 0 | BJS46: 0 | BJT46: 0 | BJU46: 0 | BJV46: 0 | BJW46: 0 | BJX46: 0 | BJY46: 0 | BJZ46: 0 | BKA46: 0 | BKB46: 0 | BKC46: 0 | BKD46: 0 | BKE46: 0 | BKF46: 0 | BKG46: 0 | BKH46: 0 | BKI46: 0 | BKJ46: 0 | BKK46: 0 | BKL46: 0 | BKM46: 0 | BKN46: 0 | BKO46: 0 | BKP46: 0 | BKQ46: 0 | BKR46: 0 | BKS46: 0 | BKT46: 0 | BKU46: 0 | BKV46: 0 | BKW46: 0 | BKX46: 0 | BKY46: 0 | BKZ46: 0 | BLA46: 0 | BLB46: 0 | BLC46: 0 | BLD46: 0 | BLE46: 0 | BLF46: 0 | BLG46: 0 | BLH46: 0 | BLI46: =1/$G$46*$F$46*BLI37 -> 0 | BLJ46: 0 | BLK46: 0 | BLL46: 0 | BLM46: 0 | BLN46: 0 | BLO46: 0 | BLP46: 0 | BLQ46: 0 | BLR46: 0 | BLS46: 0 | BLT46: 0 | BLU46: 0 | BLV46: 0 | BLW46: 0 | BLX46: 0 | BLY46: 0 | BLZ46: 0 | BMA46: 0 | BMB46: 0 | BMC46: 0 | BMD46: 0 | BME46: 0 | BMF46: 0 | BMG46: 0 | BMH46: 0 | BMI46: 0 | BMJ46: 0 | BMK46: 0 | BML46: 0 | BMM46: 0 | BMN46: 0 | BMO46: 0 | BMP46: 0 | BMQ46: 0 | BMR46: 0 | BMS46: 0 | BMT46: 0 | BMU46: 0 | BMV46: 0 | BMW46: 0 | BMX46: 0 | BMY46: 0 | BMZ46: 0 | BNA46: 0 | BNB46: 0 | BNC46: 0 | BND46: 0 | BNE46: 0 | BNF46: 0 | BNG46: 0 | BNH46: 0 | BNI46: 0 | BNJ46: 0 | BNK46: 0 | BNL46: 0 | BNM46: 0 | BNN46: 0 | BNO46: 0 | BNP46: 0 | BNQ46: 0 | BNR46: 0 | BNS46: 0 | BNT46: 0 | BNU46: =1/$G$46*$F$46*BNU37 -> 0 | BNV46: 0 | BNW46: 0 | BNX46: 0 | BNY46: 0 | BNZ46: 0 | BOA46: 0 | BOB46: 0 | BOC46: 0 | BOD46: 0 | BOE46: 0 | BOF46: 0 | BOG46: 0 | BOH46: 0 | BOI46: 0 | BOJ46: 0 | BOK46: 0 | BOL46: 0 | BOM46: 0 | BON46: 0 | BOO46: 0 | BOP46: 0 | BOQ46: 0 | BOR46: 0 | BOS46: 0 | BOT46: 0 | BOU46: 0 | BOV46: 0 | BOW46: 0 | BOX46: 0 | BOY46: 0 | BOZ46: 0 | BPA46: 0 | BPB46: 0 | BPC46: 0 | BPD46: 0 | BPE46: 0 | BPF46: 0 | BPG46: 0 | BPH46: 0 | BPI46: 0 | BPJ46: 0 | BPK46: 0 | BPL46: 0 | BPM46: 0 | BPN46: 0 | BPO46: 0 | BPP46: 0 | BPQ46: 0 | BPR46: 0 | BPS46: 0 | BPT46: 0 | BPU46: 0 | BPV46: 0 | BPW46: 0 | BPX46: 0 | BPY46: 0 | BPZ46: 0 | BQA46: 0 | BQB46: 0 | BQC46: 0 | BQD46: 0 | BQE46: 0 | BQF46: 0 | BQG46: =1/$G$46*$F$46*BQG37 -> 0 | BQH46: 0 | BQI46: 0 | BQJ46: 0 | BQK46: 0 | BQL46: 0 | BQM46: 0 | BQN46: 0 | BQO46: 0 | BQP46: 0 | BQQ46: 0 | BQR46: 0 | BQS46: 0 | BQT46: 0 | BQU46: 0 | BQV46: 0 | BQW46: 0 | BQX46: 0 | BQY46: 0 | BQZ46: 0 | BRA46: 0 | BRB46: 0 | BRC46: 0 | BRD46: 0 | BRE46: 0 | BRF46: 0 | BRG46: 0 | BRH46: 0 | BRI46: 0 | BRJ46: 0 | BRK46: 0 | BRL46: 0 | BRM46: 0 | BRN46: 0 | BRO46: 0 | BRP46: 0 | BRQ46: 0 | BRR46: 0 | BRS46: 0 | BRT46: 0 | BRU46: 0 | BRV46: 0 | BRW46: 0 | BRX46: 0 | BRY46: 0 | BRZ46: 0 | BSA46: 0 | BSB46: 0 | BSC46: 0 | BSD46: 0 | BSE46: 0 | BSF46: 0 | BSG46: 0 | BSH46: 0 | BSI46: 0 | BSJ46: 0 | BSK46: 0 | BSL46: 0 | BSM46: 0 | BSN46: 0 | BSO46: 0 | BSP46: 0 | BSQ46: 0 | BSR46: 0 | BSS46: =1/$G$46*$F$46*BSS37 -> 0 | BST46: 0 | BSU46: 0 | BSV46: 0 | BSW46: 0 | BSX46: 0 | BSY46: 0 | BSZ46: 0 | BTA46: 0 | BTB46: 0 | BTC46: 0 | BTD46: 0 | BTE46: 0 | BTF46: 0 | BTG46: 0 | BTH46: 0 | BTI46: 0 | BTJ46: 0 | BTK46: 0 | BTL46: 0 | BTM46: 0 | BTN46: 0 | BTO46: 0 | BTP46: 0 | BTQ46: 0 | BTR46: 0 | BTS46: 0 | BTT46: 0 | BTU46: 0 | BTV46: 0 | BTW46: 0 | BTX46: 0 | BTY46: 0 | BTZ46: 0 | BUA46: 0 | BUB46: 0 | BUC46: 0 | BUD46: 0 | BUE46: 0 | BUF46: 0 | BUG46: 0 | BUH46: 0 | BUI46: 0 | BUJ46: 0 | BUK46: 0 | BUL46: 0 | BUM46: 0 | BUN46: 0 | BUO46: 0 | BUP46: 0 | BUQ46: 0 | BUR46: 0 | BUS46: 0 | BUT46: 0 | BUU46: 0 | BUV46: 0 | BUW46: 0 | BUX46: 0 | BUY46: 0 | BUZ46: 0 | BVA46: 0 | BVB46: 0 | BVC46: 0 | BVD46: 0 | BVE46: =1/$G$46*$F$46*BVE37 -> 0 | BVF46: 0 | BVG46: 0 | BVH46: 0 | BVI46: 0 | BVJ46: 0 | BVK46: 0 | BVL46: 0 | BVM46: 0 | BVN46: 0 | BVO46: 0 | BVP46: 0 | BVQ46: 0 | BVR46: 0 | BVS46: 0 | BVT46: 0 | BVU46: 0 | BVV46: 0 | BVW46: 0 | BVX46: 0 | BVY46: 0 | BVZ46: 0 | BWA46: 0 | BWB46: 0 | BWC46: 0 | BWD46: 0 | BWE46: 0 | BWF46: 0 | BWG46: 0 | BWH46: 0 | BWI46: 0 | BWJ46: 0 | BWK46: 0 | BWL46: 0 | BWM46: 0 | BWN46: 0 | BWO46: 0 | BWP46: 0 | BWQ46: 0 | BWR46: 0 | BWS46: 0 | BWT46: 0 | BWU46: 0 | BWV46: 0 | BWW46: 0 | BWX46: 0 | BWY46: 0 | BWZ46: 0 | BXA46: 0 | BXB46: 0 | BXC46: 0 | BXD46: 0 | BXE46: 0 | BXF46: 0 | BXG46: 0 | BXH46: 0 | BXI46: 0 | BXJ46: 0 | BXK46: 0 | BXL46: 0 | BXM46: 0 | BXN46: 0 | BXO46: 0 | BXP46: 0 | BXQ46: =1/$G$46*$F$46*BXQ37 -> 0 | BXR46: 0 | BXS46: 0 | BXT46: 0 | BXU46: 0 | BXV46: 0 | BXW46: 0 | BXX46: 0 | BXY46: 0 | BXZ46: 0 | BYA46: 0 | BYB46: 0 | BYC46: 0 | BYD46: 0 | BYE46: 0 | BYF46: 0 | BYG46: 0 | BYH46: 0 | BYI46: 0 | BYJ46: 0 | BYK46: 0 | BYL46: 0 | BYM46: 0 | BYN46: 0 | BYO46: 0 | BYP46: 0 | BYQ46: 0 | BYR46: 0 | BYS46: 0 | BYT46: 0 | BYU46: 0 | BYV46: 0 | BYW46: 0 | BYX46: 0 | BYY46: 0 | BYZ46: 0 | BZA46: 0 | BZB46: 0 | BZC46: 0 | BZD46: 0 | BZE46: 0 | BZF46: 0 | BZG46: 0 | BZH46: 0 | BZI46: 0 | BZJ46: 0 | BZK46: 0 | BZL46: 0 | BZM46: 0 | BZN46: 0 | BZO46: 0 | BZP46: 0 | BZQ46: 0 | BZR46: 0 | BZS46: 0 | BZT46: 0 | BZU46: 0 | BZV46: 0 | BZW46: 0 | BZX46: 0 | BZY46: 0 | BZZ46: 0 | CAA46: 0 | CAB46: 0 | CAC46: =1/$G$46*$F$46*CAC37 -> 0 | CAD46: 0 | CAE46: 0 | CAF46: 0 | CAG46: 0 | CAH46: 0 | CAI46: 0 | CAJ46: 0 | CAK46: 0 | CAL46: 0 | CAM46: 0 | CAN46: 0 | CAO46: 0 | CAP46: 0 | CAQ46: 0 | CAR46: 0 | CAS46: 0 | CAT46: 0 | CAU46: 0 | CAV46: 0 | CAW46: 0 | CAX46: 0 | CAY46: 0 | CAZ46: 0 | CBA46: 0 | CBB46: 0 | CBC46: 0 | CBD46: 0 | CBE46: 0 | CBF46: 0 | CBG46: 0 | CBH46: 0 | CBI46: 0 | CBJ46: 0 | CBK46: 0 | CBL46: 0 | CBM46: 0 | CBN46: 0 | CBO46: 0 | CBP46: 0 | CBQ46: 0 | CBR46: 0 | CBS46: 0 | CBT46: 0 | CBU46: 0 | CBV46: 0 | CBW46: 0 | CBX46: 0 | CBY46: 0 | CBZ46: 0 | CCA46: 0 | CCB46: 0 | CCC46: 0 | CCD46: 0 | CCE46: 0 | CCF46: 0 | CCG46: 0 | CCH46: 0 | CCI46: 0 | CCJ46: 0 | CCK46: 0 | CCL46: 0 | CCM46: 0 | CCN46: 0 | CCO46: =1/$G$46*$F$46*CCO37 -> 0 | CCP46: 0 | CCQ46: 0 | CCR46: 0 | CCS46: 0 | CCT46: 0 | CCU46: 0 | CCV46: 0 | CCW46: 0 | CCX46: 0 | CCY46: 0 | CCZ46: 0 | CDA46: 0 | CDB46: 0 | CDC46: 0 | CDD46: 0 | CDE46: 0 | CDF46: 0 | CDG46: 0 | CDH46: 0 | CDI46: 0 | CDJ46: 0 | CDK46: 0 | CDL46: 0 | CDM46: 0 | CDN46: 0 | CDO46: 0 | CDP46: 0 | CDQ46: 0 | CDR46: 0 | CDS46: 0 | CDT46: 0 | CDU46: 0 | CDV46: 0 | CDW46: 0 | CDX46: 0 | CDY46: 0 | CDZ46: 0 | CEA46: 0 | CEB46: 0 | CEC46: 0 | CED46: 0 | CEE46: 0 | CEF46: 0 | CEG46: 0 | CEH46: 0 | CEI46: 0 | CEJ46: 0 | CEK46: 0 | CEL46: 0 | CEM46: 0 | CEN46: 0 | CEO46: 0 | CEP46: 0 | CEQ46: 0 | CER46: 0 | CES46: 0 | CET46: 0 | CEU46: 0 | CEV46: 0 | CEW46: 0 | CEX46: 0 | CEY46: 0 | CEZ46: 0 | CFA46: =1/$G$46*$F$46*CFA37 -> 0 | CFB46: 0 | CFC46: 0 | CFD46: 0 | CFE46: 0 | CFF46: 0 | CFG46: 0 | CFH46: 0 | CFI46: 0 | CFJ46: 0 | CFK46: 0 | CFL46: 0 | CFM46: 0 | CFN46: 0 | CFO46: 0 | CFP46: 0 | CFQ46: 0 | CFR46: 0 | CFS46: 0 | CFT46: 0 | CFU46: 0 | CFV46: 0 | CFW46: 0 | CFX46: 0 | CFY46: 0 | CFZ46: 0 | CGA46: 0 | CGB46: 0 | CGC46: 0 | CGD46: 0 | CGE46: 0 | CGF46: 0 | CGG46: 0 | CGH46: 0 | CGI46: 0 | CGJ46: 0 | CGK46: 0 | CGL46: 0 | CGM46: 0 | CGN46: 0 | CGO46: 0 | CGP46: 0 | CGQ46: 0 | CGR46: 0 | CGS46: 0 | CGT46: 0 | CGU46: 0 | CGV46: 0 | CGW46: 0 | CGX46: 0 | CGY46: 0 | CGZ46: 0 | CHA46: 0 | CHB46: 0 | CHC46: 0 | CHD46: 0 | CHE46: 0 | CHF46: 0 | CHG46: 0 | CHH46: 0 | CHI46: 0 | CHJ46: 0 | CHK46: 0 | CHL46: 0 | CHM46: =1/$G$46*$F$46*CHM37 -> 0 | CHN46: 0 | CHO46: 0 | CHP46: 0 | CHQ46: 0 | CHR46: 0 | CHS46: 0 | CHT46: 0 | CHU46: 0 | CHV46: 0 | CHW46: 0 | CHX46: 0 | CHY46: 0 | CHZ46: 0 | CIA46: 0 | CIB46: 0 | CIC46: 0 | CID46: 0 | CIE46: 0 | CIF46: 0 | CIG46: 0 | CIH46: 0 | CII46: 0 | CIJ46: 0 | CIK46: 0 | CIL46: 0 | CIM46: 0 | CIN46: 0 | CIO46: 0 | CIP46: 0 | CIQ46: 0 | CIR46: 0 | CIS46: 0 | CIT46: 0 | CIU46: 0 | CIV46: 0 | CIW46: 0 | CIX46: 0 | CIY46: 0 | CIZ46: 0 | CJA46: 0 | CJB46: 0 | CJC46: 0 | CJD46: 0 | CJE46: 0 | CJF46: 0 | CJG46: 0 | CJH46: 0 | CJI46: 0 | CJJ46: 0 | CJK46: 0 | CJL46: 0 | CJM46: 0 | CJN46: 0 | CJO46: 0 | CJP46: 0 | CJQ46: 0 | CJR46: 0 | CJS46: 0 | CJT46: 0 | CJU46: 0 | CJV46: 0 | CJW46: 0 | CJX46: 0 | CJY46: =1/$G$46*$F$46*CJY37 -> 0 | CJZ46: 0 | CKA46: 0 | CKB46: 0 | CKC46: 0 | CKD46: 0 | CKE46: 0 | CKF46: 0 | CKG46: 0 | CKH46: 0 | CKI46: 0 | CKJ46: 0 | CKK46: 0 | CKL46: 0 | CKM46: 0 | CKN46: 0 | CKO46: 0 | CKP46: 0 | CKQ46: 0 | CKR46: 0 | CKS46: 0 | CKT46: 0 | CKU46: 0 | CKV46: 0 | CKW46: 0 | CKX46: 0 | CKY46: 0 | CKZ46: 0 | CLA46: 0 | CLB46: 0 | CLC46: 0 | CLD46: 0 | CLE46: 0 | CLF46: 0 | CLG46: 0 | CLH46: 0 | CLI46: 0 | CLJ46: 0 | CLK46: 0 | CLL46: 0 | CLM46: 0 | CLN46: 0 | CLO46: 0 | CLP46: 0 | CLQ46: 0 | CLR46: 0 | CLS46: 0 | CLT46: 0 | CLU46: 0 | CLV46: 0 | CLW46: 0 | CLX46: 0 | CLY46: 0 | CLZ46: 0 | CMA46: 0 | CMB46: 0 | CMC46: 0 | CMD46: 0 | CME46: 0 | CMF46: 0 | CMG46: 0 | CMH46: 0 | CMI46: 0 | CMJ46: 0 | CMK46: =1/$G$46*$F$46*CMK37 -> 0 | CML46: 0 | CMM46: 0 | CMN46: 0 | CMO46: 0 | CMP46: 0 | CMQ46: 0 | CMR46: 0 | CMS46: 0 | CMT46: 0 | CMU46: 0 | CMV46: 0 | CMW46: 0 | CMX46: 0 | CMY46: 0 | CMZ46: 0 | CNA46: 0 | CNB46: 0 | CNC46: 0 | CND46: 0 | CNE46: 0 | CNF46: 0 | CNG46: 0 | CNH46: 0 | CNI46: 0 | CNJ46: 0 | CNK46: 0 | CNL46: 0 | CNM46: 0 | CNN46: 0 | CNO46: 0 | CNP46: 0 | CNQ46: 0 | CNR46: 0 | CNS46: 0 | CNT46: 0 | CNU46: 0 | CNV46: 0 | CNW46: 0 | CNX46: 0 | CNY46: 0 | CNZ46: 0 | COA46: 0 | COB46: 0 | COC46: 0 | COD46: 0 | COE46: 0 | COF46: 0 | COG46: 0 | COH46: 0 | COI46: 0 | COJ46: 0 | COK46: 0 | COL46: 0 | COM46: 0 | CON46: 0 | COO46: 0 | COP46: 0 | COQ46: 0 | COR46: 0 | COS46: 0 | COT46: 0 | COU46: 0 | COV46: 0 | COW46: =1/$G$46*$F$46*COW37 -> 0 | COX46: 0 | COY46: 0 | COZ46: 0 | CPA46: 0 | CPB46: 0 | CPC46: 0 | CPD46: 0 | CPE46: 0 | CPF46: 0 | CPG46: 0 | CPH46: 0 | CPI46: 0 | CPJ46: 0 | CPK46: 0 | CPL46: 0 | CPM46: 0 | CPN46: 0 | CPO46: 0 | CPP46: 0 | CPQ46: 0 | CPR46: 0 | CPS46: 0 | CPT46: 0 | CPU46: 0 | CPV46: 0 | CPW46: 0 | CPX46: 0 | CPY46: 0 | CPZ46: 0 | CQA46: 0 | CQB46: 0 | CQC46: 0 | CQD46: 0 | CQE46: 0 | CQF46: 0 | CQG46: 0 | CQH46: 0 | CQI46: 0 | CQJ46: 0 | CQK46: 0 | CQL46: 0 | CQM46: 0 | CQN46: 0 | CQO46: 0 | CQP46: 0 | CQQ46: 0 | CQR46: 0 | CQS46: 0 | CQT46: 0 | CQU46: 0 | CQV46: 0 | CQW46: 0 | CQX46: 0 | CQY46: 0 | CQZ46: 0 | CRA46: 0 | CRB46: 0 | CRC46: 0 | CRD46: 0 | CRE46: 0 | CRF46: 0 | CRG46: 0 | CRH46: 0 | CRI46: =1/$G$46*$F$46*CRI37 -> 0 | CRJ46: 0 | CRK46: 0 | CRL46: 0 | CRM46: 0 | CRN46: 0 | CRO46: 0 | CRP46: 0 | CRQ46: 0 | CRR46: 0 | CRS46: 0 | CRT46: 0 | CRU46: 0 | CRV46: 0 | CRW46: 0 | CRX46: 0 | CRY46: 0 | CRZ46: 0 | CSA46: 0 | CSB46: 0 | CSC46: 0 | CSD46: 0 | CSE46: 0 | CSF46: 0 | CSG46: 0 | CSH46: 0 | CSI46: 0 | CSJ46: 0 | CSK46: 0 | CSL46: 0 | CSM46: 0 | CSN46: 0 | CSO46: 0 | CSP46: 0 | CSQ46: 0 | CSR46: 0 | CSS46: 0 | CST46: 0 | CSU46: 0 | CSV46: 0 | CSW46: 0 | CSX46: 0 | CSY46: 0 | CSZ46: 0 | CTA46: 0 | CTB46: 0 | CTC46: 0 | CTD46: 0 | CTE46: 0 | CTF46: 0 | CTG46: 0 | CTH46: 0 | CTI46: 0 | CTJ46: 0 | CTK46: 0 | CTL46: 0 | CTM46: 0 | CTN46: 0 | CTO46: 0 | CTP46: 0 | CTQ46: 0 | CTR46: 0 | CTS46: 0 | CTT46: 0 | CTU46: =1/$G$46*$F$46*CTU37 -> 0 | CTV46: 0 | CTW46: 0 | CTX46: 0 | CTY46: 0 | CTZ46: 0 | CUA46: 0 | CUB46: 0 | CUC46: 0 | CUD46: 0 | CUE46: 0 | CUF46: 0 | CUG46: 0 | CUH46: 0 | CUI46: 0 | CUJ46: 0 | CUK46: 0 | CUL46: 0 | CUM46: 0 | CUN46: 0 | CUO46: 0 | CUP46: 0 | CUQ46: 0 | CUR46: 0 | CUS46: 0 | CUT46: 0 | CUU46: 0 | CUV46: 0 | CUW46: 0 | CUX46: 0 | CUY46: 0 | CUZ46: 0 | CVA46: 0 | CVB46: 0 | CVC46: 0 | CVD46: 0 | CVE46: 0 | CVF46: 0 | CVG46: 0 | CVH46: 0 | CVI46: 0 | CVJ46: 0 | CVK46: 0 | CVL46: 0 | CVM46: 0 | CVN46: 0 | CVO46: 0 | CVP46: 0 | CVQ46: 0 | CVR46: 0 | CVS46: 0 | CVT46: 0 | CVU46: 0 | CVV46: 0 | CVW46: 0 | CVX46: 0 | CVY46: 0 | CVZ46: 0 | CWA46: 0 | CWB46: 0 | CWC46: 0 | CWD46: 0 | CWE46: 0 | CWF46: 0 | CWG46: =1/$G$46*$F$46*CWG37 -> 0 | CWH46: 0 | CWI46: 0 | CWJ46: 0 | CWK46: 0 | CWL46: 0 | CWM46: 0 | CWN46: 0 | CWO46: 0 | CWP46: 0 | CWQ46: 0 | CWR46: 0 | CWS46: 0 | CWT46: 0 | CWU46: 0 | CWV46: 0 | CWW46: 0 | CWX46: 0 | CWY46: 0 | CWZ46: 0 | CXA46: 0 | CXB46: 0 | CXC46: 0 | CXD46: 0 | CXE46: 0 | CXF46: 0 | CXG46: 0 | CXH46: 0 | CXI46: 0 | CXJ46: 0 | CXK46: 0 | CXL46: 0 | CXM46: 0 | CXN46: 0 | CXO46: 0 | CXP46: 0 | CXQ46: 0 | CXR46: 0 | CXS46: 0 | CXT46: 0 | CXU46: 0 | CXV46: 0 | CXW46: 0 | CXX46: 0 | CXY46: 0 | CXZ46: 0 | CYA46: 0 | CYB46: 0 | CYC46: 0 | CYD46: 0 | CYE46: 0 | CYF46: 0 | CYG46: 0 | CYH46: 0 | CYI46: 0 | CYJ46: 0 | CYK46: 0 | CYL46: 0 | CYM46: 0 | CYN46: 0 | CYO46: 0 | CYP46: 0 | CYQ46: 0 | CYR46: 0 | CYS46: =1/$G$46*$F$46*CYS37 -> 0 | CYT46: 0 | CYU46: 0 | CYV46: 0 | CYW46: 0 | CYX46: 0 | CYY46: 0 | CYZ46: 0 | CZA46: 0 | CZB46: 0 | CZC46: 0 | CZD46: 0 | CZE46: 0 | CZF46: 0 | CZG46: 0 | CZH46: 0 | CZI46: 0 | CZJ46: 0 | CZK46: 0 | CZL46: 0 | CZM46: 0 | CZN46: 0 | CZO46: 0 | CZP46: 0 | CZQ46: 0 | CZR46: 0 | CZS46: 0 | CZT46: 0 | CZU46: 0 | CZV46: 0 | CZW46: 0 | CZX46: 0 | CZY46: 0 | CZZ46: 0 | DAA46: 0 | DAB46: 0 | DAC46: 0 | DAD46: 0 | DAE46: 0 | DAF46: 0 | DAG46: 0 | DAH46: 0 | DAI46: 0 | DAJ46: 0 | DAK46: 0 | DAL46: 0 | DAM46: 0 | DAN46: 0 | DAO46: 0 | DAP46: 0 | DAQ46: 0 | DAR46: 0 | DAS46: 0 | DAT46: 0 | DAU46: 0 | DAV46: 0 | DAW46: 0 | DAX46: 0 | DAY46: 0 | DAZ46: 0 | DBA46: 0 | DBB46: 0 | DBC46: 0 | DBD46: 0 | DBE46: =1/$G$46*$F$46*DBE37 -> 0 | DBF46: 0 | DBG46: 0 | DBH46: 0 | DBI46: 0 | DBJ46: 0 | DBK46: 0 | DBL46: 0 | DBM46: 0 | DBN46: 0 | DBO46: 0 | DBP46: 0 | DBQ46: 0 | DBR46: 0 | DBS46: 0 | DBT46: 0 | DBU46: 0 | DBV46: 0 | DBW46: 0 | DBX46: 0 | DBY46: 0 | DBZ46: 0 | DCA46: 0 | DCB46: 0 | DCC46: 0 | DCD46: 0 | DCE46: 0 | DCF46: 0 | DCG46: 0 | DCH46: 0 | DCI46: 0 | DCJ46: 0 | DCK46: 0 | DCL46: 0 | DCM46: 0 | DCN46: 0 | DCO46: 0 | DCP46: 0 | DCQ46: 0 | DCR46: 0 | DCS46: 0 | DCT46: 0 | DCU46: 0 | DCV46: 0 | DCW46: 0 | DCX46: 0 | DCY46: 0 | DCZ46: 0 | DDA46: 0 | DDB46: 0 | DDC46: 0 | DDD46: 0 | DDE46: 0 | DDF46: 0 | DDG46: 0 | DDH46: 0 | DDI46: 0 | DDJ46: 0 | DDK46: 0 | DDL46: 0 | DDM46: 0 | DDN46: 0 | DDO46: 0 | DDP46: 0 | DDQ46: =1/$G$46*$F$46*DDQ37 -> 0 | DDR46: 0 | DDS46: 0 | DDT46: 0 | DDU46: 0 | DDV46: 0 | DDW46: 0 | DDX46: 0 | DDY46: 0 | DDZ46: 0 | DEA46: 0 | DEB46: 0 | DEC46: 0 | DED46: 0 | DEE46: 0 | DEF46: 0 | DEG46: 0 | DEH46: 0 | DEI46: 0 | DEJ46: 0 | DEK46: 0 | DEL46: 0 | DEM46: 0 | DEN46: 0 | DEO46: 0 | DEP46: 0 | DEQ46: 0 | DER46: 0 | DES46: 0 | DET46: 0 | DEU46: 0 | DEV46: 0 | DEW46: 0 | DEX46: 0 | DEY46: 0 | DEZ46: 0 | DFA46: 0 | DFB46: 0 | DFC46: 0 | DFD46: 0 | DFE46: 0 | DFF46: 0 | DFG46: 0 | DFH46: 0 | DFI46: 0 | DFJ46: 0 | DFK46: 0 | DFL46: 0 | DFM46: 0 | DFN46: 0 | DFO46: 0 | DFP46: 0 | DFQ46: 0 | DFR46: 0 | DFS46: 0 | DFT46: 0 | DFU46: 0 | DFV46: 0 | DFW46: 0 | DFX46: 0 | DFY46: 0 | DFZ46: 0 | DGA46: 0 | DGB46: 0 | DGC46: =1/$G$46*$F$46*DGC37 -> 0 | DGD46: 0 | DGE46: 0 | DGF46: 0 | DGG46: 0 | DGH46: 0 | DGI46: 0 | DGJ46: 0 | DGK46: 0 | DGL46: 0 | DGM46: 0 | DGN46: 0 | DGO46: 0 | DGP46: 0 | DGQ46: 0 | DGR46: 0 | DGS46: 0 | DGT46: 0 | DGU46: 0 | DGV46: 0 | DGW46: 0 | DGX46: 0 | DGY46: 0 | DGZ46: 0 | DHA46: 0 | DHB46: 0 | DHC46: 0 | DHD46: 0 | DHE46: 0 | DHF46: 0 | DHG46: 0 | DHH46: 0 | DHI46: 0 | DHJ46: 0 | DHK46: 0 | DHL46: 0 | DHM46: 0 | DHN46: 0 | DHO46: 0 | DHP46: 0 | DHQ46: 0 | DHR46: 0 | DHS46: 0 | DHT46: 0 | DHU46: 0 | DHV46: 0 | DHW46: 0 | DHX46: 0 | DHY46: 0 | DHZ46: 0 | DIA46: 0 | DIB46: 0 | DIC46: 0 | DID46: 0 | DIE46: 0 | DIF46: 0 | DIG46: 0 | DIH46: 0 | DII46: 0 | DIJ46: 0 | DIK46: 0 | DIL46: 0 | DIM46: 0 | DIN46: 0 | DIO46: =1/$G$46*$F$46*DIO37 -> 0 | DIP46: 0 | DIQ46: 0 | DIR46: 0 | DIS46: 0 | DIT46: 0 | DIU46: 0 | DIV46: 0 | DIW46: 0 | DIX46: 0 | DIY46: 0 | DIZ46: 0 | DJA46: 0 | DJB46: 0 | DJC46: 0 | DJD46: 0 | DJE46: 0 | DJF46: 0 | DJG46: 0 | DJH46: 0 | DJI46: 0 | DJJ46: 0 | DJK46: 0 | DJL46: 0 | DJM46: 0 | DJN46: 0 | DJO46: 0 | DJP46: 0 | DJQ46: 0 | DJR46: 0 | DJS46: 0 | DJT46: 0 | DJU46: 0 | DJV46: 0 | DJW46: 0 | DJX46: 0 | DJY46: 0 | DJZ46: 0 | DKA46: 0 | DKB46: 0 | DKC46: 0 | DKD46: 0 | DKE46: 0 | DKF46: 0 | DKG46: 0 | DKH46: 0 | DKI46: 0 | DKJ46: 0 | DKK46: 0 | DKL46: 0 | DKM46: 0 | DKN46: 0 | DKO46: 0 | DKP46: 0 | DKQ46: 0 | DKR46: 0 | DKS46: 0 | DKT46: 0 | DKU46: 0 | DKV46: 0 | DKW46: 0 | DKX46: 0 | DKY46: 0 | DKZ46: 0 | DLA46: =1/$G$46*$F$46*DLA37 -> 0 | DLB46: 0 | DLC46: 0 | DLD46: 0 | DLE46: 0 | DLF46: 0 | DLG46: 0 | DLH46: 0 | DLI46: 0 | DLJ46: 0 | DLK46: 0 | DLL46: 0 | DLM46: 0 | DLN46: 0 | DLO46: 0 | DLP46: 0 | DLQ46: 0 | DLR46: 0 | DLS46: 0 | DLT46: 0 | DLU46: 0 | DLV46: 0 | DLW46: 0 | DLX46: 0 | DLY46: 0 | DLZ46: 0 | DMA46: 0 | DMB46: 0 | DMC46: 0 | DMD46: 0 | DME46: 0 | DMF46: 0 | DMG46: 0 | DMH46: 0 | DMI46: 0 | DMJ46: 0 | DMK46: 0 | DML46: 0 | DMM46: 0 | DMN46: 0 | DMO46: 0 | DMP46: 0 | DMQ46: 0 | DMR46: 0 | DMS46: 0 | DMT46: 0 | DMU46: 0 | DMV46: 0 | DMW46: 0 | DMX46: 0 | DMY46: 0 | DMZ46: 0 | DNA46: 0 | DNB46: 0 | DNC46: 0 | DND46: 0 | DNE46: 0 | DNF46: 0 | DNG46: 0 | DNH46: 0 | DNI46: 0 | DNJ46: 0 | DNK46: 0 | DNL46: 0 | DNM46: =1/$G$46*$F$46*DNM37 -> 0 | DNN46: 0 | DNO46: 0 | DNP46: 0 | DNQ46: 0 | DNR46: 0 | DNS46: 0 | DNT46: 0 | DNU46: 0 | DNV46: 0 | DNW46: 0 | DNX46: 0 | DNY46: 0 | DNZ46: 0 | DOA46: 0 | DOB46: 0 | DOC46: 0 | DOD46: 0 | DOE46: 0 | DOF46: 0 | DOG46: 0 | DOH46: 0 | DOI46: 0 | DOJ46: 0 | DOK46: 0 | DOL46: 0 | DOM46: 0 | DON46: 0 | DOO46: 0 | DOP46: 0 | DOQ46: 0 | DOR46: 0 | DOS46: 0 | DOT46: 0 | DOU46: 0 | DOV46: 0 | DOW46: 0 | DOX46: 0 | DOY46: 0 | DOZ46: 0 | DPA46: 0 | DPB46: 0 | DPC46: 0 | DPD46: 0 | DPE46: 0 | DPF46: 0 | DPG46: 0 | DPH46: 0 | DPI46: 0 | DPJ46: 0 | DPK46: 0 | DPL46: 0 | DPM46: 0 | DPN46: 0 | DPO46: 0 | DPP46: 0 | DPQ46: 0 | DPR46: 0 | DPS46: 0 | DPT46: 0 | DPU46: 0 | DPV46: 0 | DPW46: 0 | DPX46: 0 | DPY46: =1/$G$46*$F$46*DPY37 -> 0 | DPZ46: 0 | DQA46: 0 | DQB46: 0 | DQC46: 0 | DQD46: 0 | DQE46: 0 | DQF46: 0 | DQG46: 0 | DQH46: 0 | DQI46: 0 | DQJ46: 0 | DQK46: 0 | DQL46: 0 | DQM46: 0 | DQN46: 0 | DQO46: 0 | DQP46: 0 | DQQ46: 0 | DQR46: 0 | DQS46: 0 | DQT46: 0 | DQU46: 0 | DQV46: 0 | DQW46: 0 | DQX46: 0 | DQY46: 0 | DQZ46: 0 | DRA46: 0 | DRB46: 0 | DRC46: 0 | DRD46: 0 | DRE46: 0 | DRF46: 0 | DRG46: 0 | DRH46: 0 | DRI46: 0 | DRJ46: 0 | DRK46: 0 | DRL46: 0 | DRM46: 0 | DRN46: 0 | DRO46: 0 | DRP46: 0 | DRQ46: 0 | DRR46: 0 | DRS46: 0 | DRT46: 0 | DRU46: 0 | DRV46: 0 | DRW46: 0 | DRX46: 0 | DRY46: 0 | DRZ46: 0 | DSA46: 0 | DSB46: 0 | DSC46: 0 | DSD46: 0 | DSE46: 0 | DSF46: 0 | DSG46: 0 | DSH46: 0 | DSI46: 0 | DSJ46: 0 | DSK46: =1/$G$46*$F$46*DSK37 -> 0 | DSL46: 0 | DSM46: 0 | DSN46: 0 | DSO46: 0 | DSP46: 0 | DSQ46: 0 | DSR46: 0 | DSS46: 0 | DST46: 0 | DSU46: 0 | DSV46: 0 | DSW46: 0 | DSX46: 0 | DSY46: 0 | DSZ46: 0 | DTA46: 0 | DTB46: 0 | DTC46: 0 | DTD46: 0 | DTE46: 0 | DTF46: 0 | DTG46: 0 | DTH46: 0 | DTI46: 0 | DTJ46: 0 | DTK46: 0 | DTL46: 0 | DTM46: 0 | DTN46: 0 | DTO46: 0 | DTP46: 0 | DTQ46: 0 | DTR46: 0 | DTS46: 0 | DTT46: 0 | DTU46: 0 | DTV46: 0 | DTW46: 0 | DTX46: 0 | DTY46: 0 | DTZ46: 0 | DUA46: 0 | DUB46: 0 | DUC46: 0 | DUD46: 0 | DUE46: 0 | DUF46: 0 | DUG46: 0 | DUH46: 0 | DUI46: 0 | DUJ46: 0 | DUK46: 0 | DUL46: 0 | DUM46: 0 | DUN46: 0 | DUO46: 0 | DUP46: 0 | DUQ46: 0 | DUR46: 0 | DUS46: 0 | DUT46: 0 | DUU46: 0 | DUV46: 0 | DUW46: =1/$G$46*$F$46*DUW37 -> 0 | DUX46: 0 | DUY46: 0 | DUZ46: 0 | DVA46: 0 | DVB46: 0 | DVC46: 0 | DVD46: 0 | DVE46: 0 | DVF46: 0 | DVG46: 0 | DVH46: 0 | DVI46: 0 | DVJ46: 0 | DVK46: 0 | DVL46: 0 | DVM46: 0 | DVN46: 0 | DVO46: 0 | DVP46: 0 | DVQ46: 0 | DVR46: 0 | DVS46: 0 | DVT46: 0 | DVU46: 0 | DVV46: 0 | DVW46: 0 | DVX46: 0 | DVY46: 0 | DVZ46: 0 | DWA46: 0 | DWB46: 0 | DWC46: 0 | DWD46: 0 | DWE46: 0 | DWF46: 0 | DWG46: 0 | DWH46: 0 | DWI46: 0 | DWJ46: 0 | DWK46: 0 | DWL46: 0 | DWM46: 0 | DWN46: 0 | DWO46: 0 | DWP46: 0 | DWQ46: 0 | DWR46: 0 | DWS46: 0 | DWT46: 0 | DWU46: 0 | DWV46: 0 | DWW46: 0 | DWX46: 0 | DWY46: 0 | DWZ46: 0 | DXA46: 0 | DXB46: 0 | DXC46: 0 | DXD46: 0 | DXE46: 0 | DXF46: 0 | DXG46: 0 | DXH46: 0 | DXI46: =1/$G$46*$F$46*DXI37 -> 0 | DXJ46: 0 | DXK46: 0 | DXL46: 0 | DXM46: 0 | DXN46: 0 | DXO46: 0 | DXP46: 0 | DXQ46: 0 | DXR46: 0 | DXS46: 0 | DXT46: 0 | DXU46: 0 | DXV46: 0 | DXW46: 0 | DXX46: 0 | DXY46: 0 | DXZ46: 0 | DYA46: 0 | DYB46: 0 | DYC46: 0 | DYD46: 0 | DYE46: 0 | DYF46: 0 | DYG46: 0 | DYH46: 0 | DYI46: 0 | DYJ46: 0 | DYK46: 0 | DYL46: 0 | DYM46: 0 | DYN46: 0 | DYO46: 0 | DYP46: 0 | DYQ46: 0 | DYR46: 0 | DYS46: 0 | DYT46: 0 | DYU46: 0 | DYV46: 0 | DYW46: 0 | DYX46: 0 | DYY46: 0 | DYZ46: 0 | DZA46: 0 | DZB46: 0 | DZC46: 0 | DZD46: 0 | DZE46: 0 | DZF46: 0 | DZG46: 0 | DZH46: 0 | DZI46: 0 | DZJ46: 0 | DZK46: 0 | DZL46: 0 | DZM46: 0 | DZN46: 0 | DZO46: 0 | DZP46: 0 | DZQ46: 0 | DZR46: 0 | DZS46: 0 | DZT46: 0 | DZU46: =1/$G$46*$F$46*DZU37 -> 0 | DZV46: 0 | DZW46: 0 | DZX46: 0 | DZY46: 0 | DZZ46: 0 | EAA46: 0 | EAB46: 0 | EAC46: 0 | EAD46: 0 | EAE46: 0 | EAF46: 0 | EAG46: 0 | EAH46: 0 | EAI46: 0 | EAJ46: 0 | EAK46: 0 | EAL46: 0 | EAM46: 0 | EAN46: 0 | EAO46: 0 | EAP46: 0 | EAQ46: 0 | EAR46: 0 | EAS46: 0 | EAT46: 0 | EAU46: 0 | EAV46: 0 | EAW46: 0 | EAX46: 0 | EAY46: 0 | EAZ46: 0 | EBA46: 0 | EBB46: 0 | EBC46: 0 | EBD46: 0 | EBE46: 0 | EBF46: 0 | EBG46: 0 | EBH46: 0 | EBI46: 0 | EBJ46: 0 | EBK46: 0 | EBL46: 0 | EBM46: 0 | EBN46: 0 | EBO46: 0 | EBP46: 0 | EBQ46: 0 | EBR46: 0 | EBS46: 0 | EBT46: 0 | EBU46: 0 | EBV46: 0 | EBW46: 0 | EBX46: 0 | EBY46: 0 | EBZ46: 0 | ECA46: 0 | ECB46: 0 | ECC46: 0 | ECD46: 0 | ECE46: 0 | ECF46: 0 | ECG46: =1/$G$46*$F$46*ECG37 -> 0 | ECH46: 0 | ECI46: 0 | ECJ46: 0 | ECK46: 0 | ECL46: 0 | ECM46: 0 | ECN46: 0 | ECO46: 0 | ECP46: 0 | ECQ46: 0 | ECR46: 0 | ECS46: 0 | ECT46: 0 | ECU46: 0 | ECV46: 0 | ECW46: 0 | ECX46: 0 | ECY46: 0 | ECZ46: 0 | EDA46: 0 | EDB46: 0 | EDC46: 0 | EDD46: 0 | EDE46: 0 | EDF46: 0 | EDG46: 0 | EDH46: 0 | EDI46: 0 | EDJ46: 0 | EDK46: 0 | EDL46: 0 | EDM46: 0 | EDN46: 0 | EDO46: 0 | EDP46: 0 | EDQ46: 0 | EDR46: 0 | EDS46: 0 | EDT46: 0 | EDU46: 0 | EDV46: 0 | EDW46: 0 | EDX46: 0 | EDY46: 0 | EDZ46: 0 | EEA46: 0 | EEB46: 0 | EEC46: 0 | EED46: 0 | EEE46: 0 | EEF46: 0 | EEG46: 0 | EEH46: 0 | EEI46: 0 | EEJ46: 0 | EEK46: 0 | EEL46: 0 | EEM46: 0 | EEN46: 0 | EEO46: 0 | EEP46: 0 | EEQ46: 0 | EER46: 0 | EES46: =1/$G$46*$F$46*EES37 -> 0 | EET46: 0 | EEU46: 0 | EEV46: 0 | EEW46: 0 | EEX46: 0 | EEY46: 0 | EEZ46: 0 | EFA46: 0 | EFB46: 0 | EFC46: 0 | EFD46: 0 | EFE46: 0 | EFF46: 0 | EFG46: 0 | EFH46: 0 | EFI46: 0 | EFJ46: 0 | EFK46: 0 | EFL46: 0 | EFM46: 0 | EFN46: 0 | EFO46: 0 | EFP46: 0 | EFQ46: 0 | EFR46: 0 | EFS46: 0 | EFT46: 0 | EFU46: 0 | EFV46: 0 | EFW46: 0 | EFX46: 0 | EFY46: 0 | EFZ46: 0 | EGA46: 0 | EGB46: 0 | EGC46: 0 | EGD46: 0 | EGE46: 0 | EGF46: 0 | EGG46: 0 | EGH46: 0 | EGI46: 0 | EGJ46: 0 | EGK46: 0 | EGL46: 0 | EGM46: 0 | EGN46: 0 | EGO46: 0 | EGP46: 0 | EGQ46: 0 | EGR46: 0 | EGS46: 0 | EGT46: 0 | EGU46: 0 | EGV46: 0 | EGW46: 0 | EGX46: 0 | EGY46: 0 | EGZ46: 0 | EHA46: 0 | EHB46: 0 | EHC46: 0 | EHD46: 0 | EHE46: =1/$G$46*$F$46*EHE37 -> 0 | EHF46: 0 | EHG46: 0 | EHH46: 0 | EHI46: 0 | EHJ46: 0 | EHK46: 0 | EHL46: 0 | EHM46: 0 | EHN46: 0 | EHO46: 0 | EHP46: 0 | EHQ46: 0 | EHR46: 0 | EHS46: 0 | EHT46: 0 | EHU46: 0 | EHV46: 0 | EHW46: 0 | EHX46: 0 | EHY46: 0 | EHZ46: 0 | EIA46: 0 | EIB46: 0 | EIC46: 0 | EID46: 0 | EIE46: 0 | EIF46: 0 | EIG46: 0 | EIH46: 0 | EII46: 0 | EIJ46: 0 | EIK46: 0 | EIL46: 0 | EIM46: 0 | EIN46: 0 | EIO46: 0 | EIP46: 0 | EIQ46: 0 | EIR46: 0 | EIS46: 0 | EIT46: 0 | EIU46: 0 | EIV46: 0 | EIW46: 0 | EIX46: 0 | EIY46: 0 | EIZ46: 0 | EJA46: 0 | EJB46: 0 | EJC46: 0 | EJD46: 0 | EJE46: 0 | EJF46: 0 | EJG46: 0 | EJH46: 0 | EJI46: 0 | EJJ46: 0 | EJK46: 0 | EJL46: 0 | EJM46: 0 | EJN46: 0 | EJO46: 0 | EJP46: 0 | EJQ46: =1/$G$46*$F$46*EJQ37 -> 0 | EJR46: 0 | EJS46: 0 | EJT46: 0 | EJU46: 0 | EJV46: 0 | EJW46: 0 | EJX46: 0 | EJY46: 0 | EJZ46: 0 | EKA46: 0 | EKB46: 0 | EKC46: 0 | EKD46: 0 | EKE46: 0 | EKF46: 0 | EKG46: 0 | EKH46: 0 | EKI46: 0 | EKJ46: 0 | EKK46: 0 | EKL46: 0 | EKM46: 0 | EKN46: 0 | EKO46: 0 | EKP46: 0 | EKQ46: 0 | EKR46: 0 | EKS46: 0 | EKT46: 0 | EKU46: 0 | EKV46: 0 | EKW46: 0 | EKX46: 0 | EKY46: 0 | EKZ46: 0 | ELA46: 0 | ELB46: 0 | ELC46: 0 | ELD46: 0 | ELE46: 0 | ELF46: 0 | ELG46: 0 | ELH46: 0 | ELI46: 0 | ELJ46: 0 | ELK46: 0 | ELL46: 0 | ELM46: 0 | ELN46: 0 | ELO46: 0 | ELP46: 0 | ELQ46: 0 | ELR46: 0 | ELS46: 0 | ELT46: 0 | ELU46: 0 | ELV46: 0 | ELW46: 0 | ELX46: 0 | ELY46: 0 | ELZ46: 0 | EMA46: 0 | EMB46: 0 | EMC46: =1/$G$46*$F$46*EMC37 -> 0 | EMD46: 0 | EME46: 0 | EMF46: 0 | EMG46: 0 | EMH46: 0 | EMI46: 0 | EMJ46: 0 | EMK46: 0 | EML46: 0 | EMM46: 0 | EMN46: 0 | EMO46: 0 | EMP46: 0 | EMQ46: 0 | EMR46: 0 | EMS46: 0 | EMT46: 0 | EMU46: 0 | EMV46: 0 | EMW46: 0 | EMX46: 0 | EMY46: 0 | EMZ46: 0 | ENA46: 0 | ENB46: 0 | ENC46: 0 | END46: 0 | ENE46: 0 | ENF46: 0 | ENG46: 0 | ENH46: 0 | ENI46: 0 | ENJ46: 0 | ENK46: 0 | ENL46: 0 | ENM46: 0 | ENN46: 0 | ENO46: 0 | ENP46: 0 | ENQ46: 0 | ENR46: 0 | ENS46: 0 | ENT46: 0 | ENU46: 0 | ENV46: 0 | ENW46: 0 | ENX46: 0 | ENY46: 0 | ENZ46: 0 | EOA46: 0 | EOB46: 0 | EOC46: 0 | EOD46: 0 | EOE46: 0 | EOF46: 0 | EOG46: 0 | EOH46: 0 | EOI46: 0 | EOJ46: 0 | EOK46: 0 | EOL46: 0 | EOM46: 0 | EON46: 0 | EOO46: =1/$G$46*$F$46*EOO37 -> 0 | EOP46: 0 | EOQ46: 0 | EOR46: 0 | EOS46: 0 | EOT46: 0 | EOU46: 0 | EOV46: 0 | EOW46: 0 | EOX46: 0 | EOY46: 0 | EOZ46: 0 | EPA46: 0 | EPB46: 0 | EPC46: 0 | EPD46: 0 | EPE46: 0 | EPF46: 0 | EPG46: 0 | EPH46: 0 | EPI46: 0 | EPJ46: 0 | EPK46: 0 | EPL46: 0 | EPM46: 0 | EPN46: 0 | EPO46: 0 | EPP46: 0 | EPQ46: 0 | EPR46: 0 | EPS46: 0 | EPT46: 0 | EPU46: 0 | EPV46: 0 | EPW46: 0 | EPX46: 0 | EPY46: 0 | EPZ46: 0 | EQA46: 0 | EQB46: 0 | EQC46: 0 | EQD46: 0 | EQE46: 0 | EQF46: 0 | EQG46: 0 | EQH46: 0 | EQI46: 0 | EQJ46: 0 | EQK46: 0 | EQL46: 0 | EQM46: 0 | EQN46: 0 | EQO46: 0 | EQP46: 0 | EQQ46: 0 | EQR46: 0 | EQS46: 0 | EQT46: 0 | EQU46: 0 | EQV46: 0 | EQW46: 0 | EQX46: 0 | EQY46: 0 | EQZ46: 0 | ERA46: =1/$G$46*$F$46*ERA37 -> 0 | ERB46: 0 | ERC46: 0 | ERD46: 0 | ERE46: 0 | ERF46: 0 | ERG46: 0 | ERH46: 0 | ERI46: 0 | ERJ46: 0 | ERK46: 0 | ERL46: 0 | ERM46: 0 | ERN46: 0 | ERO46: 0 | ERP46: 0 | ERQ46: 0 | ERR46: 0 | ERS46: 0 | ERT46: 0 | ERU46: 0 | ERV46: 0 | ERW46: 0 | ERX46: 0 | ERY46: 0 | ERZ46: 0 | ESA46: 0 | ESB46: 0 | ESC46: 0 | ESD46: 0 | ESE46: 0 | ESF46: 0 | ESG46: 0 | ESH46: 0 | ESI46: 0 | ESJ46: 0 | ESK46: 0 | ESL46: 0 | ESM46: 0 | ESN46: 0 | ESO46: 0 | ESP46: 0 | ESQ46: 0 | ESR46: 0 | ESS46: 0 | EST46: 0 | ESU46: 0 | ESV46: 0 | ESW46: 0 | ESX46: 0 | ESY46: 0 | ESZ46: 0 | ETA46: 0 | ETB46: 0 | ETC46: 0 | ETD46: 0 | ETE46: 0 | ETF46: 0 | ETG46: 0 | ETH46: 0 | ETI46: 0 | ETJ46: 0 | ETK46: 0 | ETL46: 0 | ETM46: =1/$G$46*$F$46*ETM37 -> 0 | ETN46: 0 | ETO46: 0 | ETP46: 0 | ETQ46: 0 | ETR46: 0 | ETS46: 0 | ETT46: 0 | ETU46: 0 | ETV46: 0 | ETW46: 0 | ETX46: 0 | ETY46: 0 | ETZ46: 0 | EUA46: 0 | EUB46: 0 | EUC46: 0 | EUD46: 0 | EUE46: 0 | EUF46: 0 | EUG46: 0 | EUH46: 0 | EUI46: 0 | EUJ46: 0 | EUK46: 0 | EUL46: 0 | EUM46: 0 | EUN46: 0 | EUO46: 0 | EUP46: 0 | EUQ46: 0 | EUR46: 0 | EUS46: 0 | EUT46: 0 | EUU46: 0 | EUV46: 0 | EUW46: 0 | EUX46: 0 | EUY46: 0 | EUZ46: 0 | EVA46: 0 | EVB46: 0 | EVC46: 0 | EVD46: 0 | EVE46: 0 | EVF46: 0 | EVG46: 0 | EVH46: 0 | EVI46: 0 | EVJ46: 0 | EVK46: 0 | EVL46: 0 | EVM46: 0 | EVN46: 0 | EVO46: 0 | EVP46: 0 | EVQ46: 0 | EVR46: 0 | EVS46: 0 | EVT46: 0 | EVU46: 0 | EVV46: 0 | EVW46: 0 | EVX46: 0 | EVY46: =1/$G$46*$F$46*EVY37 -> 0 | EVZ46: 0 | EWA46: 0 | EWB46: 0 | EWC46: 0 | EWD46: 0 | EWE46: 0 | EWF46: 0 | EWG46: 0 | EWH46: 0 | EWI46: 0 | EWJ46: 0 | EWK46: 0 | EWL46: 0 | EWM46: 0 | EWN46: 0 | EWO46: 0 | EWP46: 0 | EWQ46: 0 | EWR46: 0 | EWS46: 0 | EWT46: 0 | EWU46: 0 | EWV46: 0 | EWW46: 0 | EWX46: 0 | EWY46: 0 | EWZ46: 0 | EXA46: 0 | EXB46: 0 | EXC46: 0 | EXD46: 0 | EXE46: 0 | EXF46: 0 | EXG46: 0 | EXH46: 0 | EXI46: 0 | EXJ46: 0 | EXK46: 0 | EXL46: 0 | EXM46: 0 | EXN46: 0 | EXO46: 0 | EXP46: 0 | EXQ46: 0 | EXR46: 0 | EXS46: 0 | EXT46: 0 | EXU46: 0 | EXV46: 0 | EXW46: 0 | EXX46: 0 | EXY46: 0 | EXZ46: 0 | EYA46: 0 | EYB46: 0 | EYC46: 0 | EYD46: 0 | EYE46: 0 | EYF46: 0 | EYG46: 0 | EYH46: 0 | EYI46: 0 | EYJ46: 0 | EYK46: =1/$G$46*$F$46*EYK37 -> 0 | EYL46: 0 | EYM46: 0 | EYN46: 0 | EYO46: 0 | EYP46: 0 | EYQ46: 0 | EYR46: 0 | EYS46: 0 | EYT46: 0 | EYU46: 0 | EYV46: 0 | EYW46: 0 | EYX46: 0 | EYY46: 0 | EYZ46: 0 | EZA46: 0 | EZB46: 0 | EZC46: 0 | EZD46: 0 | EZE46: 0 | EZF46: 0 | EZG46: 0 | EZH46: 0 | EZI46: 0 | EZJ46: 0 | EZK46: 0 | EZL46: 0 | EZM46: 0 | EZN46: 0 | EZO46: 0 | EZP46: 0 | EZQ46: 0 | EZR46: 0 | EZS46: 0 | EZT46: 0 | EZU46: 0 | EZV46: 0 | EZW46: 0 | EZX46: 0 | EZY46: 0 | EZZ46: 0 | FAA46: 0 | FAB46: 0 | FAC46: 0 | FAD46: 0 | FAE46: 0 | FAF46: 0 | FAG46: 0 | FAH46: 0 | FAI46: 0 | FAJ46: 0 | FAK46: 0 | FAL46: 0 | FAM46: 0 | FAN46: 0 | FAO46: 0 | FAP46: 0 | FAQ46: 0 | FAR46: 0 | FAS46: 0 | FAT46: 0 | FAU46: 0 | FAV46: 0 | FAW46: =1/$G$46*$F$46*FAW37 -> 0 | FAX46: 0 | FAY46: 0 | FAZ46: 0 | FBA46: 0 | FBB46: 0 | FBC46: 0 | FBD46: 0 | FBE46: 0 | FBF46: 0 | FBG46: 0 | FBH46: 0 | FBI46: 0 | FBJ46: 0 | FBK46: 0 | FBL46: 0 | FBM46: 0 | FBN46: 0 | FBO46: 0 | FBP46: 0 | FBQ46: 0 | FBR46: 0 | FBS46: 0 | FBT46: 0 | FBU46: 0 | FBV46: 0 | FBW46: 0 | FBX46: 0 | FBY46: 0 | FBZ46: 0 | FCA46: 0 | FCB46: 0 | FCC46: 0 | FCD46: 0 | FCE46: 0 | FCF46: 0 | FCG46: 0 | FCH46: 0 | FCI46: 0 | FCJ46: 0 | FCK46: 0 | FCL46: 0 | FCM46: 0 | FCN46: 0 | FCO46: 0 | FCP46: 0 | FCQ46: 0 | FCR46: 0 | FCS46: 0 | FCT46: 0 | FCU46: 0 | FCV46: 0 | FCW46: 0 | FCX46: 0 | FCY46: 0 | FCZ46: 0 | FDA46: 0 | FDB46: 0 | FDC46: 0 | FDD46: 0 | FDE46: 0 | FDF46: 0 | FDG46: 0 | FDH46: 0 | FDI46: =1/$G$46*$F$46*FDI37 -> 0 | FDJ46: 0 | FDK46: 0 | FDL46: 0 | FDM46: 0 | FDN46: 0 | FDO46: 0 | FDP46: 0 | FDQ46: 0 | FDR46: 0 | FDS46: 0 | FDT46: 0 | FDU46: 0 | FDV46: 0 | FDW46: 0 | FDX46: 0 | FDY46: 0 | FDZ46: 0 | FEA46: 0 | FEB46: 0 | FEC46: 0 | FED46: 0 | FEE46: 0 | FEF46: 0 | FEG46: 0 | FEH46: 0 | FEI46: 0 | FEJ46: 0 | FEK46: 0 | FEL46: 0 | FEM46: 0 | FEN46: 0 | FEO46: 0 | FEP46: 0 | FEQ46: 0 | FER46: 0 | FES46: 0 | FET46: 0 | FEU46: 0 | FEV46: 0 | FEW46: 0 | FEX46: 0 | FEY46: 0 | FEZ46: 0 | FFA46: 0 | FFB46: 0 | FFC46: 0 | FFD46: 0 | FFE46: 0 | FFF46: 0 | FFG46: 0 | FFH46: 0 | FFI46: 0 | FFJ46: 0 | FFK46: 0 | FFL46: 0 | FFM46: 0 | FFN46: 0 | FFO46: 0 | FFP46: 0 | FFQ46: 0 | FFR46: 0 | FFS46: 0 | FFT46: 0 | FFU46: =1/$G$46*$F$46*FFU37 -> 0 | FFV46: 0 | FFW46: 0 | FFX46: 0 | FFY46: 0 | FFZ46: 0 | FGA46: 0 | FGB46: 0 | FGC46: 0 | FGD46: 0 | FGE46: 0 | FGF46: 0 | FGG46: 0 | FGH46: 0 | FGI46: 0 | FGJ46: 0 | FGK46: 0 | FGL46: 0 | FGM46: 0 | FGN46: 0 | FGO46: 0 | FGP46: 0 | FGQ46: 0 | FGR46: 0 | FGS46: 0 | FGT46: 0 | FGU46: 0 | FGV46: 0 | FGW46: 0 | FGX46: 0 | FGY46: 0 | FGZ46: 0 | FHA46: 0 | FHB46: 0 | FHC46: 0 | FHD46: 0 | FHE46: 0 | FHF46: 0 | FHG46: 0 | FHH46: 0 | FHI46: 0 | FHJ46: 0 | FHK46: 0 | FHL46: 0 | FHM46: 0 | FHN46: 0 | FHO46: 0 | FHP46: 0 | FHQ46: 0 | FHR46: 0 | FHS46: 0 | FHT46: 0 | FHU46: 0 | FHV46: 0 | FHW46: 0 | FHX46: 0 | FHY46: 0 | FHZ46: 0 | FIA46: 0 | FIB46: 0 | FIC46: 0 | FID46: 0 | FIE46: 0 | FIF46: 0 | FIG46: =1/$G$46*$F$46*FIG37 -> 0 | FIH46: 0 | FII46: 0 | FIJ46: 0 | FIK46: 0 | FIL46: 0 | FIM46: 0 | FIN46: 0 | FIO46: 0 | FIP46: 0 | FIQ46: 0 | FIR46: 0 | FIS46: 0 | FIT46: 0 | FIU46: 0 | FIV46: 0 | FIW46: 0 | FIX46: 0 | FIY46: 0 | FIZ46: 0 | FJA46: 0 | FJB46: 0 | FJC46: 0 | FJD46: 0 | FJE46: 0 | FJF46: 0 | FJG46: 0 | FJH46: 0 | FJI46: 0 | FJJ46: 0 | FJK46: 0 | FJL46: 0 | FJM46: 0 | FJN46: 0 | FJO46: 0 | FJP46: 0 | FJQ46: 0 | FJR46: 0 | FJS46: 0 | FJT46: 0 | FJU46: 0 | FJV46: 0 | FJW46: 0 | FJX46: 0 | FJY46: 0 | FJZ46: 0 | FKA46: 0 | FKB46: 0 | FKC46: 0 | FKD46: 0 | FKE46: 0 | FKF46: 0 | FKG46: 0 | FKH46: 0 | FKI46: 0 | FKJ46: 0 | FKK46: 0 | FKL46: 0 | FKM46: 0 | FKN46: 0 | FKO46: 0 | FKP46: 0 | FKQ46: 0 | FKR46: 0 | FKS46: =1/$G$46*$F$46*FKS37 -> 0 | FKT46: 0 | FKU46: 0 | FKV46: 0 | FKW46: 0 | FKX46: 0 | FKY46: 0 | FKZ46: 0 | FLA46: 0 | FLB46: 0 | FLC46: 0 | FLD46: 0 | FLE46: 0 | FLF46: 0 | FLG46: 0 | FLH46: 0 | FLI46: 0 | FLJ46: 0 | FLK46: 0 | FLL46: 0 | FLM46: 0 | FLN46: 0 | FLO46: 0 | FLP46: 0 | FLQ46: 0 | FLR46: 0 | FLS46: 0 | FLT46: 0 | FLU46: 0 | FLV46: 0 | FLW46: 0 | FLX46: 0 | FLY46: 0 | FLZ46: 0 | FMA46: 0 | FMB46: 0 | FMC46: 0 | FMD46: 0 | FME46: 0 | FMF46: 0 | FMG46: 0 | FMH46: 0 | FMI46: 0 | FMJ46: 0 | FMK46: 0 | FML46: 0 | FMM46: 0 | FMN46: 0 | FMO46: 0 | FMP46: 0 | FMQ46: 0 | FMR46: 0 | FMS46: 0 | FMT46: 0 | FMU46: 0 | FMV46: 0 | FMW46: 0 | FMX46: 0 | FMY46: 0 | FMZ46: 0 | FNA46: 0 | FNB46: 0 | FNC46: 0 | FND46: 0 | FNE46: =1/$G$46*$F$46*FNE37 -> 0 | FNF46: 0 | FNG46: 0 | FNH46: 0 | FNI46: 0 | FNJ46: 0 | FNK46: 0 | FNL46: 0 | FNM46: 0 | FNN46: 0 | FNO46: 0 | FNP46: 0 | FNQ46: 0 | FNR46: 0 | FNS46: 0 | FNT46: 0 | FNU46: 0 | FNV46: 0 | FNW46: 0 | FNX46: 0 | FNY46: 0 | FNZ46: 0 | FOA46: 0 | FOB46: 0 | FOC46: 0 | FOD46: 0 | FOE46: 0 | FOF46: 0 | FOG46: 0 | FOH46: 0 | FOI46: 0 | FOJ46: 0 | FOK46: 0 | FOL46: 0 | FOM46: 0 | FON46: 0 | FOO46: 0 | FOP46: 0 | FOQ46: 0 | FOR46: 0 | FOS46: 0 | FOT46: 0 | FOU46: 0 | FOV46: 0 | FOW46: 0 | FOX46: 0 | FOY46: 0 | FOZ46: 0 | FPA46: 0 | FPB46: 0 | FPC46: 0 | FPD46: 0 | FPE46: 0 | FPF46: 0 | FPG46: 0 | FPH46: 0 | FPI46: 0 | FPJ46: 0 | FPK46: 0 | FPL46: 0 | FPM46: 0 | FPN46: 0 | FPO46: 0 | FPP46: 0 | FPQ46: =1/$G$46*$F$46*FPQ37 -> 0 | FPR46: 0 | FPS46: 0 | FPT46: 0 | FPU46: 0 | FPV46: 0 | FPW46: 0 | FPX46: 0 | FPY46: 0 | FPZ46: 0 | FQA46: 0 | FQB46: 0 | FQC46: 0 | FQD46: 0 | FQE46: 0 | FQF46: 0 | FQG46: 0 | FQH46: 0 | FQI46: 0 | FQJ46: 0 | FQK46: 0 | FQL46: 0 | FQM46: 0 | FQN46: 0 | FQO46: 0 | FQP46: 0 | FQQ46: 0 | FQR46: 0 | FQS46: 0 | FQT46: 0 | FQU46: 0 | FQV46: 0 | FQW46: 0 | FQX46: 0 | FQY46: 0 | FQZ46: 0 | FRA46: 0 | FRB46: 0 | FRC46: 0 | FRD46: 0 | FRE46: 0 | FRF46: 0 | FRG46: 0 | FRH46: 0 | FRI46: 0 | FRJ46: 0 | FRK46: 0 | FRL46: 0 | FRM46: 0 | FRN46: 0 | FRO46: 0 | FRP46: 0 | FRQ46: 0 | FRR46: 0 | FRS46: 0 | FRT46: 0 | FRU46: 0 | FRV46: 0 | FRW46: 0 | FRX46: 0 | FRY46: 0 | FRZ46: 0 | FSA46: 0 | FSB46: 0 | FSC46: =1/$G$46*$F$46*FSC37 -> 0 | FSD46: 0 | FSE46: 0 | FSF46: 0 | FSG46: 0 | FSH46: 0 | FSI46: 0 | FSJ46: 0 | FSK46: 0 | FSL46: 0 | FSM46: 0 | FSN46: 0 | FSO46: 0 | FSP46: 0 | FSQ46: 0 | FSR46: 0 | FSS46: 0 | FST46: 0 | FSU46: 0 | FSV46: 0 | FSW46: 0 | FSX46: 0 | FSY46: 0 | FSZ46: 0 | FTA46: 0 | FTB46: 0 | FTC46: 0 | FTD46: 0 | FTE46: 0 | FTF46: 0 | FTG46: 0 | FTH46: 0 | FTI46: 0 | FTJ46: 0 | FTK46: 0 | FTL46: 0 | FTM46: 0 | FTN46: 0 | FTO46: 0 | FTP46: 0 | FTQ46: 0 | FTR46: 0 | FTS46: 0 | FTT46: 0 | FTU46: 0 | FTV46: 0 | FTW46: 0 | FTX46: 0 | FTY46: 0 | FTZ46: 0 | FUA46: 0 | FUB46: 0 | FUC46: 0 | FUD46: 0 | FUE46: 0 | FUF46: 0 | FUG46: 0 | FUH46: 0 | FUI46: 0 | FUJ46: 0 | FUK46: 0 | FUL46: 0 | FUM46: 0 | FUN46: 0 | FUO46: =1/$G$46*$F$46*FUO37 -> 0 | FUP46: 0 | FUQ46: 0 | FUR46: 0 | FUS46: 0 | FUT46: 0 | FUU46: 0 | FUV46: 0 | FUW46: 0 | FUX46: 0 | FUY46: 0 | FUZ46: 0 | FVA46: 0 | FVB46: 0 | FVC46: 0 | FVD46: 0 | FVE46: 0 | FVF46: 0 | FVG46: 0 | FVH46: 0 | FVI46: 0 | FVJ46: 0 | FVK46: 0 | FVL46: 0 | FVM46: 0 | FVN46: 0 | FVO46: 0 | FVP46: 0 | FVQ46: 0 | FVR46: 0 | FVS46: 0 | FVT46: 0 | FVU46: 0 | FVV46: 0 | FVW46: 0 | FVX46: 0 | FVY46: 0 | FVZ46: 0 | FWA46: 0 | FWB46: 0 | FWC46: 0 | FWD46: 0 | FWE46: 0 | FWF46: 0 | FWG46: 0 | FWH46: 0 | FWI46: 0 | FWJ46: 0 | FWK46: 0 | FWL46: 0 | FWM46: 0 | FWN46: 0 | FWO46: 0 | FWP46: 0 | FWQ46: 0 | FWR46: 0 | FWS46: 0 | FWT46: 0 | FWU46: 0 | FWV46: 0 | FWW46: 0 | FWX46: 0 | FWY46: 0 | FWZ46: 0 | FXA46: =1/$G$46*$F$46*FXA37 -> 0 | FXB46: 0 | FXC46: 0 | FXD46: 0 | FXE46: 0 | FXF46: 0 | FXG46: 0 | FXH46: 0 | FXI46: 0 | FXJ46: 0 | FXK46: 0 | FXL46: 0 | FXM46: 0 | FXN46: 0 | FXO46: 0 | FXP46: 0 | FXQ46: 0 | FXR46: 0 | FXS46: 0 | FXT46: 0 | FXU46: 0 | FXV46: 0 | FXW46: 0 | FXX46: 0 | FXY46: 0 | FXZ46: 0 | FYA46: 0 | FYB46: 0 | FYC46: 0 | FYD46: 0 | FYE46: 0 | FYF46: 0 | FYG46: 0 | FYH46: 0 | FYI46: 0 | FYJ46: 0 | FYK46: 0 | FYL46: 0 | FYM46: 0 | FYN46: 0 | FYO46: 0 | FYP46: 0 | FYQ46: 0 | FYR46: 0 | FYS46: 0 | FYT46: 0 | FYU46: 0 | FYV46: 0 | FYW46: 0 | FYX46: 0 | FYY46: 0 | FYZ46: 0 | FZA46: 0 | FZB46: 0 | FZC46: 0 | FZD46: 0 | FZE46: 0 | FZF46: 0 | FZG46: 0 | FZH46: 0 | FZI46: 0 | FZJ46: 0 | FZK46: 0 | FZL46: 0 | FZM46: =1/$G$46*$F$46*FZM37 -> 0 | FZN46: 0 | FZO46: 0 | FZP46: 0 | FZQ46: 0 | FZR46: 0 | FZS46: 0 | FZT46: 0 | FZU46: 0 | FZV46: 0 | FZW46: 0 | FZX46: 0 | FZY46: 0 | FZZ46: 0 | GAA46: 0 | GAB46: 0 | GAC46: 0 | GAD46: 0 | GAE46: 0 | GAF46: 0 | GAG46: 0 | GAH46: 0 | GAI46: 0 | GAJ46: 0 | GAK46: 0 | GAL46: 0 | GAM46: 0 | GAN46: 0 | GAO46: 0 | GAP46: 0 | GAQ46: 0 | GAR46: 0 | GAS46: 0 | GAT46: 0 | GAU46: 0 | GAV46: 0 | GAW46: 0 | GAX46: 0 | GAY46: 0 | GAZ46: 0 | GBA46: 0 | GBB46: 0 | GBC46: 0 | GBD46: 0 | GBE46: 0 | GBF46: 0 | GBG46: 0 | GBH46: 0 | GBI46: 0 | GBJ46: 0 | GBK46: 0 | GBL46: 0 | GBM46: 0 | GBN46: 0 | GBO46: 0 | GBP46: 0 | GBQ46: 0 | GBR46: 0 | GBS46: 0 | GBT46: 0 | GBU46: 0 | GBV46: 0 | GBW46: 0 | GBX46: 0 | GBY46: =1/$G$46*$F$46*GBY37 -> 0 | GBZ46: 0 | GCA46: 0 | GCB46: 0 | GCC46: 0 | GCD46: 0 | GCE46: 0 | GCF46: 0 | GCG46: 0 | GCH46: 0 | GCI46: 0 | GCJ46: 0 | GCK46: 0 | GCL46: 0 | GCM46: 0 | GCN46: 0 | GCO46: 0 | GCP46: 0 | GCQ46: 0 | GCR46: 0 | GCS46: 0 | GCT46: 0 | GCU46: 0 | GCV46: 0 | GCW46: 0 | GCX46: 0 | GCY46: 0 | GCZ46: 0 | GDA46: 0 | GDB46: 0 | GDC46: 0 | GDD46: 0 | GDE46: 0 | GDF46: 0 | GDG46: 0 | GDH46: 0 | GDI46: 0 | GDJ46: 0 | GDK46: 0 | GDL46: 0 | GDM46: 0 | GDN46: 0 | GDO46: 0 | GDP46: 0 | GDQ46: 0 | GDR46: 0 | GDS46: 0 | GDT46: 0 | GDU46: 0 | GDV46: 0 | GDW46: 0 | GDX46: 0 | GDY46: 0 | GDZ46: 0 | GEA46: 0 | GEB46: 0 | GEC46: 0 | GED46: 0 | GEE46: 0 | GEF46: 0 | GEG46: 0 | GEH46: 0 | GEI46: 0 | GEJ46: 0 | GEK46: =1/$G$46*$F$46*GEK37 -> 0 | GEL46: 0 | GEM46: 0 | GEN46: 0 | GEO46: 0 | GEP46: 0 | GEQ46: 0 | GER46: 0 | GES46: 0 | GET46: 0 | GEU46: 0 | GEV46: 0 | GEW46: 0 | GEX46: 0 | GEY46: 0 | GEZ46: 0 | GFA46: 0 | GFB46: 0 | GFC46: 0 | GFD46: 0 | GFE46: 0 | GFF46: 0 | GFG46: 0 | GFH46: 0 | GFI46: 0 | GFJ46: 0 | GFK46: 0 | GFL46: 0 | GFM46: 0 | GFN46: 0 | GFO46: 0 | GFP46: 0 | GFQ46: 0 | GFR46: 0 | GFS46: 0 | GFT46: 0 | GFU46: 0 | GFV46: 0 | GFW46: 0 | GFX46: 0 | GFY46: 0 | GFZ46: 0 | GGA46: 0 | GGB46: 0 | GGC46: 0 | GGD46: 0 | GGE46: 0 | GGF46: 0 | GGG46: 0 | GGH46: 0 | GGI46: 0 | GGJ46: 0 | GGK46: 0 | GGL46: 0 | GGM46: 0 | GGN46: 0 | GGO46: 0 | GGP46: 0 | GGQ46: 0 | GGR46: 0 | GGS46: 0 | GGT46: 0 | GGU46: 0 | GGV46: 0 | GGW46: =1/$G$46*$F$46*GGW37 -> 0 | GGX46: 0 | GGY46: 0 | GGZ46: 0 | GHA46: 0 | GHB46: 0 | GHC46: 0 | GHD46: 0 | GHE46: 0 | GHF46: 0 | GHG46: 0 | GHH46: 0 | GHI46: 0 | GHJ46: 0 | GHK46: 0 | GHL46: 0 | GHM46: 0 | GHN46: 0 | GHO46: 0 | GHP46: 0 | GHQ46: 0 | GHR46: 0 | GHS46: 0 | GHT46: 0 | GHU46: 0 | GHV46: 0 | GHW46: 0 | GHX46: 0 | GHY46: 0 | GHZ46: 0 | GIA46: 0 | GIB46: 0 | GIC46: 0 | GID46: 0 | GIE46: 0 | GIF46: 0 | GIG46: 0 | GIH46: 0 | GII46: 0 | GIJ46: 0 | GIK46: 0 | GIL46: 0 | GIM46: 0 | GIN46: 0 | GIO46: 0 | GIP46: 0 | GIQ46: 0 | GIR46: 0 | GIS46: 0 | GIT46: 0 | GIU46: 0 | GIV46: 0 | GIW46: 0 | GIX46: 0 | GIY46: 0 | GIZ46: 0 | GJA46: 0 | GJB46: 0 | GJC46: 0 | GJD46: 0 | GJE46: 0 | GJF46: 0 | GJG46: 0 | GJH46: 0 | GJI46: =1/$G$46*$F$46*GJI37 -> 0 | GJJ46: 0 | GJK46: 0 | GJL46: 0 | GJM46: 0 | GJN46: 0 | GJO46: 0 | GJP46: 0 | GJQ46: 0 | GJR46: 0 | GJS46: 0 | GJT46: 0 | GJU46: 0 | GJV46: 0 | GJW46: 0 | GJX46: 0 | GJY46: 0 | GJZ46: 0 | GKA46: 0 | GKB46: 0 | GKC46: 0 | GKD46: 0 | GKE46: 0 | GKF46: 0 | GKG46: 0 | GKH46: 0 | GKI46: 0 | GKJ46: 0 | GKK46: 0 | GKL46: 0 | GKM46: 0 | GKN46: 0 | GKO46: 0 | GKP46: 0 | GKQ46: 0 | GKR46: 0 | GKS46: 0 | GKT46: 0 | GKU46: 0 | GKV46: 0 | GKW46: 0 | GKX46: 0 | GKY46: 0 | GKZ46: 0 | GLA46: 0 | GLB46: 0 | GLC46: 0 | GLD46: 0 | GLE46: 0 | GLF46: 0 | GLG46: 0 | GLH46: 0 | GLI46: 0 | GLJ46: 0 | GLK46: 0 | GLL46: 0 | GLM46: 0 | GLN46: 0 | GLO46: 0 | GLP46: 0 | GLQ46: 0 | GLR46: 0 | GLS46: 0 | GLT46: 0 | GLU46: =1/$G$46*$F$46*GLU37 -> 0 | GLV46: 0 | GLW46: 0 | GLX46: 0 | GLY46: 0 | GLZ46: 0 | GMA46: 0 | GMB46: 0 | GMC46: 0 | GMD46: 0 | GME46: 0 | GMF46: 0 | GMG46: 0 | GMH46: 0 | GMI46: 0 | GMJ46: 0 | GMK46: 0 | GML46: 0 | GMM46: 0 | GMN46: 0 | GMO46: 0 | GMP46: 0 | GMQ46: 0 | GMR46: 0 | GMS46: 0 | GMT46: 0 | GMU46: 0 | GMV46: 0 | GMW46: 0 | GMX46: 0 | GMY46: 0 | GMZ46: 0 | GNA46: 0 | GNB46: 0 | GNC46: 0 | GND46: 0 | GNE46: 0 | GNF46: 0 | GNG46: 0 | GNH46: 0 | GNI46: 0 | GNJ46: 0 | GNK46: 0 | GNL46: 0 | GNM46: 0 | GNN46: 0 | GNO46: 0 | GNP46: 0 | GNQ46: 0 | GNR46: 0 | GNS46: 0 | GNT46: 0 | GNU46: 0 | GNV46: 0 | GNW46: 0 | GNX46: 0 | GNY46: 0 | GNZ46: 0 | GOA46: 0 | GOB46: 0 | GOC46: 0 | GOD46: 0 | GOE46: 0 | GOF46: 0 | GOG46: =1/$G$46*$F$46*GOG37 -> 0 | GOH46: 0 | GOI46: 0 | GOJ46: 0 | GOK46: 0 | GOL46: 0 | GOM46: 0 | GON46: 0 | GOO46: 0 | GOP46: 0 | GOQ46: 0 | GOR46: 0 | GOS46: 0 | GOT46: 0 | GOU46: 0 | GOV46: 0 | GOW46: 0 | GOX46: 0 | GOY46: 0 | GOZ46: 0 | GPA46: 0 | GPB46: 0 | GPC46: 0 | GPD46: 0 | GPE46: 0 | GPF46: 0 | GPG46: 0 | GPH46: 0 | GPI46: 0 | GPJ46: 0 | GPK46: 0 | GPL46: 0 | GPM46: 0 | GPN46: 0 | GPO46: 0 | GPP46: 0 | GPQ46: 0 | GPR46: 0 | GPS46: 0 | GPT46: 0 | GPU46: 0 | GPV46: 0 | GPW46: 0 | GPX46: 0 | GPY46: 0 | GPZ46: 0 | GQA46: 0 | GQB46: 0 | GQC46: 0 | GQD46: 0 | GQE46: 0 | GQF46: 0 | GQG46: 0 | GQH46: 0 | GQI46: 0 | GQJ46: 0 | GQK46: 0 | GQL46: 0 | GQM46: 0 | GQN46: 0 | GQO46: 0 | GQP46: 0 | GQQ46: 0 | GQR46: 0 | GQS46: =1/$G$46*$F$46*GQS37 -> 0 | GQT46: 0 | GQU46: 0 | GQV46: 0 | GQW46: 0 | GQX46: 0 | GQY46: 0 | GQZ46: 0 | GRA46: 0 | GRB46: 0 | GRC46: 0 | GRD46: 0 | GRE46: 0 | GRF46: 0 | GRG46: 0 | GRH46: 0 | GRI46: 0 | GRJ46: 0 | GRK46: 0 | GRL46: 0 | GRM46: 0 | GRN46: 0 | GRO46: 0 | GRP46: 0 | GRQ46: 0 | GRR46: 0 | GRS46: 0 | GRT46: 0 | GRU46: 0 | GRV46: 0 | GRW46: 0 | GRX46: 0 | GRY46: 0 | GRZ46: 0 | GSA46: 0 | GSB46: 0 | GSC46: 0 | GSD46: 0 | GSE46: 0 | GSF46: 0 | GSG46: 0 | GSH46: 0 | GSI46: 0 | GSJ46: 0 | GSK46: 0 | GSL46: 0 | GSM46: 0 | GSN46: 0 | GSO46: 0 | GSP46: 0 | GSQ46: 0 | GSR46: 0 | GSS46: 0 | GST46: 0 | GSU46: 0 | GSV46: 0 | GSW46: 0 | GSX46: 0 | GSY46: 0 | GSZ46: 0 | GTA46: 0 | GTB46: 0 | GTC46: 0 | GTD46: 0 | GTE46: =1/$G$46*$F$46*GTE37 -> 0 | GTF46: 0 | GTG46: 0 | GTH46: 0 | GTI46: 0 | GTJ46: 0 | GTK46: 0 | GTL46: 0 | GTM46: 0 | GTN46: 0 | GTO46: 0 | GTP46: 0 | GTQ46: 0 | GTR46: 0 | GTS46: 0 | GTT46: 0 | GTU46: 0 | GTV46: 0 | GTW46: 0 | GTX46: 0 | GTY46: 0 | GTZ46: 0 | GUA46: 0 | GUB46: 0 | GUC46: 0 | GUD46: 0 | GUE46: 0 | GUF46: 0 | GUG46: 0 | GUH46: 0 | GUI46: 0 | GUJ46: 0 | GUK46: 0 | GUL46: 0 | GUM46: 0 | GUN46: 0 | GUO46: 0 | GUP46: 0 | GUQ46: 0 | GUR46: 0 | GUS46: 0 | GUT46: 0 | GUU46: 0 | GUV46: 0 | GUW46: 0 | GUX46: 0 | GUY46: 0 | GUZ46: 0 | GVA46: 0 | GVB46: 0 | GVC46: 0 | GVD46: 0 | GVE46: 0 | GVF46: 0 | GVG46: 0 | GVH46: 0 | GVI46: 0 | GVJ46: 0 | GVK46: 0 | GVL46: 0 | GVM46: 0 | GVN46: 0 | GVO46: 0 | GVP46: 0 | GVQ46: =1/$G$46*$F$46*GVQ37 -> 0 | GVR46: 0 | GVS46: 0 | GVT46: 0 | GVU46: 0 | GVV46: 0 | GVW46: 0 | GVX46: 0 | GVY46: 0 | GVZ46: 0 | GWA46: 0 | GWB46: 0 | GWC46: 0 | GWD46: 0 | GWE46: 0 | GWF46: 0 | GWG46: 0 | GWH46: 0 | GWI46: 0 | GWJ46: 0 | GWK46: 0 | GWL46: 0 | GWM46: 0 | GWN46: 0 | GWO46: 0 | GWP46: 0 | GWQ46: 0 | GWR46: 0 | GWS46: 0 | GWT46: 0 | GWU46: 0 | GWV46: 0 | GWW46: 0 | GWX46: 0 | GWY46: 0 | GWZ46: 0 | GXA46: 0 | GXB46: 0 | GXC46: 0 | GXD46: 0 | GXE46: 0 | GXF46: 0 | GXG46: 0 | GXH46: 0 | GXI46: 0 | GXJ46: 0 | GXK46: 0 | GXL46: 0 | GXM46: 0 | GXN46: 0 | GXO46: 0 | GXP46: 0 | GXQ46: 0 | GXR46: 0 | GXS46: 0 | GXT46: 0 | GXU46: 0 | GXV46: 0 | GXW46: 0 | GXX46: 0 | GXY46: 0 | GXZ46: 0 | GYA46: 0 | GYB46: 0 | GYC46: =1/$G$46*$F$46*GYC37 -> 0 | GYD46: 0 | GYE46: 0 | GYF46: 0 | GYG46: 0 | GYH46: 0 | GYI46: 0 | GYJ46: 0 | GYK46: 0 | GYL46: 0 | GYM46: 0 | GYN46: 0 | GYO46: 0 | GYP46: 0 | GYQ46: 0 | GYR46: 0 | GYS46: 0 | GYT46: 0 | GYU46: 0 | GYV46: 0 | GYW46: 0 | GYX46: 0 | GYY46: 0 | GYZ46: 0 | GZA46: 0 | GZB46: 0 | GZC46: 0 | GZD46: 0 | GZE46: 0 | GZF46: 0 | GZG46: 0 | GZH46: 0 | GZI46: 0 | GZJ46: 0 | GZK46: 0 | GZL46: 0 | GZM46: 0 | GZN46: 0 | GZO46: 0 | GZP46: 0 | GZQ46: 0 | GZR46: 0 | GZS46: 0 | GZT46: 0 | GZU46: 0 | GZV46: 0 | GZW46: 0 | GZX46: 0 | GZY46: 0 | GZZ46: 0 | HAA46: 0 | HAB46: 0 | HAC46: 0 | HAD46: 0 | HAE46: 0 | HAF46: 0 | HAG46: 0 | HAH46: 0 | HAI46: 0 | HAJ46: 0 | HAK46: 0 | HAL46: 0 | HAM46: 0 | HAN46: 0 | HAO46: =1/$G$46*$F$46*HAO37 -> 0 | HAP46: 0 | HAQ46: 0 | HAR46: 0 | HAS46: 0 | HAT46: 0 | HAU46: 0 | HAV46: 0 | HAW46: 0 | HAX46: 0 | HAY46: 0 | HAZ46: 0 | HBA46: 0 | HBB46: 0 | HBC46: 0 | HBD46: 0 | HBE46: 0 | HBF46: 0 | HBG46: 0 | HBH46: 0 | HBI46: 0 | HBJ46: 0 | HBK46: 0 | HBL46: 0 | HBM46: 0 | HBN46: 0 | HBO46: 0 | HBP46: 0 | HBQ46: 0 | HBR46: 0 | HBS46: 0 | HBT46: 0 | HBU46: 0 | HBV46: 0 | HBW46: 0 | HBX46: 0 | HBY46: 0 | HBZ46: 0 | HCA46: 0 | HCB46: 0 | HCC46: 0 | HCD46: 0 | HCE46: 0 | HCF46: 0 | HCG46: 0 | HCH46: 0 | HCI46: 0 | HCJ46: 0 | HCK46: 0 | HCL46: 0 | HCM46: 0 | HCN46: 0 | HCO46: 0 | HCP46: 0 | HCQ46: 0 | HCR46: 0 | HCS46: 0 | HCT46: 0 | HCU46: 0 | HCV46: 0 | HCW46: 0 | HCX46: 0 | HCY46: 0 | HCZ46: 0 | HDA46: =1/$G$46*$F$46*HDA37 -> 0 | HDB46: 0 | HDC46: 0 | HDD46: 0 | HDE46: 0 | HDF46: 0 | HDG46: 0 | HDH46: 0 | HDI46: 0 | HDJ46: 0 | HDK46: 0 | HDL46: 0 | HDM46: 0 | HDN46: 0 | HDO46: 0 | HDP46: 0 | HDQ46: 0 | HDR46: 0 | HDS46: 0 | HDT46: 0 | HDU46: 0 | HDV46: 0 | HDW46: 0 | HDX46: 0 | HDY46: 0 | HDZ46: 0 | HEA46: 0 | HEB46: 0 | HEC46: 0 | HED46: 0 | HEE46: 0 | HEF46: 0 | HEG46: 0 | HEH46: 0 | HEI46: 0 | HEJ46: 0 | HEK46: 0 | HEL46: 0 | HEM46: 0 | HEN46: 0 | HEO46: 0 | HEP46: 0 | HEQ46: 0 | HER46: 0 | HES46: 0 | HET46: 0 | HEU46: 0 | HEV46: 0 | HEW46: 0 | HEX46: 0 | HEY46: 0 | HEZ46: 0 | HFA46: 0 | HFB46: 0 | HFC46: 0 | HFD46: 0 | HFE46: 0 | HFF46: 0 | HFG46: 0 | HFH46: 0 | HFI46: 0 | HFJ46: 0 | HFK46: 0 | HFL46: 0 | HFM46: =1/$G$46*$F$46*HFM37 -> 0 | HFN46: 0 | HFO46: 0 | HFP46: 0 | HFQ46: 0 | HFR46: 0 | HFS46: 0 | HFT46: 0 | HFU46: 0 | HFV46: 0 | HFW46: 0 | HFX46: 0 | HFY46: 0 | HFZ46: 0 | HGA46: 0 | HGB46: 0 | HGC46: 0 | HGD46: 0 | HGE46: 0 | HGF46: 0 | HGG46: 0 | HGH46: 0 | HGI46: 0 | HGJ46: 0 | HGK46: 0 | HGL46: 0 | HGM46: 0 | HGN46: 0 | HGO46: 0 | HGP46: 0 | HGQ46: 0 | HGR46: 0 | HGS46: 0 | HGT46: 0 | HGU46: 0 | HGV46: 0 | HGW46: 0 | HGX46: 0 | HGY46: 0 | HGZ46: 0 | HHA46: 0 | HHB46: 0 | HHC46: 0 | HHD46: 0 | HHE46: 0 | HHF46: 0 | HHG46: 0 | HHH46: 0 | HHI46: 0 | HHJ46: 0 | HHK46: 0 | HHL46: 0 | HHM46: 0 | HHN46: 0 | HHO46: 0 | HHP46: 0 | HHQ46: 0 | HHR46: 0 | HHS46: 0 | HHT46: 0 | HHU46: 0 | HHV46: 0 | HHW46: 0 | HHX46: 0 | HHY46: =1/$G$46*$F$46*HHY37 -> 0 | HHZ46: 0 | HIA46: 0 | HIB46: 0 | HIC46: 0 | HID46: 0 | HIE46: 0 | HIF46: 0 | HIG46: 0 | HIH46: 0 | HII46: 0 | HIJ46: 0 | HIK46: 0 | HIL46: 0 | HIM46: 0 | HIN46: 0 | HIO46: 0 | HIP46: 0 | HIQ46: 0 | HIR46: 0 | HIS46: 0 | HIT46: 0 | HIU46: 0 | HIV46: 0 | HIW46: 0 | HIX46: 0 | HIY46: 0 | HIZ46: 0 | HJA46: 0 | HJB46: 0 | HJC46: 0 | HJD46: 0 | HJE46: 0 | HJF46: 0 | HJG46: 0 | HJH46: 0 | HJI46: 0 | HJJ46: 0 | HJK46: 0 | HJL46: 0 | HJM46: 0 | HJN46: 0 | HJO46: 0 | HJP46: 0 | HJQ46: 0 | HJR46: 0 | HJS46: 0 | HJT46: 0 | HJU46: 0 | HJV46: 0 | HJW46: 0 | HJX46: 0 | HJY46: 0 | HJZ46: 0 | HKA46: 0 | HKB46: 0 | HKC46: 0 | HKD46: 0 | HKE46: 0 | HKF46: 0 | HKG46: 0 | HKH46: 0 | HKI46: 0 | HKJ46: 0 | HKK46: =1/$G$46*$F$46*HKK37 -> 0 | HKL46: 0 | HKM46: 0 | HKN46: 0 | HKO46: 0 | HKP46: 0 | HKQ46: 0 | HKR46: 0 | HKS46: 0 | HKT46: 0 | HKU46: 0 | HKV46: 0 | HKW46: 0 | HKX46: 0 | HKY46: 0 | HKZ46: 0 | HLA46: 0 | HLB46: 0 | HLC46: 0 | HLD46: 0 | HLE46: 0 | HLF46: 0 | HLG46: 0 | HLH46: 0 | HLI46: 0 | HLJ46: 0 | HLK46: 0 | HLL46: 0 | HLM46: 0 | HLN46: 0 | HLO46: 0 | HLP46: 0 | HLQ46: 0 | HLR46: 0 | HLS46: 0 | HLT46: 0 | HLU46: 0 | HLV46: 0 | HLW46: 0 | HLX46: 0 | HLY46: 0 | HLZ46: 0 | HMA46: 0 | HMB46: 0 | HMC46: 0 | HMD46: 0 | HME46: 0 | HMF46: 0 | HMG46: 0 | HMH46: 0 | HMI46: 0 | HMJ46: 0 | HMK46: 0 | HML46: 0 | HMM46: 0 | HMN46: 0 | HMO46: 0 | HMP46: 0 | HMQ46: 0 | HMR46: 0 | HMS46: 0 | HMT46: 0 | HMU46: 0 | HMV46: 0 | HMW46: =1/$G$46*$F$46*HMW37 -> 0 | HMX46: 0 | HMY46: 0 | HMZ46: 0 | HNA46: 0 | HNB46: 0 | HNC46: 0 | HND46: 0 | HNE46: 0 | HNF46: 0 | HNG46: 0 | HNH46: 0 | HNI46: 0 | HNJ46: 0 | HNK46: 0 | HNL46: 0 | HNM46: 0 | HNN46: 0 | HNO46: 0 | HNP46: 0 | HNQ46: 0 | HNR46: 0 | HNS46: 0 | HNT46: 0 | HNU46: 0 | HNV46: 0 | HNW46: 0 | HNX46: 0 | HNY46: 0 | HNZ46: 0 | HOA46: 0 | HOB46: 0 | HOC46: 0 | HOD46: 0 | HOE46: 0 | HOF46: 0 | HOG46: 0 | HOH46: 0 | HOI46: 0 | HOJ46: 0 | HOK46: 0 | HOL46: 0 | HOM46: 0 | HON46: 0 | HOO46: 0 | HOP46: 0 | HOQ46: 0 | HOR46: 0 | HOS46: 0 | HOT46: 0 | HOU46: 0 | HOV46: 0 | HOW46: 0 | HOX46: 0 | HOY46: 0 | HOZ46: 0 | HPA46: 0 | HPB46: 0 | HPC46: 0 | HPD46: 0 | HPE46: 0 | HPF46: 0 | HPG46: 0 | HPH46: 0 | HPI46: =1/$G$46*$F$46*HPI37 -> 0 | HPJ46: 0 | HPK46: 0 | HPL46: 0 | HPM46: 0 | HPN46: 0 | HPO46: 0 | HPP46: 0 | HPQ46: 0 | HPR46: 0 | HPS46: 0 | HPT46: 0 | HPU46: 0 | HPV46: 0 | HPW46: 0 | HPX46: 0 | HPY46: 0 | HPZ46: 0 | HQA46: 0 | HQB46: 0 | HQC46: 0 | HQD46: 0 | HQE46: 0 | HQF46: 0 | HQG46: 0 | HQH46: 0 | HQI46: 0 | HQJ46: 0 | HQK46: 0 | HQL46: 0 | HQM46: 0 | HQN46: 0 | HQO46: 0 | HQP46: 0 | HQQ46: 0 | HQR46: 0 | HQS46: 0 | HQT46: 0 | HQU46: 0 | HQV46: 0 | HQW46: 0 | HQX46: 0 | HQY46: 0 | HQZ46: 0 | HRA46: 0 | HRB46: 0 | HRC46: 0 | HRD46: 0 | HRE46: 0 | HRF46: 0 | HRG46: 0 | HRH46: 0 | HRI46: 0 | HRJ46: 0 | HRK46: 0 | HRL46: 0 | HRM46: 0 | HRN46: 0 | HRO46: 0 | HRP46: 0 | HRQ46: 0 | HRR46: 0 | HRS46: 0 | HRT46: 0 | HRU46: =1/$G$46*$F$46*HRU37 -> 0 | HRV46: 0 | HRW46: 0 | HRX46: 0 | HRY46: 0 | HRZ46: 0 | HSA46: 0 | HSB46: 0 | HSC46: 0 | HSD46: 0 | HSE46: 0 | HSF46: 0 | HSG46: 0 | HSH46: 0 | HSI46: 0 | HSJ46: 0 | HSK46: 0 | HSL46: 0 | HSM46: 0 | HSN46: 0 | HSO46: 0 | HSP46: 0 | HSQ46: 0 | HSR46: 0 | HSS46: 0 | HST46: 0 | HSU46: 0 | HSV46: 0 | HSW46: 0 | HSX46: 0 | HSY46: 0 | HSZ46: 0 | HTA46: 0 | HTB46: 0 | HTC46: 0 | HTD46: 0 | HTE46: 0 | HTF46: 0 | HTG46: 0 | HTH46: 0 | HTI46: 0 | HTJ46: 0 | HTK46: 0 | HTL46: 0 | HTM46: 0 | HTN46: 0 | HTO46: 0 | HTP46: 0 | HTQ46: 0 | HTR46: 0 | HTS46: 0 | HTT46: 0 | HTU46: 0 | HTV46: 0 | HTW46: 0 | HTX46: 0 | HTY46: 0 | HTZ46: 0 | HUA46: 0 | HUB46: 0 | HUC46: 0 | HUD46: 0 | HUE46: 0 | HUF46: 0 | HUG46: =1/$G$46*$F$46*HUG37 -> 0 | HUH46: 0 | HUI46: 0 | HUJ46: 0 | HUK46: 0 | HUL46: 0 | HUM46: 0 | HUN46: 0 | HUO46: 0 | HUP46: 0 | HUQ46: 0 | HUR46: 0 | HUS46: 0 | HUT46: 0 | HUU46: 0 | HUV46: 0 | HUW46: 0 | HUX46: 0 | HUY46: 0 | HUZ46: 0 | HVA46: 0 | HVB46: 0 | HVC46: 0 | HVD46: 0 | HVE46: 0 | HVF46: 0 | HVG46: 0 | HVH46: 0 | HVI46: 0 | HVJ46: 0 | HVK46: 0 | HVL46: 0 | HVM46: 0 | HVN46: 0 | HVO46: 0 | HVP46: 0 | HVQ46: 0 | HVR46: 0 | HVS46: 0 | HVT46: 0 | HVU46: 0 | HVV46: 0 | HVW46: 0 | HVX46: 0 | HVY46: 0 | HVZ46: 0 | HWA46: 0 | HWB46: 0 | HWC46: 0 | HWD46: 0 | HWE46: 0 | HWF46: 0 | HWG46: 0 | HWH46: 0 | HWI46: 0 | HWJ46: 0 | HWK46: 0 | HWL46: 0 | HWM46: 0 | HWN46: 0 | HWO46: 0 | HWP46: 0 | HWQ46: 0 | HWR46: 0 | HWS46: =1/$G$46*$F$46*HWS37 -> 0 | HWT46: 0 | HWU46: 0 | HWV46: 0 | HWW46: 0 | HWX46: 0 | HWY46: 0 | HWZ46: 0 | HXA46: 0 | HXB46: 0 | HXC46: 0 | HXD46: 0 | HXE46: 0 | HXF46: 0 | HXG46: 0 | HXH46: 0 | HXI46: 0 | HXJ46: 0 | HXK46: 0 | HXL46: 0 | HXM46: 0 | HXN46: 0 | HXO46: 0 | HXP46: 0 | HXQ46: 0 | HXR46: 0 | HXS46: 0 | HXT46: 0 | HXU46: 0 | HXV46: 0 | HXW46: 0 | HXX46: 0 | HXY46: 0 | HXZ46: 0 | HYA46: 0 | HYB46: 0 | HYC46: 0 | HYD46: 0 | HYE46: 0 | HYF46: 0 | HYG46: 0 | HYH46: 0 | HYI46: 0 | HYJ46: 0 | HYK46: 0 | HYL46: 0 | HYM46: 0 | HYN46: 0 | HYO46: 0 | HYP46: 0 | HYQ46: 0 | HYR46: 0 | HYS46: 0 | HYT46: 0 | HYU46: 0 | HYV46: 0 | HYW46: 0 | HYX46: 0 | HYY46: 0 | HYZ46: 0 | HZA46: 0 | HZB46: 0 | HZC46: 0 | HZD46: 0 | HZE46: =1/$G$46*$F$46*HZE37 -> 0 | HZF46: 0 | HZG46: 0 | HZH46: 0 | HZI46: 0 | HZJ46: 0 | HZK46: 0 | HZL46: 0 | HZM46: 0 | HZN46: 0 | HZO46: 0 | HZP46: 0 | HZQ46: 0 | HZR46: 0 | HZS46: 0 | HZT46: 0 | HZU46: 0 | HZV46: 0 | HZW46: 0 | HZX46: 0 | HZY46: 0 | HZZ46: 0 | IAA46: 0 | IAB46: 0 | IAC46: 0 | IAD46: 0 | IAE46: 0 | IAF46: 0 | IAG46: 0 | IAH46: 0 | IAI46: 0 | IAJ46: 0 | IAK46: 0 | IAL46: 0 | IAM46: 0 | IAN46: 0 | IAO46: 0 | IAP46: 0 | IAQ46: 0 | IAR46: 0 | IAS46: 0 | IAT46: 0 | IAU46: 0 | IAV46: 0 | IAW46: 0 | IAX46: 0 | IAY46: 0 | IAZ46: 0 | IBA46: 0 | IBB46: 0 | IBC46: 0 | IBD46: 0 | IBE46: 0 | IBF46: 0 | IBG46: 0 | IBH46: 0 | IBI46: 0 | IBJ46: 0 | IBK46: 0 | IBL46: 0 | IBM46: 0 | IBN46: 0 | IBO46: 0 | IBP46: 0 | IBQ46: =1/$G$46*$F$46*IBQ37 -> 0 | IBR46: 0 | IBS46: 0 | IBT46: 0 | IBU46: 0 | IBV46: 0 | IBW46: 0 | IBX46: 0 | IBY46: 0 | IBZ46: 0 | ICA46: 0 | ICB46: 0 | ICC46: 0 | ICD46: 0 | ICE46: 0 | ICF46: 0 | ICG46: 0 | ICH46: 0 | ICI46: 0 | ICJ46: 0 | ICK46: 0 | ICL46: 0 | ICM46: 0 | ICN46: 0 | ICO46: 0 | ICP46: 0 | ICQ46: 0 | ICR46: 0 | ICS46: 0 | ICT46: 0 | ICU46: 0 | ICV46: 0 | ICW46: 0 | ICX46: 0 | ICY46: 0 | ICZ46: 0 | IDA46: 0 | IDB46: 0 | IDC46: 0 | IDD46: 0 | IDE46: 0 | IDF46: 0 | IDG46: 0 | IDH46: 0 | IDI46: 0 | IDJ46: 0 | IDK46: 0 | IDL46: 0 | IDM46: 0 | IDN46: 0 | IDO46: 0 | IDP46: 0 | IDQ46: 0 | IDR46: 0 | IDS46: 0 | IDT46: 0 | IDU46: 0 | IDV46: 0 | IDW46: 0 | IDX46: 0 | IDY46: 0 | IDZ46: 0 | IEA46: 0 | IEB46: 0 | IEC46: =1/$G$46*$F$46*IEC37 -> 0 | IED46: 0 | IEE46: 0 | IEF46: 0 | IEG46: 0 | IEH46: 0 | IEI46: 0 | IEJ46: 0 | IEK46: 0 | IEL46: 0 | IEM46: 0 | IEN46: 0 | IEO46: 0 | IEP46: 0 | IEQ46: 0 | IER46: 0 | IES46: 0 | IET46: 0 | IEU46: 0 | IEV46: 0 | IEW46: 0 | IEX46: 0 | IEY46: 0 | IEZ46: 0 | IFA46: 0 | IFB46: 0 | IFC46: 0 | IFD46: 0 | IFE46: 0 | IFF46: 0 | IFG46: 0 | IFH46: 0 | IFI46: 0 | IFJ46: 0 | IFK46: 0 | IFL46: 0 | IFM46: 0 | IFN46: 0 | IFO46: 0 | IFP46: 0 | IFQ46: 0 | IFR46: 0 | IFS46: 0 | IFT46: 0 | IFU46: 0 | IFV46: 0 | IFW46: 0 | IFX46: 0 | IFY46: 0 | IFZ46: 0 | IGA46: 0 | IGB46: 0 | IGC46: 0 | IGD46: 0 | IGE46: 0 | IGF46: 0 | IGG46: 0 | IGH46: 0 | IGI46: 0 | IGJ46: 0 | IGK46: 0 | IGL46: 0 | IGM46: 0 | IGN46: 0 | IGO46: =1/$G$46*$F$46*IGO37 -> 0 | IGP46: 0 | IGQ46: 0 | IGR46: 0 | IGS46: 0 | IGT46: 0 | IGU46: 0 | IGV46: 0 | IGW46: 0 | IGX46: 0 | IGY46: 0 | IGZ46: 0 | IHA46: 0 | IHB46: 0 | IHC46: 0 | IHD46: 0 | IHE46: 0 | IHF46: 0 | IHG46: 0 | IHH46: 0 | IHI46: 0 | IHJ46: 0 | IHK46: 0 | IHL46: 0 | IHM46: 0 | IHN46: 0 | IHO46: 0 | IHP46: 0 | IHQ46: 0 | IHR46: 0 | IHS46: 0 | IHT46: 0 | IHU46: 0 | IHV46: 0 | IHW46: 0 | IHX46: 0 | IHY46: 0 | IHZ46: 0 | IIA46: 0 | IIB46: 0 | IIC46: 0 | IID46: 0 | IIE46: 0 | IIF46: 0 | IIG46: 0 | IIH46: 0 | III46: 0 | IIJ46: 0 | IIK46: 0 | IIL46: 0 | IIM46: 0 | IIN46: 0 | IIO46: 0 | IIP46: 0 | IIQ46: 0 | IIR46: 0 | IIS46: 0 | IIT46: 0 | IIU46: 0 | IIV46: 0 | IIW46: 0 | IIX46: 0 | IIY46: 0 | IIZ46: 0 | IJA46: =1/$G$46*$F$46*IJA37 -> 0 | IJB46: 0 | IJC46: 0 | IJD46: 0 | IJE46: 0 | IJF46: 0 | IJG46: 0 | IJH46: 0 | IJI46: 0 | IJJ46: 0 | IJK46: 0 | IJL46: 0 | IJM46: 0 | IJN46: 0 | IJO46: 0 | IJP46: 0 | IJQ46: 0 | IJR46: 0 | IJS46: 0 | IJT46: 0 | IJU46: 0 | IJV46: 0 | IJW46: 0 | IJX46: 0 | IJY46: 0 | IJZ46: 0 | IKA46: 0 | IKB46: 0 | IKC46: 0 | IKD46: 0 | IKE46: 0 | IKF46: 0 | IKG46: 0 | IKH46: 0 | IKI46: 0 | IKJ46: 0 | IKK46: 0 | IKL46: 0 | IKM46: 0 | IKN46: 0 | IKO46: 0 | IKP46: 0 | IKQ46: 0 | IKR46: 0 | IKS46: 0 | IKT46: 0 | IKU46: 0 | IKV46: 0 | IKW46: 0 | IKX46: 0 | IKY46: 0 | IKZ46: 0 | ILA46: 0 | ILB46: 0 | ILC46: 0 | ILD46: 0 | ILE46: 0 | ILF46: 0 | ILG46: 0 | ILH46: 0 | ILI46: 0 | ILJ46: 0 | ILK46: 0 | ILL46: 0 | ILM46: =1/$G$46*$F$46*ILM37 -> 0 | ILN46: 0 | ILO46: 0 | ILP46: 0 | ILQ46: 0 | ILR46: 0 | ILS46: 0 | ILT46: 0 | ILU46: 0 | ILV46: 0 | ILW46: 0 | ILX46: 0 | ILY46: 0 | ILZ46: 0 | IMA46: 0 | IMB46: 0 | IMC46: 0 | IMD46: 0 | IME46: 0 | IMF46: 0 | IMG46: 0 | IMH46: 0 | IMI46: 0 | IMJ46: 0 | IMK46: 0 | IML46: 0 | IMM46: 0 | IMN46: 0 | IMO46: 0 | IMP46: 0 | IMQ46: 0 | IMR46: 0 | IMS46: 0 | IMT46: 0 | IMU46: 0 | IMV46: 0 | IMW46: 0 | IMX46: 0 | IMY46: 0 | IMZ46: 0 | INA46: 0 | INB46: 0 | INC46: 0 | IND46: 0 | INE46: 0 | INF46: 0 | ING46: 0 | INH46: 0 | INI46: 0 | INJ46: 0 | INK46: 0 | INL46: 0 | INM46: 0 | INN46: 0 | INO46: 0 | INP46: 0 | INQ46: 0 | INR46: 0 | INS46: 0 | INT46: 0 | INU46: 0 | INV46: 0 | INW46: 0 | INX46: 0 | INY46: =1/$G$46*$F$46*INY37 -> 0 | INZ46: 0 | IOA46: 0 | IOB46: 0 | IOC46: 0 | IOD46: 0 | IOE46: 0 | IOF46: 0 | IOG46: 0 | IOH46: 0 | IOI46: 0 | IOJ46: 0 | IOK46: 0 | IOL46: 0 | IOM46: 0 | ION46: 0 | IOO46: 0 | IOP46: 0 | IOQ46: 0 | IOR46: 0 | IOS46: 0 | IOT46: 0 | IOU46: 0 | IOV46: 0 | IOW46: 0 | IOX46: 0 | IOY46: 0 | IOZ46: 0 | IPA46: 0 | IPB46: 0 | IPC46: 0 | IPD46: 0 | IPE46: 0 | IPF46: 0 | IPG46: 0 | IPH46: 0 | IPI46: 0 | IPJ46: 0 | IPK46: 0 | IPL46: 0 | IPM46: 0 | IPN46: 0 | IPO46: 0 | IPP46: 0 | IPQ46: 0 | IPR46: 0 | IPS46: 0 | IPT46: 0 | IPU46: 0 | IPV46: 0 | IPW46: 0 | IPX46: 0 | IPY46: 0 | IPZ46: 0 | IQA46: 0 | IQB46: 0 | IQC46: 0 | IQD46: 0 | IQE46: 0 | IQF46: 0 | IQG46: 0 | IQH46: 0 | IQI46: 0 | IQJ46: 0 | IQK46: =1/$G$46*$F$46*IQK37 -> 0 | IQL46: 0 | IQM46: 0 | IQN46: 0 | IQO46: 0 | IQP46: 0 | IQQ46: 0 | IQR46: 0 | IQS46: 0 | IQT46: 0 | IQU46: 0 | IQV46: 0 | IQW46: 0 | IQX46: 0 | IQY46: 0 | IQZ46: 0 | IRA46: 0 | IRB46: 0 | IRC46: 0 | IRD46: 0 | IRE46: 0 | IRF46: 0 | IRG46: 0 | IRH46: 0 | IRI46: 0 | IRJ46: 0 | IRK46: 0 | IRL46: 0 | IRM46: 0 | IRN46: 0 | IRO46: 0 | IRP46: 0 | IRQ46: 0 | IRR46: 0 | IRS46: 0 | IRT46: 0 | IRU46: 0 | IRV46: 0 | IRW46: 0 | IRX46: 0 | IRY46: 0 | IRZ46: 0 | ISA46: 0 | ISB46: 0 | ISC46: 0 | ISD46: 0 | ISE46: 0 | ISF46: 0 | ISG46: 0 | ISH46: 0 | ISI46: 0 | ISJ46: 0 | ISK46: 0 | ISL46: 0 | ISM46: 0 | ISN46: 0 | ISO46: 0 | ISP46: 0 | ISQ46: 0 | ISR46: 0 | ISS46: 0 | IST46: 0 | ISU46: 0 | ISV46: 0 | ISW46: =1/$G$46*$F$46*ISW37 -> 0 | ISX46: 0 | ISY46: 0 | ISZ46: 0 | ITA46: 0 | ITB46: 0 | ITC46: 0 | ITD46: 0 | ITE46: 0 | ITF46: 0 | ITG46: 0 | ITH46: 0 | ITI46: 0 | ITJ46: 0 | ITK46: 0 | ITL46: 0 | ITM46: 0 | ITN46: 0 | ITO46: 0 | ITP46: 0 | ITQ46: 0 | ITR46: 0 | ITS46: 0 | ITT46: 0 | ITU46: 0 | ITV46: 0 | ITW46: 0 | ITX46: 0 | ITY46: 0 | ITZ46: 0 | IUA46: 0 | IUB46: 0 | IUC46: 0 | IUD46: 0 | IUE46: 0 | IUF46: 0 | IUG46: 0 | IUH46: 0 | IUI46: 0 | IUJ46: 0 | IUK46: 0 | IUL46: 0 | IUM46: 0 | IUN46: 0 | IUO46: 0 | IUP46: 0 | IUQ46: 0 | IUR46: 0 | IUS46: 0 | IUT46: 0 | IUU46: 0 | IUV46: 0 | IUW46: 0 | IUX46: 0 | IUY46: 0 | IUZ46: 0 | IVA46: 0 | IVB46: 0 | IVC46: 0 | IVD46: 0 | IVE46: 0 | IVF46: 0 | IVG46: 0 | IVH46: 0 | IVI46: =1/$G$46*$F$46*IVI37 -> 0 | IVJ46: 0 | IVK46: 0 | IVL46: 0 | IVM46: 0 | IVN46: 0 | IVO46: 0 | IVP46: 0 | IVQ46: 0 | IVR46: 0 | IVS46: 0 | IVT46: 0 | IVU46: 0 | IVV46: 0 | IVW46: 0 | IVX46: 0 | IVY46: 0 | IVZ46: 0 | IWA46: 0 | IWB46: 0 | IWC46: 0 | IWD46: 0 | IWE46: 0 | IWF46: 0 | IWG46: 0 | IWH46: 0 | IWI46: 0 | IWJ46: 0 | IWK46: 0 | IWL46: 0 | IWM46: 0 | IWN46: 0 | IWO46: 0 | IWP46: 0 | IWQ46: 0 | IWR46: 0 | IWS46: 0 | IWT46: 0 | IWU46: 0 | IWV46: 0 | IWW46: 0 | IWX46: 0 | IWY46: 0 | IWZ46: 0 | IXA46: 0 | IXB46: 0 | IXC46: 0 | IXD46: 0 | IXE46: 0 | IXF46: 0 | IXG46: 0 | IXH46: 0 | IXI46: 0 | IXJ46: 0 | IXK46: 0 | IXL46: 0 | IXM46: 0 | IXN46: 0 | IXO46: 0 | IXP46: 0 | IXQ46: 0 | IXR46: 0 | IXS46: 0 | IXT46: 0 | IXU46: =1/$G$46*$F$46*IXU37 -> 0 | IXV46: 0 | IXW46: 0 | IXX46: 0 | IXY46: 0 | IXZ46: 0 | IYA46: 0 | IYB46: 0 | IYC46: 0 | IYD46: 0 | IYE46: 0 | IYF46: 0 | IYG46: 0 | IYH46: 0 | IYI46: 0 | IYJ46: 0 | IYK46: 0 | IYL46: 0 | IYM46: 0 | IYN46: 0 | IYO46: 0 | IYP46: 0 | IYQ46: 0 | IYR46: 0 | IYS46: 0 | IYT46: 0 | IYU46: 0 | IYV46: 0 | IYW46: 0 | IYX46: 0 | IYY46: 0 | IYZ46: 0 | IZA46: 0 | IZB46: 0 | IZC46: 0 | IZD46: 0 | IZE46: 0 | IZF46: 0 | IZG46: 0 | IZH46: 0 | IZI46: 0 | IZJ46: 0 | IZK46: 0 | IZL46: 0 | IZM46: 0 | IZN46: 0 | IZO46: 0 | IZP46: 0 | IZQ46: 0 | IZR46: 0 | IZS46: 0 | IZT46: 0 | IZU46: 0 | IZV46: 0 | IZW46: 0 | IZX46: 0 | IZY46: 0 | IZZ46: 0 | JAA46: 0 | JAB46: 0 | JAC46: 0 | JAD46: 0 | JAE46: 0 | JAF46: 0 | JAG46: =1/$G$46*$F$46*JAG37 -> 0 | JAH46: 0 | JAI46: 0 | JAJ46: 0 | JAK46: 0 | JAL46: 0 | JAM46: 0 | JAN46: 0 | JAO46: 0 | JAP46: 0 | JAQ46: 0 | JAR46: 0 | JAS46: 0 | JAT46: 0 | JAU46: 0 | JAV46: 0 | JAW46: 0 | JAX46: 0 | JAY46: 0 | JAZ46: 0 | JBA46: 0 | JBB46: 0 | JBC46: 0 | JBD46: 0 | JBE46: 0 | JBF46: 0 | JBG46: 0 | JBH46: 0 | JBI46: 0 | JBJ46: 0 | JBK46: 0 | JBL46: 0 | JBM46: 0 | JBN46: 0 | JBO46: 0 | JBP46: 0 | JBQ46: 0 | JBR46: 0 | JBS46: 0 | JBT46: 0 | JBU46: 0 | JBV46: 0 | JBW46: 0 | JBX46: 0 | JBY46: 0 | JBZ46: 0 | JCA46: 0 | JCB46: 0 | JCC46: 0 | JCD46: 0 | JCE46: 0 | JCF46: 0 | JCG46: 0 | JCH46: 0 | JCI46: 0 | JCJ46: 0 | JCK46: 0 | JCL46: 0 | JCM46: 0 | JCN46: 0 | JCO46: 0 | JCP46: 0 | JCQ46: 0 | JCR46: 0 | JCS46: =1/$G$46*$F$46*JCS37 -> 0 | JCT46: 0 | JCU46: 0 | JCV46: 0 | JCW46: 0 | JCX46: 0 | JCY46: 0 | JCZ46: 0 | JDA46: 0 | JDB46: 0 | JDC46: 0 | JDD46: 0 | JDE46: 0 | JDF46: 0 | JDG46: 0 | JDH46: 0 | JDI46: 0 | JDJ46: 0 | JDK46: 0 | JDL46: 0 | JDM46: 0 | JDN46: 0 | JDO46: 0 | JDP46: 0 | JDQ46: 0 | JDR46: 0 | JDS46: 0 | JDT46: 0 | JDU46: 0 | JDV46: 0 | JDW46: 0 | JDX46: 0 | JDY46: 0 | JDZ46: 0 | JEA46: 0 | JEB46: 0 | JEC46: 0 | JED46: 0 | JEE46: 0 | JEF46: 0 | JEG46: 0 | JEH46: 0 | JEI46: 0 | JEJ46: 0 | JEK46: 0 | JEL46: 0 | JEM46: 0 | JEN46: 0 | JEO46: 0 | JEP46: 0 | JEQ46: 0 | JER46: 0 | JES46: 0 | JET46: 0 | JEU46: 0 | JEV46: 0 | JEW46: 0 | JEX46: 0 | JEY46: 0 | JEZ46: 0 | JFA46: 0 | JFB46: 0 | JFC46: 0 | JFD46: 0 | JFE46: =1/$G$46*$F$46*JFE37 -> 0 | JFF46: 0 | JFG46: 0 | JFH46: 0 | JFI46: 0 | JFJ46: 0 | JFK46: 0 | JFL46: 0 | JFM46: 0 | JFN46: 0 | JFO46: 0 | JFP46: 0 | JFQ46: 0 | JFR46: 0 | JFS46: 0 | JFT46: 0 | JFU46: 0 | JFV46: 0 | JFW46: 0 | JFX46: 0 | JFY46: 0 | JFZ46: 0 | JGA46: 0 | JGB46: 0 | JGC46: 0 | JGD46: 0 | JGE46: 0 | JGF46: 0 | JGG46: 0 | JGH46: 0 | JGI46: 0 | JGJ46: 0 | JGK46: 0 | JGL46: 0 | JGM46: 0 | JGN46: 0 | JGO46: 0 | JGP46: 0 | JGQ46: 0 | JGR46: 0 | JGS46: 0 | JGT46: 0 | JGU46: 0 | JGV46: 0 | JGW46: 0 | JGX46: 0 | JGY46: 0 | JGZ46: 0 | JHA46: 0 | JHB46: 0 | JHC46: 0 | JHD46: 0 | JHE46: 0 | JHF46: 0 | JHG46: 0 | JHH46: 0 | JHI46: 0 | JHJ46: 0 | JHK46: 0 | JHL46: 0 | JHM46: 0 | JHN46: 0 | JHO46: 0 | JHP46: 0 | JHQ46: =1/$G$46*$F$46*JHQ37 -> 0 | JHR46: 0 | JHS46: 0 | JHT46: 0 | JHU46: 0 | JHV46: 0 | JHW46: 0 | JHX46: 0 | JHY46: 0 | JHZ46: 0 | JIA46: 0 | JIB46: 0 | JIC46: 0 | JID46: 0 | JIE46: 0 | JIF46: 0 | JIG46: 0 | JIH46: 0 | JII46: 0 | JIJ46: 0 | JIK46: 0 | JIL46: 0 | JIM46: 0 | JIN46: 0 | JIO46: 0 | JIP46: 0 | JIQ46: 0 | JIR46: 0 | JIS46: 0 | JIT46: 0 | JIU46: 0 | JIV46: 0 | JIW46: 0 | JIX46: 0 | JIY46: 0 | JIZ46: 0 | JJA46: 0 | JJB46: 0 | JJC46: 0 | JJD46: 0 | JJE46: 0 | JJF46: 0 | JJG46: 0 | JJH46: 0 | JJI46: 0 | JJJ46: 0 | JJK46: 0 | JJL46: 0 | JJM46: 0 | JJN46: 0 | JJO46: 0 | JJP46: 0 | JJQ46: 0 | JJR46: 0 | JJS46: 0 | JJT46: 0 | JJU46: 0 | JJV46: 0 | JJW46: 0 | JJX46: 0 | JJY46: 0 | JJZ46: 0 | JKA46: 0 | JKB46: 0 | JKC46: =1/$G$46*$F$46*JKC37 -> 0 | JKD46: 0 | JKE46: 0 | JKF46: 0 | JKG46: 0 | JKH46: 0 | JKI46: 0 | JKJ46: 0 | JKK46: 0 | JKL46: 0 | JKM46: 0 | JKN46: 0 | JKO46: 0 | JKP46: 0 | JKQ46: 0 | JKR46: 0 | JKS46: 0 | JKT46: 0 | JKU46: 0 | JKV46: 0 | JKW46: 0 | JKX46: 0 | JKY46: 0 | JKZ46: 0 | JLA46: 0 | JLB46: 0 | JLC46: 0 | JLD46: 0 | JLE46: 0 | JLF46: 0 | JLG46: 0 | JLH46: 0 | JLI46: 0 | JLJ46: 0 | JLK46: 0 | JLL46: 0 | JLM46: 0 | JLN46: 0 | JLO46: 0 | JLP46: 0 | JLQ46: 0 | JLR46: 0 | JLS46: 0 | JLT46: 0 | JLU46: 0 | JLV46: 0 | JLW46: 0 | JLX46: 0 | JLY46: 0 | JLZ46: 0 | JMA46: 0 | JMB46: 0 | JMC46: 0 | JMD46: 0 | JME46: 0 | JMF46: 0 | JMG46: 0 | JMH46: 0 | JMI46: 0 | JMJ46: 0 | JMK46: 0 | JML46: 0 | JMM46: 0 | JMN46: 0 | JMO46: =1/$G$46*$F$46*JMO37 -> 0 | JMP46: 0 | JMQ46: 0 | JMR46: 0 | JMS46: 0 | JMT46: 0 | JMU46: 0 | JMV46: 0 | JMW46: 0 | JMX46: 0 | JMY46: 0 | JMZ46: 0 | JNA46: 0 | JNB46: 0 | JNC46: 0 | JND46: 0 | JNE46: 0 | JNF46: 0 | JNG46: 0 | JNH46: 0 | JNI46: 0 | JNJ46: 0 | JNK46: 0 | JNL46: 0 | JNM46: 0 | JNN46: 0 | JNO46: 0 | JNP46: 0 | JNQ46: 0 | JNR46: 0 | JNS46: 0 | JNT46: 0 | JNU46: 0 | JNV46: 0 | JNW46: 0 | JNX46: 0 | JNY46: 0 | JNZ46: 0 | JOA46: 0 | JOB46: 0 | JOC46: 0 | JOD46: 0 | JOE46: 0 | JOF46: 0 | JOG46: 0 | JOH46: 0 | JOI46: 0 | JOJ46: 0 | JOK46: 0 | JOL46: 0 | JOM46: 0 | JON46: 0 | JOO46: 0 | JOP46: 0 | JOQ46: 0 | JOR46: 0 | JOS46: 0 | JOT46: 0 | JOU46: 0 | JOV46: 0 | JOW46: 0 | JOX46: 0 | JOY46: 0 | JOZ46: 0 | JPA46: =1/$G$46*$F$46*JPA37 -> 0 | JPB46: 0 | JPC46: 0 | JPD46: 0 | JPE46: 0 | JPF46: 0 | JPG46: 0 | JPH46: 0 | JPI46: 0 | JPJ46: 0 | JPK46: 0 | JPL46: 0 | JPM46: 0 | JPN46: 0 | JPO46: 0 | JPP46: 0 | JPQ46: 0 | JPR46: 0 | JPS46: 0 | JPT46: 0 | JPU46: 0 | JPV46: 0 | JPW46: 0 | JPX46: 0 | JPY46: 0 | JPZ46: 0 | JQA46: 0 | JQB46: 0 | JQC46: 0 | JQD46: 0 | JQE46: 0 | JQF46: 0 | JQG46: 0 | JQH46: 0 | JQI46: 0 | JQJ46: 0 | JQK46: 0 | JQL46: 0 | JQM46: 0 | JQN46: 0 | JQO46: 0 | JQP46: 0 | JQQ46: 0 | JQR46: 0 | JQS46: 0 | JQT46: 0 | JQU46: 0 | JQV46: 0 | JQW46: 0 | JQX46: 0 | JQY46: 0 | JQZ46: 0 | JRA46: 0 | JRB46: 0 | JRC46: 0 | JRD46: 0 | JRE46: 0 | JRF46: 0 | JRG46: 0 | JRH46: 0 | JRI46: 0 | JRJ46: 0 | JRK46: 0 | JRL46: 0 | JRM46: =1/$G$46*$F$46*JRM37 -> 0 | JRN46: 0 | JRO46: 0 | JRP46: 0 | JRQ46: 0 | JRR46: 0 | JRS46: 0 | JRT46: 0 | JRU46: 0 | JRV46: 0 | JRW46: 0 | JRX46: 0 | JRY46: 0 | JRZ46: 0 | JSA46: 0 | JSB46: 0 | JSC46: 0 | JSD46: 0 | JSE46: 0 | JSF46: 0 | JSG46: 0 | JSH46: 0 | JSI46: 0 | JSJ46: 0 | JSK46: 0 | JSL46: 0 | JSM46: 0 | JSN46: 0 | JSO46: 0 | JSP46: 0 | JSQ46: 0 | JSR46: 0 | JSS46: 0 | JST46: 0 | JSU46: 0 | JSV46: 0 | JSW46: 0 | JSX46: 0 | JSY46: 0 | JSZ46: 0 | JTA46: 0 | JTB46: 0 | JTC46: 0 | JTD46: 0 | JTE46: 0 | JTF46: 0 | JTG46: 0 | JTH46: 0 | JTI46: 0 | JTJ46: 0 | JTK46: 0 | JTL46: 0 | JTM46: 0 | JTN46: 0 | JTO46: 0 | JTP46: 0 | JTQ46: 0 | JTR46: 0 | JTS46: 0 | JTT46: 0 | JTU46: 0 | JTV46: 0 | JTW46: 0 | JTX46: 0 | JTY46: =1/$G$46*$F$46*JTY37 -> 0 | JTZ46: 0 | JUA46: 0 | JUB46: 0 | JUC46: 0 | JUD46: 0 | JUE46: 0 | JUF46: 0 | JUG46: 0 | JUH46: 0 | JUI46: 0 | JUJ46: 0 | JUK46: 0 | JUL46: 0 | JUM46: 0 | JUN46: 0 | JUO46: 0 | JUP46: 0 | JUQ46: 0 | JUR46: 0 | JUS46: 0 | JUT46: 0 | JUU46: 0 | JUV46: 0 | JUW46: 0 | JUX46: 0 | JUY46: 0 | JUZ46: 0 | JVA46: 0 | JVB46: 0 | JVC46: 0 | JVD46: 0 | JVE46: 0 | JVF46: 0 | JVG46: 0 | JVH46: 0 | JVI46: 0 | JVJ46: 0 | JVK46: 0 | JVL46: 0 | JVM46: 0 | JVN46: 0 | JVO46: 0 | JVP46: 0 | JVQ46: 0 | JVR46: 0 | JVS46: 0 | JVT46: 0 | JVU46: 0 | JVV46: 0 | JVW46: 0 | JVX46: 0 | JVY46: 0 | JVZ46: 0 | JWA46: 0 | JWB46: 0 | JWC46: 0 | JWD46: 0 | JWE46: 0 | JWF46: 0 | JWG46: 0 | JWH46: 0 | JWI46: 0 | JWJ46: 0 | JWK46: =1/$G$46*$F$46*JWK37 -> 0 | JWL46: 0 | JWM46: 0 | JWN46: 0 | JWO46: 0 | JWP46: 0 | JWQ46: 0 | JWR46: 0 | JWS46: 0 | JWT46: 0 | JWU46: 0 | JWV46: 0 | JWW46: 0 | JWX46: 0 | JWY46: 0 | JWZ46: 0 | JXA46: 0 | JXB46: 0 | JXC46: 0 | JXD46: 0 | JXE46: 0 | JXF46: 0 | JXG46: 0 | JXH46: 0 | JXI46: 0 | JXJ46: 0 | JXK46: 0 | JXL46: 0 | JXM46: 0 | JXN46: 0 | JXO46: 0 | JXP46: 0 | JXQ46: 0 | JXR46: 0 | JXS46: 0 | JXT46: 0 | JXU46: 0 | JXV46: 0 | JXW46: 0 | JXX46: 0 | JXY46: 0 | JXZ46: 0 | JYA46: 0 | JYB46: 0 | JYC46: 0 | JYD46: 0 | JYE46: 0 | JYF46: 0 | JYG46: 0 | JYH46: 0 | JYI46: 0 | JYJ46: 0 | JYK46: 0 | JYL46: 0 | JYM46: 0 | JYN46: 0 | JYO46: 0 | JYP46: 0 | JYQ46: 0 | JYR46: 0 | JYS46: 0 | JYT46: 0 | JYU46: 0 | JYV46: 0 | JYW46: =1/$G$46*$F$46*JYW37 -> 0 | JYX46: 0 | JYY46: 0 | JYZ46: 0 | JZA46: 0 | JZB46: 0 | JZC46: 0 | JZD46: 0 | JZE46: 0 | JZF46: 0 | JZG46: 0 | JZH46: 0 | JZI46: 0 | JZJ46: 0 | JZK46: 0 | JZL46: 0 | JZM46: 0 | JZN46: 0 | JZO46: 0 | JZP46: 0 | JZQ46: 0 | JZR46: 0 | JZS46: 0 | JZT46: 0 | JZU46: 0 | JZV46: 0 | JZW46: 0 | JZX46: 0 | JZY46: 0 | JZZ46: 0 | KAA46: 0 | KAB46: 0 | KAC46: 0 | KAD46: 0 | KAE46: 0 | KAF46: 0 | KAG46: 0 | KAH46: 0 | KAI46: 0 | KAJ46: 0 | KAK46: 0 | KAL46: 0 | KAM46: 0 | KAN46: 0 | KAO46: 0 | KAP46: 0 | KAQ46: 0 | KAR46: 0 | KAS46: 0 | KAT46: 0 | KAU46: 0 | KAV46: 0 | KAW46: 0 | KAX46: 0 | KAY46: 0 | KAZ46: 0 | KBA46: 0 | KBB46: 0 | KBC46: 0 | KBD46: 0 | KBE46: 0 | KBF46: 0 | KBG46: 0 | KBH46: 0 | KBI46: =1/$G$46*$F$46*KBI37 -> 0 | KBJ46: 0 | KBK46: 0 | KBL46: 0 | KBM46: 0 | KBN46: 0 | KBO46: 0 | KBP46: 0 | KBQ46: 0 | KBR46: 0 | KBS46: 0 | KBT46: 0 | KBU46: 0 | KBV46: 0 | KBW46: 0 | KBX46: 0 | KBY46: 0 | KBZ46: 0 | KCA46: 0 | KCB46: 0 | KCC46: 0 | KCD46: 0 | KCE46: 0 | KCF46: 0 | KCG46: 0 | KCH46: 0 | KCI46: 0 | KCJ46: 0 | KCK46: 0 | KCL46: 0 | KCM46: 0 | KCN46: 0 | KCO46: 0 | KCP46: 0 | KCQ46: 0 | KCR46: 0 | KCS46: 0 | KCT46: 0 | KCU46: 0 | KCV46: 0 | KCW46: 0 | KCX46: 0 | KCY46: 0 | KCZ46: 0 | KDA46: 0 | KDB46: 0 | KDC46: 0 | KDD46: 0 | KDE46: 0 | KDF46: 0 | KDG46: 0 | KDH46: 0 | KDI46: 0 | KDJ46: 0 | KDK46: 0 | KDL46: 0 | KDM46: 0 | KDN46: 0 | KDO46: 0 | KDP46: 0 | KDQ46: 0 | KDR46: 0 | KDS46: 0 | KDT46: 0 | KDU46: =1/$G$46*$F$46*KDU37 -> 0 | KDV46: 0 | KDW46: 0 | KDX46: 0 | KDY46: 0 | KDZ46: 0 | KEA46: 0 | KEB46: 0 | KEC46: 0 | KED46: 0 | KEE46: 0 | KEF46: 0 | KEG46: 0 | KEH46: 0 | KEI46: 0 | KEJ46: 0 | KEK46: 0 | KEL46: 0 | KEM46: 0 | KEN46: 0 | KEO46: 0 | KEP46: 0 | KEQ46: 0 | KER46: 0 | KES46: 0 | KET46: 0 | KEU46: 0 | KEV46: 0 | KEW46: 0 | KEX46: 0 | KEY46: 0 | KEZ46: 0 | KFA46: 0 | KFB46: 0 | KFC46: 0 | KFD46: 0 | KFE46: 0 | KFF46: 0 | KFG46: 0 | KFH46: 0 | KFI46: 0 | KFJ46: 0 | KFK46: 0 | KFL46: 0 | KFM46: 0 | KFN46: 0 | KFO46: 0 | KFP46: 0 | KFQ46: 0 | KFR46: 0 | KFS46: 0 | KFT46: 0 | KFU46: 0 | KFV46: 0 | KFW46: 0 | KFX46: 0 | KFY46: 0 | KFZ46: 0 | KGA46: 0 | KGB46: 0 | KGC46: 0 | KGD46: 0 | KGE46: 0 | KGF46: 0 | KGG46: =1/$G$46*$F$46*KGG37 -> 0 | KGH46: 0 | KGI46: 0 | KGJ46: 0 | KGK46: 0 | KGL46: 0 | KGM46: 0 | KGN46: 0 | KGO46: 0 | KGP46: 0 | KGQ46: 0 | KGR46: 0 | KGS46: 0 | KGT46: 0 | KGU46: 0 | KGV46: 0 | KGW46: 0 | KGX46: 0 | KGY46: 0 | KGZ46: 0 | KHA46: 0 | KHB46: 0 | KHC46: 0 | KHD46: 0 | KHE46: 0 | KHF46: 0 | KHG46: 0 | KHH46: 0 | KHI46: 0 | KHJ46: 0 | KHK46: 0 | KHL46: 0 | KHM46: 0 | KHN46: 0 | KHO46: 0 | KHP46: 0 | KHQ46: 0 | KHR46: 0 | KHS46: 0 | KHT46: 0 | KHU46: 0 | KHV46: 0 | KHW46: 0 | KHX46: 0 | KHY46: 0 | KHZ46: 0 | KIA46: 0 | KIB46: 0 | KIC46: 0 | KID46: 0 | KIE46: 0 | KIF46: 0 | KIG46: 0 | KIH46: 0 | KII46: 0 | KIJ46: 0 | KIK46: 0 | KIL46: 0 | KIM46: 0 | KIN46: 0 | KIO46: 0 | KIP46: 0 | KIQ46: 0 | KIR46: 0 | KIS46: =1/$G$46*$F$46*KIS37 -> 0 | KIT46: 0 | KIU46: 0 | KIV46: 0 | KIW46: 0 | KIX46: 0 | KIY46: 0 | KIZ46: 0 | KJA46: 0 | KJB46: 0 | KJC46: 0 | KJD46: 0 | KJE46: 0 | KJF46: 0 | KJG46: 0 | KJH46: 0 | KJI46: 0 | KJJ46: 0 | KJK46: 0 | KJL46: 0 | KJM46: 0 | KJN46: 0 | KJO46: 0 | KJP46: 0 | KJQ46: 0 | KJR46: 0 | KJS46: 0 | KJT46: 0 | KJU46: 0 | KJV46: 0 | KJW46: 0 | KJX46: 0 | KJY46: 0 | KJZ46: 0 | KKA46: 0 | KKB46: 0 | KKC46: 0 | KKD46: 0 | KKE46: 0 | KKF46: 0 | KKG46: 0 | KKH46: 0 | KKI46: 0 | KKJ46: 0 | KKK46: 0 | KKL46: 0 | KKM46: 0 | KKN46: 0 | KKO46: 0 | KKP46: 0 | KKQ46: 0 | KKR46: 0 | KKS46: 0 | KKT46: 0 | KKU46: 0 | KKV46: 0 | KKW46: 0 | KKX46: 0 | KKY46: 0 | KKZ46: 0 | KLA46: 0 | KLB46: 0 | KLC46: 0 | KLD46: 0 | KLE46: =1/$G$46*$F$46*KLE37 -> 0 | KLF46: 0 | KLG46: 0 | KLH46: 0 | KLI46: 0 | KLJ46: 0 | KLK46: 0 | KLL46: 0 | KLM46: 0 | KLN46: 0 | KLO46: 0 | KLP46: 0 | KLQ46: 0 | KLR46: 0 | KLS46: 0 | KLT46: 0 | KLU46: 0 | KLV46: 0 | KLW46: 0 | KLX46: 0 | KLY46: 0 | KLZ46: 0 | KMA46: 0 | KMB46: 0 | KMC46: 0 | KMD46: 0 | KME46: 0 | KMF46: 0 | KMG46: 0 | KMH46: 0 | KMI46: 0 | KMJ46: 0 | KMK46: 0 | KML46: 0 | KMM46: 0 | KMN46: 0 | KMO46: 0 | KMP46: 0 | KMQ46: 0 | KMR46: 0 | KMS46: 0 | KMT46: 0 | KMU46: 0 | KMV46: 0 | KMW46: 0 | KMX46: 0 | KMY46: 0 | KMZ46: 0 | KNA46: 0 | KNB46: 0 | KNC46: 0 | KND46: 0 | KNE46: 0 | KNF46: 0 | KNG46: 0 | KNH46: 0 | KNI46: 0 | KNJ46: 0 | KNK46: 0 | KNL46: 0 | KNM46: 0 | KNN46: 0 | KNO46: 0 | KNP46: 0 | KNQ46: =1/$G$46*$F$46*KNQ37 -> 0 | KNR46: 0 | KNS46: 0 | KNT46: 0 | KNU46: 0 | KNV46: 0 | KNW46: 0 | KNX46: 0 | KNY46: 0 | KNZ46: 0 | KOA46: 0 | KOB46: 0 | KOC46: 0 | KOD46: 0 | KOE46: 0 | KOF46: 0 | KOG46: 0 | KOH46: 0 | KOI46: 0 | KOJ46: 0 | KOK46: 0 | KOL46: 0 | KOM46: 0 | KON46: 0 | KOO46: 0 | KOP46: 0 | KOQ46: 0 | KOR46: 0 | KOS46: 0 | KOT46: 0 | KOU46: 0 | KOV46: 0 | KOW46: 0 | KOX46: 0 | KOY46: 0 | KOZ46: 0 | KPA46: 0 | KPB46: 0 | KPC46: 0 | KPD46: 0 | KPE46: 0 | KPF46: 0 | KPG46: 0 | KPH46: 0 | KPI46: 0 | KPJ46: 0 | KPK46: 0 | KPL46: 0 | KPM46: 0 | KPN46: 0 | KPO46: 0 | KPP46: 0 | KPQ46: 0 | KPR46: 0 | KPS46: 0 | KPT46: 0 | KPU46: 0 | KPV46: 0 | KPW46: 0 | KPX46: 0 | KPY46: 0 | KPZ46: 0 | KQA46: 0 | KQB46: 0 | KQC46: =1/$G$46*$F$46*KQC37 -> 0 | KQD46: 0 | KQE46: 0 | KQF46: 0 | KQG46: 0 | KQH46: 0 | KQI46: 0 | KQJ46: 0 | KQK46: 0 | KQL46: 0 | KQM46: 0 | KQN46: 0 | KQO46: 0 | KQP46: 0 | KQQ46: 0 | KQR46: 0 | KQS46: 0 | KQT46: 0 | KQU46: 0 | KQV46: 0 | KQW46: 0 | KQX46: 0 | KQY46: 0 | KQZ46: 0 | KRA46: 0 | KRB46: 0 | KRC46: 0 | KRD46: 0 | KRE46: 0 | KRF46: 0 | KRG46: 0 | KRH46: 0 | KRI46: 0 | KRJ46: 0 | KRK46: 0 | KRL46: 0 | KRM46: 0 | KRN46: 0 | KRO46: 0 | KRP46: 0 | KRQ46: 0 | KRR46: 0 | KRS46: 0 | KRT46: 0 | KRU46: 0 | KRV46: 0 | KRW46: 0 | KRX46: 0 | KRY46: 0 | KRZ46: 0 | KSA46: 0 | KSB46: 0 | KSC46: 0 | KSD46: 0 | KSE46: 0 | KSF46: 0 | KSG46: 0 | KSH46: 0 | KSI46: 0 | KSJ46: 0 | KSK46: 0 | KSL46: 0 | KSM46: 0 | KSN46: 0 | KSO46: =1/$G$46*$F$46*KSO37 -> 0 | KSP46: 0 | KSQ46: 0 | KSR46: 0 | KSS46: 0 | KST46: 0 | KSU46: 0 | KSV46: 0 | KSW46: 0 | KSX46: 0 | KSY46: 0 | KSZ46: 0 | KTA46: 0 | KTB46: 0 | KTC46: 0 | KTD46: 0 | KTE46: 0 | KTF46: 0 | KTG46: 0 | KTH46: 0 | KTI46: 0 | KTJ46: 0 | KTK46: 0 | KTL46: 0 | KTM46: 0 | KTN46: 0 | KTO46: 0 | KTP46: 0 | KTQ46: 0 | KTR46: 0 | KTS46: 0 | KTT46: 0 | KTU46: 0 | KTV46: 0 | KTW46: 0 | KTX46: 0 | KTY46: 0 | KTZ46: 0 | KUA46: 0 | KUB46: 0 | KUC46: 0 | KUD46: 0 | KUE46: 0 | KUF46: 0 | KUG46: 0 | KUH46: 0 | KUI46: 0 | KUJ46: 0 | KUK46: 0 | KUL46: 0 | KUM46: 0 | KUN46: 0 | KUO46: 0 | KUP46: 0 | KUQ46: 0 | KUR46: 0 | KUS46: 0 | KUT46: 0 | KUU46: 0 | KUV46: 0 | KUW46: 0 | KUX46: 0 | KUY46: 0 | KUZ46: 0 | KVA46: =1/$G$46*$F$46*KVA37 -> 0 | KVB46: 0 | KVC46: 0 | KVD46: 0 | KVE46: 0 | KVF46: 0 | KVG46: 0 | KVH46: 0 | KVI46: 0 | KVJ46: 0 | KVK46: 0 | KVL46: 0 | KVM46: 0 | KVN46: 0 | KVO46: 0 | KVP46: 0 | KVQ46: 0 | KVR46: 0 | KVS46: 0 | KVT46: 0 | KVU46: 0 | KVV46: 0 | KVW46: 0 | KVX46: 0 | KVY46: 0 | KVZ46: 0 | KWA46: 0 | KWB46: 0 | KWC46: 0 | KWD46: 0 | KWE46: 0 | KWF46: 0 | KWG46: 0 | KWH46: 0 | KWI46: 0 | KWJ46: 0 | KWK46: 0 | KWL46: 0 | KWM46: 0 | KWN46: 0 | KWO46: 0 | KWP46: 0 | KWQ46: 0 | KWR46: 0 | KWS46: 0 | KWT46: 0 | KWU46: 0 | KWV46: 0 | KWW46: 0 | KWX46: 0 | KWY46: 0 | KWZ46: 0 | KXA46: 0 | KXB46: 0 | KXC46: 0 | KXD46: 0 | KXE46: 0 | KXF46: 0 | KXG46: 0 | KXH46: 0 | KXI46: 0 | KXJ46: 0 | KXK46: 0 | KXL46: 0 | KXM46: =1/$G$46*$F$46*KXM37 -> 0 | KXN46: 0 | KXO46: 0 | KXP46: 0 | KXQ46: 0 | KXR46: 0 | KXS46: 0 | KXT46: 0 | KXU46: 0 | KXV46: 0 | KXW46: 0 | KXX46: 0 | KXY46: 0 | KXZ46: 0 | KYA46: 0 | KYB46: 0 | KYC46: 0 | KYD46: 0 | KYE46: 0 | KYF46: 0 | KYG46: 0 | KYH46: 0 | KYI46: 0 | KYJ46: 0 | KYK46: 0 | KYL46: 0 | KYM46: 0 | KYN46: 0 | KYO46: 0 | KYP46: 0 | KYQ46: 0 | KYR46: 0 | KYS46: 0 | KYT46: 0 | KYU46: 0 | KYV46: 0 | KYW46: 0 | KYX46: 0 | KYY46: 0 | KYZ46: 0 | KZA46: 0 | KZB46: 0 | KZC46: 0 | KZD46: 0 | KZE46: 0 | KZF46: 0 | KZG46: 0 | KZH46: 0 | KZI46: 0 | KZJ46: 0 | KZK46: 0 | KZL46: 0 | KZM46: 0 | KZN46: 0 | KZO46: 0 | KZP46: 0 | KZQ46: 0 | KZR46: 0 | KZS46: 0 | KZT46: 0 | KZU46: 0 | KZV46: 0 | KZW46: 0 | KZX46: 0 | KZY46: =1/$G$46*$F$46*KZY37 -> 0 | KZZ46: 0 | LAA46: 0 | LAB46: 0 | LAC46: 0 | LAD46: 0 | LAE46: 0 | LAF46: 0 | LAG46: 0 | LAH46: 0 | LAI46: 0 | LAJ46: 0 | LAK46: 0 | LAL46: 0 | LAM46: 0 | LAN46: 0 | LAO46: 0 | LAP46: 0 | LAQ46: 0 | LAR46: 0 | LAS46: 0 | LAT46: 0 | LAU46: 0 | LAV46: 0 | LAW46: 0 | LAX46: 0 | LAY46: 0 | LAZ46: 0 | LBA46: 0 | LBB46: 0 | LBC46: 0 | LBD46: 0 | LBE46: 0 | LBF46: 0 | LBG46: 0 | LBH46: 0 | LBI46: 0 | LBJ46: 0 | LBK46: 0 | LBL46: 0 | LBM46: 0 | LBN46: 0 | LBO46: 0 | LBP46: 0 | LBQ46: 0 | LBR46: 0 | LBS46: 0 | LBT46: 0 | LBU46: 0 | LBV46: 0 | LBW46: 0 | LBX46: 0 | LBY46: 0 | LBZ46: 0 | LCA46: 0 | LCB46: 0 | LCC46: 0 | LCD46: 0 | LCE46: 0 | LCF46: 0 | LCG46: 0 | LCH46: 0 | LCI46: 0 | LCJ46: 0 | LCK46: =1/$G$46*$F$46*LCK37 -> 0 | LCL46: 0 | LCM46: 0 | LCN46: 0 | LCO46: 0 | LCP46: 0 | LCQ46: 0 | LCR46: 0 | LCS46: 0 | LCT46: 0 | LCU46: 0 | LCV46: 0 | LCW46: 0 | LCX46: 0 | LCY46: 0 | LCZ46: 0 | LDA46: 0 | LDB46: 0 | LDC46: 0 | LDD46: 0 | LDE46: 0 | LDF46: 0 | LDG46: 0 | LDH46: 0 | LDI46: 0 | LDJ46: 0 | LDK46: 0 | LDL46: 0 | LDM46: 0 | LDN46: 0 | LDO46: 0 | LDP46: 0 | LDQ46: 0 | LDR46: 0 | LDS46: 0 | LDT46: 0 | LDU46: 0 | LDV46: 0 | LDW46: 0 | LDX46: 0 | LDY46: 0 | LDZ46: 0 | LEA46: 0 | LEB46: 0 | LEC46: 0 | LED46: 0 | LEE46: 0 | LEF46: 0 | LEG46: 0 | LEH46: 0 | LEI46: 0 | LEJ46: 0 | LEK46: 0 | LEL46: 0 | LEM46: 0 | LEN46: 0 | LEO46: 0 | LEP46: 0 | LEQ46: 0 | LER46: 0 | LES46: 0 | LET46: 0 | LEU46: 0 | LEV46: 0 | LEW46: =1/$G$46*$F$46*LEW37 -> 0 | LEX46: 0 | LEY46: 0 | LEZ46: 0 | LFA46: 0 | LFB46: 0 | LFC46: 0 | LFD46: 0 | LFE46: 0 | LFF46: 0 | LFG46: 0 | LFH46: 0 | LFI46: 0 | LFJ46: 0 | LFK46: 0 | LFL46: 0 | LFM46: 0 | LFN46: 0 | LFO46: 0 | LFP46: 0 | LFQ46: 0 | LFR46: 0 | LFS46: 0 | LFT46: 0 | LFU46: 0 | LFV46: 0 | LFW46: 0 | LFX46: 0 | LFY46: 0 | LFZ46: 0 | LGA46: 0 | LGB46: 0 | LGC46: 0 | LGD46: 0 | LGE46: 0 | LGF46: 0 | LGG46: 0 | LGH46: 0 | LGI46: 0 | LGJ46: 0 | LGK46: 0 | LGL46: 0 | LGM46: 0 | LGN46: 0 | LGO46: 0 | LGP46: 0 | LGQ46: 0 | LGR46: 0 | LGS46: 0 | LGT46: 0 | LGU46: 0 | LGV46: 0 | LGW46: 0 | LGX46: 0 | LGY46: 0 | LGZ46: 0 | LHA46: 0 | LHB46: 0 | LHC46: 0 | LHD46: 0 | LHE46: 0 | LHF46: 0 | LHG46: 0 | LHH46: 0 | LHI46: =1/$G$46*$F$46*LHI37 -> 0 | LHJ46: 0 | LHK46: 0 | LHL46: 0 | LHM46: 0 | LHN46: 0 | LHO46: 0 | LHP46: 0 | LHQ46: 0 | LHR46: 0 | LHS46: 0 | LHT46: 0 | LHU46: 0 | LHV46: 0 | LHW46: 0 | LHX46: 0 | LHY46: 0 | LHZ46: 0 | LIA46: 0 | LIB46: 0 | LIC46: 0 | LID46: 0 | LIE46: 0 | LIF46: 0 | LIG46: 0 | LIH46: 0 | LII46: 0 | LIJ46: 0 | LIK46: 0 | LIL46: 0 | LIM46: 0 | LIN46: 0 | LIO46: 0 | LIP46: 0 | LIQ46: 0 | LIR46: 0 | LIS46: 0 | LIT46: 0 | LIU46: 0 | LIV46: 0 | LIW46: 0 | LIX46: 0 | LIY46: 0 | LIZ46: 0 | LJA46: 0 | LJB46: 0 | LJC46: 0 | LJD46: 0 | LJE46: 0 | LJF46: 0 | LJG46: 0 | LJH46: 0 | LJI46: 0 | LJJ46: 0 | LJK46: 0 | LJL46: 0 | LJM46: 0 | LJN46: 0 | LJO46: 0 | LJP46: 0 | LJQ46: 0 | LJR46: 0 | LJS46: 0 | LJT46: 0 | LJU46: =1/$G$46*$F$46*LJU37 -> 0 | LJV46: 0 | LJW46: 0 | LJX46: 0 | LJY46: 0 | LJZ46: 0 | LKA46: 0 | LKB46: 0 | LKC46: 0 | LKD46: 0 | LKE46: 0 | LKF46: 0 | LKG46: 0 | LKH46: 0 | LKI46: 0 | LKJ46: 0 | LKK46: 0 | LKL46: 0 | LKM46: 0 | LKN46: 0 | LKO46: 0 | LKP46: 0 | LKQ46: 0 | LKR46: 0 | LKS46: 0 | LKT46: 0 | LKU46: 0 | LKV46: 0 | LKW46: 0 | LKX46: 0 | LKY46: 0 | LKZ46: 0 | LLA46: 0 | LLB46: 0 | LLC46: 0 | LLD46: 0 | LLE46: 0 | LLF46: 0 | LLG46: 0 | LLH46: 0 | LLI46: 0 | LLJ46: 0 | LLK46: 0 | LLL46: 0 | LLM46: 0 | LLN46: 0 | LLO46: 0 | LLP46: 0 | LLQ46: 0 | LLR46: 0 | LLS46: 0 | LLT46: 0 | LLU46: 0 | LLV46: 0 | LLW46: 0 | LLX46: 0 | LLY46: 0 | LLZ46: 0 | LMA46: 0 | LMB46: 0 | LMC46: 0 | LMD46: 0 | LME46: 0 | LMF46: 0 | LMG46: =1/$G$46*$F$46*LMG37 -> 0 | LMH46: 0 | LMI46: 0 | LMJ46: 0 | LMK46: 0 | LML46: 0 | LMM46: 0 | LMN46: 0 | LMO46: 0 | LMP46: 0 | LMQ46: 0 | LMR46: 0 | LMS46: 0 | LMT46: 0 | LMU46: 0 | LMV46: 0 | LMW46: 0 | LMX46: 0 | LMY46: 0 | LMZ46: 0 | LNA46: 0 | LNB46: 0 | LNC46: 0 | LND46: 0 | LNE46: 0 | LNF46: 0 | LNG46: 0 | LNH46: 0 | LNI46: 0 | LNJ46: 0 | LNK46: 0 | LNL46: 0 | LNM46: 0 | LNN46: 0 | LNO46: 0 | LNP46: 0 | LNQ46: 0 | LNR46: 0 | LNS46: 0 | LNT46: 0 | LNU46: 0 | LNV46: 0 | LNW46: 0 | LNX46: 0 | LNY46: 0 | LNZ46: 0 | LOA46: 0 | LOB46: 0 | LOC46: 0 | LOD46: 0 | LOE46: 0 | LOF46: 0 | LOG46: 0 | LOH46: 0 | LOI46: 0 | LOJ46: 0 | LOK46: 0 | LOL46: 0 | LOM46: 0 | LON46: 0 | LOO46: 0 | LOP46: 0 | LOQ46: 0 | LOR46: 0 | LOS46: =1/$G$46*$F$46*LOS37 -> 0 | LOT46: 0 | LOU46: 0 | LOV46: 0 | LOW46: 0 | LOX46: 0 | LOY46: 0 | LOZ46: 0 | LPA46: 0 | LPB46: 0 | LPC46: 0 | LPD46: 0 | LPE46: 0 | LPF46: 0 | LPG46: 0 | LPH46: 0 | LPI46: 0 | LPJ46: 0 | LPK46: 0 | LPL46: 0 | LPM46: 0 | LPN46: 0 | LPO46: 0 | LPP46: 0 | LPQ46: 0 | LPR46: 0 | LPS46: 0 | LPT46: 0 | LPU46: 0 | LPV46: 0 | LPW46: 0 | LPX46: 0 | LPY46: 0 | LPZ46: 0 | LQA46: 0 | LQB46: 0 | LQC46: 0 | LQD46: 0 | LQE46: 0 | LQF46: 0 | LQG46: 0 | LQH46: 0 | LQI46: 0 | LQJ46: 0 | LQK46: 0 | LQL46: 0 | LQM46: 0 | LQN46: 0 | LQO46: 0 | LQP46: 0 | LQQ46: 0 | LQR46: 0 | LQS46: 0 | LQT46: 0 | LQU46: 0 | LQV46: 0 | LQW46: 0 | LQX46: 0 | LQY46: 0 | LQZ46: 0 | LRA46: 0 | LRB46: 0 | LRC46: 0 | LRD46: 0 | LRE46: =1/$G$46*$F$46*LRE37 -> 0 | LRF46: 0 | LRG46: 0 | LRH46: 0 | LRI46: 0 | LRJ46: 0 | LRK46: 0 | LRL46: 0 | LRM46: 0 | LRN46: 0 | LRO46: 0 | LRP46: 0 | LRQ46: 0 | LRR46: 0 | LRS46: 0 | LRT46: 0 | LRU46: 0 | LRV46: 0 | LRW46: 0 | LRX46: 0 | LRY46: 0 | LRZ46: 0 | LSA46: 0 | LSB46: 0 | LSC46: 0 | LSD46: 0 | LSE46: 0 | LSF46: 0 | LSG46: 0 | LSH46: 0 | LSI46: 0 | LSJ46: 0 | LSK46: 0 | LSL46: 0 | LSM46: 0 | LSN46: 0 | LSO46: 0 | LSP46: 0 | LSQ46: 0 | LSR46: 0 | LSS46: 0 | LST46: 0 | LSU46: 0 | LSV46: 0 | LSW46: 0 | LSX46: 0 | LSY46: 0 | LSZ46: 0 | LTA46: 0 | LTB46: 0 | LTC46: 0 | LTD46: 0 | LTE46: 0 | LTF46: 0 | LTG46: 0 | LTH46: 0 | LTI46: 0 | LTJ46: 0 | LTK46: 0 | LTL46: 0 | LTM46: 0 | LTN46: 0 | LTO46: 0 | LTP46: 0 | LTQ46: =1/$G$46*$F$46*LTQ37 -> 0 | LTR46: 0 | LTS46: 0 | LTT46: 0 | LTU46: 0 | LTV46: 0 | LTW46: 0 | LTX46: 0 | LTY46: 0 | LTZ46: 0 | LUA46: 0 | LUB46: 0 | LUC46: 0 | LUD46: 0 | LUE46: 0 | LUF46: 0 | LUG46: 0 | LUH46: 0 | LUI46: 0 | LUJ46: 0 | LUK46: 0 | LUL46: 0 | LUM46: 0 | LUN46: 0 | LUO46: 0 | LUP46: 0 | LUQ46: 0 | LUR46: 0 | LUS46: 0 | LUT46: 0 | LUU46: 0 | LUV46: 0 | LUW46: 0 | LUX46: 0 | LUY46: 0 | LUZ46: 0 | LVA46: 0 | LVB46: 0 | LVC46: 0 | LVD46: 0 | LVE46: 0 | LVF46: 0 | LVG46: 0 | LVH46: 0 | LVI46: 0 | LVJ46: 0 | LVK46: 0 | LVL46: 0 | LVM46: 0 | LVN46: 0 | LVO46: 0 | LVP46: 0 | LVQ46: 0 | LVR46: 0 | LVS46: 0 | LVT46: 0 | LVU46: 0 | LVV46: 0 | LVW46: 0 | LVX46: 0 | LVY46: 0 | LVZ46: 0 | LWA46: 0 | LWB46: 0 | LWC46: =1/$G$46*$F$46*LWC37 -> 0 | LWD46: 0 | LWE46: 0 | LWF46: 0 | LWG46: 0 | LWH46: 0 | LWI46: 0 | LWJ46: 0 | LWK46: 0 | LWL46: 0 | LWM46: 0 | LWN46: 0 | LWO46: 0 | LWP46: 0 | LWQ46: 0 | LWR46: 0 | LWS46: 0 | LWT46: 0 | LWU46: 0 | LWV46: 0 | LWW46: 0 | LWX46: 0 | LWY46: 0 | LWZ46: 0 | LXA46: 0 | LXB46: 0 | LXC46: 0 | LXD46: 0 | LXE46: 0 | LXF46: 0 | LXG46: 0 | LXH46: 0 | LXI46: 0 | LXJ46: 0 | LXK46: 0 | LXL46: 0 | LXM46: 0 | LXN46: 0 | LXO46: 0 | LXP46: 0 | LXQ46: 0 | LXR46: 0 | LXS46: 0 | LXT46: 0 | LXU46: 0 | LXV46: 0 | LXW46: 0 | LXX46: 0 | LXY46: 0 | LXZ46: 0 | LYA46: 0 | LYB46: 0 | LYC46: 0 | LYD46: 0 | LYE46: 0 | LYF46: 0 | LYG46: 0 | LYH46: 0 | LYI46: 0 | LYJ46: 0 | LYK46: 0 | LYL46: 0 | LYM46: 0 | LYN46: 0 | LYO46: =1/$G$46*$F$46*LYO37 -> 0 | LYP46: 0 | LYQ46: 0 | LYR46: 0 | LYS46: 0 | LYT46: 0 | LYU46: 0 | LYV46: 0 | LYW46: 0 | LYX46: 0 | LYY46: 0 | LYZ46: 0 | LZA46: 0 | LZB46: 0 | LZC46: 0 | LZD46: 0 | LZE46: 0 | LZF46: 0 | LZG46: 0 | LZH46: 0 | LZI46: 0 | LZJ46: 0 | LZK46: 0 | LZL46: 0 | LZM46: 0 | LZN46: 0 | LZO46: 0 | LZP46: 0 | LZQ46: 0 | LZR46: 0 | LZS46: 0 | LZT46: 0 | LZU46: 0 | LZV46: 0 | LZW46: 0 | LZX46: 0 | LZY46: 0 | LZZ46: 0 | MAA46: 0 | MAB46: 0 | MAC46: 0 | MAD46: 0 | MAE46: 0 | MAF46: 0 | MAG46: 0 | MAH46: 0 | MAI46: 0 | MAJ46: 0 | MAK46: 0 | MAL46: 0 | MAM46: 0 | MAN46: 0 | MAO46: 0 | MAP46: 0 | MAQ46: 0 | MAR46: 0 | MAS46: 0 | MAT46: 0 | MAU46: 0 | MAV46: 0 | MAW46: 0 | MAX46: 0 | MAY46: 0 | MAZ46: 0 | MBA46: =1/$G$46*$F$46*MBA37 -> 0 | MBB46: 0 | MBC46: 0 | MBD46: 0 | MBE46: 0 | MBF46: 0 | MBG46: 0 | MBH46: 0 | MBI46: 0 | MBJ46: 0 | MBK46: 0 | MBL46: 0 | MBM46: 0 | MBN46: 0 | MBO46: 0 | MBP46: 0 | MBQ46: 0 | MBR46: 0 | MBS46: 0 | MBT46: 0 | MBU46: 0 | MBV46: 0 | MBW46: 0 | MBX46: 0 | MBY46: 0 | MBZ46: 0 | MCA46: 0 | MCB46: 0 | MCC46: 0 | MCD46: 0 | MCE46: 0 | MCF46: 0 | MCG46: 0 | MCH46: 0 | MCI46: 0 | MCJ46: 0 | MCK46: 0 | MCL46: 0 | MCM46: 0 | MCN46: 0 | MCO46: 0 | MCP46: 0 | MCQ46: 0 | MCR46: 0 | MCS46: 0 | MCT46: 0 | MCU46: 0 | MCV46: 0 | MCW46: 0 | MCX46: 0 | MCY46: 0 | MCZ46: 0 | MDA46: 0 | MDB46: 0 | MDC46: 0 | MDD46: 0 | MDE46: 0 | MDF46: 0 | MDG46: 0 | MDH46: 0 | MDI46: 0 | MDJ46: 0 | MDK46: 0 | MDL46: 0 | MDM46: =1/$G$46*$F$46*MDM37 -> 0 | MDN46: 0 | MDO46: 0 | MDP46: 0 | MDQ46: 0 | MDR46: 0 | MDS46: 0 | MDT46: 0 | MDU46: 0 | MDV46: 0 | MDW46: 0 | MDX46: 0 | MDY46: 0 | MDZ46: 0 | MEA46: 0 | MEB46: 0 | MEC46: 0 | MED46: 0 | MEE46: 0 | MEF46: 0 | MEG46: 0 | MEH46: 0 | MEI46: 0 | MEJ46: 0 | MEK46: 0 | MEL46: 0 | MEM46: 0 | MEN46: 0 | MEO46: 0 | MEP46: 0 | MEQ46: 0 | MER46: 0 | MES46: 0 | MET46: 0 | MEU46: 0 | MEV46: 0 | MEW46: 0 | MEX46: 0 | MEY46: 0 | MEZ46: 0 | MFA46: 0 | MFB46: 0 | MFC46: 0 | MFD46: 0 | MFE46: 0 | MFF46: 0 | MFG46: 0 | MFH46: 0 | MFI46: 0 | MFJ46: 0 | MFK46: 0 | MFL46: 0 | MFM46: 0 | MFN46: 0 | MFO46: 0 | MFP46: 0 | MFQ46: 0 | MFR46: 0 | MFS46: 0 | MFT46: 0 | MFU46: 0 | MFV46: 0 | MFW46: 0 | MFX46: 0 | MFY46: =1/$G$46*$F$46*MFY37 -> 0 | MFZ46: 0 | MGA46: 0 | MGB46: 0 | MGC46: 0 | MGD46: 0 | MGE46: 0 | MGF46: 0 | MGG46: 0 | MGH46: 0 | MGI46: 0 | MGJ46: 0 | MGK46: 0 | MGL46: 0 | MGM46: 0 | MGN46: 0 | MGO46: 0 | MGP46: 0 | MGQ46: 0 | MGR46: 0 | MGS46: 0 | MGT46: 0 | MGU46: 0 | MGV46: 0 | MGW46: 0 | MGX46: 0 | MGY46: 0 | MGZ46: 0 | MHA46: 0 | MHB46: 0 | MHC46: 0 | MHD46: 0 | MHE46: 0 | MHF46: 0 | MHG46: 0 | MHH46: 0 | MHI46: 0 | MHJ46: 0 | MHK46: 0 | MHL46: 0 | MHM46: 0 | MHN46: 0 | MHO46: 0 | MHP46: 0 | MHQ46: 0 | MHR46: 0 | MHS46: 0 | MHT46: 0 | MHU46: 0 | MHV46: 0 | MHW46: 0 | MHX46: 0 | MHY46: 0 | MHZ46: 0 | MIA46: 0 | MIB46: 0 | MIC46: 0 | MID46: 0 | MIE46: 0 | MIF46: 0 | MIG46: 0 | MIH46: 0 | MII46: 0 | MIJ46: 0 | MIK46: =1/$G$46*$F$46*MIK37 -> 0 | MIL46: 0 | MIM46: 0 | MIN46: 0 | MIO46: 0 | MIP46: 0 | MIQ46: 0 | MIR46: 0 | MIS46: 0 | MIT46: 0 | MIU46: 0 | MIV46: 0 | MIW46: 0 | MIX46: 0 | MIY46: 0 | MIZ46: 0 | MJA46: 0 | MJB46: 0 | MJC46: 0 | MJD46: 0 | MJE46: 0 | MJF46: 0 | MJG46: 0 | MJH46: 0 | MJI46: 0 | MJJ46: 0 | MJK46: 0 | MJL46: 0 | MJM46: 0 | MJN46: 0 | MJO46: 0 | MJP46: 0 | MJQ46: 0 | MJR46: 0 | MJS46: 0 | MJT46: 0 | MJU46: 0 | MJV46: 0 | MJW46: 0 | MJX46: 0 | MJY46: 0 | MJZ46: 0 | MKA46: 0 | MKB46: 0 | MKC46: 0 | MKD46: 0 | MKE46: 0 | MKF46: 0 | MKG46: 0 | MKH46: 0 | MKI46: 0 | MKJ46: 0 | MKK46: 0 | MKL46: 0 | MKM46: 0 | MKN46: 0 | MKO46: 0 | MKP46: 0 | MKQ46: 0 | MKR46: 0 | MKS46: 0 | MKT46: 0 | MKU46: 0 | MKV46: 0 | MKW46: =1/$G$46*$F$46*MKW37 -> 0 | MKX46: 0 | MKY46: 0 | MKZ46: 0 | MLA46: 0 | MLB46: 0 | MLC46: 0 | MLD46: 0 | MLE46: 0 | MLF46: 0 | MLG46: 0 | MLH46: 0 | MLI46: 0 | MLJ46: 0 | MLK46: 0 | MLL46: 0 | MLM46: 0 | MLN46: 0 | MLO46: 0 | MLP46: 0 | MLQ46: 0 | MLR46: 0 | MLS46: 0 | MLT46: 0 | MLU46: 0 | MLV46: 0 | MLW46: 0 | MLX46: 0 | MLY46: 0 | MLZ46: 0 | MMA46: 0 | MMB46: 0 | MMC46: 0 | MMD46: 0 | MME46: 0 | MMF46: 0 | MMG46: 0 | MMH46: 0 | MMI46: 0 | MMJ46: 0 | MMK46: 0 | MML46: 0 | MMM46: 0 | MMN46: 0 | MMO46: 0 | MMP46: 0 | MMQ46: 0 | MMR46: 0 | MMS46: 0 | MMT46: 0 | MMU46: 0 | MMV46: 0 | MMW46: 0 | MMX46: 0 | MMY46: 0 | MMZ46: 0 | MNA46: 0 | MNB46: 0 | MNC46: 0 | MND46: 0 | MNE46: 0 | MNF46: 0 | MNG46: 0 | MNH46: 0 | MNI46: =1/$G$46*$F$46*MNI37 -> 0 | MNJ46: 0 | MNK46: 0 | MNL46: 0 | MNM46: 0 | MNN46: 0 | MNO46: 0 | MNP46: 0 | MNQ46: 0 | MNR46: 0 | MNS46: 0 | MNT46: 0 | MNU46: 0 | MNV46: 0 | MNW46: 0 | MNX46: 0 | MNY46: 0 | MNZ46: 0 | MOA46: 0 | MOB46: 0 | MOC46: 0 | MOD46: 0 | MOE46: 0 | MOF46: 0 | MOG46: 0 | MOH46: 0 | MOI46: 0 | MOJ46: 0 | MOK46: 0 | MOL46: 0 | MOM46: 0 | MON46: 0 | MOO46: 0 | MOP46: 0 | MOQ46: 0 | MOR46: 0 | MOS46: 0 | MOT46: 0 | MOU46: 0 | MOV46: 0 | MOW46: 0 | MOX46: 0 | MOY46: 0 | MOZ46: 0 | MPA46: 0 | MPB46: 0 | MPC46: 0 | MPD46: 0 | MPE46: 0 | MPF46: 0 | MPG46: 0 | MPH46: 0 | MPI46: 0 | MPJ46: 0 | MPK46: 0 | MPL46: 0 | MPM46: 0 | MPN46: 0 | MPO46: 0 | MPP46: 0 | MPQ46: 0 | MPR46: 0 | MPS46: 0 | MPT46: 0 | MPU46: =1/$G$46*$F$46*MPU37 -> 0 | MPV46: 0 | MPW46: 0 | MPX46: 0 | MPY46: 0 | MPZ46: 0 | MQA46: 0 | MQB46: 0 | MQC46: 0 | MQD46: 0 | MQE46: 0 | MQF46: 0 | MQG46: 0 | MQH46: 0 | MQI46: 0 | MQJ46: 0 | MQK46: 0 | MQL46: 0 | MQM46: 0 | MQN46: 0 | MQO46: 0 | MQP46: 0 | MQQ46: 0 | MQR46: 0 | MQS46: 0 | MQT46: 0 | MQU46: 0 | MQV46: 0 | MQW46: 0 | MQX46: 0 | MQY46: 0 | MQZ46: 0 | MRA46: 0 | MRB46: 0 | MRC46: 0 | MRD46: 0 | MRE46: 0 | MRF46: 0 | MRG46: 0 | MRH46: 0 | MRI46: 0 | MRJ46: 0 | MRK46: 0 | MRL46: 0 | MRM46: 0 | MRN46: 0 | MRO46: 0 | MRP46: 0 | MRQ46: 0 | MRR46: 0 | MRS46: 0 | MRT46: 0 | MRU46: 0 | MRV46: 0 | MRW46: 0 | MRX46: 0 | MRY46: 0 | MRZ46: 0 | MSA46: 0 | MSB46: 0 | MSC46: 0 | MSD46: 0 | MSE46: 0 | MSF46: 0 | MSG46: =1/$G$46*$F$46*MSG37 -> 0 | MSH46: 0 | MSI46: 0 | MSJ46: 0 | MSK46: 0 | MSL46: 0 | MSM46: 0 | MSN46: 0 | MSO46: 0 | MSP46: 0 | MSQ46: 0 | MSR46: 0 | MSS46: 0 | MST46: 0 | MSU46: 0 | MSV46: 0 | MSW46: 0 | MSX46: 0 | MSY46: 0 | MSZ46: 0 | MTA46: 0 | MTB46: 0 | MTC46: 0 | MTD46: 0 | MTE46: 0 | MTF46: 0 | MTG46: 0 | MTH46: 0 | MTI46: 0 | MTJ46: 0 | MTK46: 0 | MTL46: 0 | MTM46: 0 | MTN46: 0 | MTO46: 0 | MTP46: 0 | MTQ46: 0 | MTR46: 0 | MTS46: 0 | MTT46: 0 | MTU46: 0 | MTV46: 0 | MTW46: 0 | MTX46: 0 | MTY46: 0 | MTZ46: 0 | MUA46: 0 | MUB46: 0 | MUC46: 0 | MUD46: 0 | MUE46: 0 | MUF46: 0 | MUG46: 0 | MUH46: 0 | MUI46: 0 | MUJ46: 0 | MUK46: 0 | MUL46: 0 | MUM46: 0 | MUN46: 0 | MUO46: 0 | MUP46: 0 | MUQ46: 0 | MUR46: 0 | MUS46: =1/$G$46*$F$46*MUS37 -> 0 | MUT46: 0 | MUU46: 0 | MUV46: 0 | MUW46: 0 | MUX46: 0 | MUY46: 0 | MUZ46: 0 | MVA46: 0 | MVB46: 0 | MVC46: 0 | MVD46: 0 | MVE46: 0 | MVF46: 0 | MVG46: 0 | MVH46: 0 | MVI46: 0 | MVJ46: 0 | MVK46: 0 | MVL46: 0 | MVM46: 0 | MVN46: 0 | MVO46: 0 | MVP46: 0 | MVQ46: 0 | MVR46: 0 | MVS46: 0 | MVT46: 0 | MVU46: 0 | MVV46: 0 | MVW46: 0 | MVX46: 0 | MVY46: 0 | MVZ46: 0 | MWA46: 0 | MWB46: 0 | MWC46: 0 | MWD46: 0 | MWE46: 0 | MWF46: 0 | MWG46: 0 | MWH46: 0 | MWI46: 0 | MWJ46: 0 | MWK46: 0 | MWL46: 0 | MWM46: 0 | MWN46: 0 | MWO46: 0 | MWP46: 0 | MWQ46: 0 | MWR46: 0 | MWS46: 0 | MWT46: 0 | MWU46: 0 | MWV46: 0 | MWW46: 0 | MWX46: 0 | MWY46: 0 | MWZ46: 0 | MXA46: 0 | MXB46: 0 | MXC46: 0 | MXD46: 0 | MXE46: =1/$G$46*$F$46*MXE37 -> 0 | MXF46: 0 | MXG46: 0 | MXH46: 0 | MXI46: 0 | MXJ46: 0 | MXK46: 0 | MXL46: 0 | MXM46: 0 | MXN46: 0 | MXO46: 0 | MXP46: 0 | MXQ46: 0 | MXR46: 0 | MXS46: 0 | MXT46: 0 | MXU46: 0 | MXV46: 0 | MXW46: 0 | MXX46: 0 | MXY46: 0 | MXZ46: 0 | MYA46: 0 | MYB46: 0 | MYC46: 0 | MYD46: 0 | MYE46: 0 | MYF46: 0 | MYG46: 0 | MYH46: 0 | MYI46: 0 | MYJ46: 0 | MYK46: 0 | MYL46: 0 | MYM46: 0 | MYN46: 0 | MYO46: 0 | MYP46: 0 | MYQ46: 0 | MYR46: 0 | MYS46: 0 | MYT46: 0 | MYU46: 0 | MYV46: 0 | MYW46: 0 | MYX46: 0 | MYY46: 0 | MYZ46: 0 | MZA46: 0 | MZB46: 0 | MZC46: 0 | MZD46: 0 | MZE46: 0 | MZF46: 0 | MZG46: 0 | MZH46: 0 | MZI46: 0 | MZJ46: 0 | MZK46: 0 | MZL46: 0 | MZM46: 0 | MZN46: 0 | MZO46: 0 | MZP46: 0 | MZQ46: =1/$G$46*$F$46*MZQ37 -> 0 | MZR46: 0 | MZS46: 0 | MZT46: 0 | MZU46: 0 | MZV46: 0 | MZW46: 0 | MZX46: 0 | MZY46: 0 | MZZ46: 0 | NAA46: 0 | NAB46: 0 | NAC46: 0 | NAD46: 0 | NAE46: 0 | NAF46: 0 | NAG46: 0 | NAH46: 0 | NAI46: 0 | NAJ46: 0 | NAK46: 0 | NAL46: 0 | NAM46: 0 | NAN46: 0 | NAO46: 0 | NAP46: 0 | NAQ46: 0 | NAR46: 0 | NAS46: 0 | NAT46: 0 | NAU46: 0 | NAV46: 0 | NAW46: 0 | NAX46: 0 | NAY46: 0 | NAZ46: 0 | NBA46: 0 | NBB46: 0 | NBC46: 0 | NBD46: 0 | NBE46: 0 | NBF46: 0 | NBG46: 0 | NBH46: 0 | NBI46: 0 | NBJ46: 0 | NBK46: 0 | NBL46: 0 | NBM46: 0 | NBN46: 0 | NBO46: 0 | NBP46: 0 | NBQ46: 0 | NBR46: 0 | NBS46: 0 | NBT46: 0 | NBU46: 0 | NBV46: 0 | NBW46: 0 | NBX46: 0 | NBY46: 0 | NBZ46: 0 | NCA46: 0 | NCB46: 0 | NCC46: =1/$G$46*$F$46*NCC37 -> 0 | NCD46: 0 | NCE46: 0 | NCF46: 0 | NCG46: 0 | NCH46: 0 | NCI46: 0 | NCJ46: 0 | NCK46: 0 | NCL46: 0 | NCM46: 0 | NCN46: 0 | NCO46: 0 | NCP46: 0 | NCQ46: 0 | NCR46: 0 | NCS46: 0 | NCT46: 0 | NCU46: 0 | NCV46: 0 | NCW46: 0 | NCX46: 0 | NCY46: 0 | NCZ46: 0 | NDA46: 0 | NDB46: 0 | NDC46: 0 | NDD46: 0 | NDE46: 0 | NDF46: 0 | NDG46: 0 | NDH46: 0 | NDI46: 0 | NDJ46: 0 | NDK46: 0 | NDL46: 0 | NDM46: 0 | NDN46: 0 | NDO46: 0 | NDP46: 0 | NDQ46: 0 | NDR46: 0 | NDS46: 0 | NDT46: 0 | NDU46: 0 | NDV46: 0 | NDW46: 0 | NDX46: 0 | NDY46: 0 | NDZ46: 0 | NEA46: 0 | NEB46: 0 | NEC46: 0 | NED46: 0 | NEE46: 0 | NEF46: 0 | NEG46: 0 | NEH46: 0 | NEI46: 0 | NEJ46: 0 | NEK46: 0 | NEL46: 0 | NEM46: 0 | NEN46: 0 | NEO46: =1/$G$46*$F$46*NEO37 -> 0 | NEP46: 0 | NEQ46: 0 | NER46: 0 | NES46: 0 | NET46: 0 | NEU46: 0 | NEV46: 0 | NEW46: 0 | NEX46: 0 | NEY46: 0 | NEZ46: 0 | NFA46: 0 | NFB46: 0 | NFC46: 0 | NFD46: 0 | NFE46: 0 | NFF46: 0 | NFG46: 0 | NFH46: 0 | NFI46: 0 | NFJ46: 0 | NFK46: 0 | NFL46: 0 | NFM46: 0 | NFN46: 0 | NFO46: 0 | NFP46: 0 | NFQ46: 0 | NFR46: 0 | NFS46: 0 | NFT46: 0 | NFU46: 0 | NFV46: 0 | NFW46: 0 | NFX46: 0 | NFY46: 0 | NFZ46: 0 | NGA46: 0 | NGB46: 0 | NGC46: 0 | NGD46: 0 | NGE46: 0 | NGF46: 0 | NGG46: 0 | NGH46: 0 | NGI46: 0 | NGJ46: 0 | NGK46: 0 | NGL46: 0 | NGM46: 0 | NGN46: 0 | NGO46: 0 | NGP46: 0 | NGQ46: 0 | NGR46: 0 | NGS46: 0 | NGT46: 0 | NGU46: 0 | NGV46: 0 | NGW46: 0 | NGX46: 0 | NGY46: 0 | NGZ46: 0 | NHA46: =1/$G$46*$F$46*NHA37 -> 0 | NHB46: 0 | NHC46: 0 | NHD46: 0 | NHE46: 0 | NHF46: 0 | NHG46: 0 | NHH46: 0 | NHI46: 0 | NHJ46: 0 | NHK46: 0 | NHL46: 0 | NHM46: 0 | NHN46: 0 | NHO46: 0 | NHP46: 0 | NHQ46: 0 | NHR46: 0 | NHS46: 0 | NHT46: 0 | NHU46: 0 | NHV46: 0 | NHW46: 0 | NHX46: 0 | NHY46: 0 | NHZ46: 0 | NIA46: 0 | NIB46: 0 | NIC46: 0 | NID46: 0 | NIE46: 0 | NIF46: 0 | NIG46: 0 | NIH46: 0 | NII46: 0 | NIJ46: 0 | NIK46: 0 | NIL46: 0 | NIM46: 0 | NIN46: 0 | NIO46: 0 | NIP46: 0 | NIQ46: 0 | NIR46: 0 | NIS46: 0 | NIT46: 0 | NIU46: 0 | NIV46: 0 | NIW46: 0 | NIX46: 0 | NIY46: 0 | NIZ46: 0 | NJA46: 0 | NJB46: 0 | NJC46: 0 | NJD46: 0 | NJE46: 0 | NJF46: 0 | NJG46: 0 | NJH46: 0 | NJI46: 0 | NJJ46: 0 | NJK46: 0 | NJL46: 0 | NJM46: =1/$G$46*$F$46*NJM37 -> 0 | NJN46: 0 | NJO46: 0 | NJP46: 0 | NJQ46: 0 | NJR46: 0 | NJS46: 0 | NJT46: 0 | NJU46: 0 | NJV46: 0 | NJW46: 0 | NJX46: 0 | NJY46: 0 | NJZ46: 0 | NKA46: 0 | NKB46: 0 | NKC46: 0 | NKD46: 0 | NKE46: 0 | NKF46: 0 | NKG46: 0 | NKH46: 0 | NKI46: 0 | NKJ46: 0 | NKK46: 0 | NKL46: 0 | NKM46: 0 | NKN46: 0 | NKO46: 0 | NKP46: 0 | NKQ46: 0 | NKR46: 0 | NKS46: 0 | NKT46: 0 | NKU46: 0 | NKV46: 0 | NKW46: 0 | NKX46: 0 | NKY46: 0 | NKZ46: 0 | NLA46: 0 | NLB46: 0 | NLC46: 0 | NLD46: 0 | NLE46: 0 | NLF46: 0 | NLG46: 0 | NLH46: 0 | NLI46: 0 | NLJ46: 0 | NLK46: 0 | NLL46: 0 | NLM46: 0 | NLN46: 0 | NLO46: 0 | NLP46: 0 | NLQ46: 0 | NLR46: 0 | NLS46: 0 | NLT46: 0 | NLU46: 0 | NLV46: 0 | NLW46: 0 | NLX46: 0 | NLY46: =1/$G$46*$F$46*NLY37 -> 0 | NLZ46: 0 | NMA46: 0 | NMB46: 0 | NMC46: 0 | NMD46: 0 | NME46: 0 | NMF46: 0 | NMG46: 0 | NMH46: 0 | NMI46: 0 | NMJ46: 0 | NMK46: 0 | NML46: 0 | NMM46: 0 | NMN46: 0 | NMO46: 0 | NMP46: 0 | NMQ46: 0 | NMR46: 0 | NMS46: 0 | NMT46: 0 | NMU46: 0 | NMV46: 0 | NMW46: 0 | NMX46: 0 | NMY46: 0 | NMZ46: 0 | NNA46: 0 | NNB46: 0 | NNC46: 0 | NND46: 0 | NNE46: 0 | NNF46: 0 | NNG46: 0 | NNH46: 0 | NNI46: 0 | NNJ46: 0 | NNK46: 0 | NNL46: 0 | NNM46: 0 | NNN46: 0 | NNO46: 0 | NNP46: 0 | NNQ46: 0 | NNR46: 0 | NNS46: 0 | NNT46: 0 | NNU46: 0 | NNV46: 0 | NNW46: 0 | NNX46: 0 | NNY46: 0 | NNZ46: 0 | NOA46: 0 | NOB46: 0 | NOC46: 0 | NOD46: 0 | NOE46: 0 | NOF46: 0 | NOG46: 0 | NOH46: 0 | NOI46: 0 | NOJ46: 0 | NOK46: =1/$G$46*$F$46*NOK37 -> 0 | NOL46: 0 | NOM46: 0 | NON46: 0 | NOO46: 0 | NOP46: 0 | NOQ46: 0 | NOR46: 0 | NOS46: 0 | NOT46: 0 | NOU46: 0 | NOV46: 0 | NOW46: 0 | NOX46: 0 | NOY46: 0 | NOZ46: 0 | NPA46: 0 | NPB46: 0 | NPC46: 0 | NPD46: 0 | NPE46: 0 | NPF46: 0 | NPG46: 0 | NPH46: 0 | NPI46: 0 | NPJ46: 0 | NPK46: 0 | NPL46: 0 | NPM46: 0 | NPN46: 0 | NPO46: 0 | NPP46: 0 | NPQ46: 0 | NPR46: 0 | NPS46: 0 | NPT46: 0 | NPU46: 0 | NPV46: 0 | NPW46: 0 | NPX46: 0 | NPY46: 0 | NPZ46: 0 | NQA46: 0 | NQB46: 0 | NQC46: 0 | NQD46: 0 | NQE46: 0 | NQF46: 0 | NQG46: 0 | NQH46: 0 | NQI46: 0 | NQJ46: 0 | NQK46: 0 | NQL46: 0 | NQM46: 0 | NQN46: 0 | NQO46: 0 | NQP46: 0 | NQQ46: 0 | NQR46: 0 | NQS46: 0 | NQT46: 0 | NQU46: 0 | NQV46: 0 | NQW46: =1/$G$46*$F$46*NQW37 -> 0 | NQX46: 0 | NQY46: 0 | NQZ46: 0 | NRA46: 0 | NRB46: 0 | NRC46: 0 | NRD46: 0 | NRE46: 0 | NRF46: 0 | NRG46: 0 | NRH46: 0 | NRI46: 0 | NRJ46: 0 | NRK46: 0 | NRL46: 0 | NRM46: 0 | NRN46: 0 | NRO46: 0 | NRP46: 0 | NRQ46: 0 | NRR46: 0 | NRS46: 0 | NRT46: 0 | NRU46: 0 | NRV46: 0 | NRW46: 0 | NRX46: 0 | NRY46: 0 | NRZ46: 0 | NSA46: 0 | NSB46: 0 | NSC46: 0 | NSD46: 0 | NSE46: 0 | NSF46: 0 | NSG46: 0 | NSH46: 0 | NSI46: 0 | NSJ46: 0 | NSK46: 0 | NSL46: 0 | NSM46: 0 | NSN46: 0 | NSO46: 0 | NSP46: 0 | NSQ46: 0 | NSR46: 0 | NSS46: 0 | NST46: 0 | NSU46: 0 | NSV46: 0 | NSW46: 0 | NSX46: 0 | NSY46: 0 | NSZ46: 0 | NTA46: 0 | NTB46: 0 | NTC46: 0 | NTD46: 0 | NTE46: 0 | NTF46: 0 | NTG46: 0 | NTH46: 0 | NTI46: =1/$G$46*$F$46*NTI37 -> 0 | NTJ46: 0 | NTK46: 0 | NTL46: 0 | NTM46: 0 | NTN46: 0 | NTO46: 0 | NTP46: 0 | NTQ46: 0 | NTR46: 0 | NTS46: 0 | NTT46: 0 | NTU46: 0 | NTV46: 0 | NTW46: 0 | NTX46: 0 | NTY46: 0 | NTZ46: 0 | NUA46: 0 | NUB46: 0 | NUC46: 0 | NUD46: 0 | NUE46: 0 | NUF46: 0 | NUG46: 0 | NUH46: 0 | NUI46: 0 | NUJ46: 0 | NUK46: 0 | NUL46: 0 | NUM46: 0 | NUN46: 0 | NUO46: 0 | NUP46: 0 | NUQ46: 0 | NUR46: 0 | NUS46: 0 | NUT46: 0 | NUU46: 0 | NUV46: 0 | NUW46: 0 | NUX46: 0 | NUY46: 0 | NUZ46: 0 | NVA46: 0 | NVB46: 0 | NVC46: 0 | NVD46: 0 | NVE46: 0 | NVF46: 0 | NVG46: 0 | NVH46: 0 | NVI46: 0 | NVJ46: 0 | NVK46: 0 | NVL46: 0 | NVM46: 0 | NVN46: 0 | NVO46: 0 | NVP46: 0 | NVQ46: 0 | NVR46: 0 | NVS46: 0 | NVT46: 0 | NVU46: =1/$G$46*$F$46*NVU37 -> 0 | NVV46: 0 | NVW46: 0 | NVX46: 0 | NVY46: 0 | NVZ46: 0 | NWA46: 0 | NWB46: 0 | NWC46: 0 | NWD46: 0 | NWE46: 0 | NWF46: 0 | NWG46: 0 | NWH46: 0 | NWI46: 0 | NWJ46: 0 | NWK46: 0 | NWL46: 0 | NWM46: 0 | NWN46: 0 | NWO46: 0 | NWP46: 0 | NWQ46: 0 | NWR46: 0 | NWS46: 0 | NWT46: 0 | NWU46: 0 | NWV46: 0 | NWW46: 0 | NWX46: 0 | NWY46: 0 | NWZ46: 0 | NXA46: 0 | NXB46: 0 | NXC46: 0 | NXD46: 0 | NXE46: 0 | NXF46: 0 | NXG46: 0 | NXH46: 0 | NXI46: 0 | NXJ46: 0 | NXK46: 0 | NXL46: 0 | NXM46: 0 | NXN46: 0 | NXO46: 0 | NXP46: 0 | NXQ46: 0 | NXR46: 0 | NXS46: 0 | NXT46: 0 | NXU46: 0 | NXV46: 0 | NXW46: 0 | NXX46: 0 | NXY46: 0 | NXZ46: 0 | NYA46: 0 | NYB46: 0 | NYC46: 0 | NYD46: 0 | NYE46: 0 | NYF46: 0 | NYG46: =1/$G$46*$F$46*NYG37 -> 0 | NYH46: 0 | NYI46: 0 | NYJ46: 0 | NYK46: 0 | NYL46: 0 | NYM46: 0 | NYN46: 0 | NYO46: 0 | NYP46: 0 | NYQ46: 0 | NYR46: 0 | NYS46: 0 | NYT46: 0 | NYU46: 0 | NYV46: 0 | NYW46: 0 | NYX46: 0 | NYY46: 0 | NYZ46: 0 | NZA46: 0 | NZB46: 0 | NZC46: 0 | NZD46: 0 | NZE46: 0 | NZF46: 0 | NZG46: 0 | NZH46: 0 | NZI46: 0 | NZJ46: 0 | NZK46: 0 | NZL46: 0 | NZM46: 0 | NZN46: 0 | NZO46: 0 | NZP46: 0 | NZQ46: 0 | NZR46: 0 | NZS46: 0 | NZT46: 0 | NZU46: 0 | NZV46: 0 | NZW46: 0 | NZX46: 0 | NZY46: 0 | NZZ46: 0 | OAA46: 0 | OAB46: 0 | OAC46: 0 | OAD46: 0 | OAE46: 0 | OAF46: 0 | OAG46: 0 | OAH46: 0 | OAI46: 0 | OAJ46: 0 | OAK46: 0 | OAL46: 0 | OAM46: 0 | OAN46: 0 | OAO46: 0 | OAP46: 0 | OAQ46: 0 | OAR46: 0 | OAS46: =1/$G$46*$F$46*OAS37 -> 0 | OAT46: 0 | OAU46: 0 | OAV46: 0 | OAW46: 0 | OAX46: 0 | OAY46: 0 | OAZ46: 0 | OBA46: 0 | OBB46: 0 | OBC46: 0 | OBD46: 0 | OBE46: 0 | OBF46: 0 | OBG46: 0 | OBH46: 0 | OBI46: 0 | OBJ46: 0 | OBK46: 0 | OBL46: 0 | OBM46: 0 | OBN46: 0 | OBO46: 0 | OBP46: 0 | OBQ46: 0 | OBR46: 0 | OBS46: 0 | OBT46: 0 | OBU46: 0 | OBV46: 0 | OBW46: 0 | OBX46: 0 | OBY46: 0 | OBZ46: 0 | OCA46: 0 | OCB46: 0 | OCC46: 0 | OCD46: 0 | OCE46: 0 | OCF46: 0 | OCG46: 0 | OCH46: 0 | OCI46: 0 | OCJ46: 0 | OCK46: 0 | OCL46: 0 | OCM46: 0 | OCN46: 0 | OCO46: 0 | OCP46: 0 | OCQ46: 0 | OCR46: 0 | OCS46: 0 | OCT46: 0 | OCU46: 0 | OCV46: 0 | OCW46: 0 | OCX46: 0 | OCY46: 0 | OCZ46: 0 | ODA46: 0 | ODB46: 0 | ODC46: 0 | ODD46: 0 | ODE46: =1/$G$46*$F$46*ODE37 -> 0 | ODF46: 0 | ODG46: 0 | ODH46: 0 | ODI46: 0 | ODJ46: 0 | ODK46: 0 | ODL46: 0 | ODM46: 0 | ODN46: 0 | ODO46: 0 | ODP46: 0 | ODQ46: 0 | ODR46: 0 | ODS46: 0 | ODT46: 0 | ODU46: 0 | ODV46: 0 | ODW46: 0 | ODX46: 0 | ODY46: 0 | ODZ46: 0 | OEA46: 0 | OEB46: 0 | OEC46: 0 | OED46: 0 | OEE46: 0 | OEF46: 0 | OEG46: 0 | OEH46: 0 | OEI46: 0 | OEJ46: 0 | OEK46: 0 | OEL46: 0 | OEM46: 0 | OEN46: 0 | OEO46: 0 | OEP46: 0 | OEQ46: 0 | OER46: 0 | OES46: 0 | OET46: 0 | OEU46: 0 | OEV46: 0 | OEW46: 0 | OEX46: 0 | OEY46: 0 | OEZ46: 0 | OFA46: 0 | OFB46: 0 | OFC46: 0 | OFD46: 0 | OFE46: 0 | OFF46: 0 | OFG46: 0 | OFH46: 0 | OFI46: 0 | OFJ46: 0 | OFK46: 0 | OFL46: 0 | OFM46: 0 | OFN46: 0 | OFO46: 0 | OFP46: 0 | OFQ46: =1/$G$46*$F$46*OFQ37 -> 0 | OFR46: 0 | OFS46: 0 | OFT46: 0 | OFU46: 0 | OFV46: 0 | OFW46: 0 | OFX46: 0 | OFY46: 0 | OFZ46: 0 | OGA46: 0 | OGB46: 0 | OGC46: 0 | OGD46: 0 | OGE46: 0 | OGF46: 0 | OGG46: 0 | OGH46: 0 | OGI46: 0 | OGJ46: 0 | OGK46: 0 | OGL46: 0 | OGM46: 0 | OGN46: 0 | OGO46: 0 | OGP46: 0 | OGQ46: 0 | OGR46: 0 | OGS46: 0 | OGT46: 0 | OGU46: 0 | OGV46: 0 | OGW46: 0 | OGX46: 0 | OGY46: 0 | OGZ46: 0 | OHA46: 0 | OHB46: 0 | OHC46: 0 | OHD46: 0 | OHE46: 0 | OHF46: 0 | OHG46: 0 | OHH46: 0 | OHI46: 0 | OHJ46: 0 | OHK46: 0 | OHL46: 0 | OHM46: 0 | OHN46: 0 | OHO46: 0 | OHP46: 0 | OHQ46: 0 | OHR46: 0 | OHS46: 0 | OHT46: 0 | OHU46: 0 | OHV46: 0 | OHW46: 0 | OHX46: 0 | OHY46: 0 | OHZ46: 0 | OIA46: 0 | OIB46: 0 | OIC46: =1/$G$46*$F$46*OIC37 -> 0 | OID46: 0 | OIE46: 0 | OIF46: 0 | OIG46: 0 | OIH46: 0 | OII46: 0 | OIJ46: 0 | OIK46: 0 | OIL46: 0 | OIM46: 0 | OIN46: 0 | OIO46: 0 | OIP46: 0 | OIQ46: 0 | OIR46: 0 | OIS46: 0 | OIT46: 0 | OIU46: 0 | OIV46: 0 | OIW46: 0 | OIX46: 0 | OIY46: 0 | OIZ46: 0 | OJA46: 0 | OJB46: 0 | OJC46: 0 | OJD46: 0 | OJE46: 0 | OJF46: 0 | OJG46: 0 | OJH46: 0 | OJI46: 0 | OJJ46: 0 | OJK46: 0 | OJL46: 0 | OJM46: 0 | OJN46: 0 | OJO46: 0 | OJP46: 0 | OJQ46: 0 | OJR46: 0 | OJS46: 0 | OJT46: 0 | OJU46: 0 | OJV46: 0 | OJW46: 0 | OJX46: 0 | OJY46: 0 | OJZ46: 0 | OKA46: 0 | OKB46: 0 | OKC46: 0 | OKD46: 0 | OKE46: 0 | OKF46: 0 | OKG46: 0 | OKH46: 0 | OKI46: 0 | OKJ46: 0 | OKK46: 0 | OKL46: 0 | OKM46: 0 | OKN46: 0 | OKO46: =1/$G$46*$F$46*OKO37 -> 0 | OKP46: 0 | OKQ46: 0 | OKR46: 0 | OKS46: 0 | OKT46: 0 | OKU46: 0 | OKV46: 0 | OKW46: 0 | OKX46: 0 | OKY46: 0 | OKZ46: 0 | OLA46: 0 | OLB46: 0 | OLC46: 0 | OLD46: 0 | OLE46: 0 | OLF46: 0 | OLG46: 0 | OLH46: 0 | OLI46: 0 | OLJ46: 0 | OLK46: 0 | OLL46: 0 | OLM46: 0 | OLN46: 0 | OLO46: 0 | OLP46: 0 | OLQ46: 0 | OLR46: 0 | OLS46: 0 | OLT46: 0 | OLU46: 0 | OLV46: 0 | OLW46: 0 | OLX46: 0 | OLY46: 0 | OLZ46: 0 | OMA46: 0 | OMB46: 0 | OMC46: 0 | OMD46: 0 | OME46: 0 | OMF46: 0 | OMG46: 0 | OMH46: 0 | OMI46: 0 | OMJ46: 0 | OMK46: 0 | OML46: 0 | OMM46: 0 | OMN46: 0 | OMO46: 0 | OMP46: 0 | OMQ46: 0 | OMR46: 0 | OMS46: 0 | OMT46: 0 | OMU46: 0 | OMV46: 0 | OMW46: 0 | OMX46: 0 | OMY46: 0 | OMZ46: 0 | ONA46: =1/$G$46*$F$46*ONA37 -> 0 | ONB46: 0 | ONC46: 0 | OND46: 0 | ONE46: 0 | ONF46: 0 | ONG46: 0 | ONH46: 0 | ONI46: 0 | ONJ46: 0 | ONK46: 0 | ONL46: 0 | ONM46: 0 | ONN46: 0 | ONO46: 0 | ONP46: 0 | ONQ46: 0 | ONR46: 0 | ONS46: 0 | ONT46: 0 | ONU46: 0 | ONV46: 0 | ONW46: 0 | ONX46: 0 | ONY46: 0 | ONZ46: 0 | OOA46: 0 | OOB46: 0 | OOC46: 0 | OOD46: 0 | OOE46: 0 | OOF46: 0 | OOG46: 0 | OOH46: 0 | OOI46: 0 | OOJ46: 0 | OOK46: 0 | OOL46: 0 | OOM46: 0 | OON46: 0 | OOO46: 0 | OOP46: 0 | OOQ46: 0 | OOR46: 0 | OOS46: 0 | OOT46: 0 | OOU46: 0 | OOV46: 0 | OOW46: 0 | OOX46: 0 | OOY46: 0 | OOZ46: 0 | OPA46: 0 | OPB46: 0 | OPC46: 0 | OPD46: 0 | OPE46: 0 | OPF46: 0 | OPG46: 0 | OPH46: 0 | OPI46: 0 | OPJ46: 0 | OPK46: 0 | OPL46: 0 | OPM46: =1/$G$46*$F$46*OPM37 -> 0 | OPN46: 0 | OPO46: 0 | OPP46: 0 | OPQ46: 0 | OPR46: 0 | OPS46: 0 | OPT46: 0 | OPU46: 0 | OPV46: 0 | OPW46: 0 | OPX46: 0 | OPY46: 0 | OPZ46: 0 | OQA46: 0 | OQB46: 0 | OQC46: 0 | OQD46: 0 | OQE46: 0 | OQF46: 0 | OQG46: 0 | OQH46: 0 | OQI46: 0 | OQJ46: 0 | OQK46: 0 | OQL46: 0 | OQM46: 0 | OQN46: 0 | OQO46: 0 | OQP46: 0 | OQQ46: 0 | OQR46: 0 | OQS46: 0 | OQT46: 0 | OQU46: 0 | OQV46: 0 | OQW46: 0 | OQX46: 0 | OQY46: 0 | OQZ46: 0 | ORA46: 0 | ORB46: 0 | ORC46: 0 | ORD46: 0 | ORE46: 0 | ORF46: 0 | ORG46: 0 | ORH46: 0 | ORI46: 0 | ORJ46: 0 | ORK46: 0 | ORL46: 0 | ORM46: 0 | ORN46: 0 | ORO46: 0 | ORP46: 0 | ORQ46: 0 | ORR46: 0 | ORS46: 0 | ORT46: 0 | ORU46: 0 | ORV46: 0 | ORW46: 0 | ORX46: 0 | ORY46: =1/$G$46*$F$46*ORY37 -> 0 | ORZ46: 0 | OSA46: 0 | OSB46: 0 | OSC46: 0 | OSD46: 0 | OSE46: 0 | OSF46: 0 | OSG46: 0 | OSH46: 0 | OSI46: 0 | OSJ46: 0 | OSK46: 0 | OSL46: 0 | OSM46: 0 | OSN46: 0 | OSO46: 0 | OSP46: 0 | OSQ46: 0 | OSR46: 0 | OSS46: 0 | OST46: 0 | OSU46: 0 | OSV46: 0 | OSW46: 0 | OSX46: 0 | OSY46: 0 | OSZ46: 0 | OTA46: 0 | OTB46: 0 | OTC46: 0 | OTD46: 0 | OTE46: 0 | OTF46: 0 | OTG46: 0 | OTH46: 0 | OTI46: 0 | OTJ46: 0 | OTK46: 0 | OTL46: 0 | OTM46: 0 | OTN46: 0 | OTO46: 0 | OTP46: 0 | OTQ46: 0 | OTR46: 0 | OTS46: 0 | OTT46: 0 | OTU46: 0 | OTV46: 0 | OTW46: 0 | OTX46: 0 | OTY46: 0 | OTZ46: 0 | OUA46: 0 | OUB46: 0 | OUC46: 0 | OUD46: 0 | OUE46: 0 | OUF46: 0 | OUG46: 0 | OUH46: 0 | OUI46: 0 | OUJ46: 0 | OUK46: =1/$G$46*$F$46*OUK37 -> 0 | OUL46: 0 | OUM46: 0 | OUN46: 0 | OUO46: 0 | OUP46: 0 | OUQ46: 0 | OUR46: 0 | OUS46: 0 | OUT46: 0 | OUU46: 0 | OUV46: 0 | OUW46: 0 | OUX46: 0 | OUY46: 0 | OUZ46: 0 | OVA46: 0 | OVB46: 0 | OVC46: 0 | OVD46: 0 | OVE46: 0 | OVF46: 0 | OVG46: 0 | OVH46: 0 | OVI46: 0 | OVJ46: 0 | OVK46: 0 | OVL46: 0 | OVM46: 0 | OVN46: 0 | OVO46: 0 | OVP46: 0 | OVQ46: 0 | OVR46: 0 | OVS46: 0 | OVT46: 0 | OVU46: 0 | OVV46: 0 | OVW46: 0 | OVX46: 0 | OVY46: 0 | OVZ46: 0 | OWA46: 0 | OWB46: 0 | OWC46: 0 | OWD46: 0 | OWE46: 0 | OWF46: 0 | OWG46: 0 | OWH46: 0 | OWI46: 0 | OWJ46: 0 | OWK46: 0 | OWL46: 0 | OWM46: 0 | OWN46: 0 | OWO46: 0 | OWP46: 0 | OWQ46: 0 | OWR46: 0 | OWS46: 0 | OWT46: 0 | OWU46: 0 | OWV46: 0 | OWW46: =1/$G$46*$F$46*OWW37 -> 0 | OWX46: 0 | OWY46: 0 | OWZ46: 0 | OXA46: 0 | OXB46: 0 | OXC46: 0 | OXD46: 0 | OXE46: 0 | OXF46: 0 | OXG46: 0 | OXH46: 0 | OXI46: 0 | OXJ46: 0 | OXK46: 0 | OXL46: 0 | OXM46: 0 | OXN46: 0 | OXO46: 0 | OXP46: 0 | OXQ46: 0 | OXR46: 0 | OXS46: 0 | OXT46: 0 | OXU46: 0 | OXV46: 0 | OXW46: 0 | OXX46: 0 | OXY46: 0 | OXZ46: 0 | OYA46: 0 | OYB46: 0 | OYC46: 0 | OYD46: 0 | OYE46: 0 | OYF46: 0 | OYG46: 0 | OYH46: 0 | OYI46: 0 | OYJ46: 0 | OYK46: 0 | OYL46: 0 | OYM46: 0 | OYN46: 0 | OYO46: 0 | OYP46: 0 | OYQ46: 0 | OYR46: 0 | OYS46: 0 | OYT46: 0 | OYU46: 0 | OYV46: 0 | OYW46: 0 | OYX46: 0 | OYY46: 0 | OYZ46: 0 | OZA46: 0 | OZB46: 0 | OZC46: 0 | OZD46: 0 | OZE46: 0 | OZF46: 0 | OZG46: 0 | OZH46: 0 | OZI46: =1/$G$46*$F$46*OZI37 -> 0 | OZJ46: 0 | OZK46: 0 | OZL46: 0 | OZM46: 0 | OZN46: 0 | OZO46: 0 | OZP46: 0 | OZQ46: 0 | OZR46: 0 | OZS46: 0 | OZT46: 0 | OZU46: 0 | OZV46: 0 | OZW46: 0 | OZX46: 0 | OZY46: 0 | OZZ46: 0 | PAA46: 0 | PAB46: 0 | PAC46: 0 | PAD46: 0 | PAE46: 0 | PAF46: 0 | PAG46: 0 | PAH46: 0 | PAI46: 0 | PAJ46: 0 | PAK46: 0 | PAL46: 0 | PAM46: 0 | PAN46: 0 | PAO46: 0 | PAP46: 0 | PAQ46: 0 | PAR46: 0 | PAS46: 0 | PAT46: 0 | PAU46: 0 | PAV46: 0 | PAW46: 0 | PAX46: 0 | PAY46: 0 | PAZ46: 0 | PBA46: 0 | PBB46: 0 | PBC46: 0 | PBD46: 0 | PBE46: 0 | PBF46: 0 | PBG46: 0 | PBH46: 0 | PBI46: 0 | PBJ46: 0 | PBK46: 0 | PBL46: 0 | PBM46: 0 | PBN46: 0 | PBO46: 0 | PBP46: 0 | PBQ46: 0 | PBR46: 0 | PBS46: 0 | PBT46: 0 | PBU46: =1/$G$46*$F$46*PBU37 -> 0 | PBV46: 0 | PBW46: 0 | PBX46: 0 | PBY46: 0 | PBZ46: 0 | PCA46: 0 | PCB46: 0 | PCC46: 0 | PCD46: 0 | PCE46: 0 | PCF46: 0 | PCG46: 0 | PCH46: 0 | PCI46: 0 | PCJ46: 0 | PCK46: 0 | PCL46: 0 | PCM46: 0 | PCN46: 0 | PCO46: 0 | PCP46: 0 | PCQ46: 0 | PCR46: 0 | PCS46: 0 | PCT46: 0 | PCU46: 0 | PCV46: 0 | PCW46: 0 | PCX46: 0 | PCY46: 0 | PCZ46: 0 | PDA46: 0 | PDB46: 0 | PDC46: 0 | PDD46: 0 | PDE46: 0 | PDF46: 0 | PDG46: 0 | PDH46: 0 | PDI46: 0 | PDJ46: 0 | PDK46: 0 | PDL46: 0 | PDM46: 0 | PDN46: 0 | PDO46: 0 | PDP46: 0 | PDQ46: 0 | PDR46: 0 | PDS46: 0 | PDT46: 0 | PDU46: 0 | PDV46: 0 | PDW46: 0 | PDX46: 0 | PDY46: 0 | PDZ46: 0 | PEA46: 0 | PEB46: 0 | PEC46: 0 | PED46: 0 | PEE46: 0 | PEF46: 0 | PEG46: =1/$G$46*$F$46*PEG37 -> 0 | PEH46: 0 | PEI46: 0 | PEJ46: 0 | PEK46: 0 | PEL46: 0 | PEM46: 0 | PEN46: 0 | PEO46: 0 | PEP46: 0 | PEQ46: 0 | PER46: 0 | PES46: 0 | PET46: 0 | PEU46: 0 | PEV46: 0 | PEW46: 0 | PEX46: 0 | PEY46: 0 | PEZ46: 0 | PFA46: 0 | PFB46: 0 | PFC46: 0 | PFD46: 0 | PFE46: 0 | PFF46: 0 | PFG46: 0 | PFH46: 0 | PFI46: 0 | PFJ46: 0 | PFK46: 0 | PFL46: 0 | PFM46: 0 | PFN46: 0 | PFO46: 0 | PFP46: 0 | PFQ46: 0 | PFR46: 0 | PFS46: 0 | PFT46: 0 | PFU46: 0 | PFV46: 0 | PFW46: 0 | PFX46: 0 | PFY46: 0 | PFZ46: 0 | PGA46: 0 | PGB46: 0 | PGC46: 0 | PGD46: 0 | PGE46: 0 | PGF46: 0 | PGG46: 0 | PGH46: 0 | PGI46: 0 | PGJ46: 0 | PGK46: 0 | PGL46: 0 | PGM46: 0 | PGN46: 0 | PGO46: 0 | PGP46: 0 | PGQ46: 0 | PGR46: 0 | PGS46: =1/$G$46*$F$46*PGS37 -> 0 | PGT46: 0 | PGU46: 0 | PGV46: 0 | PGW46: 0 | PGX46: 0 | PGY46: 0 | PGZ46: 0 | PHA46: 0 | PHB46: 0 | PHC46: 0 | PHD46: 0 | PHE46: 0 | PHF46: 0 | PHG46: 0 | PHH46: 0 | PHI46: 0 | PHJ46: 0 | PHK46: 0 | PHL46: 0 | PHM46: 0 | PHN46: 0 | PHO46: 0 | PHP46: 0 | PHQ46: 0 | PHR46: 0 | PHS46: 0 | PHT46: 0 | PHU46: 0 | PHV46: 0 | PHW46: 0 | PHX46: 0 | PHY46: 0 | PHZ46: 0 | PIA46: 0 | PIB46: 0 | PIC46: 0 | PID46: 0 | PIE46: 0 | PIF46: 0 | PIG46: 0 | PIH46: 0 | PII46: 0 | PIJ46: 0 | PIK46: 0 | PIL46: 0 | PIM46: 0 | PIN46: 0 | PIO46: 0 | PIP46: 0 | PIQ46: 0 | PIR46: 0 | PIS46: 0 | PIT46: 0 | PIU46: 0 | PIV46: 0 | PIW46: 0 | PIX46: 0 | PIY46: 0 | PIZ46: 0 | PJA46: 0 | PJB46: 0 | PJC46: 0 | PJD46: 0 | PJE46: =1/$G$46*$F$46*PJE37 -> 0 | PJF46: 0 | PJG46: 0 | PJH46: 0 | PJI46: 0 | PJJ46: 0 | PJK46: 0 | PJL46: 0 | PJM46: 0 | PJN46: 0 | PJO46: 0 | PJP46: 0 | PJQ46: 0 | PJR46: 0 | PJS46: 0 | PJT46: 0 | PJU46: 0 | PJV46: 0 | PJW46: 0 | PJX46: 0 | PJY46: 0 | PJZ46: 0 | PKA46: 0 | PKB46: 0 | PKC46: 0 | PKD46: 0 | PKE46: 0 | PKF46: 0 | PKG46: 0 | PKH46: 0 | PKI46: 0 | PKJ46: 0 | PKK46: 0 | PKL46: 0 | PKM46: 0 | PKN46: 0 | PKO46: 0 | PKP46: 0 | PKQ46: 0 | PKR46: 0 | PKS46: 0 | PKT46: 0 | PKU46: 0 | PKV46: 0 | PKW46: 0 | PKX46: 0 | PKY46: 0 | PKZ46: 0 | PLA46: 0 | PLB46: 0 | PLC46: 0 | PLD46: 0 | PLE46: 0 | PLF46: 0 | PLG46: 0 | PLH46: 0 | PLI46: 0 | PLJ46: 0 | PLK46: 0 | PLL46: 0 | PLM46: 0 | PLN46: 0 | PLO46: 0 | PLP46: 0 | PLQ46: =1/$G$46*$F$46*PLQ37 -> 0 | PLR46: 0 | PLS46: 0 | PLT46: 0 | PLU46: 0 | PLV46: 0 | PLW46: 0 | PLX46: 0 | PLY46: 0 | PLZ46: 0 | PMA46: 0 | PMB46: 0 | PMC46: 0 | PMD46: 0 | PME46: 0 | PMF46: 0 | PMG46: 0 | PMH46: 0 | PMI46: 0 | PMJ46: 0 | PMK46: 0 | PML46: 0 | PMM46: 0 | PMN46: 0 | PMO46: 0 | PMP46: 0 | PMQ46: 0 | PMR46: 0 | PMS46: 0 | PMT46: 0 | PMU46: 0 | PMV46: 0 | PMW46: 0 | PMX46: 0 | PMY46: 0 | PMZ46: 0 | PNA46: 0 | PNB46: 0 | PNC46: 0 | PND46: 0 | PNE46: 0 | PNF46: 0 | PNG46: 0 | PNH46: 0 | PNI46: 0 | PNJ46: 0 | PNK46: 0 | PNL46: 0 | PNM46: 0 | PNN46: 0 | PNO46: 0 | PNP46: 0 | PNQ46: 0 | PNR46: 0 | PNS46: 0 | PNT46: 0 | PNU46: 0 | PNV46: 0 | PNW46: 0 | PNX46: 0 | PNY46: 0 | PNZ46: 0 | POA46: 0 | POB46: 0 | POC46: =1/$G$46*$F$46*POC37 -> 0 | POD46: 0 | POE46: 0 | POF46: 0 | POG46: 0 | POH46: 0 | POI46: 0 | POJ46: 0 | POK46: 0 | POL46: 0 | POM46: 0 | PON46: 0 | POO46: 0 | POP46: 0 | POQ46: 0 | POR46: 0 | POS46: 0 | POT46: 0 | POU46: 0 | POV46: 0 | POW46: 0 | POX46: 0 | POY46: 0 | POZ46: 0 | PPA46: 0 | PPB46: 0 | PPC46: 0 | PPD46: 0 | PPE46: 0 | PPF46: 0 | PPG46: 0 | PPH46: 0 | PPI46: 0 | PPJ46: 0 | PPK46: 0 | PPL46: 0 | PPM46: 0 | PPN46: 0 | PPO46: 0 | PPP46: 0 | PPQ46: 0 | PPR46: 0 | PPS46: 0 | PPT46: 0 | PPU46: 0 | PPV46: 0 | PPW46: 0 | PPX46: 0 | PPY46: 0 | PPZ46: 0 | PQA46: 0 | PQB46: 0 | PQC46: 0 | PQD46: 0 | PQE46: 0 | PQF46: 0 | PQG46: 0 | PQH46: 0 | PQI46: 0 | PQJ46: 0 | PQK46: 0 | PQL46: 0 | PQM46: 0 | PQN46: 0 | PQO46: =1/$G$46*$F$46*PQO37 -> 0 | PQP46: 0 | PQQ46: 0 | PQR46: 0 | PQS46: 0 | PQT46: 0 | PQU46: 0 | PQV46: 0 | PQW46: 0 | PQX46: 0 | PQY46: 0 | PQZ46: 0 | PRA46: 0 | PRB46: 0 | PRC46: 0 | PRD46: 0 | PRE46: 0 | PRF46: 0 | PRG46: 0 | PRH46: 0 | PRI46: 0 | PRJ46: 0 | PRK46: 0 | PRL46: 0 | PRM46: 0 | PRN46: 0 | PRO46: 0 | PRP46: 0 | PRQ46: 0 | PRR46: 0 | PRS46: 0 | PRT46: 0 | PRU46: 0 | PRV46: 0 | PRW46: 0 | PRX46: 0 | PRY46: 0 | PRZ46: 0 | PSA46: 0 | PSB46: 0 | PSC46: 0 | PSD46: 0 | PSE46: 0 | PSF46: 0 | PSG46: 0 | PSH46: 0 | PSI46: 0 | PSJ46: 0 | PSK46: 0 | PSL46: 0 | PSM46: 0 | PSN46: 0 | PSO46: 0 | PSP46: 0 | PSQ46: 0 | PSR46: 0 | PSS46: 0 | PST46: 0 | PSU46: 0 | PSV46: 0 | PSW46: 0 | PSX46: 0 | PSY46: 0 | PSZ46: 0 | PTA46: =1/$G$46*$F$46*PTA37 -> 0 | PTB46: 0 | PTC46: 0 | PTD46: 0 | PTE46: 0 | PTF46: 0 | PTG46: 0 | PTH46: 0 | PTI46: 0 | PTJ46: 0 | PTK46: 0 | PTL46: 0 | PTM46: 0 | PTN46: 0 | PTO46: 0 | PTP46: 0 | PTQ46: 0 | PTR46: 0 | PTS46: 0 | PTT46: 0 | PTU46: 0 | PTV46: 0 | PTW46: 0 | PTX46: 0 | PTY46: 0 | PTZ46: 0 | PUA46: 0 | PUB46: 0 | PUC46: 0 | PUD46: 0 | PUE46: 0 | PUF46: 0 | PUG46: 0 | PUH46: 0 | PUI46: 0 | PUJ46: 0 | PUK46: 0 | PUL46: 0 | PUM46: 0 | PUN46: 0 | PUO46: 0 | PUP46: 0 | PUQ46: 0 | PUR46: 0 | PUS46: 0 | PUT46: 0 | PUU46: 0 | PUV46: 0 | PUW46: 0 | PUX46: 0 | PUY46: 0 | PUZ46: 0 | PVA46: 0 | PVB46: 0 | PVC46: 0 | PVD46: 0 | PVE46: 0 | PVF46: 0 | PVG46: 0 | PVH46: 0 | PVI46: 0 | PVJ46: 0 | PVK46: 0 | PVL46: 0 | PVM46: =1/$G$46*$F$46*PVM37 -> 0 | PVN46: 0 | PVO46: 0 | PVP46: 0 | PVQ46: 0 | PVR46: 0 | PVS46: 0 | PVT46: 0 | PVU46: 0 | PVV46: 0 | PVW46: 0 | PVX46: 0 | PVY46: 0 | PVZ46: 0 | PWA46: 0 | PWB46: 0 | PWC46: 0 | PWD46: 0 | PWE46: 0 | PWF46: 0 | PWG46: 0 | PWH46: 0 | PWI46: 0 | PWJ46: 0 | PWK46: 0 | PWL46: 0 | PWM46: 0 | PWN46: 0 | PWO46: 0 | PWP46: 0 | PWQ46: 0 | PWR46: 0 | PWS46: 0 | PWT46: 0 | PWU46: 0 | PWV46: 0 | PWW46: 0 | PWX46: 0 | PWY46: 0 | PWZ46: 0 | PXA46: 0 | PXB46: 0 | PXC46: 0 | PXD46: 0 | PXE46: 0 | PXF46: 0 | PXG46: 0 | PXH46: 0 | PXI46: 0 | PXJ46: 0 | PXK46: 0 | PXL46: 0 | PXM46: 0 | PXN46: 0 | PXO46: 0 | PXP46: 0 | PXQ46: 0 | PXR46: 0 | PXS46: 0 | PXT46: 0 | PXU46: 0 | PXV46: 0 | PXW46: 0 | PXX46: 0 | PXY46: =1/$G$46*$F$46*PXY37 -> 0 | PXZ46: 0 | PYA46: 0 | PYB46: 0 | PYC46: 0 | PYD46: 0 | PYE46: 0 | PYF46: 0 | PYG46: 0 | PYH46: 0 | PYI46: 0 | PYJ46: 0 | PYK46: 0 | PYL46: 0 | PYM46: 0 | PYN46: 0 | PYO46: 0 | PYP46: 0 | PYQ46: 0 | PYR46: 0 | PYS46: 0 | PYT46: 0 | PYU46: 0 | PYV46: 0 | PYW46: 0 | PYX46: 0 | PYY46: 0 | PYZ46: 0 | PZA46: 0 | PZB46: 0 | PZC46: 0 | PZD46: 0 | PZE46: 0 | PZF46: 0 | PZG46: 0 | PZH46: 0 | PZI46: 0 | PZJ46: 0 | PZK46: 0 | PZL46: 0 | PZM46: 0 | PZN46: 0 | PZO46: 0 | PZP46: 0 | PZQ46: 0 | PZR46: 0 | PZS46: 0 | PZT46: 0 | PZU46: 0 | PZV46: 0 | PZW46: 0 | PZX46: 0 | PZY46: 0 | PZZ46: 0 | QAA46: 0 | QAB46: 0 | QAC46: 0 | QAD46: 0 | QAE46: 0 | QAF46: 0 | QAG46: 0 | QAH46: 0 | QAI46: 0 | QAJ46: 0 | QAK46: =1/$G$46*$F$46*QAK37 -> 0 | QAL46: 0 | QAM46: 0 | QAN46: 0 | QAO46: 0 | QAP46: 0 | QAQ46: 0 | QAR46: 0 | QAS46: 0 | QAT46: 0 | QAU46: 0 | QAV46: 0 | QAW46: 0 | QAX46: 0 | QAY46: 0 | QAZ46: 0 | QBA46: 0 | QBB46: 0 | QBC46: 0 | QBD46: 0 | QBE46: 0 | QBF46: 0 | QBG46: 0 | QBH46: 0 | QBI46: 0 | QBJ46: 0 | QBK46: 0 | QBL46: 0 | QBM46: 0 | QBN46: 0 | QBO46: 0 | QBP46: 0 | QBQ46: 0 | QBR46: 0 | QBS46: 0 | QBT46: 0 | QBU46: 0 | QBV46: 0 | QBW46: 0 | QBX46: 0 | QBY46: 0 | QBZ46: 0 | QCA46: 0 | QCB46: 0 | QCC46: 0 | QCD46: 0 | QCE46: 0 | QCF46: 0 | QCG46: 0 | QCH46: 0 | QCI46: 0 | QCJ46: 0 | QCK46: 0 | QCL46: 0 | QCM46: 0 | QCN46: 0 | QCO46: 0 | QCP46: 0 | QCQ46: 0 | QCR46: 0 | QCS46: 0 | QCT46: 0 | QCU46: 0 | QCV46: 0 | QCW46: =1/$G$46*$F$46*QCW37 -> 0 | QCX46: 0 | QCY46: 0 | QCZ46: 0 | QDA46: 0 | QDB46: 0 | QDC46: 0 | QDD46: 0 | QDE46: 0 | QDF46: 0 | QDG46: 0 | QDH46: 0 | QDI46: 0 | QDJ46: 0 | QDK46: 0 | QDL46: 0 | QDM46: 0 | QDN46: 0 | QDO46: 0 | QDP46: 0 | QDQ46: 0 | QDR46: 0 | QDS46: 0 | QDT46: 0 | QDU46: 0 | QDV46: 0 | QDW46: 0 | QDX46: 0 | QDY46: 0 | QDZ46: 0 | QEA46: 0 | QEB46: 0 | QEC46: 0 | QED46: 0 | QEE46: 0 | QEF46: 0 | QEG46: 0 | QEH46: 0 | QEI46: 0 | QEJ46: 0 | QEK46: 0 | QEL46: 0 | QEM46: 0 | QEN46: 0 | QEO46: 0 | QEP46: 0 | QEQ46: 0 | QER46: 0 | QES46: 0 | QET46: 0 | QEU46: 0 | QEV46: 0 | QEW46: 0 | QEX46: 0 | QEY46: 0 | QEZ46: 0 | QFA46: 0 | QFB46: 0 | QFC46: 0 | QFD46: 0 | QFE46: 0 | QFF46: 0 | QFG46: 0 | QFH46: 0 | QFI46: =1/$G$46*$F$46*QFI37 -> 0 | QFJ46: 0 | QFK46: 0 | QFL46: 0 | QFM46: 0 | QFN46: 0 | QFO46: 0 | QFP46: 0 | QFQ46: 0 | QFR46: 0 | QFS46: 0 | QFT46: 0 | QFU46: 0 | QFV46: 0 | QFW46: 0 | QFX46: 0 | QFY46: 0 | QFZ46: 0 | QGA46: 0 | QGB46: 0 | QGC46: 0 | QGD46: 0 | QGE46: 0 | QGF46: 0 | QGG46: 0 | QGH46: 0 | QGI46: 0 | QGJ46: 0 | QGK46: 0 | QGL46: 0 | QGM46: 0 | QGN46: 0 | QGO46: 0 | QGP46: 0 | QGQ46: 0 | QGR46: 0 | QGS46: 0 | QGT46: 0 | QGU46: 0 | QGV46: 0 | QGW46: 0 | QGX46: 0 | QGY46: 0 | QGZ46: 0 | QHA46: 0 | QHB46: 0 | QHC46: 0 | QHD46: 0 | QHE46: 0 | QHF46: 0 | QHG46: 0 | QHH46: 0 | QHI46: 0 | QHJ46: 0 | QHK46: 0 | QHL46: 0 | QHM46: 0 | QHN46: 0 | QHO46: 0 | QHP46: 0 | QHQ46: 0 | QHR46: 0 | QHS46: 0 | QHT46: 0 | QHU46: =1/$G$46*$F$46*QHU37 -> 0 | QHV46: 0 | QHW46: 0 | QHX46: 0 | QHY46: 0 | QHZ46: 0 | QIA46: 0 | QIB46: 0 | QIC46: 0 | QID46: 0 | QIE46: 0 | QIF46: 0 | QIG46: 0 | QIH46: 0 | QII46: 0 | QIJ46: 0 | QIK46: 0 | QIL46: 0 | QIM46: 0 | QIN46: 0 | QIO46: 0 | QIP46: 0 | QIQ46: 0 | QIR46: 0 | QIS46: 0 | QIT46: 0 | QIU46: 0 | QIV46: 0 | QIW46: 0 | QIX46: 0 | QIY46: 0 | QIZ46: 0 | QJA46: 0 | QJB46: 0 | QJC46: 0 | QJD46: 0 | QJE46: 0 | QJF46: 0 | QJG46: 0 | QJH46: 0 | QJI46: 0 | QJJ46: 0 | QJK46: 0 | QJL46: 0 | QJM46: 0 | QJN46: 0 | QJO46: 0 | QJP46: 0 | QJQ46: 0 | QJR46: 0 | QJS46: 0 | QJT46: 0 | QJU46: 0 | QJV46: 0 | QJW46: 0 | QJX46: 0 | QJY46: 0 | QJZ46: 0 | QKA46: 0 | QKB46: 0 | QKC46: 0 | QKD46: 0 | QKE46: 0 | QKF46: 0 | QKG46: =1/$G$46*$F$46*QKG37 -> 0 | QKH46: 0 | QKI46: 0 | QKJ46: 0 | QKK46: 0 | QKL46: 0 | QKM46: 0 | QKN46: 0 | QKO46: 0 | QKP46: 0 | QKQ46: 0 | QKR46: 0 | QKS46: 0 | QKT46: 0 | QKU46: 0 | QKV46: 0 | QKW46: 0 | QKX46: 0 | QKY46: 0 | QKZ46: 0 | QLA46: 0 | QLB46: 0 | QLC46: 0 | QLD46: 0 | QLE46: 0 | QLF46: 0 | QLG46: 0 | QLH46: 0 | QLI46: 0 | QLJ46: 0 | QLK46: 0 | QLL46: 0 | QLM46: 0 | QLN46: 0 | QLO46: 0 | QLP46: 0 | QLQ46: 0 | QLR46: 0 | QLS46: 0 | QLT46: 0 | QLU46: 0 | QLV46: 0 | QLW46: 0 | QLX46: 0 | QLY46: 0 | QLZ46: 0 | QMA46: 0 | QMB46: 0 | QMC46: 0 | QMD46: 0 | QME46: 0 | QMF46: 0 | QMG46: 0 | QMH46: 0 | QMI46: 0 | QMJ46: 0 | QMK46: 0 | QML46: 0 | QMM46: 0 | QMN46: 0 | QMO46: 0 | QMP46: 0 | QMQ46: 0 | QMR46: 0 | QMS46: =1/$G$46*$F$46*QMS37 -> 0 | QMT46: 0 | QMU46: 0 | QMV46: 0 | QMW46: 0 | QMX46: 0 | QMY46: 0 | QMZ46: 0 | QNA46: 0 | QNB46: 0 | QNC46: 0 | QND46: 0 | QNE46: 0 | QNF46: 0 | QNG46: 0 | QNH46: 0 | QNI46: 0 | QNJ46: 0 | QNK46: 0 | QNL46: 0 | QNM46: 0 | QNN46: 0 | QNO46: 0 | QNP46: 0 | QNQ46: 0 | QNR46: 0 | QNS46: 0 | QNT46: 0 | QNU46: 0 | QNV46: 0 | QNW46: 0 | QNX46: 0 | QNY46: 0 | QNZ46: 0 | QOA46: 0 | QOB46: 0 | QOC46: 0 | QOD46: 0 | QOE46: 0 | QOF46: 0 | QOG46: 0 | QOH46: 0 | QOI46: 0 | QOJ46: 0 | QOK46: 0 | QOL46: 0 | QOM46: 0 | QON46: 0 | QOO46: 0 | QOP46: 0 | QOQ46: 0 | QOR46: 0 | QOS46: 0 | QOT46: 0 | QOU46: 0 | QOV46: 0 | QOW46: 0 | QOX46: 0 | QOY46: 0 | QOZ46: 0 | QPA46: 0 | QPB46: 0 | QPC46: 0 | QPD46: 0 | QPE46: =1/$G$46*$F$46*QPE37 -> 0 | QPF46: 0 | QPG46: 0 | QPH46: 0 | QPI46: 0 | QPJ46: 0 | QPK46: 0 | QPL46: 0 | QPM46: 0 | QPN46: 0 | QPO46: 0 | QPP46: 0 | QPQ46: 0 | QPR46: 0 | QPS46: 0 | QPT46: 0 | QPU46: 0 | QPV46: 0 | QPW46: 0 | QPX46: 0 | QPY46: 0 | QPZ46: 0 | QQA46: 0 | QQB46: 0 | QQC46: 0 | QQD46: 0 | QQE46: 0 | QQF46: 0 | QQG46: 0 | QQH46: 0 | QQI46: 0 | QQJ46: 0 | QQK46: 0 | QQL46: 0 | QQM46: 0 | QQN46: 0 | QQO46: 0 | QQP46: 0 | QQQ46: 0 | QQR46: 0 | QQS46: 0 | QQT46: 0 | QQU46: 0 | QQV46: 0 | QQW46: 0 | QQX46: 0 | QQY46: 0 | QQZ46: 0 | QRA46: 0 | QRB46: 0 | QRC46: 0 | QRD46: 0 | QRE46: 0 | QRF46: 0 | QRG46: 0 | QRH46: 0 | QRI46: 0 | QRJ46: 0 | QRK46: 0 | QRL46: 0 | QRM46: 0 | QRN46: 0 | QRO46: 0 | QRP46: 0 | QRQ46: =1/$G$46*$F$46*QRQ37 -> 0 | QRR46: 0 | QRS46: 0 | QRT46: 0 | QRU46: 0 | QRV46: 0 | QRW46: 0 | QRX46: 0 | QRY46: 0 | QRZ46: 0 | QSA46: 0 | QSB46: 0 | QSC46: 0 | QSD46: 0 | QSE46: 0 | QSF46: 0 | QSG46: 0 | QSH46: 0 | QSI46: 0 | QSJ46: 0 | QSK46: 0 | QSL46: 0 | QSM46: 0 | QSN46: 0 | QSO46: 0 | QSP46: 0 | QSQ46: 0 | QSR46: 0 | QSS46: 0 | QST46: 0 | QSU46: 0 | QSV46: 0 | QSW46: 0 | QSX46: 0 | QSY46: 0 | QSZ46: 0 | QTA46: 0 | QTB46: 0 | QTC46: 0 | QTD46: 0 | QTE46: 0 | QTF46: 0 | QTG46: 0 | QTH46: 0 | QTI46: 0 | QTJ46: 0 | QTK46: 0 | QTL46: 0 | QTM46: 0 | QTN46: 0 | QTO46: 0 | QTP46: 0 | QTQ46: 0 | QTR46: 0 | QTS46: 0 | QTT46: 0 | QTU46: 0 | QTV46: 0 | QTW46: 0 | QTX46: 0 | QTY46: 0 | QTZ46: 0 | QUA46: 0 | QUB46: 0 | QUC46: =1/$G$46*$F$46*QUC37 -> 0 | QUD46: 0 | QUE46: 0 | QUF46: 0 | QUG46: 0 | QUH46: 0 | QUI46: 0 | QUJ46: 0 | QUK46: 0 | QUL46: 0 | QUM46: 0 | QUN46: 0 | QUO46: 0 | QUP46: 0 | QUQ46: 0 | QUR46: 0 | QUS46: 0 | QUT46: 0 | QUU46: 0 | QUV46: 0 | QUW46: 0 | QUX46: 0 | QUY46: 0 | QUZ46: 0 | QVA46: 0 | QVB46: 0 | QVC46: 0 | QVD46: 0 | QVE46: 0 | QVF46: 0 | QVG46: 0 | QVH46: 0 | QVI46: 0 | QVJ46: 0 | QVK46: 0 | QVL46: 0 | QVM46: 0 | QVN46: 0 | QVO46: 0 | QVP46: 0 | QVQ46: 0 | QVR46: 0 | QVS46: 0 | QVT46: 0 | QVU46: 0 | QVV46: 0 | QVW46: 0 | QVX46: 0 | QVY46: 0 | QVZ46: 0 | QWA46: 0 | QWB46: 0 | QWC46: 0 | QWD46: 0 | QWE46: 0 | QWF46: 0 | QWG46: 0 | QWH46: 0 | QWI46: 0 | QWJ46: 0 | QWK46: 0 | QWL46: 0 | QWM46: 0 | QWN46: 0 | QWO46: =1/$G$46*$F$46*QWO37 -> 0 | QWP46: 0 | QWQ46: 0 | QWR46: 0 | QWS46: 0 | QWT46: 0 | QWU46: 0 | QWV46: 0 | QWW46: 0 | QWX46: 0 | QWY46: 0 | QWZ46: 0 | QXA46: 0 | QXB46: 0 | QXC46: 0 | QXD46: 0 | QXE46: 0 | QXF46: 0 | QXG46: 0 | QXH46: 0 | QXI46: 0 | QXJ46: 0 | QXK46: 0 | QXL46: 0 | QXM46: 0 | QXN46: 0 | QXO46: 0 | QXP46: 0 | QXQ46: 0 | QXR46: 0 | QXS46: 0 | QXT46: 0 | QXU46: 0 | QXV46: 0 | QXW46: 0 | QXX46: 0 | QXY46: 0 | QXZ46: 0 | QYA46: 0 | QYB46: 0 | QYC46: 0 | QYD46: 0 | QYE46: 0 | QYF46: 0 | QYG46: 0 | QYH46: 0 | QYI46: 0 | QYJ46: 0 | QYK46: 0 | QYL46: 0 | QYM46: 0 | QYN46: 0 | QYO46: 0 | QYP46: 0 | QYQ46: 0 | QYR46: 0 | QYS46: 0 | QYT46: 0 | QYU46: 0 | QYV46: 0 | QYW46: 0 | QYX46: 0 | QYY46: 0 | QYZ46: 0 | QZA46: =1/$G$46*$F$46*QZA37 -> 0 | QZB46: 0 | QZC46: 0 | QZD46: 0 | QZE46: 0 | QZF46: 0 | QZG46: 0 | QZH46: 0 | QZI46: 0 | QZJ46: 0 | QZK46: 0 | QZL46: 0 | QZM46: 0 | QZN46: 0 | QZO46: 0 | QZP46: 0 | QZQ46: 0 | QZR46: 0 | QZS46: 0 | QZT46: 0 | QZU46: 0 | QZV46: 0 | QZW46: 0 | QZX46: 0 | QZY46: 0 | QZZ46: 0 | RAA46: 0 | RAB46: 0 | RAC46: 0 | RAD46: 0 | RAE46: 0 | RAF46: 0 | RAG46: 0 | RAH46: 0 | RAI46: 0 | RAJ46: 0 | RAK46: 0 | RAL46: 0 | RAM46: 0 | RAN46: 0 | RAO46: 0 | RAP46: 0 | RAQ46: 0 | RAR46: 0 | RAS46: 0 | RAT46: 0 | RAU46: 0 | RAV46: 0 | RAW46: 0 | RAX46: 0 | RAY46: 0 | RAZ46: 0 | RBA46: 0 | RBB46: 0 | RBC46: 0 | RBD46: 0 | RBE46: 0 | RBF46: 0 | RBG46: 0 | RBH46: 0 | RBI46: 0 | RBJ46: 0 | RBK46: 0 | RBL46: 0 | RBM46: =1/$G$46*$F$46*RBM37 -> 0 | RBN46: 0 | RBO46: 0 | RBP46: 0 | RBQ46: 0 | RBR46: 0 | RBS46: 0 | RBT46: 0 | RBU46: 0 | RBV46: 0 | RBW46: 0 | RBX46: 0 | RBY46: 0 | RBZ46: 0 | RCA46: 0 | RCB46: 0 | RCC46: 0 | RCD46: 0 | RCE46: 0 | RCF46: 0 | RCG46: 0 | RCH46: 0 | RCI46: 0 | RCJ46: 0 | RCK46: 0 | RCL46: 0 | RCM46: 0 | RCN46: 0 | RCO46: 0 | RCP46: 0 | RCQ46: 0 | RCR46: 0 | RCS46: 0 | RCT46: 0 | RCU46: 0 | RCV46: 0 | RCW46: 0 | RCX46: 0 | RCY46: 0 | RCZ46: 0 | RDA46: 0 | RDB46: 0 | RDC46: 0 | RDD46: 0 | RDE46: 0 | RDF46: 0 | RDG46: 0 | RDH46: 0 | RDI46: 0 | RDJ46: 0 | RDK46: 0 | RDL46: 0 | RDM46: 0 | RDN46: 0 | RDO46: 0 | RDP46: 0 | RDQ46: 0 | RDR46: 0 | RDS46: 0 | RDT46: 0 | RDU46: 0 | RDV46: 0 | RDW46: 0 | RDX46: 0 | RDY46: =1/$G$46*$F$46*RDY37 -> 0 | RDZ46: 0 | REA46: 0 | REB46: 0 | REC46: 0 | RED46: 0 | REE46: 0 | REF46: 0 | REG46: 0 | REH46: 0 | REI46: 0 | REJ46: 0 | REK46: 0 | REL46: 0 | REM46: 0 | REN46: 0 | REO46: 0 | REP46: 0 | REQ46: 0 | RER46: 0 | RES46: 0 | RET46: 0 | REU46: 0 | REV46: 0 | REW46: 0 | REX46: 0 | REY46: 0 | REZ46: 0 | RFA46: 0 | RFB46: 0 | RFC46: 0 | RFD46: 0 | RFE46: 0 | RFF46: 0 | RFG46: 0 | RFH46: 0 | RFI46: 0 | RFJ46: 0 | RFK46: 0 | RFL46: 0 | RFM46: 0 | RFN46: 0 | RFO46: 0 | RFP46: 0 | RFQ46: 0 | RFR46: 0 | RFS46: 0 | RFT46: 0 | RFU46: 0 | RFV46: 0 | RFW46: 0 | RFX46: 0 | RFY46: 0 | RFZ46: 0 | RGA46: 0 | RGB46: 0 | RGC46: 0 | RGD46: 0 | RGE46: 0 | RGF46: 0 | RGG46: 0 | RGH46: 0 | RGI46: 0 | RGJ46: 0 | RGK46: =1/$G$46*$F$46*RGK37 -> 0 | RGL46: 0 | RGM46: 0 | RGN46: 0 | RGO46: 0 | RGP46: 0 | RGQ46: 0 | RGR46: 0 | RGS46: 0 | RGT46: 0 | RGU46: 0 | RGV46: 0 | RGW46: 0 | RGX46: 0 | RGY46: 0 | RGZ46: 0 | RHA46: 0 | RHB46: 0 | RHC46: 0 | RHD46: 0 | RHE46: 0 | RHF46: 0 | RHG46: 0 | RHH46: 0 | RHI46: 0 | RHJ46: 0 | RHK46: 0 | RHL46: 0 | RHM46: 0 | RHN46: 0 | RHO46: 0 | RHP46: 0 | RHQ46: 0 | RHR46: 0 | RHS46: 0 | RHT46: 0 | RHU46: 0 | RHV46: 0 | RHW46: 0 | RHX46: 0 | RHY46: 0 | RHZ46: 0 | RIA46: 0 | RIB46: 0 | RIC46: 0 | RID46: 0 | RIE46: 0 | RIF46: 0 | RIG46: 0 | RIH46: 0 | RII46: 0 | RIJ46: 0 | RIK46: 0 | RIL46: 0 | RIM46: 0 | RIN46: 0 | RIO46: 0 | RIP46: 0 | RIQ46: 0 | RIR46: 0 | RIS46: 0 | RIT46: 0 | RIU46: 0 | RIV46: 0 | RIW46: =1/$G$46*$F$46*RIW37 -> 0 | RIX46: 0 | RIY46: 0 | RIZ46: 0 | RJA46: 0 | RJB46: 0 | RJC46: 0 | RJD46: 0 | RJE46: 0 | RJF46: 0 | RJG46: 0 | RJH46: 0 | RJI46: 0 | RJJ46: 0 | RJK46: 0 | RJL46: 0 | RJM46: 0 | RJN46: 0 | RJO46: 0 | RJP46: 0 | RJQ46: 0 | RJR46: 0 | RJS46: 0 | RJT46: 0 | RJU46: 0 | RJV46: 0 | RJW46: 0 | RJX46: 0 | RJY46: 0 | RJZ46: 0 | RKA46: 0 | RKB46: 0 | RKC46: 0 | RKD46: 0 | RKE46: 0 | RKF46: 0 | RKG46: 0 | RKH46: 0 | RKI46: 0 | RKJ46: 0 | RKK46: 0 | RKL46: 0 | RKM46: 0 | RKN46: 0 | RKO46: 0 | RKP46: 0 | RKQ46: 0 | RKR46: 0 | RKS46: 0 | RKT46: 0 | RKU46: 0 | RKV46: 0 | RKW46: 0 | RKX46: 0 | RKY46: 0 | RKZ46: 0 | RLA46: 0 | RLB46: 0 | RLC46: 0 | RLD46: 0 | RLE46: 0 | RLF46: 0 | RLG46: 0 | RLH46: 0 | RLI46: =1/$G$46*$F$46*RLI37 -> 0 | RLJ46: 0 | RLK46: 0 | RLL46: 0 | RLM46: 0 | RLN46: 0 | RLO46: 0 | RLP46: 0 | RLQ46: 0 | RLR46: 0 | RLS46: 0 | RLT46: 0 | RLU46: 0 | RLV46: 0 | RLW46: 0 | RLX46: 0 | RLY46: 0 | RLZ46: 0 | RMA46: 0 | RMB46: 0 | RMC46: 0 | RMD46: 0 | RME46: 0 | RMF46: 0 | RMG46: 0 | RMH46: 0 | RMI46: 0 | RMJ46: 0 | RMK46: 0 | RML46: 0 | RMM46: 0 | RMN46: 0 | RMO46: 0 | RMP46: 0 | RMQ46: 0 | RMR46: 0 | RMS46: 0 | RMT46: 0 | RMU46: 0 | RMV46: 0 | RMW46: 0 | RMX46: 0 | RMY46: 0 | RMZ46: 0 | RNA46: 0 | RNB46: 0 | RNC46: 0 | RND46: 0 | RNE46: 0 | RNF46: 0 | RNG46: 0 | RNH46: 0 | RNI46: 0 | RNJ46: 0 | RNK46: 0 | RNL46: 0 | RNM46: 0 | RNN46: 0 | RNO46: 0 | RNP46: 0 | RNQ46: 0 | RNR46: 0 | RNS46: 0 | RNT46: 0 | RNU46: =1/$G$46*$F$46*RNU37 -> 0 | RNV46: 0 | RNW46: 0 | RNX46: 0 | RNY46: 0 | RNZ46: 0 | ROA46: 0 | ROB46: 0 | ROC46: 0 | ROD46: 0 | ROE46: 0 | ROF46: 0 | ROG46: 0 | ROH46: 0 | ROI46: 0 | ROJ46: 0 | ROK46: 0 | ROL46: 0 | ROM46: 0 | RON46: 0 | ROO46: 0 | ROP46: 0 | ROQ46: 0 | ROR46: 0 | ROS46: 0 | ROT46: 0 | ROU46: 0 | ROV46: 0 | ROW46: 0 | ROX46: 0 | ROY46: 0 | ROZ46: 0 | RPA46: 0 | RPB46: 0 | RPC46: 0 | RPD46: 0 | RPE46: 0 | RPF46: 0 | RPG46: 0 | RPH46: 0 | RPI46: 0 | RPJ46: 0 | RPK46: 0 | RPL46: 0 | RPM46: 0 | RPN46: 0 | RPO46: 0 | RPP46: 0 | RPQ46: 0 | RPR46: 0 | RPS46: 0 | RPT46: 0 | RPU46: 0 | RPV46: 0 | RPW46: 0 | RPX46: 0 | RPY46: 0 | RPZ46: 0 | RQA46: 0 | RQB46: 0 | RQC46: 0 | RQD46: 0 | RQE46: 0 | RQF46: 0 | RQG46: =1/$G$46*$F$46*RQG37 -> 0 | RQH46: 0 | RQI46: 0 | RQJ46: 0 | RQK46: 0 | RQL46: 0 | RQM46: 0 | RQN46: 0 | RQO46: 0 | RQP46: 0 | RQQ46: 0 | RQR46: 0 | RQS46: 0 | RQT46: 0 | RQU46: 0 | RQV46: 0 | RQW46: 0 | RQX46: 0 | RQY46: 0 | RQZ46: 0 | RRA46: 0 | RRB46: 0 | RRC46: 0 | RRD46: 0 | RRE46: 0 | RRF46: 0 | RRG46: 0 | RRH46: 0 | RRI46: 0 | RRJ46: 0 | RRK46: 0 | RRL46: 0 | RRM46: 0 | RRN46: 0 | RRO46: 0 | RRP46: 0 | RRQ46: 0 | RRR46: 0 | RRS46: 0 | RRT46: 0 | RRU46: 0 | RRV46: 0 | RRW46: 0 | RRX46: 0 | RRY46: 0 | RRZ46: 0 | RSA46: 0 | RSB46: 0 | RSC46: 0 | RSD46: 0 | RSE46: 0 | RSF46: 0 | RSG46: 0 | RSH46: 0 | RSI46: 0 | RSJ46: 0 | RSK46: 0 | RSL46: 0 | RSM46: 0 | RSN46: 0 | RSO46: 0 | RSP46: 0 | RSQ46: 0 | RSR46: 0 | RSS46: =1/$G$46*$F$46*RSS37 -> 0 | RST46: 0 | RSU46: 0 | RSV46: 0 | RSW46: 0 | RSX46: 0 | RSY46: 0 | RSZ46: 0 | RTA46: 0 | RTB46: 0 | RTC46: 0 | RTD46: 0 | RTE46: 0 | RTF46: 0 | RTG46: 0 | RTH46: 0 | RTI46: 0 | RTJ46: 0 | RTK46: 0 | RTL46: 0 | RTM46: 0 | RTN46: 0 | RTO46: 0 | RTP46: 0 | RTQ46: 0 | RTR46: 0 | RTS46: 0 | RTT46: 0 | RTU46: 0 | RTV46: 0 | RTW46: 0 | RTX46: 0 | RTY46: 0 | RTZ46: 0 | RUA46: 0 | RUB46: 0 | RUC46: 0 | RUD46: 0 | RUE46: 0 | RUF46: 0 | RUG46: 0 | RUH46: 0 | RUI46: 0 | RUJ46: 0 | RUK46: 0 | RUL46: 0 | RUM46: 0 | RUN46: 0 | RUO46: 0 | RUP46: 0 | RUQ46: 0 | RUR46: 0 | RUS46: 0 | RUT46: 0 | RUU46: 0 | RUV46: 0 | RUW46: 0 | RUX46: 0 | RUY46: 0 | RUZ46: 0 | RVA46: 0 | RVB46: 0 | RVC46: 0 | RVD46: 0 | RVE46: =1/$G$46*$F$46*RVE37 -> 0 | RVF46: 0 | RVG46: 0 | RVH46: 0 | RVI46: 0 | RVJ46: 0 | RVK46: 0 | RVL46: 0 | RVM46: 0 | RVN46: 0 | RVO46: 0 | RVP46: 0 | RVQ46: 0 | RVR46: 0 | RVS46: 0 | RVT46: 0 | RVU46: 0 | RVV46: 0 | RVW46: 0 | RVX46: 0 | RVY46: 0 | RVZ46: 0 | RWA46: 0 | RWB46: 0 | RWC46: 0 | RWD46: 0 | RWE46: 0 | RWF46: 0 | RWG46: 0 | RWH46: 0 | RWI46: 0 | RWJ46: 0 | RWK46: 0 | RWL46: 0 | RWM46: 0 | RWN46: 0 | RWO46: 0 | RWP46: 0 | RWQ46: 0 | RWR46: 0 | RWS46: 0 | RWT46: 0 | RWU46: 0 | RWV46: 0 | RWW46: 0 | RWX46: 0 | RWY46: 0 | RWZ46: 0 | RXA46: 0 | RXB46: 0 | RXC46: 0 | RXD46: 0 | RXE46: 0 | RXF46: 0 | RXG46: 0 | RXH46: 0 | RXI46: 0 | RXJ46: 0 | RXK46: 0 | RXL46: 0 | RXM46: 0 | RXN46: 0 | RXO46: 0 | RXP46: 0 | RXQ46: =1/$G$46*$F$46*RXQ37 -> 0 | RXR46: 0 | RXS46: 0 | RXT46: 0 | RXU46: 0 | RXV46: 0 | RXW46: 0 | RXX46: 0 | RXY46: 0 | RXZ46: 0 | RYA46: 0 | RYB46: 0 | RYC46: 0 | RYD46: 0 | RYE46: 0 | RYF46: 0 | RYG46: 0 | RYH46: 0 | RYI46: 0 | RYJ46: 0 | RYK46: 0 | RYL46: 0 | RYM46: 0 | RYN46: 0 | RYO46: 0 | RYP46: 0 | RYQ46: 0 | RYR46: 0 | RYS46: 0 | RYT46: 0 | RYU46: 0 | RYV46: 0 | RYW46: 0 | RYX46: 0 | RYY46: 0 | RYZ46: 0 | RZA46: 0 | RZB46: 0 | RZC46: 0 | RZD46: 0 | RZE46: 0 | RZF46: 0 | RZG46: 0 | RZH46: 0 | RZI46: 0 | RZJ46: 0 | RZK46: 0 | RZL46: 0 | RZM46: 0 | RZN46: 0 | RZO46: 0 | RZP46: 0 | RZQ46: 0 | RZR46: 0 | RZS46: 0 | RZT46: 0 | RZU46: 0 | RZV46: 0 | RZW46: 0 | RZX46: 0 | RZY46: 0 | RZZ46: 0 | SAA46: 0 | SAB46: 0 | SAC46: =1/$G$46*$F$46*SAC37 -> 0 | SAD46: 0 | SAE46: 0 | SAF46: 0 | SAG46: 0 | SAH46: 0 | SAI46: 0 | SAJ46: 0 | SAK46: 0 | SAL46: 0 | SAM46: 0 | SAN46: 0 | SAO46: 0 | SAP46: 0 | SAQ46: 0 | SAR46: 0 | SAS46: 0 | SAT46: 0 | SAU46: 0 | SAV46: 0 | SAW46: 0 | SAX46: 0 | SAY46: 0 | SAZ46: 0 | SBA46: 0 | SBB46: 0 | SBC46: 0 | SBD46: 0 | SBE46: 0 | SBF46: 0 | SBG46: 0 | SBH46: 0 | SBI46: 0 | SBJ46: 0 | SBK46: 0 | SBL46: 0 | SBM46: 0 | SBN46: 0 | SBO46: 0 | SBP46: 0 | SBQ46: 0 | SBR46: 0 | SBS46: 0 | SBT46: 0 | SBU46: 0 | SBV46: 0 | SBW46: 0 | SBX46: 0 | SBY46: 0 | SBZ46: 0 | SCA46: 0 | SCB46: 0 | SCC46: 0 | SCD46: 0 | SCE46: 0 | SCF46: 0 | SCG46: 0 | SCH46: 0 | SCI46: 0 | SCJ46: 0 | SCK46: 0 | SCL46: 0 | SCM46: 0 | SCN46: 0 | SCO46: =1/$G$46*$F$46*SCO37 -> 0 | SCP46: 0 | SCQ46: 0 | SCR46: 0 | SCS46: 0 | SCT46: 0 | SCU46: 0 | SCV46: 0 | SCW46: 0 | SCX46: 0 | SCY46: 0 | SCZ46: 0 | SDA46: 0 | SDB46: 0 | SDC46: 0 | SDD46: 0 | SDE46: 0 | SDF46: 0 | SDG46: 0 | SDH46: 0 | SDI46: 0 | SDJ46: 0 | SDK46: 0 | SDL46: 0 | SDM46: 0 | SDN46: 0 | SDO46: 0 | SDP46: 0 | SDQ46: 0 | SDR46: 0 | SDS46: 0 | SDT46: 0 | SDU46: 0 | SDV46: 0 | SDW46: 0 | SDX46: 0 | SDY46: 0 | SDZ46: 0 | SEA46: 0 | SEB46: 0 | SEC46: 0 | SED46: 0 | SEE46: 0 | SEF46: 0 | SEG46: 0 | SEH46: 0 | SEI46: 0 | SEJ46: 0 | SEK46: 0 | SEL46: 0 | SEM46: 0 | SEN46: 0 | SEO46: 0 | SEP46: 0 | SEQ46: 0 | SER46: 0 | SES46: 0 | SET46: 0 | SEU46: 0 | SEV46: 0 | SEW46: 0 | SEX46: 0 | SEY46: 0 | SEZ46: 0 | SFA46: =1/$G$46*$F$46*SFA37 -> 0 | SFB46: 0 | SFC46: 0 | SFD46: 0 | SFE46: 0 | SFF46: 0 | SFG46: 0 | SFH46: 0 | SFI46: 0 | SFJ46: 0 | SFK46: 0 | SFL46: 0 | SFM46: 0 | SFN46: 0 | SFO46: 0 | SFP46: 0 | SFQ46: 0 | SFR46: 0 | SFS46: 0 | SFT46: 0 | SFU46: 0 | SFV46: 0 | SFW46: 0 | SFX46: 0 | SFY46: 0 | SFZ46: 0 | SGA46: 0 | SGB46: 0 | SGC46: 0 | SGD46: 0 | SGE46: 0 | SGF46: 0 | SGG46: 0 | SGH46: 0 | SGI46: 0 | SGJ46: 0 | SGK46: 0 | SGL46: 0 | SGM46: 0 | SGN46: 0 | SGO46: 0 | SGP46: 0 | SGQ46: 0 | SGR46: 0 | SGS46: 0 | SGT46: 0 | SGU46: 0 | SGV46: 0 | SGW46: 0 | SGX46: 0 | SGY46: 0 | SGZ46: 0 | SHA46: 0 | SHB46: 0 | SHC46: 0 | SHD46: 0 | SHE46: 0 | SHF46: 0 | SHG46: 0 | SHH46: 0 | SHI46: 0 | SHJ46: 0 | SHK46: 0 | SHL46: 0 | SHM46: =1/$G$46*$F$46*SHM37 -> 0 | SHN46: 0 | SHO46: 0 | SHP46: 0 | SHQ46: 0 | SHR46: 0 | SHS46: 0 | SHT46: 0 | SHU46: 0 | SHV46: 0 | SHW46: 0 | SHX46: 0 | SHY46: 0 | SHZ46: 0 | SIA46: 0 | SIB46: 0 | SIC46: 0 | SID46: 0 | SIE46: 0 | SIF46: 0 | SIG46: 0 | SIH46: 0 | SII46: 0 | SIJ46: 0 | SIK46: 0 | SIL46: 0 | SIM46: 0 | SIN46: 0 | SIO46: 0 | SIP46: 0 | SIQ46: 0 | SIR46: 0 | SIS46: 0 | SIT46: 0 | SIU46: 0 | SIV46: 0 | SIW46: 0 | SIX46: 0 | SIY46: 0 | SIZ46: 0 | SJA46: 0 | SJB46: 0 | SJC46: 0 | SJD46: 0 | SJE46: 0 | SJF46: 0 | SJG46: 0 | SJH46: 0 | SJI46: 0 | SJJ46: 0 | SJK46: 0 | SJL46: 0 | SJM46: 0 | SJN46: 0 | SJO46: 0 | SJP46: 0 | SJQ46: 0 | SJR46: 0 | SJS46: 0 | SJT46: 0 | SJU46: 0 | SJV46: 0 | SJW46: 0 | SJX46: 0 | SJY46: =1/$G$46*$F$46*SJY37 -> 0 | SJZ46: 0 | SKA46: 0 | SKB46: 0 | SKC46: 0 | SKD46: 0 | SKE46: 0 | SKF46: 0 | SKG46: 0 | SKH46: 0 | SKI46: 0 | SKJ46: 0 | SKK46: 0 | SKL46: 0 | SKM46: 0 | SKN46: 0 | SKO46: 0 | SKP46: 0 | SKQ46: 0 | SKR46: 0 | SKS46: 0 | SKT46: 0 | SKU46: 0 | SKV46: 0 | SKW46: 0 | SKX46: 0 | SKY46: 0 | SKZ46: 0 | SLA46: 0 | SLB46: 0 | SLC46: 0 | SLD46: 0 | SLE46: 0 | SLF46: 0 | SLG46: 0 | SLH46: 0 | SLI46: 0 | SLJ46: 0 | SLK46: 0 | SLL46: 0 | SLM46: 0 | SLN46: 0 | SLO46: 0 | SLP46: 0 | SLQ46: 0 | SLR46: 0 | SLS46: 0 | SLT46: 0 | SLU46: 0 | SLV46: 0 | SLW46: 0 | SLX46: 0 | SLY46: 0 | SLZ46: 0 | SMA46: 0 | SMB46: 0 | SMC46: 0 | SMD46: 0 | SME46: 0 | SMF46: 0 | SMG46: 0 | SMH46: 0 | SMI46: 0 | SMJ46: 0 | SMK46: =1/$G$46*$F$46*SMK37 -> 0 | SML46: 0 | SMM46: 0 | SMN46: 0 | SMO46: 0 | SMP46: 0 | SMQ46: 0 | SMR46: 0 | SMS46: 0 | SMT46: 0 | SMU46: 0 | SMV46: 0 | SMW46: 0 | SMX46: 0 | SMY46: 0 | SMZ46: 0 | SNA46: 0 | SNB46: 0 | SNC46: 0 | SND46: 0 | SNE46: 0 | SNF46: 0 | SNG46: 0 | SNH46: 0 | SNI46: 0 | SNJ46: 0 | SNK46: 0 | SNL46: 0 | SNM46: 0 | SNN46: 0 | SNO46: 0 | SNP46: 0 | SNQ46: 0 | SNR46: 0 | SNS46: 0 | SNT46: 0 | SNU46: 0 | SNV46: 0 | SNW46: 0 | SNX46: 0 | SNY46: 0 | SNZ46: 0 | SOA46: 0 | SOB46: 0 | SOC46: 0 | SOD46: 0 | SOE46: 0 | SOF46: 0 | SOG46: 0 | SOH46: 0 | SOI46: 0 | SOJ46: 0 | SOK46: 0 | SOL46: 0 | SOM46: 0 | SON46: 0 | SOO46: 0 | SOP46: 0 | SOQ46: 0 | SOR46: 0 | SOS46: 0 | SOT46: 0 | SOU46: 0 | SOV46: 0 | SOW46: =1/$G$46*$F$46*SOW37 -> 0 | SOX46: 0 | SOY46: 0 | SOZ46: 0 | SPA46: 0 | SPB46: 0 | SPC46: 0 | SPD46: 0 | SPE46: 0 | SPF46: 0 | SPG46: 0 | SPH46: 0 | SPI46: 0 | SPJ46: 0 | SPK46: 0 | SPL46: 0 | SPM46: 0 | SPN46: 0 | SPO46: 0 | SPP46: 0 | SPQ46: 0 | SPR46: 0 | SPS46: 0 | SPT46: 0 | SPU46: 0 | SPV46: 0 | SPW46: 0 | SPX46: 0 | SPY46: 0 | SPZ46: 0 | SQA46: 0 | SQB46: 0 | SQC46: 0 | SQD46: 0 | SQE46: 0 | SQF46: 0 | SQG46: 0 | SQH46: 0 | SQI46: 0 | SQJ46: 0 | SQK46: 0 | SQL46: 0 | SQM46: 0 | SQN46: 0 | SQO46: 0 | SQP46: 0 | SQQ46: 0 | SQR46: 0 | SQS46: 0 | SQT46: 0 | SQU46: 0 | SQV46: 0 | SQW46: 0 | SQX46: 0 | SQY46: 0 | SQZ46: 0 | SRA46: 0 | SRB46: 0 | SRC46: 0 | SRD46: 0 | SRE46: 0 | SRF46: 0 | SRG46: 0 | SRH46: 0 | SRI46: =1/$G$46*$F$46*SRI37 -> 0 | SRJ46: 0 | SRK46: 0 | SRL46: 0 | SRM46: 0 | SRN46: 0 | SRO46: 0 | SRP46: 0 | SRQ46: 0 | SRR46: 0 | SRS46: 0 | SRT46: 0 | SRU46: 0 | SRV46: 0 | SRW46: 0 | SRX46: 0 | SRY46: 0 | SRZ46: 0 | SSA46: 0 | SSB46: 0 | SSC46: 0 | SSD46: 0 | SSE46: 0 | SSF46: 0 | SSG46: 0 | SSH46: 0 | SSI46: 0 | SSJ46: 0 | SSK46: 0 | SSL46: 0 | SSM46: 0 | SSN46: 0 | SSO46: 0 | SSP46: 0 | SSQ46: 0 | SSR46: 0 | SSS46: 0 | SST46: 0 | SSU46: 0 | SSV46: 0 | SSW46: 0 | SSX46: 0 | SSY46: 0 | SSZ46: 0 | STA46: 0 | STB46: 0 | STC46: 0 | STD46: 0 | STE46: 0 | STF46: 0 | STG46: 0 | STH46: 0 | STI46: 0 | STJ46: 0 | STK46: 0 | STL46: 0 | STM46: 0 | STN46: 0 | STO46: 0 | STP46: 0 | STQ46: 0 | STR46: 0 | STS46: 0 | STT46: 0 | STU46: =1/$G$46*$F$46*STU37 -> 0 | STV46: 0 | STW46: 0 | STX46: 0 | STY46: 0 | STZ46: 0 | SUA46: 0 | SUB46: 0 | SUC46: 0 | SUD46: 0 | SUE46: 0 | SUF46: 0 | SUG46: 0 | SUH46: 0 | SUI46: 0 | SUJ46: 0 | SUK46: 0 | SUL46: 0 | SUM46: 0 | SUN46: 0 | SUO46: 0 | SUP46: 0 | SUQ46: 0 | SUR46: 0 | SUS46: 0 | SUT46: 0 | SUU46: 0 | SUV46: 0 | SUW46: 0 | SUX46: 0 | SUY46: 0 | SUZ46: 0 | SVA46: 0 | SVB46: 0 | SVC46: 0 | SVD46: 0 | SVE46: 0 | SVF46: 0 | SVG46: 0 | SVH46: 0 | SVI46: 0 | SVJ46: 0 | SVK46: 0 | SVL46: 0 | SVM46: 0 | SVN46: 0 | SVO46: 0 | SVP46: 0 | SVQ46: 0 | SVR46: 0 | SVS46: 0 | SVT46: 0 | SVU46: 0 | SVV46: 0 | SVW46: 0 | SVX46: 0 | SVY46: 0 | SVZ46: 0 | SWA46: 0 | SWB46: 0 | SWC46: 0 | SWD46: 0 | SWE46: 0 | SWF46: 0 | SWG46: =1/$G$46*$F$46*SWG37 -> 0 | SWH46: 0 | SWI46: 0 | SWJ46: 0 | SWK46: 0 | SWL46: 0 | SWM46: 0 | SWN46: 0 | SWO46: 0 | SWP46: 0 | SWQ46: 0 | SWR46: 0 | SWS46: 0 | SWT46: 0 | SWU46: 0 | SWV46: 0 | SWW46: 0 | SWX46: 0 | SWY46: 0 | SWZ46: 0 | SXA46: 0 | SXB46: 0 | SXC46: 0 | SXD46: 0 | SXE46: 0 | SXF46: 0 | SXG46: 0 | SXH46: 0 | SXI46: 0 | SXJ46: 0 | SXK46: 0 | SXL46: 0 | SXM46: 0 | SXN46: 0 | SXO46: 0 | SXP46: 0 | SXQ46: 0 | SXR46: 0 | SXS46: 0 | SXT46: 0 | SXU46: 0 | SXV46: 0 | SXW46: 0 | SXX46: 0 | SXY46: 0 | SXZ46: 0 | SYA46: 0 | SYB46: 0 | SYC46: 0 | SYD46: 0 | SYE46: 0 | SYF46: 0 | SYG46: 0 | SYH46: 0 | SYI46: 0 | SYJ46: 0 | SYK46: 0 | SYL46: 0 | SYM46: 0 | SYN46: 0 | SYO46: 0 | SYP46: 0 | SYQ46: 0 | SYR46: 0 | SYS46: =1/$G$46*$F$46*SYS37 -> 0 | SYT46: 0 | SYU46: 0 | SYV46: 0 | SYW46: 0 | SYX46: 0 | SYY46: 0 | SYZ46: 0 | SZA46: 0 | SZB46: 0 | SZC46: 0 | SZD46: 0 | SZE46: 0 | SZF46: 0 | SZG46: 0 | SZH46: 0 | SZI46: 0 | SZJ46: 0 | SZK46: 0 | SZL46: 0 | SZM46: 0 | SZN46: 0 | SZO46: 0 | SZP46: 0 | SZQ46: 0 | SZR46: 0 | SZS46: 0 | SZT46: 0 | SZU46: 0 | SZV46: 0 | SZW46: 0 | SZX46: 0 | SZY46: 0 | SZZ46: 0 | TAA46: 0 | TAB46: 0 | TAC46: 0 | TAD46: 0 | TAE46: 0 | TAF46: 0 | TAG46: 0 | TAH46: 0 | TAI46: 0 | TAJ46: 0 | TAK46: 0 | TAL46: 0 | TAM46: 0 | TAN46: 0 | TAO46: 0 | TAP46: 0 | TAQ46: 0 | TAR46: 0 | TAS46: 0 | TAT46: 0 | TAU46: 0 | TAV46: 0 | TAW46: 0 | TAX46: 0 | TAY46: 0 | TAZ46: 0 | TBA46: 0 | TBB46: 0 | TBC46: 0 | TBD46: 0 | TBE46: =1/$G$46*$F$46*TBE37 -> 0 | TBF46: 0 | TBG46: 0 | TBH46: 0 | TBI46: 0 | TBJ46: 0 | TBK46: 0 | TBL46: 0 | TBM46: 0 | TBN46: 0 | TBO46: 0 | TBP46: 0 | TBQ46: 0 | TBR46: 0 | TBS46: 0 | TBT46: 0 | TBU46: 0 | TBV46: 0 | TBW46: 0 | TBX46: 0 | TBY46: 0 | TBZ46: 0 | TCA46: 0 | TCB46: 0 | TCC46: 0 | TCD46: 0 | TCE46: 0 | TCF46: 0 | TCG46: 0 | TCH46: 0 | TCI46: 0 | TCJ46: 0 | TCK46: 0 | TCL46: 0 | TCM46: 0 | TCN46: 0 | TCO46: 0 | TCP46: 0 | TCQ46: 0 | TCR46: 0 | TCS46: 0 | TCT46: 0 | TCU46: 0 | TCV46: 0 | TCW46: 0 | TCX46: 0 | TCY46: 0 | TCZ46: 0 | TDA46: 0 | TDB46: 0 | TDC46: 0 | TDD46: 0 | TDE46: 0 | TDF46: 0 | TDG46: 0 | TDH46: 0 | TDI46: 0 | TDJ46: 0 | TDK46: 0 | TDL46: 0 | TDM46: 0 | TDN46: 0 | TDO46: 0 | TDP46: 0 | TDQ46: =1/$G$46*$F$46*TDQ37 -> 0 | TDR46: 0 | TDS46: 0 | TDT46: 0 | TDU46: 0 | TDV46: 0 | TDW46: 0 | TDX46: 0 | TDY46: 0 | TDZ46: 0 | TEA46: 0 | TEB46: 0 | TEC46: 0 | TED46: 0 | TEE46: 0 | TEF46: 0 | TEG46: 0 | TEH46: 0 | TEI46: 0 | TEJ46: 0 | TEK46: 0 | TEL46: 0 | TEM46: 0 | TEN46: 0 | TEO46: 0 | TEP46: 0 | TEQ46: 0 | TER46: 0 | TES46: 0 | TET46: 0 | TEU46: 0 | TEV46: 0 | TEW46: 0 | TEX46: 0 | TEY46: 0 | TEZ46: 0 | TFA46: 0 | TFB46: 0 | TFC46: 0 | TFD46: 0 | TFE46: 0 | TFF46: 0 | TFG46: 0 | TFH46: 0 | TFI46: 0 | TFJ46: 0 | TFK46: 0 | TFL46: 0 | TFM46: 0 | TFN46: 0 | TFO46: 0 | TFP46: 0 | TFQ46: 0 | TFR46: 0 | TFS46: 0 | TFT46: 0 | TFU46: 0 | TFV46: 0 | TFW46: 0 | TFX46: 0 | TFY46: 0 | TFZ46: 0 | TGA46: 0 | TGB46: 0 | TGC46: =1/$G$46*$F$46*TGC37 -> 0 | TGD46: 0 | TGE46: 0 | TGF46: 0 | TGG46: 0 | TGH46: 0 | TGI46: 0 | TGJ46: 0 | TGK46: 0 | TGL46: 0 | TGM46: 0 | TGN46: 0 | TGO46: 0 | TGP46: 0 | TGQ46: 0 | TGR46: 0 | TGS46: 0 | TGT46: 0 | TGU46: 0 | TGV46: 0 | TGW46: 0 | TGX46: 0 | TGY46: 0 | TGZ46: 0 | THA46: 0 | THB46: 0 | THC46: 0 | THD46: 0 | THE46: 0 | THF46: 0 | THG46: 0 | THH46: 0 | THI46: 0 | THJ46: 0 | THK46: 0 | THL46: 0 | THM46: 0 | THN46: 0 | THO46: 0 | THP46: 0 | THQ46: 0 | THR46: 0 | THS46: 0 | THT46: 0 | THU46: 0 | THV46: 0 | THW46: 0 | THX46: 0 | THY46: 0 | THZ46: 0 | TIA46: 0 | TIB46: 0 | TIC46: 0 | TID46: 0 | TIE46: 0 | TIF46: 0 | TIG46: 0 | TIH46: 0 | TII46: 0 | TIJ46: 0 | TIK46: 0 | TIL46: 0 | TIM46: 0 | TIN46: 0 | TIO46: =1/$G$46*$F$46*TIO37 -> 0 | TIP46: 0 | TIQ46: 0 | TIR46: 0 | TIS46: 0 | TIT46: 0 | TIU46: 0 | TIV46: 0 | TIW46: 0 | TIX46: 0 | TIY46: 0 | TIZ46: 0 | TJA46: 0 | TJB46: 0 | TJC46: 0 | TJD46: 0 | TJE46: 0 | TJF46: 0 | TJG46: 0 | TJH46: 0 | TJI46: 0 | TJJ46: 0 | TJK46: 0 | TJL46: 0 | TJM46: 0 | TJN46: 0 | TJO46: 0 | TJP46: 0 | TJQ46: 0 | TJR46: 0 | TJS46: 0 | TJT46: 0 | TJU46: 0 | TJV46: 0 | TJW46: 0 | TJX46: 0 | TJY46: 0 | TJZ46: 0 | TKA46: 0 | TKB46: 0 | TKC46: 0 | TKD46: 0 | TKE46: 0 | TKF46: 0 | TKG46: 0 | TKH46: 0 | TKI46: 0 | TKJ46: 0 | TKK46: 0 | TKL46: 0 | TKM46: 0 | TKN46: 0 | TKO46: 0 | TKP46: 0 | TKQ46: 0 | TKR46: 0 | TKS46: 0 | TKT46: 0 | TKU46: 0 | TKV46: 0 | TKW46: 0 | TKX46: 0 | TKY46: 0 | TKZ46: 0 | TLA46: =1/$G$46*$F$46*TLA37 -> 0 | TLB46: 0 | TLC46: 0 | TLD46: 0 | TLE46: 0 | TLF46: 0 | TLG46: 0 | TLH46: 0 | TLI46: 0 | TLJ46: 0 | TLK46: 0 | TLL46: 0 | TLM46: 0 | TLN46: 0 | TLO46: 0 | TLP46: 0 | TLQ46: 0 | TLR46: 0 | TLS46: 0 | TLT46: 0 | TLU46: 0 | TLV46: 0 | TLW46: 0 | TLX46: 0 | TLY46: 0 | TLZ46: 0 | TMA46: 0 | TMB46: 0 | TMC46: 0 | TMD46: 0 | TME46: 0 | TMF46: 0 | TMG46: 0 | TMH46: 0 | TMI46: 0 | TMJ46: 0 | TMK46: 0 | TML46: 0 | TMM46: 0 | TMN46: 0 | TMO46: 0 | TMP46: 0 | TMQ46: 0 | TMR46: 0 | TMS46: 0 | TMT46: 0 | TMU46: 0 | TMV46: 0 | TMW46: 0 | TMX46: 0 | TMY46: 0 | TMZ46: 0 | TNA46: 0 | TNB46: 0 | TNC46: 0 | TND46: 0 | TNE46: 0 | TNF46: 0 | TNG46: 0 | TNH46: 0 | TNI46: 0 | TNJ46: 0 | TNK46: 0 | TNL46: 0 | TNM46: =1/$G$46*$F$46*TNM37 -> 0 | TNN46: 0 | TNO46: 0 | TNP46: 0 | TNQ46: 0 | TNR46: 0 | TNS46: 0 | TNT46: 0 | TNU46: 0 | TNV46: 0 | TNW46: 0 | TNX46: 0 | TNY46: 0 | TNZ46: 0 | TOA46: 0 | TOB46: 0 | TOC46: 0 | TOD46: 0 | TOE46: 0 | TOF46: 0 | TOG46: 0 | TOH46: 0 | TOI46: 0 | TOJ46: 0 | TOK46: 0 | TOL46: 0 | TOM46: 0 | TON46: 0 | TOO46: 0 | TOP46: 0 | TOQ46: 0 | TOR46: 0 | TOS46: 0 | TOT46: 0 | TOU46: 0 | TOV46: 0 | TOW46: 0 | TOX46: 0 | TOY46: 0 | TOZ46: 0 | TPA46: 0 | TPB46: 0 | TPC46: 0 | TPD46: 0 | TPE46: 0 | TPF46: 0 | TPG46: 0 | TPH46: 0 | TPI46: 0 | TPJ46: 0 | TPK46: 0 | TPL46: 0 | TPM46: 0 | TPN46: 0 | TPO46: 0 | TPP46: 0 | TPQ46: 0 | TPR46: 0 | TPS46: 0 | TPT46: 0 | TPU46: 0 | TPV46: 0 | TPW46: 0 | TPX46: 0 | TPY46: =1/$G$46*$F$46*TPY37 -> 0 | TPZ46: 0 | TQA46: 0 | TQB46: 0 | TQC46: 0 | TQD46: 0 | TQE46: 0 | TQF46: 0 | TQG46: 0 | TQH46: 0 | TQI46: 0 | TQJ46: 0 | TQK46: 0 | TQL46: 0 | TQM46: 0 | TQN46: 0 | TQO46: 0 | TQP46: 0 | TQQ46: 0 | TQR46: 0 | TQS46: 0 | TQT46: 0 | TQU46: 0 | TQV46: 0 | TQW46: 0 | TQX46: 0 | TQY46: 0 | TQZ46: 0 | TRA46: 0 | TRB46: 0 | TRC46: 0 | TRD46: 0 | TRE46: 0 | TRF46: 0 | TRG46: 0 | TRH46: 0 | TRI46: 0 | TRJ46: 0 | TRK46: 0 | TRL46: 0 | TRM46: 0 | TRN46: 0 | TRO46: 0 | TRP46: 0 | TRQ46: 0 | TRR46: 0 | TRS46: 0 | TRT46: 0 | TRU46: 0 | TRV46: 0 | TRW46: 0 | TRX46: 0 | TRY46: 0 | TRZ46: 0 | TSA46: 0 | TSB46: 0 | TSC46: 0 | TSD46: 0 | TSE46: 0 | TSF46: 0 | TSG46: 0 | TSH46: 0 | TSI46: 0 | TSJ46: 0 | TSK46: =1/$G$46*$F$46*TSK37 -> 0 | TSL46: 0 | TSM46: 0 | TSN46: 0 | TSO46: 0 | TSP46: 0 | TSQ46: 0 | TSR46: 0 | TSS46: 0 | TST46: 0 | TSU46: 0 | TSV46: 0 | TSW46: 0 | TSX46: 0 | TSY46: 0 | TSZ46: 0 | TTA46: 0 | TTB46: 0 | TTC46: 0 | TTD46: 0 | TTE46: 0 | TTF46: 0 | TTG46: 0 | TTH46: 0 | TTI46: 0 | TTJ46: 0 | TTK46: 0 | TTL46: 0 | TTM46: 0 | TTN46: 0 | TTO46: 0 | TTP46: 0 | TTQ46: 0 | TTR46: 0 | TTS46: 0 | TTT46: 0 | TTU46: 0 | TTV46: 0 | TTW46: 0 | TTX46: 0 | TTY46: 0 | TTZ46: 0 | TUA46: 0 | TUB46: 0 | TUC46: 0 | TUD46: 0 | TUE46: 0 | TUF46: 0 | TUG46: 0 | TUH46: 0 | TUI46: 0 | TUJ46: 0 | TUK46: 0 | TUL46: 0 | TUM46: 0 | TUN46: 0 | TUO46: 0 | TUP46: 0 | TUQ46: 0 | TUR46: 0 | TUS46: 0 | TUT46: 0 | TUU46: 0 | TUV46: 0 | TUW46: =1/$G$46*$F$46*TUW37 -> 0 | TUX46: 0 | TUY46: 0 | TUZ46: 0 | TVA46: 0 | TVB46: 0 | TVC46: 0 | TVD46: 0 | TVE46: 0 | TVF46: 0 | TVG46: 0 | TVH46: 0 | TVI46: 0 | TVJ46: 0 | TVK46: 0 | TVL46: 0 | TVM46: 0 | TVN46: 0 | TVO46: 0 | TVP46: 0 | TVQ46: 0 | TVR46: 0 | TVS46: 0 | TVT46: 0 | TVU46: 0 | TVV46: 0 | TVW46: 0 | TVX46: 0 | TVY46: 0 | TVZ46: 0 | TWA46: 0 | TWB46: 0 | TWC46: 0 | TWD46: 0 | TWE46: 0 | TWF46: 0 | TWG46: 0 | TWH46: 0 | TWI46: 0 | TWJ46: 0 | TWK46: 0 | TWL46: 0 | TWM46: 0 | TWN46: 0 | TWO46: 0 | TWP46: 0 | TWQ46: 0 | TWR46: 0 | TWS46: 0 | TWT46: 0 | TWU46: 0 | TWV46: 0 | TWW46: 0 | TWX46: 0 | TWY46: 0 | TWZ46: 0 | TXA46: 0 | TXB46: 0 | TXC46: 0 | TXD46: 0 | TXE46: 0 | TXF46: 0 | TXG46: 0 | TXH46: 0 | TXI46: =1/$G$46*$F$46*TXI37 -> 0 | TXJ46: 0 | TXK46: 0 | TXL46: 0 | TXM46: 0 | TXN46: 0 | TXO46: 0 | TXP46: 0 | TXQ46: 0 | TXR46: 0 | TXS46: 0 | TXT46: 0 | TXU46: 0 | TXV46: 0 | TXW46: 0 | TXX46: 0 | TXY46: 0 | TXZ46: 0 | TYA46: 0 | TYB46: 0 | TYC46: 0 | TYD46: 0 | TYE46: 0 | TYF46: 0 | TYG46: 0 | TYH46: 0 | TYI46: 0 | TYJ46: 0 | TYK46: 0 | TYL46: 0 | TYM46: 0 | TYN46: 0 | TYO46: 0 | TYP46: 0 | TYQ46: 0 | TYR46: 0 | TYS46: 0 | TYT46: 0 | TYU46: 0 | TYV46: 0 | TYW46: 0 | TYX46: 0 | TYY46: 0 | TYZ46: 0 | TZA46: 0 | TZB46: 0 | TZC46: 0 | TZD46: 0 | TZE46: 0 | TZF46: 0 | TZG46: 0 | TZH46: 0 | TZI46: 0 | TZJ46: 0 | TZK46: 0 | TZL46: 0 | TZM46: 0 | TZN46: 0 | TZO46: 0 | TZP46: 0 | TZQ46: 0 | TZR46: 0 | TZS46: 0 | TZT46: 0 | TZU46: =1/$G$46*$F$46*TZU37 -> 0 | TZV46: 0 | TZW46: 0 | TZX46: 0 | TZY46: 0 | TZZ46: 0 | UAA46: 0 | UAB46: 0 | UAC46: 0 | UAD46: 0 | UAE46: 0 | UAF46: 0 | UAG46: 0 | UAH46: 0 | UAI46: 0 | UAJ46: 0 | UAK46: 0 | UAL46: 0 | UAM46: 0 | UAN46: 0 | UAO46: 0 | UAP46: 0 | UAQ46: 0 | UAR46: 0 | UAS46: 0 | UAT46: 0 | UAU46: 0 | UAV46: 0 | UAW46: 0 | UAX46: 0 | UAY46: 0 | UAZ46: 0 | UBA46: 0 | UBB46: 0 | UBC46: 0 | UBD46: 0 | UBE46: 0 | UBF46: 0 | UBG46: 0 | UBH46: 0 | UBI46: 0 | UBJ46: 0 | UBK46: 0 | UBL46: 0 | UBM46: 0 | UBN46: 0 | UBO46: 0 | UBP46: 0 | UBQ46: 0 | UBR46: 0 | UBS46: 0 | UBT46: 0 | UBU46: 0 | UBV46: 0 | UBW46: 0 | UBX46: 0 | UBY46: 0 | UBZ46: 0 | UCA46: 0 | UCB46: 0 | UCC46: 0 | UCD46: 0 | UCE46: 0 | UCF46: 0 | UCG46: =1/$G$46*$F$46*UCG37 -> 0 | UCH46: 0 | UCI46: 0 | UCJ46: 0 | UCK46: 0 | UCL46: 0 | UCM46: 0 | UCN46: 0 | UCO46: 0 | UCP46: 0 | UCQ46: 0 | UCR46: 0 | UCS46: 0 | UCT46: 0 | UCU46: 0 | UCV46: 0 | UCW46: 0 | UCX46: 0 | UCY46: 0 | UCZ46: 0 | UDA46: 0 | UDB46: 0 | UDC46: 0 | UDD46: 0 | UDE46: 0 | UDF46: 0 | UDG46: 0 | UDH46: 0 | UDI46: 0 | UDJ46: 0 | UDK46: 0 | UDL46: 0 | UDM46: 0 | UDN46: 0 | UDO46: 0 | UDP46: 0 | UDQ46: 0 | UDR46: 0 | UDS46: 0 | UDT46: 0 | UDU46: 0 | UDV46: 0 | UDW46: 0 | UDX46: 0 | UDY46: 0 | UDZ46: 0 | UEA46: 0 | UEB46: 0 | UEC46: 0 | UED46: 0 | UEE46: 0 | UEF46: 0 | UEG46: 0 | UEH46: 0 | UEI46: 0 | UEJ46: 0 | UEK46: 0 | UEL46: 0 | UEM46: 0 | UEN46: 0 | UEO46: 0 | UEP46: 0 | UEQ46: 0 | UER46: 0 | UES46: =1/$G$46*$F$46*UES37 -> 0 | UET46: 0 | UEU46: 0 | UEV46: 0 | UEW46: 0 | UEX46: 0 | UEY46: 0 | UEZ46: 0 | UFA46: 0 | UFB46: 0 | UFC46: 0 | UFD46: 0 | UFE46: 0 | UFF46: 0 | UFG46: 0 | UFH46: 0 | UFI46: 0 | UFJ46: 0 | UFK46: 0 | UFL46: 0 | UFM46: 0 | UFN46: 0 | UFO46: 0 | UFP46: 0 | UFQ46: 0 | UFR46: 0 | UFS46: 0 | UFT46: 0 | UFU46: 0 | UFV46: 0 | UFW46: 0 | UFX46: 0 | UFY46: 0 | UFZ46: 0 | UGA46: 0 | UGB46: 0 | UGC46: 0 | UGD46: 0 | UGE46: 0 | UGF46: 0 | UGG46: 0 | UGH46: 0 | UGI46: 0 | UGJ46: 0 | UGK46: 0 | UGL46: 0 | UGM46: 0 | UGN46: 0 | UGO46: 0 | UGP46: 0 | UGQ46: 0 | UGR46: 0 | UGS46: 0 | UGT46: 0 | UGU46: 0 | UGV46: 0 | UGW46: 0 | UGX46: 0 | UGY46: 0 | UGZ46: 0 | UHA46: 0 | UHB46: 0 | UHC46: 0 | UHD46: 0 | UHE46: =1/$G$46*$F$46*UHE37 -> 0 | UHF46: 0 | UHG46: 0 | UHH46: 0 | UHI46: 0 | UHJ46: 0 | UHK46: 0 | UHL46: 0 | UHM46: 0 | UHN46: 0 | UHO46: 0 | UHP46: 0 | UHQ46: 0 | UHR46: 0 | UHS46: 0 | UHT46: 0 | UHU46: 0 | UHV46: 0 | UHW46: 0 | UHX46: 0 | UHY46: 0 | UHZ46: 0 | UIA46: 0 | UIB46: 0 | UIC46: 0 | UID46: 0 | UIE46: 0 | UIF46: 0 | UIG46: 0 | UIH46: 0 | UII46: 0 | UIJ46: 0 | UIK46: 0 | UIL46: 0 | UIM46: 0 | UIN46: 0 | UIO46: 0 | UIP46: 0 | UIQ46: 0 | UIR46: 0 | UIS46: 0 | UIT46: 0 | UIU46: 0 | UIV46: 0 | UIW46: 0 | UIX46: 0 | UIY46: 0 | UIZ46: 0 | UJA46: 0 | UJB46: 0 | UJC46: 0 | UJD46: 0 | UJE46: 0 | UJF46: 0 | UJG46: 0 | UJH46: 0 | UJI46: 0 | UJJ46: 0 | UJK46: 0 | UJL46: 0 | UJM46: 0 | UJN46: 0 | UJO46: 0 | UJP46: 0 | UJQ46: =1/$G$46*$F$46*UJQ37 -> 0 | UJR46: 0 | UJS46: 0 | UJT46: 0 | UJU46: 0 | UJV46: 0 | UJW46: 0 | UJX46: 0 | UJY46: 0 | UJZ46: 0 | UKA46: 0 | UKB46: 0 | UKC46: 0 | UKD46: 0 | UKE46: 0 | UKF46: 0 | UKG46: 0 | UKH46: 0 | UKI46: 0 | UKJ46: 0 | UKK46: 0 | UKL46: 0 | UKM46: 0 | UKN46: 0 | UKO46: 0 | UKP46: 0 | UKQ46: 0 | UKR46: 0 | UKS46: 0 | UKT46: 0 | UKU46: 0 | UKV46: 0 | UKW46: 0 | UKX46: 0 | UKY46: 0 | UKZ46: 0 | ULA46: 0 | ULB46: 0 | ULC46: 0 | ULD46: 0 | ULE46: 0 | ULF46: 0 | ULG46: 0 | ULH46: 0 | ULI46: 0 | ULJ46: 0 | ULK46: 0 | ULL46: 0 | ULM46: 0 | ULN46: 0 | ULO46: 0 | ULP46: 0 | ULQ46: 0 | ULR46: 0 | ULS46: 0 | ULT46: 0 | ULU46: 0 | ULV46: 0 | ULW46: 0 | ULX46: 0 | ULY46: 0 | ULZ46: 0 | UMA46: 0 | UMB46: 0 | UMC46: =1/$G$46*$F$46*UMC37 -> 0 | UMD46: 0 | UME46: 0 | UMF46: 0 | UMG46: 0 | UMH46: 0 | UMI46: 0 | UMJ46: 0 | UMK46: 0 | UML46: 0 | UMM46: 0 | UMN46: 0 | UMO46: 0 | UMP46: 0 | UMQ46: 0 | UMR46: 0 | UMS46: 0 | UMT46: 0 | UMU46: 0 | UMV46: 0 | UMW46: 0 | UMX46: 0 | UMY46: 0 | UMZ46: 0 | UNA46: 0 | UNB46: 0 | UNC46: 0 | UND46: 0 | UNE46: 0 | UNF46: 0 | UNG46: 0 | UNH46: 0 | UNI46: 0 | UNJ46: 0 | UNK46: 0 | UNL46: 0 | UNM46: 0 | UNN46: 0 | UNO46: 0 | UNP46: 0 | UNQ46: 0 | UNR46: 0 | UNS46: 0 | UNT46: 0 | UNU46: 0 | UNV46: 0 | UNW46: 0 | UNX46: 0 | UNY46: 0 | UNZ46: 0 | UOA46: 0 | UOB46: 0 | UOC46: 0 | UOD46: 0 | UOE46: 0 | UOF46: 0 | UOG46: 0 | UOH46: 0 | UOI46: 0 | UOJ46: 0 | UOK46: 0 | UOL46: 0 | UOM46: 0 | UON46: 0 | UOO46: =1/$G$46*$F$46*UOO37 -> 0 | UOP46: 0 | UOQ46: 0 | UOR46: 0 | UOS46: 0 | UOT46: 0 | UOU46: 0 | UOV46: 0 | UOW46: 0 | UOX46: 0 | UOY46: 0 | UOZ46: 0 | UPA46: 0 | UPB46: 0 | UPC46: 0 | UPD46: 0 | UPE46: 0 | UPF46: 0 | UPG46: 0 | UPH46: 0 | UPI46: 0 | UPJ46: 0 | UPK46: 0 | UPL46: 0 | UPM46: 0 | UPN46: 0 | UPO46: 0 | UPP46: 0 | UPQ46: 0 | UPR46: 0 | UPS46: 0 | UPT46: 0 | UPU46: 0 | UPV46: 0 | UPW46: 0 | UPX46: 0 | UPY46: 0 | UPZ46: 0 | UQA46: 0 | UQB46: 0 | UQC46: 0 | UQD46: 0 | UQE46: 0 | UQF46: 0 | UQG46: 0 | UQH46: 0 | UQI46: 0 | UQJ46: 0 | UQK46: 0 | UQL46: 0 | UQM46: 0 | UQN46: 0 | UQO46: 0 | UQP46: 0 | UQQ46: 0 | UQR46: 0 | UQS46: 0 | UQT46: 0 | UQU46: 0 | UQV46: 0 | UQW46: 0 | UQX46: 0 | UQY46: 0 | UQZ46: 0 | URA46: =1/$G$46*$F$46*URA37 -> 0 | URB46: 0 | URC46: 0 | URD46: 0 | URE46: 0 | URF46: 0 | URG46: 0 | URH46: 0 | URI46: 0 | URJ46: 0 | URK46: 0 | URL46: 0 | URM46: 0 | URN46: 0 | URO46: 0 | URP46: 0 | URQ46: 0 | URR46: 0 | URS46: 0 | URT46: 0 | URU46: 0 | URV46: 0 | URW46: 0 | URX46: 0 | URY46: 0 | URZ46: 0 | USA46: 0 | USB46: 0 | USC46: 0 | USD46: 0 | USE46: 0 | USF46: 0 | USG46: 0 | USH46: 0 | USI46: 0 | USJ46: 0 | USK46: 0 | USL46: 0 | USM46: 0 | USN46: 0 | USO46: 0 | USP46: 0 | USQ46: 0 | USR46: 0 | USS46: 0 | UST46: 0 | USU46: 0 | USV46: 0 | USW46: 0 | USX46: 0 | USY46: 0 | USZ46: 0 | UTA46: 0 | UTB46: 0 | UTC46: 0 | UTD46: 0 | UTE46: 0 | UTF46: 0 | UTG46: 0 | UTH46: 0 | UTI46: 0 | UTJ46: 0 | UTK46: 0 | UTL46: 0 | UTM46: =1/$G$46*$F$46*UTM37 -> 0 | UTN46: 0 | UTO46: 0 | UTP46: 0 | UTQ46: 0 | UTR46: 0 | UTS46: 0 | UTT46: 0 | UTU46: 0 | UTV46: 0 | UTW46: 0 | UTX46: 0 | UTY46: 0 | UTZ46: 0 | UUA46: 0 | UUB46: 0 | UUC46: 0 | UUD46: 0 | UUE46: 0 | UUF46: 0 | UUG46: 0 | UUH46: 0 | UUI46: 0 | UUJ46: 0 | UUK46: 0 | UUL46: 0 | UUM46: 0 | UUN46: 0 | UUO46: 0 | UUP46: 0 | UUQ46: 0 | UUR46: 0 | UUS46: 0 | UUT46: 0 | UUU46: 0 | UUV46: 0 | UUW46: 0 | UUX46: 0 | UUY46: 0 | UUZ46: 0 | UVA46: 0 | UVB46: 0 | UVC46: 0 | UVD46: 0 | UVE46: 0 | UVF46: 0 | UVG46: 0 | UVH46: 0 | UVI46: 0 | UVJ46: 0 | UVK46: 0 | UVL46: 0 | UVM46: 0 | UVN46: 0 | UVO46: 0 | UVP46: 0 | UVQ46: 0 | UVR46: 0 | UVS46: 0 | UVT46: 0 | UVU46: 0 | UVV46: 0 | UVW46: 0 | UVX46: 0 | UVY46: =1/$G$46*$F$46*UVY37 -> 0 | UVZ46: 0 | UWA46: 0 | UWB46: 0 | UWC46: 0 | UWD46: 0 | UWE46: 0 | UWF46: 0 | UWG46: 0 | UWH46: 0 | UWI46: 0 | UWJ46: 0 | UWK46: 0 | UWL46: 0 | UWM46: 0 | UWN46: 0 | UWO46: 0 | UWP46: 0 | UWQ46: 0 | UWR46: 0 | UWS46: 0 | UWT46: 0 | UWU46: 0 | UWV46: 0 | UWW46: 0 | UWX46: 0 | UWY46: 0 | UWZ46: 0 | UXA46: 0 | UXB46: 0 | UXC46: 0 | UXD46: 0 | UXE46: 0 | UXF46: 0 | UXG46: 0 | UXH46: 0 | UXI46: 0 | UXJ46: 0 | UXK46: 0 | UXL46: 0 | UXM46: 0 | UXN46: 0 | UXO46: 0 | UXP46: 0 | UXQ46: 0 | UXR46: 0 | UXS46: 0 | UXT46: 0 | UXU46: 0 | UXV46: 0 | UXW46: 0 | UXX46: 0 | UXY46: 0 | UXZ46: 0 | UYA46: 0 | UYB46: 0 | UYC46: 0 | UYD46: 0 | UYE46: 0 | UYF46: 0 | UYG46: 0 | UYH46: 0 | UYI46: 0 | UYJ46: 0 | UYK46: =1/$G$46*$F$46*UYK37 -> 0 | UYL46: 0 | UYM46: 0 | UYN46: 0 | UYO46: 0 | UYP46: 0 | UYQ46: 0 | UYR46: 0 | UYS46: 0 | UYT46: 0 | UYU46: 0 | UYV46: 0 | UYW46: 0 | UYX46: 0 | UYY46: 0 | UYZ46: 0 | UZA46: 0 | UZB46: 0 | UZC46: 0 | UZD46: 0 | UZE46: 0 | UZF46: 0 | UZG46: 0 | UZH46: 0 | UZI46: 0 | UZJ46: 0 | UZK46: 0 | UZL46: 0 | UZM46: 0 | UZN46: 0 | UZO46: 0 | UZP46: 0 | UZQ46: 0 | UZR46: 0 | UZS46: 0 | UZT46: 0 | UZU46: 0 | UZV46: 0 | UZW46: 0 | UZX46: 0 | UZY46: 0 | UZZ46: 0 | VAA46: 0 | VAB46: 0 | VAC46: 0 | VAD46: 0 | VAE46: 0 | VAF46: 0 | VAG46: 0 | VAH46: 0 | VAI46: 0 | VAJ46: 0 | VAK46: 0 | VAL46: 0 | VAM46: 0 | VAN46: 0 | VAO46: 0 | VAP46: 0 | VAQ46: 0 | VAR46: 0 | VAS46: 0 | VAT46: 0 | VAU46: 0 | VAV46: 0 | VAW46: =1/$G$46*$F$46*VAW37 -> 0 | VAX46: 0 | VAY46: 0 | VAZ46: 0 | VBA46: 0 | VBB46: 0 | VBC46: 0 | VBD46: 0 | VBE46: 0 | VBF46: 0 | VBG46: 0 | VBH46: 0 | VBI46: 0 | VBJ46: 0 | VBK46: 0 | VBL46: 0 | VBM46: 0 | VBN46: 0 | VBO46: 0 | VBP46: 0 | VBQ46: 0 | VBR46: 0 | VBS46: 0 | VBT46: 0 | VBU46: 0 | VBV46: 0 | VBW46: 0 | VBX46: 0 | VBY46: 0 | VBZ46: 0 | VCA46: 0 | VCB46: 0 | VCC46: 0 | VCD46: 0 | VCE46: 0 | VCF46: 0 | VCG46: 0 | VCH46: 0 | VCI46: 0 | VCJ46: 0 | VCK46: 0 | VCL46: 0 | VCM46: 0 | VCN46: 0 | VCO46: 0 | VCP46: 0 | VCQ46: 0 | VCR46: 0 | VCS46: 0 | VCT46: 0 | VCU46: 0 | VCV46: 0 | VCW46: 0 | VCX46: 0 | VCY46: 0 | VCZ46: 0 | VDA46: 0 | VDB46: 0 | VDC46: 0 | VDD46: 0 | VDE46: 0 | VDF46: 0 | VDG46: 0 | VDH46: 0 | VDI46: =1/$G$46*$F$46*VDI37 -> 0 | VDJ46: 0 | VDK46: 0 | VDL46: 0 | VDM46: 0 | VDN46: 0 | VDO46: 0 | VDP46: 0 | VDQ46: 0 | VDR46: 0 | VDS46: 0 | VDT46: 0 | VDU46: 0 | VDV46: 0 | VDW46: 0 | VDX46: 0 | VDY46: 0 | VDZ46: 0 | VEA46: 0 | VEB46: 0 | VEC46: 0 | VED46: 0 | VEE46: 0 | VEF46: 0 | VEG46: 0 | VEH46: 0 | VEI46: 0 | VEJ46: 0 | VEK46: 0 | VEL46: 0 | VEM46: 0 | VEN46: 0 | VEO46: 0 | VEP46: 0 | VEQ46: 0 | VER46: 0 | VES46: 0 | VET46: 0 | VEU46: 0 | VEV46: 0 | VEW46: 0 | VEX46: 0 | VEY46: 0 | VEZ46: 0 | VFA46: 0 | VFB46: 0 | VFC46: 0 | VFD46: 0 | VFE46: 0 | VFF46: 0 | VFG46: 0 | VFH46: 0 | VFI46: 0 | VFJ46: 0 | VFK46: 0 | VFL46: 0 | VFM46: 0 | VFN46: 0 | VFO46: 0 | VFP46: 0 | VFQ46: 0 | VFR46: 0 | VFS46: 0 | VFT46: 0 | VFU46: =1/$G$46*$F$46*VFU37 -> 0 | VFV46: 0 | VFW46: 0 | VFX46: 0 | VFY46: 0 | VFZ46: 0 | VGA46: 0 | VGB46: 0 | VGC46: 0 | VGD46: 0 | VGE46: 0 | VGF46: 0 | VGG46: 0 | VGH46: 0 | VGI46: 0 | VGJ46: 0 | VGK46: 0 | VGL46: 0 | VGM46: 0 | VGN46: 0 | VGO46: 0 | VGP46: 0 | VGQ46: 0 | VGR46: 0 | VGS46: 0 | VGT46: 0 | VGU46: 0 | VGV46: 0 | VGW46: 0 | VGX46: 0 | VGY46: 0 | VGZ46: 0 | VHA46: 0 | VHB46: 0 | VHC46: 0 | VHD46: 0 | VHE46: 0 | VHF46: 0 | VHG46: 0 | VHH46: 0 | VHI46: 0 | VHJ46: 0 | VHK46: 0 | VHL46: 0 | VHM46: 0 | VHN46: 0 | VHO46: 0 | VHP46: 0 | VHQ46: 0 | VHR46: 0 | VHS46: 0 | VHT46: 0 | VHU46: 0 | VHV46: 0 | VHW46: 0 | VHX46: 0 | VHY46: 0 | VHZ46: 0 | VIA46: 0 | VIB46: 0 | VIC46: 0 | VID46: 0 | VIE46: 0 | VIF46: 0 | VIG46: =1/$G$46*$F$46*VIG37 -> 0 | VIH46: 0 | VII46: 0 | VIJ46: 0 | VIK46: 0 | VIL46: 0 | VIM46: 0 | VIN46: 0 | VIO46: 0 | VIP46: 0 | VIQ46: 0 | VIR46: 0 | VIS46: 0 | VIT46: 0 | VIU46: 0 | VIV46: 0 | VIW46: 0 | VIX46: 0 | VIY46: 0 | VIZ46: 0 | VJA46: 0 | VJB46: 0 | VJC46: 0 | VJD46: 0 | VJE46: 0 | VJF46: 0 | VJG46: 0 | VJH46: 0 | VJI46: 0 | VJJ46: 0 | VJK46: 0 | VJL46: 0 | VJM46: 0 | VJN46: 0 | VJO46: 0 | VJP46: 0 | VJQ46: 0 | VJR46: 0 | VJS46: 0 | VJT46: 0 | VJU46: 0 | VJV46: 0 | VJW46: 0 | VJX46: 0 | VJY46: 0 | VJZ46: 0 | VKA46: 0 | VKB46: 0 | VKC46: 0 | VKD46: 0 | VKE46: 0 | VKF46: 0 | VKG46: 0 | VKH46: 0 | VKI46: 0 | VKJ46: 0 | VKK46: 0 | VKL46: 0 | VKM46: 0 | VKN46: 0 | VKO46: 0 | VKP46: 0 | VKQ46: 0 | VKR46: 0 | VKS46: =1/$G$46*$F$46*VKS37 -> 0 | VKT46: 0 | VKU46: 0 | VKV46: 0 | VKW46: 0 | VKX46: 0 | VKY46: 0 | VKZ46: 0 | VLA46: 0 | VLB46: 0 | VLC46: 0 | VLD46: 0 | VLE46: 0 | VLF46: 0 | VLG46: 0 | VLH46: 0 | VLI46: 0 | VLJ46: 0 | VLK46: 0 | VLL46: 0 | VLM46: 0 | VLN46: 0 | VLO46: 0 | VLP46: 0 | VLQ46: 0 | VLR46: 0 | VLS46: 0 | VLT46: 0 | VLU46: 0 | VLV46: 0 | VLW46: 0 | VLX46: 0 | VLY46: 0 | VLZ46: 0 | VMA46: 0 | VMB46: 0 | VMC46: 0 | VMD46: 0 | VME46: 0 | VMF46: 0 | VMG46: 0 | VMH46: 0 | VMI46: 0 | VMJ46: 0 | VMK46: 0 | VML46: 0 | VMM46: 0 | VMN46: 0 | VMO46: 0 | VMP46: 0 | VMQ46: 0 | VMR46: 0 | VMS46: 0 | VMT46: 0 | VMU46: 0 | VMV46: 0 | VMW46: 0 | VMX46: 0 | VMY46: 0 | VMZ46: 0 | VNA46: 0 | VNB46: 0 | VNC46: 0 | VND46: 0 | VNE46: =1/$G$46*$F$46*VNE37 -> 0 | VNF46: 0 | VNG46: 0 | VNH46: 0 | VNI46: 0 | VNJ46: 0 | VNK46: 0 | VNL46: 0 | VNM46: 0 | VNN46: 0 | VNO46: 0 | VNP46: 0 | VNQ46: 0 | VNR46: 0 | VNS46: 0 | VNT46: 0 | VNU46: 0 | VNV46: 0 | VNW46: 0 | VNX46: 0 | VNY46: 0 | VNZ46: 0 | VOA46: 0 | VOB46: 0 | VOC46: 0 | VOD46: 0 | VOE46: 0 | VOF46: 0 | VOG46: 0 | VOH46: 0 | VOI46: 0 | VOJ46: 0 | VOK46: 0 | VOL46: 0 | VOM46: 0 | VON46: 0 | VOO46: 0 | VOP46: 0 | VOQ46: 0 | VOR46: 0 | VOS46: 0 | VOT46: 0 | VOU46: 0 | VOV46: 0 | VOW46: 0 | VOX46: 0 | VOY46: 0 | VOZ46: 0 | VPA46: 0 | VPB46: 0 | VPC46: 0 | VPD46: 0 | VPE46: 0 | VPF46: 0 | VPG46: 0 | VPH46: 0 | VPI46: 0 | VPJ46: 0 | VPK46: 0 | VPL46: 0 | VPM46: 0 | VPN46: 0 | VPO46: 0 | VPP46: 0 | VPQ46: =1/$G$46*$F$46*VPQ37 -> 0 | VPR46: 0 | VPS46: 0 | VPT46: 0 | VPU46: 0 | VPV46: 0 | VPW46: 0 | VPX46: 0 | VPY46: 0 | VPZ46: 0 | VQA46: 0 | VQB46: 0 | VQC46: 0 | VQD46: 0 | VQE46: 0 | VQF46: 0 | VQG46: 0 | VQH46: 0 | VQI46: 0 | VQJ46: 0 | VQK46: 0 | VQL46: 0 | VQM46: 0 | VQN46: 0 | VQO46: 0 | VQP46: 0 | VQQ46: 0 | VQR46: 0 | VQS46: 0 | VQT46: 0 | VQU46: 0 | VQV46: 0 | VQW46: 0 | VQX46: 0 | VQY46: 0 | VQZ46: 0 | VRA46: 0 | VRB46: 0 | VRC46: 0 | VRD46: 0 | VRE46: 0 | VRF46: 0 | VRG46: 0 | VRH46: 0 | VRI46: 0 | VRJ46: 0 | VRK46: 0 | VRL46: 0 | VRM46: 0 | VRN46: 0 | VRO46: 0 | VRP46: 0 | VRQ46: 0 | VRR46: 0 | VRS46: 0 | VRT46: 0 | VRU46: 0 | VRV46: 0 | VRW46: 0 | VRX46: 0 | VRY46: 0 | VRZ46: 0 | VSA46: 0 | VSB46: 0 | VSC46: =1/$G$46*$F$46*VSC37 -> 0 | VSD46: 0 | VSE46: 0 | VSF46: 0 | VSG46: 0 | VSH46: 0 | VSI46: 0 | VSJ46: 0 | VSK46: 0 | VSL46: 0 | VSM46: 0 | VSN46: 0 | VSO46: 0 | VSP46: 0 | VSQ46: 0 | VSR46: 0 | VSS46: 0 | VST46: 0 | VSU46: 0 | VSV46: 0 | VSW46: 0 | VSX46: 0 | VSY46: 0 | VSZ46: 0 | VTA46: 0 | VTB46: 0 | VTC46: 0 | VTD46: 0 | VTE46: 0 | VTF46: 0 | VTG46: 0 | VTH46: 0 | VTI46: 0 | VTJ46: 0 | VTK46: 0 | VTL46: 0 | VTM46: 0 | VTN46: 0 | VTO46: 0 | VTP46: 0 | VTQ46: 0 | VTR46: 0 | VTS46: 0 | VTT46: 0 | VTU46: 0 | VTV46: 0 | VTW46: 0 | VTX46: 0 | VTY46: 0 | VTZ46: 0 | VUA46: 0 | VUB46: 0 | VUC46: 0 | VUD46: 0 | VUE46: 0 | VUF46: 0 | VUG46: 0 | VUH46: 0 | VUI46: 0 | VUJ46: 0 | VUK46: 0 | VUL46: 0 | VUM46: 0 | VUN46: 0 | VUO46: =1/$G$46*$F$46*VUO37 -> 0 | VUP46: 0 | VUQ46: 0 | VUR46: 0 | VUS46: 0 | VUT46: 0 | VUU46: 0 | VUV46: 0 | VUW46: 0 | VUX46: 0 | VUY46: 0 | VUZ46: 0 | VVA46: 0 | VVB46: 0 | VVC46: 0 | VVD46: 0 | VVE46: 0 | VVF46: 0 | VVG46: 0 | VVH46: 0 | VVI46: 0 | VVJ46: 0 | VVK46: 0 | VVL46: 0 | VVM46: 0 | VVN46: 0 | VVO46: 0 | VVP46: 0 | VVQ46: 0 | VVR46: 0 | VVS46: 0 | VVT46: 0 | VVU46: 0 | VVV46: 0 | VVW46: 0 | VVX46: 0 | VVY46: 0 | VVZ46: 0 | VWA46: 0 | VWB46: 0 | VWC46: 0 | VWD46: 0 | VWE46: 0 | VWF46: 0 | VWG46: 0 | VWH46: 0 | VWI46: 0 | VWJ46: 0 | VWK46: 0 | VWL46: 0 | VWM46: 0 | VWN46: 0 | VWO46: 0 | VWP46: 0 | VWQ46: 0 | VWR46: 0 | VWS46: 0 | VWT46: 0 | VWU46: 0 | VWV46: 0 | VWW46: 0 | VWX46: 0 | VWY46: 0 | VWZ46: 0 | VXA46: =1/$G$46*$F$46*VXA37 -> 0 | VXB46: 0 | VXC46: 0 | VXD46: 0 | VXE46: 0 | VXF46: 0 | VXG46: 0 | VXH46: 0 | VXI46: 0 | VXJ46: 0 | VXK46: 0 | VXL46: 0 | VXM46: 0 | VXN46: 0 | VXO46: 0 | VXP46: 0 | VXQ46: 0 | VXR46: 0 | VXS46: 0 | VXT46: 0 | VXU46: 0 | VXV46: 0 | VXW46: 0 | VXX46: 0 | VXY46: 0 | VXZ46: 0 | VYA46: 0 | VYB46: 0 | VYC46: 0 | VYD46: 0 | VYE46: 0 | VYF46: 0 | VYG46: 0 | VYH46: 0 | VYI46: 0 | VYJ46: 0 | VYK46: 0 | VYL46: 0 | VYM46: 0 | VYN46: 0 | VYO46: 0 | VYP46: 0 | VYQ46: 0 | VYR46: 0 | VYS46: 0 | VYT46: 0 | VYU46: 0 | VYV46: 0 | VYW46: 0 | VYX46: 0 | VYY46: 0 | VYZ46: 0 | VZA46: 0 | VZB46: 0 | VZC46: 0 | VZD46: 0 | VZE46: 0 | VZF46: 0 | VZG46: 0 | VZH46: 0 | VZI46: 0 | VZJ46: 0 | VZK46: 0 | VZL46: 0 | VZM46: =1/$G$46*$F$46*VZM37 -> 0 | VZN46: 0 | VZO46: 0 | VZP46: 0 | VZQ46: 0 | VZR46: 0 | VZS46: 0 | VZT46: 0 | VZU46: 0 | VZV46: 0 | VZW46: 0 | VZX46: 0 | VZY46: 0 | VZZ46: 0 | WAA46: 0 | WAB46: 0 | WAC46: 0 | WAD46: 0 | WAE46: 0 | WAF46: 0 | WAG46: 0 | WAH46: 0 | WAI46: 0 | WAJ46: 0 | WAK46: 0 | WAL46: 0 | WAM46: 0 | WAN46: 0 | WAO46: 0 | WAP46: 0 | WAQ46: 0 | WAR46: 0 | WAS46: 0 | WAT46: 0 | WAU46: 0 | WAV46: 0 | WAW46: 0 | WAX46: 0 | WAY46: 0 | WAZ46: 0 | WBA46: 0 | WBB46: 0 | WBC46: 0 | WBD46: 0 | WBE46: 0 | WBF46: 0 | WBG46: 0 | WBH46: 0 | WBI46: 0 | WBJ46: 0 | WBK46: 0 | WBL46: 0 | WBM46: 0 | WBN46: 0 | WBO46: 0 | WBP46: 0 | WBQ46: 0 | WBR46: 0 | WBS46: 0 | WBT46: 0 | WBU46: 0 | WBV46: 0 | WBW46: 0 | WBX46: 0 | WBY46: =1/$G$46*$F$46*WBY37 -> 0 | WBZ46: 0 | WCA46: 0 | WCB46: 0 | WCC46: 0 | WCD46: 0 | WCE46: 0 | WCF46: 0 | WCG46: 0 | WCH46: 0 | WCI46: 0 | WCJ46: 0 | WCK46: 0 | WCL46: 0 | WCM46: 0 | WCN46: 0 | WCO46: 0 | WCP46: 0 | WCQ46: 0 | WCR46: 0 | WCS46: 0 | WCT46: 0 | WCU46: 0 | WCV46: 0 | WCW46: 0 | WCX46: 0 | WCY46: 0 | WCZ46: 0 | WDA46: 0 | WDB46: 0 | WDC46: 0 | WDD46: 0 | WDE46: 0 | WDF46: 0 | WDG46: 0 | WDH46: 0 | WDI46: 0 | WDJ46: 0 | WDK46: 0 | WDL46: 0 | WDM46: 0 | WDN46: 0 | WDO46: 0 | WDP46: 0 | WDQ46: 0 | WDR46: 0 | WDS46: 0 | WDT46: 0 | WDU46: 0 | WDV46: 0 | WDW46: 0 | WDX46: 0 | WDY46: 0 | WDZ46: 0 | WEA46: 0 | WEB46: 0 | WEC46: 0 | WED46: 0 | WEE46: 0 | WEF46: 0 | WEG46: 0 | WEH46: 0 | WEI46: 0 | WEJ46: 0 | WEK46: =1/$G$46*$F$46*WEK37 -> 0 | WEL46: 0 | WEM46: 0 | WEN46: 0 | WEO46: 0 | WEP46: 0 | WEQ46: 0 | WER46: 0 | WES46: 0 | WET46: 0 | WEU46: 0 | WEV46: 0 | WEW46: 0 | WEX46: 0 | WEY46: 0 | WEZ46: 0 | WFA46: 0 | WFB46: 0 | WFC46: 0 | WFD46: 0 | WFE46: 0 | WFF46: 0 | WFG46: 0 | WFH46: 0 | WFI46: 0 | WFJ46: 0 | WFK46: 0 | WFL46: 0 | WFM46: 0 | WFN46: 0 | WFO46: 0 | WFP46: 0 | WFQ46: 0 | WFR46: 0 | WFS46: 0 | WFT46: 0 | WFU46: 0 | WFV46: 0 | WFW46: 0 | WFX46: 0 | WFY46: 0 | WFZ46: 0 | WGA46: 0 | WGB46: 0 | WGC46: 0 | WGD46: 0 | WGE46: 0 | WGF46: 0 | WGG46: 0 | WGH46: 0 | WGI46: 0 | WGJ46: 0 | WGK46: 0 | WGL46: 0 | WGM46: 0 | WGN46: 0 | WGO46: 0 | WGP46: 0 | WGQ46: 0 | WGR46: 0 | WGS46: 0 | WGT46: 0 | WGU46: 0 | WGV46: 0 | WGW46: =1/$G$46*$F$46*WGW37 -> 0 | WGX46: 0 | WGY46: 0 | WGZ46: 0 | WHA46: 0 | WHB46: 0 | WHC46: 0 | WHD46: 0 | WHE46: 0 | WHF46: 0 | WHG46: 0 | WHH46: 0 | WHI46: 0 | WHJ46: 0 | WHK46: 0 | WHL46: 0 | WHM46: 0 | WHN46: 0 | WHO46: 0 | WHP46: 0 | WHQ46: 0 | WHR46: 0 | WHS46: 0 | WHT46: 0 | WHU46: 0 | WHV46: 0 | WHW46: 0 | WHX46: 0 | WHY46: 0 | WHZ46: 0 | WIA46: 0 | WIB46: 0 | WIC46: 0 | WID46: 0 | WIE46: 0 | WIF46: 0 | WIG46: 0 | WIH46: 0 | WII46: 0 | WIJ46: 0 | WIK46: 0 | WIL46: 0 | WIM46: 0 | WIN46: 0 | WIO46: 0 | WIP46: 0 | WIQ46: 0 | WIR46: 0 | WIS46: 0 | WIT46: 0 | WIU46: 0 | WIV46: 0 | WIW46: 0 | WIX46: 0 | WIY46: 0 | WIZ46: 0 | WJA46: 0 | WJB46: 0 | WJC46: 0 | WJD46: 0 | WJE46: 0 | WJF46: 0 | WJG46: 0 | WJH46: 0 | WJI46: =1/$G$46*$F$46*WJI37 -> 0 | WJJ46: 0 | WJK46: 0 | WJL46: 0 | WJM46: 0 | WJN46: 0 | WJO46: 0 | WJP46: 0 | WJQ46: 0 | WJR46: 0 | WJS46: 0 | WJT46: 0 | WJU46: 0 | WJV46: 0 | WJW46: 0 | WJX46: 0 | WJY46: 0 | WJZ46: 0 | WKA46: 0 | WKB46: 0 | WKC46: 0 | WKD46: 0 | WKE46: 0 | WKF46: 0 | WKG46: 0 | WKH46: 0 | WKI46: 0 | WKJ46: 0 | WKK46: 0 | WKL46: 0 | WKM46: 0 | WKN46: 0 | WKO46: 0 | WKP46: 0 | WKQ46: 0 | WKR46: 0 | WKS46: 0 | WKT46: 0 | WKU46: 0 | WKV46: 0 | WKW46: 0 | WKX46: 0 | WKY46: 0 | WKZ46: 0 | WLA46: 0 | WLB46: 0 | WLC46: 0 | WLD46: 0 | WLE46: 0 | WLF46: 0 | WLG46: 0 | WLH46: 0 | WLI46: 0 | WLJ46: 0 | WLK46: 0 | WLL46: 0 | WLM46: 0 | WLN46: 0 | WLO46: 0 | WLP46: 0 | WLQ46: 0 | WLR46: 0 | WLS46: 0 | WLT46: 0 | WLU46: =1/$G$46*$F$46*WLU37 -> 0 | WLV46: 0 | WLW46: 0 | WLX46: 0 | WLY46: 0 | WLZ46: 0 | WMA46: 0 | WMB46: 0 | WMC46: 0 | WMD46: 0 | WME46: 0 | WMF46: 0 | WMG46: 0 | WMH46: 0 | WMI46: 0 | WMJ46: 0 | WMK46: 0 | WML46: 0 | WMM46: 0 | WMN46: 0 | WMO46: 0 | WMP46: 0 | WMQ46: 0 | WMR46: 0 | WMS46: 0 | WMT46: 0 | WMU46: 0 | WMV46: 0 | WMW46: 0 | WMX46: 0 | WMY46: 0 | WMZ46: 0 | WNA46: 0 | WNB46: 0 | WNC46: 0 | WND46: 0 | WNE46: 0 | WNF46: 0 | WNG46: 0 | WNH46: 0 | WNI46: 0 | WNJ46: 0 | WNK46: 0 | WNL46: 0 | WNM46: 0 | WNN46: 0 | WNO46: 0 | WNP46: 0 | WNQ46: 0 | WNR46: 0 | WNS46: 0 | WNT46: 0 | WNU46: 0 | WNV46: 0 | WNW46: 0 | WNX46: 0 | WNY46: 0 | WNZ46: 0 | WOA46: 0 | WOB46: 0 | WOC46: 0 | WOD46: 0 | WOE46: 0 | WOF46: 0 | WOG46: =1/$G$46*$F$46*WOG37 -> 0 | WOH46: 0 | WOI46: 0 | WOJ46: 0 | WOK46: 0 | WOL46: 0 | WOM46: 0 | WON46: 0 | WOO46: 0 | WOP46: 0 | WOQ46: 0 | WOR46: 0 | WOS46: 0 | WOT46: 0 | WOU46: 0 | WOV46: 0 | WOW46: 0 | WOX46: 0 | WOY46: 0 | WOZ46: 0 | WPA46: 0 | WPB46: 0 | WPC46: 0 | WPD46: 0 | WPE46: 0 | WPF46: 0 | WPG46: 0 | WPH46: 0 | WPI46: 0 | WPJ46: 0 | WPK46: 0 | WPL46: 0 | WPM46: 0 | WPN46: 0 | WPO46: 0 | WPP46: 0 | WPQ46: 0 | WPR46: 0 | WPS46: 0 | WPT46: 0 | WPU46: 0 | WPV46: 0 | WPW46: 0 | WPX46: 0 | WPY46: 0 | WPZ46: 0 | WQA46: 0 | WQB46: 0 | WQC46: 0 | WQD46: 0 | WQE46: 0 | WQF46: 0 | WQG46: 0 | WQH46: 0 | WQI46: 0 | WQJ46: 0 | WQK46: 0 | WQL46: 0 | WQM46: 0 | WQN46: 0 | WQO46: 0 | WQP46: 0 | WQQ46: 0 | WQR46: 0 | WQS46: =1/$G$46*$F$46*WQS37 -> 0 | WQT46: 0 | WQU46: 0 | WQV46: 0 | WQW46: 0 | WQX46: 0 | WQY46: 0 | WQZ46: 0 | WRA46: 0 | WRB46: 0 | WRC46: 0 | WRD46: 0 | WRE46: 0 | WRF46: 0 | WRG46: 0 | WRH46: 0 | WRI46: 0 | WRJ46: 0 | WRK46: 0 | WRL46: 0 | WRM46: 0 | WRN46: 0 | WRO46: 0 | WRP46: 0 | WRQ46: 0 | WRR46: 0 | WRS46: 0 | WRT46: 0 | WRU46: 0 | WRV46: 0 | WRW46: 0 | WRX46: 0 | WRY46: 0 | WRZ46: 0 | WSA46: 0 | WSB46: 0 | WSC46: 0 | WSD46: 0 | WSE46: 0 | WSF46: 0 | WSG46: 0 | WSH46: 0 | WSI46: 0 | WSJ46: 0 | WSK46: 0 | WSL46: 0 | WSM46: 0 | WSN46: 0 | WSO46: 0 | WSP46: 0 | WSQ46: 0 | WSR46: 0 | WSS46: 0 | WST46: 0 | WSU46: 0 | WSV46: 0 | WSW46: 0 | WSX46: 0 | WSY46: 0 | WSZ46: 0 | WTA46: 0 | WTB46: 0 | WTC46: 0 | WTD46: 0 | WTE46: =1/$G$46*$F$46*WTE37 -> 0 | WTF46: 0 | WTG46: 0 | WTH46: 0 | WTI46: 0 | WTJ46: 0 | WTK46: 0 | WTL46: 0 | WTM46: 0 | WTN46: 0 | WTO46: 0 | WTP46: 0 | WTQ46: 0 | WTR46: 0 | WTS46: 0 | WTT46: 0 | WTU46: 0 | WTV46: 0 | WTW46: 0 | WTX46: 0 | WTY46: 0 | WTZ46: 0 | WUA46: 0 | WUB46: 0 | WUC46: 0 | WUD46: 0 | WUE46: 0 | WUF46: 0 | WUG46: 0 | WUH46: 0 | WUI46: 0 | WUJ46: 0 | WUK46: 0 | WUL46: 0 | WUM46: 0 | WUN46: 0 | WUO46: 0 | WUP46: 0 | WUQ46: 0 | WUR46: 0 | WUS46: 0 | WUT46: 0 | WUU46: 0 | WUV46: 0 | WUW46: 0 | WUX46: 0 | WUY46: 0 | WUZ46: 0 | WVA46: 0 | WVB46: 0 | WVC46: 0 | WVD46: 0 | WVE46: 0 | WVF46: 0 | WVG46: 0 | WVH46: 0 | WVI46: 0 | WVJ46: 0 | WVK46: 0 | WVL46: 0 | WVM46: 0 | WVN46: 0 | WVO46: 0 | WVP46: 0 | WVQ46: =1/$G$46*$F$46*WVQ37 -> 0 | WVR46: 0 | WVS46: 0 | WVT46: 0 | WVU46: 0 | WVV46: 0 | WVW46: 0 | WVX46: 0 | WVY46: 0 | WVZ46: 0 | WWA46: 0 | WWB46: 0 | WWC46: 0 | WWD46: 0 | WWE46: 0 | WWF46: 0 | WWG46: 0 | WWH46: 0 | WWI46: 0 | WWJ46: 0 | WWK46: 0 | WWL46: 0 | WWM46: 0 | WWN46: 0 | WWO46: 0 | WWP46: 0 | WWQ46: 0 | WWR46: 0 | WWS46: 0 | WWT46: 0 | WWU46: 0 | WWV46: 0 | WWW46: 0 | WWX46: 0 | WWY46: 0 | WWZ46: 0 | WXA46: 0 | WXB46: 0 | WXC46: 0 | WXD46: 0 | WXE46: 0 | WXF46: 0 | WXG46: 0 | WXH46: 0 | WXI46: 0 | WXJ46: 0 | WXK46: 0 | WXL46: 0 | WXM46: 0 | WXN46: 0 | WXO46: 0 | WXP46: 0 | WXQ46: 0 | WXR46: 0 | WXS46: 0 | WXT46: 0 | WXU46: 0 | WXV46: 0 | WXW46: 0 | WXX46: 0 | WXY46: 0 | WXZ46: 0 | WYA46: 0 | WYB46: 0 | WYC46: =1/$G$46*$F$46*WYC37 -> 0 | WYD46: 0 | WYE46: 0 | WYF46: 0 | WYG46: 0 | WYH46: 0 | WYI46: 0 | WYJ46: 0 | WYK46: 0 | WYL46: 0 | WYM46: 0 | WYN46: 0 | WYO46: 0 | WYP46: 0 | WYQ46: 0 | WYR46: 0 | WYS46: 0 | WYT46: 0 | WYU46: 0 | WYV46: 0 | WYW46: 0 | WYX46: 0 | WYY46: 0 | WYZ46: 0 | WZA46: 0 | WZB46: 0 | WZC46: 0 | WZD46: 0 | WZE46: 0 | WZF46: 0 | WZG46: 0 | WZH46: 0 | WZI46: 0 | WZJ46: 0 | WZK46: 0 | WZL46: 0 | WZM46: 0 | WZN46: 0 | WZO46: 0 | WZP46: 0 | WZQ46: 0 | WZR46: 0 | WZS46: 0 | WZT46: 0 | WZU46: 0 | WZV46: 0 | WZW46: 0 | WZX46: 0 | WZY46: 0 | WZZ46: 0 | XAA46: 0 | XAB46: 0 | XAC46: 0 | XAD46: 0 | XAE46: 0 | XAF46: 0 | XAG46: 0 | XAH46: 0 | XAI46: 0 | XAJ46: 0 | XAK46: 0 | XAL46: 0 | XAM46: 0 | XAN46: 0 | XAO46: =1/$G$46*$F$46*XAO37 -> 0 | XAP46: 0 | XAQ46: 0 | XAR46: 0 | XAS46: 0 | XAT46: 0 | XAU46: 0 | XAV46: 0 | XAW46: 0 | XAX46: 0 | XAY46: 0 | XAZ46: 0 | XBA46: 0 | XBB46: 0 | XBC46: 0 | XBD46: 0 | XBE46: 0 | XBF46: 0 | XBG46: 0 | XBH46: 0 | XBI46: 0 | XBJ46: 0 | XBK46: 0 | XBL46: 0 | XBM46: 0 | XBN46: 0 | XBO46: 0 | XBP46: 0 | XBQ46: 0 | XBR46: 0 | XBS46: 0 | XBT46: 0 | XBU46: 0 | XBV46: 0 | XBW46: 0 | XBX46: 0 | XBY46: 0 | XBZ46: 0 | XCA46: 0 | XCB46: 0 | XCC46: 0 | XCD46: 0 | XCE46: 0 | XCF46: 0 | XCG46: 0 | XCH46: 0 | XCI46: 0 | XCJ46: 0 | XCK46: 0 | XCL46: 0 | XCM46: 0 | XCN46: 0 | XCO46: 0 | XCP46: 0 | XCQ46: 0 | XCR46: 0 | XCS46: 0 | XCT46: 0 | XCU46: 0 | XCV46: 0 | XCW46: 0 | XCX46: 0 | XCY46: 0 | XCZ46: 0 | XDA46: =1/$G$46*$F$46*XDA37 -> 0 | XDB46: 0 | XDC46: 0 | XDD46: 0 | XDE46: 0 | XDF46: 0 | XDG46: 0 | XDH46: 0 | XDI46: 0 | XDJ46: 0 | XDK46: 0 | XDL46: 0 | XDM46: 0 | XDN46: 0 | XDO46: 0 | XDP46: 0 | XDQ46: 0 | XDR46: 0 | XDS46: 0 | XDT46: 0 | XDU46: 0 | XDV46: 0 | XDW46: 0 | XDX46: 0 | XDY46: 0 | XDZ46: 0 | XEA46: 0 | XEB46: 0 | XEC46: 0 | XED46: 0 | XEE46: 0 | XEF46: 0 | XEG46: 0 | XEH46: 0 | XEI46: 0 | XEJ46: 0 | XEK46: 0 | XEL46: 0 | XEM46: 0 | XEN46: 0 | XEO46: 0 | XEP46: 0 | XEQ46: 0 | XER46: 0 | XES46: 0 | XET46: 0 | XEU46: 0 | XEV46: 0 | XEW46: 0 | XEX46: 0 | XEY46: 0 | XEZ46: 0 | XFA46: 0 | XFB46: 0 | XFC46: 0 | XFD46: 0
